Workbook

Sheet MainDisplay
O1: =TODAY() -> 2018-06-18
B2: =MOD(RTD("cqg.rtd", ,"SystemInfo", "Linetime"),1) -> 08:44:40 | F2: CQG NYSE & NASDAQ Equities 10-Day Map | AA2: =RTD("cqg.rtd", ,"SystemInfo", "Linetime") -> 43269.36435
B4: Symbol | D4: Equities | F4: =IF(RTD("cqg.rtd", ,"ContractData",Sheet3!$D$12, "NetLastTradeToday",, "T")>=0,"+",0) -> 0 | G4: Last | H4: =TEXT(RTD("cqg.rtd", ,"ContractData",Sheet3!$D$12, "LastTradeToday",, "T"),Sheet3!$F$17) -> 187.93 | J4: Net | K4: =IF(F4="+","+"&TEXT(RTD("cqg.rtd", ,"ContractData",Sheet3!$D$12, "NetLastTradeToday",, "T"),Sheet3!$F$17),TEXT(RTD("cqg.rtd", ,"ContractData",Sheet3!$D$12, "NetLastTradeToday",, "T"),Sheet3!$F$17)) -> -.91 | M4: Net $ Change | R4: Symbol | T4: Equities | V4: =IF(RTD("cqg.rtd", ,"ContractData",'Sheet3 (2)'!$D$12, "NetLastTradeToday",, "T")>=0,"+",0) -> + | W4: Last | X4: =TEXT(RTD("cqg.rtd", ,"ContractData",'Sheet3 (2)'!$D$12, "LastTradeToday",, "T"),'Sheet3 (2)'!$F$17) -> 1718.03 | Z4: Net | AA4: =IF(V4="+","+"&TEXT(RTD("cqg.rtd", ,"ContractData",'Sheet3 (2)'!$D$12, "NetLastTradeToday",, "T"),'Sheet3 (2)'!$F$17),TEXT(RTD("cqg.rtd", ,"ContractData",'Sheet3 (2)'!$D$12, "NetLastTradeToday",, "T"),'Sheet3 (2)'!$F$17)) -> +2.06 | AC4: Net $ Change
B5: S.AAPL | C5: =" "&RTD("cqg.rtd", ,"ContractData",Sheet3!$D$12, "LongDescription",, "T")&" " -> Apple Inc | G5: Trade | J5: Change | M5: =IFERROR(1/RTD("cqg.rtd",,"ContractData","Tsize("&B5&")","LastQuoteToday",,"T")*RTD("cqg.rtd",,"ContractData","PriceToDollar(Tsize("&B5&"))","LastQuoteToday")*RTD("cqg.rtd", ,"ContractData", B5, "NetLastTrade"),"") -> -0.91 | R5: S.AMZN | S5: =" "&RTD("cqg.rtd", ,"ContractData",'Sheet3 (2)'!D12, "LongDescription",, "T")&" " -> Amazon.com Inc | W5: Trade | Z5: Change | AC5: =IFERROR(1/RTD("cqg.rtd",,"ContractData","Tsize("&R5&")","LastQuoteToday",,"T")*RTD("cqg.rtd",,"ContractData","PriceToDollar(Tsize("&R5&"))","LastQuoteToday")*RTD("cqg.rtd", ,"ContractData", R5, "NetLastTrade"),"") -> 2.06
B6: =2*RTD("cqg.rtd",,"ContractData","Tsize("&B5&")","LastQuoteToday",,"T") -> 0.02 | G6: Open | H6: =TEXT(RTD("cqg.rtd", ,"ContractData",Sheet3!$D$12, "Open",, "T"),Sheet3!$F$17) -> 187.88 | I6: High | J6: =TEXT(RTD("cqg.rtd", ,"ContractData",Sheet3!$D$12, "High",, "T"),Sheet3!$F$17) -> 187.98 | K6: Low | L6: =TEXT(RTD("cqg.rtd", ,"ContractData",Sheet3!$D$12, "Low",, "T"),Sheet3!$F$17) -> 187.20 | R6: =2*RTD("cqg.rtd",,"ContractData","Tsize("&R5&")","LastQuoteToday",,"T") -> 0.02 | W6: Open | X6: =TEXT(RTD("cqg.rtd", ,"ContractData",'Sheet3 (2)'!$D$12, "Open",, "T"),'Sheet3 (2)'!$F$17) -> 1706.26 | Y6: High | Z6: =TEXT(RTD("cqg.rtd", ,"ContractData",'Sheet3 (2)'!$D$12, "High",, "T"),'Sheet3 (2)'!$F$17) -> 1718.21 | AA6: Low | AB6: =TEXT(RTD("cqg.rtd", ,"ContractData",'Sheet3 (2)'!$D$12, "Low",, "T"),'Sheet3 (2)'!$F$17) -> 1702.56
M7: =IF(J6-H4<=B6,1,0) -> 0 | O7: =IF(H4-L6<=B6,1,0) -> 0 | AC7: =IF(Z6-X4<=R6,1,0) -> 0 | AE7: =IF(X4-AB6<=R6,1,0) -> 0
B8: =Sheet4!I85+1 -> 8 | C8: =RTD("cqg.rtd", ,"ContractData",Sheet3!$D$12, "MT_LastBidVolume",, "T") -> 100 | E8: =TEXT(RTD("cqg.rtd", ,"ContractData",Sheet3!$D$12, "Bid",, "T"),Sheet3!$F$17) -> 187.92 | G8: =TEXT(RTD("cqg.rtd", ,"ContractData",Sheet3!$D$12, "Ask",, "T"),Sheet3!$F$17) -> 187.93 | I8: =RTD("cqg.rtd", ,"ContractData",Sheet3!$D$12, "MT_LastAskVolume",, "T") -> 300 | K8: Top Correlation to: | M8: Highlight | R8: ='Sheet4 (2)'!I85+1 -> 8 | S8: =RTD("cqg.rtd", ,"ContractData",'Sheet3 (2)'!$D$12, "MT_LastBidVolume",, "T") -> 200 | U8: =TEXT(RTD("cqg.rtd", ,"ContractData",'Sheet3 (2)'!$D$12, "Bid",, "T"),'Sheet3 (2)'!$F$17) -> 1717.88 | W8: =TEXT(RTD("cqg.rtd", ,"ContractData",'Sheet3 (2)'!$D$12, "Ask",, "T"),'Sheet3 (2)'!$F$17) -> 1718.42 | Y8: =RTD("cqg.rtd", ,"ContractData",'Sheet3 (2)'!$D$12, "MT_LastAskVolume",, "T") -> 100 | AA8: Top Correlation to: | AC8: Highlight
K9: =Sheet4!G85 -> 2018-06-07 | L9: =Sheet4!H85 -> 0.9897433186 | M9: Reset | AA9: ='Sheet4 (2)'!G85 -> 2018-06-07 | AB9: ='Sheet4 (2)'!H85 -> 0.9833882068 | AC9: Reset
A10: =IF(M14=$O$1,1,0) -> 0 | Q10: =IF(AC14=$O$1,1,0) -> 0
A11: 0 | Q11: =IF(AC15=$O$1,1,0) -> 0
A12: 0 | M12: Bar Time | N12: Corr | O12: =IFERROR(IF(TIME(0,5,0)-(MOD(B2,1)-M13)<0,1,TIME(0,5,0)-(MOD(B2,1)-M13)),"") -> 00:00:20 | Q12: =IF(AC16=$O$1,1,0) -> 0 | AC12: Bar Time | AD12: Corr | AE12: =IFERROR(IF(TIME(0,5,0)-(MOD(B2,1)-AC13)<0,1,TIME(0,5,0)-(MOD(B2,1)-AC13)),"") -> 00:00:20
A13: 0 | M13: =IFERROR(Sheet3!AC12,"") -> 08:40:00 | N13: Now | O13: % NC | Q13: =IF(AC17=$O$1,1,0) -> 0 | AC13: =IFERROR('Sheet3 (2)'!AC12,"") -> 08:40:00 | AD13: Now | AE13: % NC
A14: 0 | M14: =IFERROR(Sheet3!AG1,"") -> 2018-06-05 | N14: =IFERROR(VLOOKUP(M14,Sheet4!$G$85:$H$93,2,FALSE),"") -> -0.9862413826 | O14: =IFERROR(Sheet3!AH1,"") -> 0.005056560496 | Q14: =IF(AC18=$O$1,1,0) -> 0 | AC14: =IFERROR('Sheet3 (2)'!AG1,"") -> 2018-06-06 | AD14: =IFERROR(VLOOKUP(AC14,'Sheet4 (2)'!$G$85:$H$93,2,FALSE),"") -> -0.1817669302 | AE14: =IFERROR('Sheet3 (2)'!AH1,"") -> 0.007993633389
A15: 0 | M15: =IFERROR(Sheet3!AG2,"") -> 2018-06-12 | N15: =IFERROR(VLOOKUP(M15,Sheet4!$G$85:$H$93,2,FALSE),"") -> -0.2321202138 | O15: =IFERROR(Sheet3!AH2,"") -> 0.001568791508 | Q15: 0 | AC15: =IFERROR('Sheet3 (2)'!AG2,"") -> 2018-06-11 | AD15: =IFERROR(VLOOKUP(AC15,'Sheet4 (2)'!$G$85:$H$93,2,FALSE),"") -> 0.9750236841 | AE15: =IFERROR('Sheet3 (2)'!AH2,"") -> 0.005492906727
A16: 0 | M16: =IFERROR(Sheet3!AG3,"") -> 2018-06-06 | N16: =IFERROR(VLOOKUP(M16,Sheet4!$G$85:$H$93,2,FALSE),"") -> -0.990448042 | O16: =IFERROR(Sheet3!AH3,"") -> 5.173038125e-05 | Q16: 1 | AC16: =IFERROR('Sheet3 (2)'!AG3,"") -> 2018-06-05 | AD16: =IFERROR(VLOOKUP(AC16,'Sheet4 (2)'!$G$85:$H$93,2,FALSE),"") -> 0.9387783641 | AE16: =IFERROR('Sheet3 (2)'!AH3,"") -> 0.005488599446
A17: 1 | M17: =IFERROR(Sheet3!AG4,"") -> 2018-06-11 | N17: =IFERROR(VLOOKUP(M17,Sheet4!$G$85:$H$93,2,FALSE),"") -> -0.9584318507 | O17: =IFERROR(Sheet3!AH4,"") -> -0.0006259780908 | Q17: 0 | AC17: =IFERROR('Sheet3 (2)'!AG4,"") -> 2018-06-14 | AD17: =IFERROR(VLOOKUP(AC17,'Sheet4 (2)'!$G$85:$H$93,2,FALSE),"") -> -0.9964203582 | AE17: =IFERROR('Sheet3 (2)'!AH4,"") -> 0.004751123259
A18: 0 | M18: =IFERROR(Sheet3!AG5,"") -> 2018-06-14 | N18: =IFERROR(VLOOKUP(M18,Sheet4!$G$85:$H$93,2,FALSE),"") -> -0.9584261533 | O18: =IFERROR(Sheet3!AH5,"") -> -0.0008390141584 | Q18: 0 | AC18: =IFERROR('Sheet3 (2)'!AG5,"") -> 2018-06-12 | AD18: =IFERROR(VLOOKUP(AC18,'Sheet4 (2)'!$G$85:$H$93,2,FALSE),"") -> -0.9896637995 | AE18: =IFERROR('Sheet3 (2)'!AH5,"") -> 0.00401392441
A19: 0 | M19: =IFERROR(Sheet3!AG6,"") -> 2018-06-13 | N19: =IFERROR(VLOOKUP(M19,Sheet4!$G$85:$H$93,2,FALSE),"") -> -0.8996328343 | O19: =IFERROR(Sheet3!AH6,"") -> -0.001560224672 | Q19: 0 | AC19: =IFERROR('Sheet3 (2)'!AG6,"") -> 2018-06-13 | AD19: =IFERROR(VLOOKUP(AC19,'Sheet4 (2)'!$G$85:$H$93,2,FALSE),"") -> -0.9738772533 | AE19: =IFERROR('Sheet3 (2)'!AH6,"") -> 0.003384841795
M20: =IFERROR(Sheet3!AG7,"") -> 2018-06-07 | N20: =IFERROR(VLOOKUP(M20,Sheet4!$G$85:$H$93,2,FALSE),"") -> 0.9897433186 | O20: =IFERROR(Sheet3!AH7,"") -> -0.001598102897 | AC20: =IFERROR('Sheet3 (2)'!AG7,"") -> 2018-06-18 | AD20: =IFERROR(VLOOKUP(AC20,'Sheet4 (2)'!$G$85:$H$93,2,FALSE),"") ->  | AE20: =IFERROR('Sheet3 (2)'!AH7,"") -> 0.001200487188
M21: =IFERROR(Sheet3!AG8,"") -> 2018-06-18 | N21: =IFERROR(VLOOKUP(M21,Sheet4!$G$85:$H$93,2,FALSE),"") ->  | O21: =IFERROR(Sheet3!AH8,"") -> -0.004818894302 | AC21: =IFERROR('Sheet3 (2)'!AG8,"") -> 2018-06-07 | AD21: =IFERROR(VLOOKUP(AC21,'Sheet4 (2)'!$G$85:$H$93,2,FALSE),"") -> 0.9833882068 | AE21: =IFERROR('Sheet3 (2)'!AH8,"") -> 0.0002417809229
M22: =IFERROR(Sheet3!AG9,"") -> 2018-06-15 | N22: =IFERROR(VLOOKUP(M22,Sheet4!$G$85:$H$93,2,FALSE),"") -> -0.9777869844 | O22: =IFERROR(Sheet3!AH9,"") -> -0.008542976939 | AC22: =IFERROR('Sheet3 (2)'!AG9,"") -> 2018-06-08 | AD22: =IFERROR(VLOOKUP(AC22,'Sheet4 (2)'!$G$85:$H$93,2,FALSE),"") -> 0.5426072048 | AE22: =IFERROR('Sheet3 (2)'!AH9,"") -> -0.006079441189
M23: =IFERROR(Sheet3!AG10,"") -> 2018-06-08 | N23: =IFERROR(VLOOKUP(M23,Sheet4!$G$85:$H$93,2,FALSE),"") -> -0.9700501117 | O23: =IFERROR(Sheet3!AH10,"") -> -0.01772976326 | AC23: =IFERROR('Sheet3 (2)'!AG10,"") -> 2018-06-15 | AD23: =IFERROR(VLOOKUP(AC23,'Sheet4 (2)'!$G$85:$H$93,2,FALSE),"") -> -0.06212481968 | AE23: =IFERROR('Sheet3 (2)'!AH10,"") -> -0.006520251064
B28: Session: 8:30 - 15:15 | R28: Session: 8:30 - 15:15
B30: Symbol | D30: Equities | F30: =IF(RTD("cqg.rtd", ,"ContractData",'Sheet3 (3)'!$D$12, "NetLastTradeToday",, "T")="","",IF(RTD("cqg.rtd", ,"ContractData",'Sheet3 (3)'!$D$12, "NetLastTradeToday",, "T")>=0,"+",0)) -> 0 | G30: Last | H30: =TEXT(RTD("cqg.rtd", ,"ContractData",'Sheet3 (3)'!$D$12, "LastTradeToday",, "T"),'Sheet3 (3)'!$F$17) -> 164.38 | J30: Net | K30: =IF(F30="","",IF(F30="+","+"&TEXT(RTD("cqg.rtd", ,"ContractData",'Sheet3 (3)'!$D$12, "NetLastTradeToday",, "T"),'Sheet3 (3)'!$F$17),TEXT(RTD("cqg.rtd", ,"ContractData",'Sheet3 (3)'!$D$12, "NetLastTradeToday",, "T"),'Sheet3 (3)'!$F$17))) -> -1.69 | M30: Net $ Change | R30: Symbol | T30: Equities | V30: =IF(RTD("cqg.rtd", ,"ContractData",'Sheet3 (4)'!$D$12, "NetLastTradeToday",, "T")>=0,"+",0) -> 0 | W30: Last | X30: =TEXT(RTD("cqg.rtd", ,"ContractData",'Sheet3 (4)'!$D$12, "LastTradeToday",, "T"),'Sheet3 (3)'!$F$17) -> 391.40 | Z30: Net | AA30: =IF(V30="","",IF(V30="+","+"&TEXT(RTD("cqg.rtd", ,"ContractData",'Sheet3 (4)'!$D$12, "NetLastTradeToday",, "T"),'Sheet3 (4)'!$F$17),TEXT(RTD("cqg.rtd", ,"ContractData",'Sheet3 (4)'!$D$12, "NetLastTradeToday",, "T"),'Sheet3 (4)'!$F$17))) -> -.58 | AC30: Net $ Change
B31: S.RYT | C31: =" "&RTD("cqg.rtd", ,"ContractData",'Sheet3 (3)'!$D$12, "LongDescription",, "T")&" " -> Guggenheim S&P 500 Eq Wt Technology ETF | G31: Trade | J31: Change | M31: =IFERROR(1/RTD("cqg.rtd",,"ContractData","Tsize("&B31&")","LastQuoteToday",,"T")*RTD("cqg.rtd",,"ContractData","PriceToDollar(Tsize("&B31&"))","LastQuoteToday")*RTD("cqg.rtd", ,"ContractData", B31, "NetLastTrade"),"") -> -1.69 | R31: S.NFLX | S31: =" "&RTD("cqg.rtd", ,"ContractData",'Sheet3 (4)'!D12, "LongDescription",, "T")&" " -> Netflix Inc | W31: Trade | Z31: Change | AC31: =IFERROR(1/RTD("cqg.rtd",,"ContractData","Tsize("&R31&")","LastQuoteToday",,"T")*RTD("cqg.rtd",,"ContractData","PriceToDollar(Tsize("&R31&"))","LastQuoteToday")*RTD("cqg.rtd", ,"ContractData", R31, "NetLastTrade",,"T"),"") -> -0.58
B32: =2*RTD("cqg.rtd",,"ContractData","Tsize("&B31&")","LastQuoteToday",,"T") -> 0.02 | G32: Open | H32: =TEXT(RTD("cqg.rtd", ,"ContractData",'Sheet3 (3)'!$D$12, "Open",, "T"),'Sheet3 (3)'!$F$17) -> 164.76 | I32: High | J32: =TEXT(RTD("cqg.rtd", ,"ContractData",'Sheet3 (3)'!$D$12, "High",, "T"),'Sheet3 (3)'!$F$17) -> 164.77 | K32: Low | L32: =TEXT(RTD("cqg.rtd", ,"ContractData",'Sheet3 (3)'!$D$12, "Low",, "T"),'Sheet3 (3)'!$F$17) -> 164.16 | R32: =2*RTD("cqg.rtd",,"ContractData","Tsize("&R31&")","LastQuoteToday",,"T") -> 0.02 | W32: Open | X32: =TEXT(RTD("cqg.rtd", ,"ContractData",'Sheet3 (4)'!$D$12, "Open",, "T"),'Sheet3 (3)'!$F$17) -> 387.72 | Y32: High | Z32: =TEXT(RTD("cqg.rtd", ,"ContractData",'Sheet3 (4)'!$D$12, "High",, "T"),'Sheet3 (3)'!$F$17) -> 392.21 | AA32: Low | AB32: =TEXT(RTD("cqg.rtd", ,"ContractData",'Sheet3 (4)'!$D$12, "Low",, "T"),'Sheet3 (4)'!$F$17) -> 386.50
M33: =IF(J32-H30<=B32,1,0) -> 0 | O33: =IF(H30-L32<=B32,1,0) -> 0 | AC33: =IF(Z32-X30<=R32,1,0) -> 0 | AE33: =IF(X30-AB32<=R32,1,0) -> 0
B34: ='Sheet4 (3)'!I85+1 -> 5 | C34: =RTD("cqg.rtd", ,"ContractData",'Sheet3 (3)'!$D$12, "MT_LastBidVolume",, "T") -> 200 | E34: =TEXT(RTD("cqg.rtd", ,"ContractData",'Sheet3 (3)'!$D$12, "Bid",, "T"),'Sheet3 (3)'!$F$17) -> 164.50 | G34: =TEXT(RTD("cqg.rtd", ,"ContractData",'Sheet3 (3)'!$D$12, "Ask",, "T"),'Sheet3 (3)'!$F$17) -> 164.59 | I34: =RTD("cqg.rtd", ,"ContractData",'Sheet3 (3)'!$D$12, "MT_LastAskVolume",, "T") -> 1100 | K34: Top Correlation to: | M34: Highlight | R34: ='Sheet4 (4)'!I85+1 -> 10 | S34: =RTD("cqg.rtd", ,"ContractData",'Sheet3 (4)'!$D$12, "MT_LastBidVolume",, "T") -> 400 | U34: =TEXT(RTD("cqg.rtd", ,"ContractData",'Sheet3 (4)'!$D$12, "Bid",, "T"),'Sheet3 (3)'!$F$17) -> 391.21 | W34: =TEXT(RTD("cqg.rtd", ,"ContractData",'Sheet3 (4)'!$D$12, "Ask",, "T"),'Sheet3 (4)'!$F$17) -> 391.38 | Y34: =RTD("cqg.rtd", ,"ContractData",'Sheet3 (4)'!$D$12, "MT_LastAskVolume",, "T") -> 200 | AA34: Top Correlation to: | AC34: Highlight
K35: ='Sheet4 (3)'!G85 -> 2018-06-12 | L35: ='Sheet4 (3)'!H85 -> 0.999002535 | M35: Reset | AA35: ='Sheet4 (4)'!G85 -> 2018-06-05 | AB35: ='Sheet4 (4)'!H85 -> 0.9978255933 | AC35: Reset
A36: =IF(M40=$O$1,1,0) -> 0 | Q36: =IF(AC40=$O$1,1,0) -> 0
A37: 0 | Q37: =IF(AC41=$O$1,1,0) -> 0
A38: 0 | M38: Bar Time | N38: Corr | O38: =IFERROR(IF(TIME(0,5,0)-(MOD(B2,1)-M39)<0,1,TIME(0,5,0)-(MOD(B2,1)-M39)),"") -> 00:00:20 | Q38: 0 | AC38: Bar Time | AD38: Corr | AE38: =IFERROR(IF(TIME(0,5,0)-(MOD(B2,1)-AC39)<0,1,TIME(0,5,0)-(MOD(B2,1)-AC39)),"") -> 00:00:20
A39: 0 | M39: =IFERROR('Sheet3 (3)'!AC12,"") -> 08:40:00 | N39: Now | O39: % NC | Q39: 0 | AC39: =IFERROR('Sheet3 (4)'!AC12,"") -> 08:40:00 | AD39: Now | AE39: % NC
A40: 0 | M40: =IFERROR('Sheet3 (3)'!AG1,"") -> 2018-06-14 | N40: =IFERROR(VLOOKUP(M40,'Sheet4 (3)'!$G$85:$H$93,2,FALSE),"") -> -0.9836842795 | O40: =IFERROR('Sheet3 (3)'!AH1,"") -> 0.006949900284 | Q40: 0 | AC40: =IFERROR('Sheet3 (4)'!AG1,"") -> 2018-06-13 | AD40: =IFERROR(VLOOKUP(AC40,'Sheet4 (4)'!$G$85:$H$93,2,FALSE),"") -> 0.964843726 | AE40: =IFERROR('Sheet3 (4)'!AH1,"") -> 0.01954209384
A41: 0 | M41: =IFERROR('Sheet3 (3)'!AG2,"") -> 2018-06-05 | N41: =IFERROR(VLOOKUP(M41,'Sheet4 (3)'!$G$85:$H$93,2,FALSE),"") -> 0.7061294389 | O41: =IFERROR('Sheet3 (3)'!AH2,"") -> 0.003805315166 | Q41: 0 | AC41: =IFERROR('Sheet3 (4)'!AG2,"") -> 2018-06-14 | AD41: =IFERROR(VLOOKUP(AC41,'Sheet4 (4)'!$G$85:$H$93,2,FALSE),"") -> -0.6415914043 | AE41: =IFERROR('Sheet3 (4)'!AH2,"") -> 0.01621351302
A42: 0 | M42: =IFERROR('Sheet3 (3)'!AG3,"") -> 2018-06-13 | N42: =IFERROR(VLOOKUP(M42,'Sheet4 (3)'!$G$85:$H$93,2,FALSE),"") -> 0.2601529512 | O42: =IFERROR('Sheet3 (3)'!AH3,"") -> 0.002899951667 | Q42: 1 | AC42: =IFERROR('Sheet3 (4)'!AG3,"") -> 2018-06-11 | AD42: =IFERROR(VLOOKUP(AC42,'Sheet4 (4)'!$G$85:$H$93,2,FALSE),"") -> 0.883660957 | AE42: =IFERROR('Sheet3 (4)'!AH3,"") -> 0.0130626508
A43: 0 | M43: =IFERROR('Sheet3 (3)'!AG4,"") -> 2018-06-06 | N43: =IFERROR(VLOOKUP(M43,'Sheet4 (3)'!$G$85:$H$93,2,FALSE),"") -> 0.9352069955 | O43: =IFERROR('Sheet3 (3)'!AH4,"") -> 0.001643935704 | Q43: 0 | AC43: =IFERROR('Sheet3 (4)'!AG4,"") -> 2018-06-12 | AD43: =IFERROR(VLOOKUP(AC43,'Sheet4 (4)'!$G$85:$H$93,2,FALSE),"") -> 0.340087938 | AE43: =IFERROR('Sheet3 (4)'!AH4,"") -> 0.009157559828
A44: 1 | M44: =IFERROR('Sheet3 (3)'!AG5,"") -> 2018-06-11 | N44: =IFERROR(VLOOKUP(M44,'Sheet4 (3)'!$G$85:$H$93,2,FALSE),"") -> 0.1195464424 | O44: =IFERROR('Sheet3 (3)'!AH5,"") -> 0.001399878271 | Q44: 0 | AC44: =IFERROR('Sheet3 (4)'!AG5,"") -> 2018-06-05 | AD44: =IFERROR(VLOOKUP(AC44,'Sheet4 (4)'!$G$85:$H$93,2,FALSE),"") -> 0.9978255933 | AE44: =IFERROR('Sheet3 (4)'!AH5,"") -> 0.008070534258
A45: 0 | M45: =IFERROR('Sheet3 (3)'!AG6,"") -> 2018-06-12 | N45: =IFERROR(VLOOKUP(M45,'Sheet4 (3)'!$G$85:$H$93,2,FALSE),"") -> 0.999002535 | O45: =IFERROR('Sheet3 (3)'!AH6,"") -> 0.001398431325 | Q45: 0 | AC45: =IFERROR('Sheet3 (4)'!AG6,"") -> 2018-06-06 | AD45: =IFERROR(VLOOKUP(AC45,'Sheet4 (4)'!$G$85:$H$93,2,FALSE),"") -> -0.783501344 | AE45: =IFERROR('Sheet3 (4)'!AH6,"") -> 0.006588299617
M46: =IFERROR('Sheet3 (3)'!AG7,"") -> 2018-06-07 | N46: =IFERROR(VLOOKUP(M46,'Sheet4 (3)'!$G$85:$H$93,2,FALSE),"") -> -0.2601529512 | O46: =IFERROR('Sheet3 (3)'!AH7,"") -> -0.001691229766 | AC46: =IFERROR('Sheet3 (4)'!AG7,"") -> 2018-06-18 | AD46: =IFERROR(VLOOKUP(AC46,'Sheet4 (4)'!$G$85:$H$93,2,FALSE),"") ->  | AE46: =IFERROR('Sheet3 (4)'!AH7,"") -> -0.00147966733
M47: =IFERROR('Sheet3 (3)'!AG8,"") -> 2018-06-08 | N47: =IFERROR(VLOOKUP(M47,'Sheet4 (3)'!$G$85:$H$93,2,FALSE),"") -> 0.2601529512 | O47: =IFERROR('Sheet3 (3)'!AH8,"") -> -0.004027828634 | AC47: =IFERROR('Sheet3 (4)'!AG8,"") -> 2018-06-07 | AD47: =IFERROR(VLOOKUP(AC47,'Sheet4 (4)'!$G$85:$H$93,2,FALSE),"") -> 0.7048743663 | AE47: =IFERROR('Sheet3 (4)'!AH8,"") -> -0.00465369438
M48: =IFERROR('Sheet3 (3)'!AG9,"") -> 2018-06-18 | N48: =IFERROR(VLOOKUP(M48,'Sheet4 (3)'!$G$85:$H$93,2,FALSE),"") ->  | O48: =IFERROR('Sheet3 (3)'!AH9,"") -> -0.01017643163 | AC48: =IFERROR('Sheet3 (4)'!AG9,"") -> 2018-06-08 | AD48: =IFERROR(VLOOKUP(AC48,'Sheet4 (4)'!$G$85:$H$93,2,FALSE),"") -> 0.7718824687 | AE48: =IFERROR('Sheet3 (4)'!AH9,"") -> -0.006806862203
M49: =IFERROR('Sheet3 (3)'!AG10,"") -> 2018-06-15 | N49: =IFERROR(VLOOKUP(M49,'Sheet4 (3)'!$G$85:$H$93,2,FALSE),"") -> 0.01785334791 | O49: =IFERROR('Sheet3 (3)'!AH10,"") -> -0.0109863721 | AC49: =IFERROR('Sheet3 (4)'!AG10,"") -> 2018-06-15 | AD49: =IFERROR(VLOOKUP(AC49,'Sheet4 (4)'!$G$85:$H$93,2,FALSE),"") -> 0.1509931864 | AE49: =IFERROR('Sheet3 (4)'!AH10,"") -> -0.008272456538
B54: Session: 8:30 - 15:15 | R54: Session: 8:30 - 15:15
D55: Copyright © 2018 | J55: Designed by Thom Hartle

Sheet Sheet3 (hidden)
A1: 0 | B1: 08:30:00 | C1: =IF(WEEKDAY(TODAY())=7,TODAY()-1,IF(WEEKDAY(TODAY())=1,TODAY()-2,TODAY())) -> 2018-06-18 | D1: =YEAR(C1) -> 2018 | E1: =MONTH(C1) -> 6 | F1: =DAY(C1) -> 18 | H1: =RTD("cqg.rtd",,"StudyData", "Close("&$D$12&") when LocalYear("&$D$12&")="&$D$1&" and localMonth("&$D$12&") ="&$E$1&" and LocalDay("&$D$12&")="&$F$1&" and Barix("&$D$12&",reference:=StartOfSession)="&A1&"", "Bar", "", "Close","5","0","PrimaryOnly",,,"False","T","EveryTick") -> 187.64 | I1: =IFERROR((H1-$G$2)/$G$2,NA()) -> -0.006354585893 | J1: =RTD("cqg.rtd",,"StudyData", "Close("&$D$12&") when LocalYear("&$D$12&")="&$D$2&" and localMonth("&$D$12&") ="&$E$2&" and LocalDay("&$D$12&")="&$F$2&" and Barix("&$D$12&",reference:=StartOfSession)="&A1&"", "Bar", "", "Close","5","0","PrimaryOnly",,,"False","T","EveryTick") -> 189.8 | K1: =IFERROR((J1-$G$3)/$G$3,NA()) -> -0.005241090147 | L1: =RTD("cqg.rtd",,"StudyData", "Close("&$D$12&") when LocalYear("&$D$12&")="&$D$3&" and localMonth("&$D$12&") ="&$E$3&" and LocalDay("&$D$12&")="&$F$3&" and Barix("&$D$12&",reference:=StartOfSession)="&A1&"", "Bar", "", "Close","5","0","PrimaryOnly",,,"False","T","EveryTick") -> 191.09 | M1: =IFERROR((L1-$G$4)/$G$4,NA()) -> 0.002045097011 | N1: =RTD("cqg.rtd",,"StudyData", "Close("&$D$12&") when LocalYear("&$D$12&")="&$D$4&" and localMonth("&$D$12&") ="&$E$4&" and LocalDay("&$D$12&")="&$F$4&" and Barix("&$D$12&",reference:=StartOfSession)="&A1&"", "Bar", "", "Close","5","0","PrimaryOnly",,,"False","T","EveryTick") -> 192.29 | O1: =IFERROR((N1-$G$5)/$G$5,NA()) -> 5.200748908e-05 | P1: =RTD("cqg.rtd",,"StudyData", "Close("&$D$12&") when LocalYear("&$D$12&")="&$D$5&" and localMonth("&$D$12&") ="&$E$5&" and LocalDay("&$D$12&")="&$F$5&" and Barix("&$D$12&",reference:=StartOfSession)="&A1&"", "Bar", "", "Close","5","0","PrimaryOnly",,,"False","T","EveryTick") -> 191.57 | Q1: =IFERROR((P1-$G$6)/$G$6,NA()) -> 0.001777963709 | R1: =RTD("cqg.rtd",,"StudyData", "Close("&$D$12&") when LocalYear("&$D$12&")="&$D$6&" and localMonth("&$D$12&") ="&$E$6&" and LocalDay("&$D$12&")="&$F$6&" and Barix("&$D$12&",reference:=StartOfSession)="&A1&"", "Bar", "", "Close","5","0","PrimaryOnly",,,"False","T","EveryTick") -> 191.85 | S1: =IFERROR((R1-$G$7)/$G$7,NA()) -> 0.0007824726135 | T1: =RTD("cqg.rtd",,"StudyData", "Close("&$D$12&") when LocalYear("&$D$12&")="&$D$7&" and localMonth("&$D$12&") ="&$E$7&" and LocalDay("&$D$12&")="&$F$7&" and Barix("&$D$12&",reference:=StartOfSession)="&A1&"", "Bar", "", "Close","5","0","PrimaryOnly",,,"False","T","EveryTick") -> 190.4 | U1: =IFERROR((T1-$G$8)/$G$8,NA()) -> -0.0158172232 | V1: =RTD("cqg.rtd",,"StudyData", "Close("&$D$12&") when LocalYear("&$D$12&")="&$D$8&" and localMonth("&$D$12&") ="&$E$8&" and LocalDay("&$D$12&")="&$F$8&" and Barix("&$D$12&",reference:=StartOfSession)="&A1&"", "Bar", "", "Close","5","0","PrimaryOnly",,,"False","T","EveryTick") -> 193.53 | W1: =IFERROR((V1-$G$9)/$G$9,NA()) -> -0.002319826786 | X1: =RTD("cqg.rtd",,"StudyData", "Close("&$D$12&") when LocalYear("&$D$12&")="&$D$9&" and localMonth("&$D$12&") ="&$E$9&" and LocalDay("&$D$12&")="&$F$9&" and Barix("&$D$12&",reference:=StartOfSession)="&A1&"", "Bar", "", "Close","5","0","PrimaryOnly",,,"False","T","EveryTick") -> 193.63 | Y1: =IFERROR((X1-$G$10)/$G$10,NA()) -> 0.0016553722 | Z1: =RTD("cqg.rtd",,"StudyData", "Close("&$D$12&") when LocalYear("&$D$12&")="&$D$10&" and localMonth("&$D$12&") ="&$E$10&" and LocalDay("&$D$12&")="&$F$10&" and Barix("&$D$12&",reference:=StartOfSession)="&A1&"", "Bar", "", "Close","5","0","PrimaryOnly",,,"False","T","EveryTick") -> 193.14 | AA1: =IFERROR((Z1-$G$11)/$G$11,NA()) -> 0.006828963144 | AB1: =RANK(AD1,$AD$1:$AD$10)+COUNTIF($AD$1:AD1,AD1)-1 -> 8 | AC1: =DATE(D1,E1,F1) -> 2018-06-18 | AD1: =VLOOKUP(MAX(AE2:AE81),A1:I81,9,FALSE) -> -0.004818894302 | AF1: 1 | AG1: =VLOOKUP(AF1,$AB$1:$AD$10,2,FALSE) -> 2018-06-05 | AH1: =VLOOKUP(AF1,$AB$1:$AD$10,3,FALSE) -> 0.005056560496 | AK1: =AG1 -> 2018-06-05 | AL1: =AC1 -> 2018-06-18 | AM1: 0 | AN1: =VLOOKUP(AK1,$AL$1:$AM$10,2,FALSE) -> 9
A2: =A1+1 -> 1 | B2: 08:35:00 | C2: =WORKDAY(C1,-G27) -> 2018-06-15 | D2: =YEAR(C2) -> 2018 | E2: =MONTH(C2) -> 6 | F2: =DAY(C2) -> 15 | G2: =RTD("cqg.rtd",,"StudyData",$D$12,"Bar",,"Close","D","-1",,,,,"T") -> 188.84 | H2: =RTD("cqg.rtd",,"StudyData", "Close("&$D$12&") when LocalYear("&$D$12&")="&$D$1&" and localMonth("&$D$12&") ="&$E$1&" and LocalDay("&$D$12&")="&$F$1&" and Barix("&$D$12&",reference:=StartOfSession)="&A2&"", "Bar", "", "Close","5","0","PrimaryOnly",,,"False","T","EveryTick") -> 187.76 | I2: =IFERROR((H2-$G$2)/$G$2,NA()) -> -0.005719127304 | J2: =RTD("cqg.rtd",,"StudyData", "Close("&$D$12&") when LocalYear("&$D$12&")="&$D$2&" and localMonth("&$D$12&") ="&$E$2&" and LocalDay("&$D$12&")="&$F$2&" and Barix("&$D$12&",reference:=StartOfSession)="&A2&"", "Bar", "", "Close","5","0","PrimaryOnly",,,"False","T","EveryTick") -> 189.66 | K2: =IFERROR((J2-$G$3)/$G$3,NA()) -> -0.005974842767 | L2: =RTD("cqg.rtd",,"StudyData", "Close("&$D$12&") when LocalYear("&$D$12&")="&$D$3&" and localMonth("&$D$12&") ="&$E$3&" and LocalDay("&$D$12&")="&$F$3&" and Barix("&$D$12&",reference:=StartOfSession)="&A2&"", "Bar", "", "Close","5","0","PrimaryOnly",,,"False","T","EveryTick") -> 191.01 | M2: =IFERROR((L2-$G$4)/$G$4,NA()) -> 0.001625589932 | N2: =RTD("cqg.rtd",,"StudyData", "Close("&$D$12&") when LocalYear("&$D$12&")="&$D$4&" and localMonth("&$D$12&") ="&$E$4&" and LocalDay("&$D$12&")="&$F$4&" and Barix("&$D$12&",reference:=StartOfSession)="&A2&"", "Bar", "", "Close","5","0","PrimaryOnly",,,"False","T","EveryTick") -> 192.3 | O2: =IFERROR((N2-$G$5)/$G$5,NA()) -> 0.0001040149782 | P2: =RTD("cqg.rtd",,"StudyData", "Close("&$D$12&") when LocalYear("&$D$12&")="&$D$5&" and localMonth("&$D$12&") ="&$E$5&" and LocalDay("&$D$12&")="&$F$5&" and Barix("&$D$12&",reference:=StartOfSession)="&A2&"", "Bar", "", "Close","5","0","PrimaryOnly",,,"False","T","EveryTick") -> 191.45 | Q2: =IFERROR((P2-$G$6)/$G$6,NA()) -> 0.001150447106 | R2: =RTD("cqg.rtd",,"StudyData", "Close("&$D$12&") when LocalYear("&$D$12&")="&$D$6&" and localMonth("&$D$12&") ="&$E$6&" and LocalDay("&$D$12&")="&$F$6&" and Barix("&$D$12&",reference:=StartOfSession)="&A2&"", "Bar", "", "Close","5","0","PrimaryOnly",,,"False","T","EveryTick") -> 191.67 | S2: =IFERROR((R2-$G$7)/$G$7,NA()) -> -0.0001564945227 | T2: =RTD("cqg.rtd",,"StudyData", "Close("&$D$12&") when LocalYear("&$D$12&")="&$D$7&" and localMonth("&$D$12&") ="&$E$7&" and LocalDay("&$D$12&")="&$F$7&" and Barix("&$D$12&",reference:=StartOfSession)="&A2&"", "Bar", "", "Close","5","0","PrimaryOnly",,,"False","T","EveryTick") -> 190.33 | U2: =IFERROR((T2-$G$8)/$G$8,NA()) -> -0.0161790551 | V2: =RTD("cqg.rtd",,"StudyData", "Close("&$D$12&") when LocalYear("&$D$12&")="&$D$8&" and localMonth("&$D$12&") ="&$E$8&" and LocalDay("&$D$12&")="&$F$8&" and Barix("&$D$12&",reference:=StartOfSession)="&A2&"", "Bar", "", "Close","5","0","PrimaryOnly",,,"False","T","EveryTick") -> 193.57 | W2: =IFERROR((V2-$G$9)/$G$9,NA()) -> -0.002113619961 | X2: =RTD("cqg.rtd",,"StudyData", "Close("&$D$12&") when LocalYear("&$D$12&")="&$D$9&" and localMonth("&$D$12&") ="&$E$9&" and LocalDay("&$D$12&")="&$F$9&" and Barix("&$D$12&",reference:=StartOfSession)="&A2&"", "Bar", "", "Close","5","0","PrimaryOnly",,,"False","T","EveryTick") -> 193.54 | Y2: =IFERROR((X2-$G$10)/$G$10,NA()) -> 0.001189798769 | Z2: =RTD("cqg.rtd",,"StudyData", "Close("&$D$12&") when LocalYear("&$D$12&")="&$D$10&" and localMonth("&$D$12&") ="&$E$10&" and LocalDay("&$D$12&")="&$F$10&" and Barix("&$D$12&",reference:=StartOfSession)="&A2&"", "Bar", "", "Close","5","0","PrimaryOnly",,,"False","T","EveryTick") -> 193.05 | AA2: =IFERROR((Z2-$G$11)/$G$11,NA()) -> 0.006359797738 | AB2: =RANK(AD2,$AD$1:$AD$10)+COUNTIF($AD$1:AD2,AD2)-1 -> 9 | AC2: =DATE(D2,E2,F2) -> 2018-06-15 | AD2: =VLOOKUP(MAX(AE2:AE81),A1:K81,11,FALSE) -> -0.008542976939 | AE2: =IF(AND(H1<>"",H2<>"",H3=""),A2,"") ->  | AF2: 2 | AG2: =VLOOKUP(AF2,$AB$1:$AD$10,2,FALSE) -> 2018-06-12 | AH2: =VLOOKUP(AF2,$AB$1:$AD$10,3,FALSE) -> 0.001568791508 | AK2: =AG2 -> 2018-06-12 | AL2: =AC2 -> 2018-06-15 | AM2: 1 | AN2: =VLOOKUP(AK2,$AL$1:$AM$10,2,FALSE) -> 4
A3: =A2+1 -> 2 | B3: 08:40:00 | C3: =WORKDAY(C2,-G28) -> 2018-06-14 | D3: 2018 | E3: 6 | F3: 14 | G3: =RTD("cqg.rtd",,"StudyData",$D$12,"Bar",,"Close","D","-2",,,,,"T") -> 190.8 | H3: =RTD("cqg.rtd",,"StudyData", "Close("&$D$12&") when LocalYear("&$D$12&")="&$D$1&" and localMonth("&$D$12&") ="&$E$1&" and LocalDay("&$D$12&")="&$F$1&" and Barix("&$D$12&",reference:=StartOfSession)="&A3&"", "Bar", "", "Close","5","0","PrimaryOnly",,,"False","T","EveryTick") -> 187.93 | I3: =IFERROR((H3-$G$2)/$G$2,NA()) -> -0.004818894302 | J3: =RTD("cqg.rtd",,"StudyData", "Close("&$D$12&") when LocalYear("&$D$12&")="&$D$2&" and localMonth("&$D$12&") ="&$E$2&" and LocalDay("&$D$12&")="&$F$2&" and Barix("&$D$12&",reference:=StartOfSession)="&A3&"", "Bar", "", "Close","5","0","PrimaryOnly",,,"False","T","EveryTick") -> 189.17 | K3: -0.008542976939 | L3: =RTD("cqg.rtd",,"StudyData", "Close("&$D$12&") when LocalYear("&$D$12&")="&$D$3&" and localMonth("&$D$12&") ="&$E$3&" and LocalDay("&$D$12&")="&$F$3&" and Barix("&$D$12&",reference:=StartOfSession)="&A3&"", "Bar", "", "Close","5","0","PrimaryOnly",,,"False","T","EveryTick") -> 190.54 | M3: -0.0008390141584 | N3: =RTD("cqg.rtd",,"StudyData", "Close("&$D$12&") when LocalYear("&$D$12&")="&$D$4&" and localMonth("&$D$12&") ="&$E$4&" and LocalDay("&$D$12&")="&$F$4&" and Barix("&$D$12&",reference:=StartOfSession)="&A3&"", "Bar", "", "Close","5","0","PrimaryOnly",,,"False","T","EveryTick") -> 191.98 | O3: -0.001560224672 | P3: =RTD("cqg.rtd",,"StudyData", "Close("&$D$12&") when LocalYear("&$D$12&")="&$D$5&" and localMonth("&$D$12&") ="&$E$5&" and LocalDay("&$D$12&")="&$F$5&" and Barix("&$D$12&",reference:=StartOfSession)="&A3&"", "Bar", "", "Close","5","0","PrimaryOnly",,,"False","T","EveryTick") -> 191.53 | Q3: 0.001568791508 | R3: =RTD("cqg.rtd",,"StudyData", "Close("&$D$12&") when LocalYear("&$D$12&")="&$D$6&" and localMonth("&$D$12&") ="&$E$6&" and LocalDay("&$D$12&")="&$F$6&" and Barix("&$D$12&",reference:=StartOfSession)="&A3&"", "Bar", "", "Close","5","0","PrimaryOnly",,,"False","T","EveryTick") -> 191.58 | S3: -0.0006259780908 | T3: =RTD("cqg.rtd",,"StudyData", "Close("&$D$12&") when LocalYear("&$D$12&")="&$D$7&" and localMonth("&$D$12&") ="&$E$7&" and LocalDay("&$D$12&")="&$F$7&" and Barix("&$D$12&",reference:=StartOfSession)="&A3&"", "Bar", "", "Close","5","0","PrimaryOnly",,,"False","T","EveryTick") -> 190.03 | U3: -0.01772976326 | V3: =RTD("cqg.rtd",,"StudyData", "Close("&$D$12&") when LocalYear("&$D$12&")="&$D$8&" and localMonth("&$D$12&") ="&$E$8&" and LocalDay("&$D$12&")="&$F$8&" and Barix("&$D$12&",reference:=StartOfSession)="&A3&"", "Bar", "", "Close","5","0","PrimaryOnly",,,"False","T","EveryTick") -> 193.67 | W3: -0.001598102897 | X3: =RTD("cqg.rtd",,"StudyData", "Close("&$D$12&") when LocalYear("&$D$12&")="&$D$9&" and localMonth("&$D$12&") ="&$E$9&" and LocalDay("&$D$12&")="&$F$9&" and Barix("&$D$12&",reference:=StartOfSession)="&A3&"", "Bar", "", "Close","5","0","PrimaryOnly",,,"False","T","EveryTick") -> 193.32 | Y3: 5.173038125e-05 | Z3: =RTD("cqg.rtd",,"StudyData", "Close("&$D$12&") when LocalYear("&$D$12&")="&$D$10&" and localMonth("&$D$12&") ="&$E$10&" and LocalDay("&$D$12&")="&$F$10&" and Barix("&$D$12&",reference:=StartOfSession)="&A3&"", "Bar", "", "Close","5","0","PrimaryOnly",,,"False","T","EveryTick") -> 192.8 | AA3: 0.005056560496 | AB3: =RANK(AD3,$AD$1:$AD$10)+COUNTIF($AD$1:AD3,AD3)-1 -> 5 | AC3: 2018-06-14 | AD3: =VLOOKUP(MAX(AE2:AE81),A1:M81,13,FALSE) -> -0.0008390141584 | AE3: =IF(AND(H2<>"",H3<>"",H4=""),A3,"") -> 2 | AF3: 3 | AG3: 2018-06-06 | AH3: 5.173038125e-05 | AK3: 2018-06-06 | AL3: 2018-06-14 | AM3: 2 | AN3: 8
A4: 3 | B4: 08:45:00 | C4: 2018-06-13 | D4: 2018 | E4: 6 | F4: 13 | G4: =RTD("cqg.rtd",,"StudyData",$D$12,"Bar",,"Close","D","-3",,,,,"T") -> 190.7 | H4: =RTD("cqg.rtd",,"StudyData", "Close("&$D$12&") when LocalYear("&$D$12&")="&$D$1&" and localMonth("&$D$12&") ="&$E$1&" and LocalDay("&$D$12&")="&$F$1&" and Barix("&$D$12&",reference:=StartOfSession)="&A4&"", "Bar", "", "Close","5","0","PrimaryOnly",,,"False","T","EveryTick") ->  | J4: =RTD("cqg.rtd",,"StudyData", "Close("&$D$12&") when LocalYear("&$D$12&")="&$D$2&" and localMonth("&$D$12&") ="&$E$2&" and LocalDay("&$D$12&")="&$F$2&" and Barix("&$D$12&",reference:=StartOfSession)="&A4&"", "Bar", "", "Close","5","0","PrimaryOnly",,,"False","T","EveryTick") -> 189.51 | K4: -0.006761006289 | L4: =RTD("cqg.rtd",,"StudyData", "Close("&$D$12&") when LocalYear("&$D$12&")="&$D$3&" and localMonth("&$D$12&") ="&$E$3&" and LocalDay("&$D$12&")="&$F$3&" and Barix("&$D$12&",reference:=StartOfSession)="&A4&"", "Bar", "", "Close","5","0","PrimaryOnly",,,"False","T","EveryTick") -> 190.3 | M4: -0.002097535396 | N4: =RTD("cqg.rtd",,"StudyData", "Close("&$D$12&") when LocalYear("&$D$12&")="&$D$4&" and localMonth("&$D$12&") ="&$E$4&" and LocalDay("&$D$12&")="&$F$4&" and Barix("&$D$12&",reference:=StartOfSession)="&A4&"", "Bar", "", "Close","5","0","PrimaryOnly",,,"False","T","EveryTick") -> 192.13 | O4: -0.0007801123362 | P4: =RTD("cqg.rtd",,"StudyData", "Close("&$D$12&") when LocalYear("&$D$12&")="&$D$5&" and localMonth("&$D$12&") ="&$E$5&" and LocalDay("&$D$12&")="&$F$5&" and Barix("&$D$12&",reference:=StartOfSession)="&A4&"", "Bar", "", "Close","5","0","PrimaryOnly",,,"False","T","EveryTick") -> 191.44 | Q4: 0.001098154055 | R4: =RTD("cqg.rtd",,"StudyData", "Close("&$D$12&") when LocalYear("&$D$12&")="&$D$6&" and localMonth("&$D$12&") ="&$E$6&" and LocalDay("&$D$12&")="&$F$6&" and Barix("&$D$12&",reference:=StartOfSession)="&A4&"", "Bar", "", "Close","5","0","PrimaryOnly",,,"False","T","EveryTick") -> 191.4 | S4: -0.001564945227 | T4: =RTD("cqg.rtd",,"StudyData", "Close("&$D$12&") when LocalYear("&$D$12&")="&$D$7&" and localMonth("&$D$12&") ="&$E$7&" and LocalDay("&$D$12&")="&$F$7&" and Barix("&$D$12&",reference:=StartOfSession)="&A4&"", "Bar", "", "Close","5","0","PrimaryOnly",,,"False","T","EveryTick") -> 190.37 | U4: -0.01597229401 | V4: =RTD("cqg.rtd",,"StudyData", "Close("&$D$12&") when LocalYear("&$D$12&")="&$D$8&" and localMonth("&$D$12&") ="&$E$8&" and LocalDay("&$D$12&")="&$F$8&" and Barix("&$D$12&",reference:=StartOfSession)="&A4&"", "Bar", "", "Close","5","0","PrimaryOnly",,,"False","T","EveryTick") -> 193.67 | W4: -0.001598102897 | X4: =RTD("cqg.rtd",,"StudyData", "Close("&$D$12&") when LocalYear("&$D$12&")="&$D$9&" and localMonth("&$D$12&") ="&$E$9&" and LocalDay("&$D$12&")="&$F$9&" and Barix("&$D$12&",reference:=StartOfSession)="&A4&"", "Bar", "", "Close","5","0","PrimaryOnly",,,"False","T","EveryTick") -> 193.42 | Y4: 0.0005690341938 | Z4: =RTD("cqg.rtd",,"StudyData", "Close("&$D$12&") when LocalYear("&$D$12&")="&$D$10&" and localMonth("&$D$12&") ="&$E$10&" and LocalDay("&$D$12&")="&$F$10&" and Barix("&$D$12&",reference:=StartOfSession)="&A4&"", "Bar", "", "Close","5","0","PrimaryOnly",,,"False","T","EveryTick") -> 192.54 | AA4: 0.003701193765 | AB4: =RANK(AD4,$AD$1:$AD$10)+COUNTIF($AD$1:AD4,AD4)-1 -> 6 | AC4: 2018-06-13 | AD4: =VLOOKUP(MAX(AE2:AE81),A1:O81,15,FALSE) -> -0.001560224672 | AF4: 4 | AG4: 2018-06-11 | AH4: -0.0006259780908 | AK4: 2018-06-11 | AL4: 2018-06-13 | AM4: 3 | AN4: 5
A5: 4 | B5: 08:50:00 | C5: 2018-06-12 | D5: 2018 | E5: 6 | F5: 12 | G5: =RTD("cqg.rtd",,"StudyData",$D$12,"Bar",,"Close","D","-4",,,,,"T") -> 192.28 | H5: =RTD("cqg.rtd",,"StudyData", "Close("&$D$12&") when LocalYear("&$D$12&")="&$D$1&" and localMonth("&$D$12&") ="&$E$1&" and LocalDay("&$D$12&")="&$F$1&" and Barix("&$D$12&",reference:=StartOfSession)="&A5&"", "Bar", "", "Close","5","0","PrimaryOnly",,,"False","T","EveryTick") ->  | J5: =RTD("cqg.rtd",,"StudyData", "Close("&$D$12&") when LocalYear("&$D$12&")="&$D$2&" and localMonth("&$D$12&") ="&$E$2&" and LocalDay("&$D$12&")="&$F$2&" and Barix("&$D$12&",reference:=StartOfSession)="&A5&"", "Bar", "", "Close","5","0","PrimaryOnly",,,"False","T","EveryTick") -> 189.36 | K5: -0.007547169811 | L5: =RTD("cqg.rtd",,"StudyData", "Close("&$D$12&") when LocalYear("&$D$12&")="&$D$3&" and localMonth("&$D$12&") ="&$E$3&" and LocalDay("&$D$12&")="&$F$3&" and Barix("&$D$12&",reference:=StartOfSession)="&A5&"", "Bar", "", "Close","5","0","PrimaryOnly",,,"False","T","EveryTick") -> 190.38 | M5: -0.001678028317 | N5: =RTD("cqg.rtd",,"StudyData", "Close("&$D$12&") when LocalYear("&$D$12&")="&$D$4&" and localMonth("&$D$12&") ="&$E$4&" and LocalDay("&$D$12&")="&$F$4&" and Barix("&$D$12&",reference:=StartOfSession)="&A5&"", "Bar", "", "Close","5","0","PrimaryOnly",,,"False","T","EveryTick") -> 192.18 | O5: -0.0005200748908 | P5: =RTD("cqg.rtd",,"StudyData", "Close("&$D$12&") when LocalYear("&$D$12&")="&$D$5&" and localMonth("&$D$12&") ="&$E$5&" and LocalDay("&$D$12&")="&$F$5&" and Barix("&$D$12&",reference:=StartOfSession)="&A5&"", "Bar", "", "Close","5","0","PrimaryOnly",,,"False","T","EveryTick") -> 191.28 | Q5: 0.0002614652513 | R5: =RTD("cqg.rtd",,"StudyData", "Close("&$D$12&") when LocalYear("&$D$12&")="&$D$6&" and localMonth("&$D$12&") ="&$E$6&" and LocalDay("&$D$12&")="&$F$6&" and Barix("&$D$12&",reference:=StartOfSession)="&A5&"", "Bar", "", "Close","5","0","PrimaryOnly",,,"False","T","EveryTick") -> 191.23 | S5: -0.002451747522 | T5: =RTD("cqg.rtd",,"StudyData", "Close("&$D$12&") when LocalYear("&$D$12&")="&$D$7&" and localMonth("&$D$12&") ="&$E$7&" and LocalDay("&$D$12&")="&$F$7&" and Barix("&$D$12&",reference:=StartOfSession)="&A5&"", "Bar", "", "Close","5","0","PrimaryOnly",,,"False","T","EveryTick") -> 190.72 | U5: -0.0141631345 | V5: =RTD("cqg.rtd",,"StudyData", "Close("&$D$12&") when LocalYear("&$D$12&")="&$D$8&" and localMonth("&$D$12&") ="&$E$8&" and LocalDay("&$D$12&")="&$F$8&" and Barix("&$D$12&",reference:=StartOfSession)="&A5&"", "Bar", "", "Close","5","0","PrimaryOnly",,,"False","T","EveryTick") -> 193.98 | W5: 0 | X5: =RTD("cqg.rtd",,"StudyData", "Close("&$D$12&") when LocalYear("&$D$12&")="&$D$9&" and localMonth("&$D$12&") ="&$E$9&" and LocalDay("&$D$12&")="&$F$9&" and Barix("&$D$12&",reference:=StartOfSession)="&A5&"", "Bar", "", "Close","5","0","PrimaryOnly",,,"False","T","EveryTick") -> 193.56 | Y5: 0.001293259531 | Z5: =RTD("cqg.rtd",,"StudyData", "Close("&$D$12&") when LocalYear("&$D$12&")="&$D$10&" and localMonth("&$D$12&") ="&$E$10&" and LocalDay("&$D$12&")="&$F$10&" and Barix("&$D$12&",reference:=StartOfSession)="&A5&"", "Bar", "", "Close","5","0","PrimaryOnly",,,"False","T","EveryTick") -> 193.01 | AA5: 0.006151279779 | AB5: =RANK(AD5,$AD$1:$AD$10)+COUNTIF($AD$1:AD5,AD5)-1 -> 2 | AC5: 2018-06-12 | AD5: =VLOOKUP(MAX(AE2:AE81),A1:Q81,17,FALSE) -> 0.001568791508 | AF5: 5 | AG5: 2018-06-14 | AH5: -0.0008390141584 | AK5: 2018-06-14 | AL5: 2018-06-12 | AM5: 4 | AN5: 2
A6: 5 | B6: 08:55:00 | C6: 2018-06-11 | D6: 2018 | E6: 6 | F6: 11 | G6: =RTD("cqg.rtd",,"StudyData",$D$12,"Bar",,"Close","D","-5",,,,,"T") -> 191.23 | H6: =RTD("cqg.rtd",,"StudyData", "Close("&$D$12&") when LocalYear("&$D$12&")="&$D$1&" and localMonth("&$D$12&") ="&$E$1&" and LocalDay("&$D$12&")="&$F$1&" and Barix("&$D$12&",reference:=StartOfSession)="&A6&"", "Bar", "", "Close","5","0","PrimaryOnly",,,"False","T","EveryTick") ->  | J6: =RTD("cqg.rtd",,"StudyData", "Close("&$D$12&") when LocalYear("&$D$12&")="&$D$2&" and localMonth("&$D$12&") ="&$E$2&" and LocalDay("&$D$12&")="&$F$2&" and Barix("&$D$12&",reference:=StartOfSession)="&A6&"", "Bar", "", "Close","5","0","PrimaryOnly",,,"False","T","EveryTick") -> 189.26 | K6: -0.008071278826 | L6: =RTD("cqg.rtd",,"StudyData", "Close("&$D$12&") when LocalYear("&$D$12&")="&$D$3&" and localMonth("&$D$12&") ="&$E$3&" and LocalDay("&$D$12&")="&$F$3&" and Barix("&$D$12&",reference:=StartOfSession)="&A6&"", "Bar", "", "Close","5","0","PrimaryOnly",,,"False","T","EveryTick") -> 190.63 | M6: -0.0003670686943 | N6: =RTD("cqg.rtd",,"StudyData", "Close("&$D$12&") when LocalYear("&$D$12&")="&$D$4&" and localMonth("&$D$12&") ="&$E$4&" and LocalDay("&$D$12&")="&$F$4&" and Barix("&$D$12&",reference:=StartOfSession)="&A6&"", "Bar", "", "Close","5","0","PrimaryOnly",,,"False","T","EveryTick") -> 192.35 | O6: 0.0003640524235 | P6: =RTD("cqg.rtd",,"StudyData", "Close("&$D$12&") when LocalYear("&$D$12&")="&$D$5&" and localMonth("&$D$12&") ="&$E$5&" and LocalDay("&$D$12&")="&$F$5&" and Barix("&$D$12&",reference:=StartOfSession)="&A6&"", "Bar", "", "Close","5","0","PrimaryOnly",,,"False","T","EveryTick") -> 191.23 | Q6: 0 | R6: =RTD("cqg.rtd",,"StudyData", "Close("&$D$12&") when LocalYear("&$D$12&")="&$D$6&" and localMonth("&$D$12&") ="&$E$6&" and LocalDay("&$D$12&")="&$F$6&" and Barix("&$D$12&",reference:=StartOfSession)="&A6&"", "Bar", "", "Close","5","0","PrimaryOnly",,,"False","T","EveryTick") -> 191.12 | S6: -0.003025560772 | T6: =RTD("cqg.rtd",,"StudyData", "Close("&$D$12&") when LocalYear("&$D$12&")="&$D$7&" and localMonth("&$D$12&") ="&$E$7&" and LocalDay("&$D$12&")="&$F$7&" and Barix("&$D$12&",reference:=StartOfSession)="&A6&"", "Bar", "", "Close","5","0","PrimaryOnly",,,"False","T","EveryTick") -> 190.8 | U6: -0.01374961232 | V6: =RTD("cqg.rtd",,"StudyData", "Close("&$D$12&") when LocalYear("&$D$12&")="&$D$8&" and localMonth("&$D$12&") ="&$E$8&" and LocalDay("&$D$12&")="&$F$8&" and Barix("&$D$12&",reference:=StartOfSession)="&A6&"", "Bar", "", "Close","5","0","PrimaryOnly",,,"False","T","EveryTick") -> 193.8 | W6: -0.0009279307145 | X6: =RTD("cqg.rtd",,"StudyData", "Close("&$D$12&") when LocalYear("&$D$12&")="&$D$9&" and localMonth("&$D$12&") ="&$E$9&" and LocalDay("&$D$12&")="&$F$9&" and Barix("&$D$12&",reference:=StartOfSession)="&A6&"", "Bar", "", "Close","5","0","PrimaryOnly",,,"False","T","EveryTick") -> 193 | Y6: -0.001603641819 | Z6: =RTD("cqg.rtd",,"StudyData", "Close("&$D$12&") when LocalYear("&$D$12&")="&$D$10&" and localMonth("&$D$12&") ="&$E$10&" and LocalDay("&$D$12&")="&$F$10&" and Barix("&$D$12&",reference:=StartOfSession)="&A6&"", "Bar", "", "Close","5","0","PrimaryOnly",,,"False","T","EveryTick") -> 193 | AA6: 0.006099150289 | AB6: =RANK(AD6,$AD$1:$AD$10)+COUNTIF($AD$1:AD6,AD6)-1 -> 4 | AC6: 2018-06-11 | AD6: =VLOOKUP(MAX(AE2:AE81),A1:S81,19,FALSE) -> -0.0006259780908 | AF6: 6 | AG6: 2018-06-13 | AH6: -0.001560224672 | AK6: 2018-06-13 | AL6: 2018-06-11 | AM6: 5 | AN6: 3
A7: 6 | B7: 09:00:00 | C7: 2018-06-08 | D7: 2018 | E7: 6 | F7: 8 | G7: =RTD("cqg.rtd",,"StudyData",$D$12,"Bar",,"Close","D","-6",,,,,"T") -> 191.7 | H7: =RTD("cqg.rtd",,"StudyData", "Close("&$D$12&") when LocalYear("&$D$12&")="&$D$1&" and localMonth("&$D$12&") ="&$E$1&" and LocalDay("&$D$12&")="&$F$1&" and Barix("&$D$12&",reference:=StartOfSession)="&A7&"", "Bar", "", "Close","5","0","PrimaryOnly",,,"False","T","EveryTick") ->  | J7: =RTD("cqg.rtd",,"StudyData", "Close("&$D$12&") when LocalYear("&$D$12&")="&$D$2&" and localMonth("&$D$12&") ="&$E$2&" and LocalDay("&$D$12&")="&$F$2&" and Barix("&$D$12&",reference:=StartOfSession)="&A7&"", "Bar", "", "Close","5","0","PrimaryOnly",,,"False","T","EveryTick") -> 189.42 | K7: -0.007232704403 | L7: =RTD("cqg.rtd",,"StudyData", "Close("&$D$12&") when LocalYear("&$D$12&")="&$D$3&" and localMonth("&$D$12&") ="&$E$3&" and LocalDay("&$D$12&")="&$F$3&" and Barix("&$D$12&",reference:=StartOfSession)="&A7&"", "Bar", "", "Close","5","0","PrimaryOnly",,,"False","T","EveryTick") -> 191.05 | M7: 0.001835343471 | N7: =RTD("cqg.rtd",,"StudyData", "Close("&$D$12&") when LocalYear("&$D$12&")="&$D$4&" and localMonth("&$D$12&") ="&$E$4&" and LocalDay("&$D$12&")="&$F$4&" and Barix("&$D$12&",reference:=StartOfSession)="&A7&"", "Bar", "", "Close","5","0","PrimaryOnly",,,"False","T","EveryTick") -> 192.18 | O7: -0.0005200748908 | P7: =RTD("cqg.rtd",,"StudyData", "Close("&$D$12&") when LocalYear("&$D$12&")="&$D$5&" and localMonth("&$D$12&") ="&$E$5&" and LocalDay("&$D$12&")="&$F$5&" and Barix("&$D$12&",reference:=StartOfSession)="&A7&"", "Bar", "", "Close","5","0","PrimaryOnly",,,"False","T","EveryTick") -> 191.44 | Q7: 0.001098154055 | R7: =RTD("cqg.rtd",,"StudyData", "Close("&$D$12&") when LocalYear("&$D$12&")="&$D$6&" and localMonth("&$D$12&") ="&$E$6&" and LocalDay("&$D$12&")="&$F$6&" and Barix("&$D$12&",reference:=StartOfSession)="&A7&"", "Bar", "", "Close","5","0","PrimaryOnly",,,"False","T","EveryTick") -> 190.99 | S7: -0.003703703704 | T7: =RTD("cqg.rtd",,"StudyData", "Close("&$D$12&") when LocalYear("&$D$12&")="&$D$7&" and localMonth("&$D$12&") ="&$E$7&" and LocalDay("&$D$12&")="&$F$7&" and Barix("&$D$12&",reference:=StartOfSession)="&A7&"", "Bar", "", "Close","5","0","PrimaryOnly",,,"False","T","EveryTick") -> 190.29 | U7: -0.01638581619 | V7: =RTD("cqg.rtd",,"StudyData", "Close("&$D$12&") when LocalYear("&$D$12&")="&$D$8&" and localMonth("&$D$12&") ="&$E$8&" and LocalDay("&$D$12&")="&$F$8&" and Barix("&$D$12&",reference:=StartOfSession)="&A7&"", "Bar", "", "Close","5","0","PrimaryOnly",,,"False","T","EveryTick") -> 193.64 | W7: -0.001752758016 | X7: =RTD("cqg.rtd",,"StudyData", "Close("&$D$12&") when LocalYear("&$D$12&")="&$D$9&" and localMonth("&$D$12&") ="&$E$9&" and LocalDay("&$D$12&")="&$F$9&" and Barix("&$D$12&",reference:=StartOfSession)="&A7&"", "Bar", "", "Close","5","0","PrimaryOnly",,,"False","T","EveryTick") -> 192.6 | Y7: -0.003672857069 | Z7: =RTD("cqg.rtd",,"StudyData", "Close("&$D$12&") when LocalYear("&$D$12&")="&$D$10&" and localMonth("&$D$12&") ="&$E$10&" and LocalDay("&$D$12&")="&$F$10&" and Barix("&$D$12&",reference:=StartOfSession)="&A7&"", "Bar", "", "Close","5","0","PrimaryOnly",,,"False","T","EveryTick") -> 193.3 | AA7: 0.007663034979 | AB7: =RANK(AD7,$AD$1:$AD$10)+COUNTIF($AD$1:AD7,AD7)-1 -> 10 | AC7: 2018-06-08 | AD7: =VLOOKUP(MAX(AE2:AE81),A1:U81,21,FALSE) -> -0.01772976326 | AF7: 7 | AG7: 2018-06-07 | AH7: -0.001598102897 | AK7: 2018-06-07 | AL7: 2018-06-08 | AM7: 6 | AN7: 7
A8: 7 | B8: 09:05:00 | C8: 2018-06-07 | D8: 2018 | E8: 6 | F8: 7 | G8: =RTD("cqg.rtd",,"StudyData",$D$12,"Bar",,"Close","D","-7",,,,,"T") -> 193.46 | H8: =RTD("cqg.rtd",,"StudyData", "Close("&$D$12&") when LocalYear("&$D$12&")="&$D$1&" and localMonth("&$D$12&") ="&$E$1&" and LocalDay("&$D$12&")="&$F$1&" and Barix("&$D$12&",reference:=StartOfSession)="&A8&"", "Bar", "", "Close","5","0","PrimaryOnly",,,"False","T","EveryTick") ->  | J8: =RTD("cqg.rtd",,"StudyData", "Close("&$D$12&") when LocalYear("&$D$12&")="&$D$2&" and localMonth("&$D$12&") ="&$E$2&" and LocalDay("&$D$12&")="&$F$2&" and Barix("&$D$12&",reference:=StartOfSession)="&A8&"", "Bar", "", "Close","5","0","PrimaryOnly",,,"False","T","EveryTick") -> 189.34 | K8: -0.007651991614 | L8: =RTD("cqg.rtd",,"StudyData", "Close("&$D$12&") when LocalYear("&$D$12&")="&$D$3&" and localMonth("&$D$12&") ="&$E$3&" and LocalDay("&$D$12&")="&$F$3&" and Barix("&$D$12&",reference:=StartOfSession)="&A8&"", "Bar", "", "Close","5","0","PrimaryOnly",,,"False","T","EveryTick") -> 191.3 | M8: 0.003146303094 | N8: =RTD("cqg.rtd",,"StudyData", "Close("&$D$12&") when LocalYear("&$D$12&")="&$D$4&" and localMonth("&$D$12&") ="&$E$4&" and LocalDay("&$D$12&")="&$F$4&" and Barix("&$D$12&",reference:=StartOfSession)="&A8&"", "Bar", "", "Close","5","0","PrimaryOnly",,,"False","T","EveryTick") -> 192.13 | O8: -0.0007801123362 | P8: =RTD("cqg.rtd",,"StudyData", "Close("&$D$12&") when LocalYear("&$D$12&")="&$D$5&" and localMonth("&$D$12&") ="&$E$5&" and LocalDay("&$D$12&")="&$F$5&" and Barix("&$D$12&",reference:=StartOfSession)="&A8&"", "Bar", "", "Close","5","0","PrimaryOnly",,,"False","T","EveryTick") -> 191.56 | Q8: 0.001725670658 | R8: =RTD("cqg.rtd",,"StudyData", "Close("&$D$12&") when LocalYear("&$D$12&")="&$D$6&" and localMonth("&$D$12&") ="&$E$6&" and LocalDay("&$D$12&")="&$F$6&" and Barix("&$D$12&",reference:=StartOfSession)="&A8&"", "Bar", "", "Close","5","0","PrimaryOnly",,,"False","T","EveryTick") -> 190.82 | S8: -0.004590505999 | T8: =RTD("cqg.rtd",,"StudyData", "Close("&$D$12&") when LocalYear("&$D$12&")="&$D$7&" and localMonth("&$D$12&") ="&$E$7&" and LocalDay("&$D$12&")="&$F$7&" and Barix("&$D$12&",reference:=StartOfSession)="&A8&"", "Bar", "", "Close","5","0","PrimaryOnly",,,"False","T","EveryTick") -> 190.51 | U8: -0.01524863021 | V8: =RTD("cqg.rtd",,"StudyData", "Close("&$D$12&") when LocalYear("&$D$12&")="&$D$8&" and localMonth("&$D$12&") ="&$E$8&" and LocalDay("&$D$12&")="&$F$8&" and Barix("&$D$12&",reference:=StartOfSession)="&A8&"", "Bar", "", "Close","5","0","PrimaryOnly",,,"False","T","EveryTick") -> 193.27 | W8: -0.003660171152 | X8: =RTD("cqg.rtd",,"StudyData", "Close("&$D$12&") when LocalYear("&$D$12&")="&$D$9&" and localMonth("&$D$12&") ="&$E$9&" and LocalDay("&$D$12&")="&$F$9&" and Barix("&$D$12&",reference:=StartOfSession)="&A8&"", "Bar", "", "Close","5","0","PrimaryOnly",,,"False","T","EveryTick") -> 192.8 | Y8: -0.002638249444 | Z8: =RTD("cqg.rtd",,"StudyData", "Close("&$D$12&") when LocalYear("&$D$12&")="&$D$10&" and localMonth("&$D$12&") ="&$E$10&" and LocalDay("&$D$12&")="&$F$10&" and Barix("&$D$12&",reference:=StartOfSession)="&A8&"", "Bar", "", "Close","5","0","PrimaryOnly",,,"False","T","EveryTick") -> 193.42 | AA8: 0.008288588855 | AB8: =RANK(AD8,$AD$1:$AD$10)+COUNTIF($AD$1:AD8,AD8)-1 -> 7 | AC8: 2018-06-07 | AD8: =VLOOKUP(MAX(AE2:AE81),A1:W81,23,FALSE) -> -0.001598102897 | AF8: 8 | AG8: 2018-06-18 | AH8: -0.004818894302 | AK8: 2018-06-18 | AL8: 2018-06-07 | AM8: 7 | AN8: 0
A9: 8 | B9: 09:10:00 | C9: 2018-06-06 | D9: 2018 | E9: 6 | F9: 6 | G9: =RTD("cqg.rtd",,"StudyData",$D$12,"Bar",,"Close","D","-8",,,,,"T") -> 193.98 | H9: =RTD("cqg.rtd",,"StudyData", "Close("&$D$12&") when LocalYear("&$D$12&")="&$D$1&" and localMonth("&$D$12&") ="&$E$1&" and LocalDay("&$D$12&")="&$F$1&" and Barix("&$D$12&",reference:=StartOfSession)="&A9&"", "Bar", "", "Close","5","0","PrimaryOnly",,,"False","T","EveryTick") ->  | J9: =RTD("cqg.rtd",,"StudyData", "Close("&$D$12&") when LocalYear("&$D$12&")="&$D$2&" and localMonth("&$D$12&") ="&$E$2&" and LocalDay("&$D$12&")="&$F$2&" and Barix("&$D$12&",reference:=StartOfSession)="&A9&"", "Bar", "", "Close","5","0","PrimaryOnly",,,"False","T","EveryTick") -> 189.31 | K9: -0.007809224319 | L9: =RTD("cqg.rtd",,"StudyData", "Close("&$D$12&") when LocalYear("&$D$12&")="&$D$3&" and localMonth("&$D$12&") ="&$E$3&" and LocalDay("&$D$12&")="&$F$3&" and Barix("&$D$12&",reference:=StartOfSession)="&A9&"", "Bar", "", "Close","5","0","PrimaryOnly",,,"False","T","EveryTick") -> 191.12 | M9: 0.002202412166 | N9: =RTD("cqg.rtd",,"StudyData", "Close("&$D$12&") when LocalYear("&$D$12&")="&$D$4&" and localMonth("&$D$12&") ="&$E$4&" and LocalDay("&$D$12&")="&$F$4&" and Barix("&$D$12&",reference:=StartOfSession)="&A9&"", "Bar", "", "Close","5","0","PrimaryOnly",,,"False","T","EveryTick") -> 192.34 | O9: 0.0003120449345 | P9: =RTD("cqg.rtd",,"StudyData", "Close("&$D$12&") when LocalYear("&$D$12&")="&$D$5&" and localMonth("&$D$12&") ="&$E$5&" and LocalDay("&$D$12&")="&$F$5&" and Barix("&$D$12&",reference:=StartOfSession)="&A9&"", "Bar", "", "Close","5","0","PrimaryOnly",,,"False","T","EveryTick") -> 191.76 | Q9: 0.002771531663 | R9: =RTD("cqg.rtd",,"StudyData", "Close("&$D$12&") when LocalYear("&$D$12&")="&$D$6&" and localMonth("&$D$12&") ="&$E$6&" and LocalDay("&$D$12&")="&$F$6&" and Barix("&$D$12&",reference:=StartOfSession)="&A9&"", "Bar", "", "Close","5","0","PrimaryOnly",,,"False","T","EveryTick") -> 190.75 | S9: -0.004955659885 | T9: =RTD("cqg.rtd",,"StudyData", "Close("&$D$12&") when LocalYear("&$D$12&")="&$D$7&" and localMonth("&$D$12&") ="&$E$7&" and LocalDay("&$D$12&")="&$F$7&" and Barix("&$D$12&",reference:=StartOfSession)="&A9&"", "Bar", "", "Close","5","0","PrimaryOnly",,,"False","T","EveryTick") -> 190.4 | U9: -0.0158172232 | V9: =RTD("cqg.rtd",,"StudyData", "Close("&$D$12&") when LocalYear("&$D$12&")="&$D$8&" and localMonth("&$D$12&") ="&$E$8&" and LocalDay("&$D$12&")="&$F$8&" and Barix("&$D$12&",reference:=StartOfSession)="&A9&"", "Bar", "", "Close","5","0","PrimaryOnly",,,"False","T","EveryTick") -> 193.37 | W9: -0.003144654088 | X9: =RTD("cqg.rtd",,"StudyData", "Close("&$D$12&") when LocalYear("&$D$12&")="&$D$9&" and localMonth("&$D$12&") ="&$E$9&" and LocalDay("&$D$12&")="&$F$9&" and Barix("&$D$12&",reference:=StartOfSession)="&A9&"", "Bar", "", "Close","5","0","PrimaryOnly",,,"False","T","EveryTick") -> 192.58 | Y9: -0.003776317831 | Z9: =RTD("cqg.rtd",,"StudyData", "Close("&$D$12&") when LocalYear("&$D$12&")="&$D$10&" and localMonth("&$D$12&") ="&$E$10&" and LocalDay("&$D$12&")="&$F$10&" and Barix("&$D$12&",reference:=StartOfSession)="&A9&"", "Bar", "", "Close","5","0","PrimaryOnly",,,"False","T","EveryTick") -> 193.68 | AA9: 0.009643955586 | AB9: =RANK(AD9,$AD$1:$AD$10)+COUNTIF($AD$1:AD9,AD9)-1 -> 3 | AC9: 2018-06-06 | AD9: =VLOOKUP(MAX(AE2:AE81),A1:Y81,25,FALSE) -> 5.173038125e-05 | AF9: 9 | AG9: 2018-06-15 | AH9: -0.008542976939 | AK9: 2018-06-15 | AL9: 2018-06-06 | AM9: 8 | AN9: 1
A10: 9 | B10: 09:15:00 | C10: 2018-06-05 | D10: 2018 | E10: 6 | F10: 5 | G10: =RTD("cqg.rtd",,"StudyData",$D$12,"Bar",,"Close","D","-9",,,,,"T") -> 193.31 | H10: =RTD("cqg.rtd",,"StudyData", "Close("&$D$12&") when LocalYear("&$D$12&")="&$D$1&" and localMonth("&$D$12&") ="&$E$1&" and LocalDay("&$D$12&")="&$F$1&" and Barix("&$D$12&",reference:=StartOfSession)="&A10&"", "Bar", "", "Close","5","0","PrimaryOnly",,,"False","T","EveryTick") ->  | J10: =RTD("cqg.rtd",,"StudyData", "Close("&$D$12&") when LocalYear("&$D$12&")="&$D$2&" and localMonth("&$D$12&") ="&$E$2&" and LocalDay("&$D$12&")="&$F$2&" and Barix("&$D$12&",reference:=StartOfSession)="&A10&"", "Bar", "", "Close","5","0","PrimaryOnly",,,"False","T","EveryTick") -> 189.22 | K10: -0.008280922432 | L10: =RTD("cqg.rtd",,"StudyData", "Close("&$D$12&") when LocalYear("&$D$12&")="&$D$3&" and localMonth("&$D$12&") ="&$E$3&" and LocalDay("&$D$12&")="&$F$3&" and Barix("&$D$12&",reference:=StartOfSession)="&A10&"", "Bar", "", "Close","5","0","PrimaryOnly",,,"False","T","EveryTick") -> 191.32 | M10: 0.003251179864 | N10: =RTD("cqg.rtd",,"StudyData", "Close("&$D$12&") when LocalYear("&$D$12&")="&$D$4&" and localMonth("&$D$12&") ="&$E$4&" and LocalDay("&$D$12&")="&$F$4&" and Barix("&$D$12&",reference:=StartOfSession)="&A10&"", "Bar", "", "Close","5","0","PrimaryOnly",,,"False","T","EveryTick") -> 192.47 | O10: 0.0009881422925 | P10: =RTD("cqg.rtd",,"StudyData", "Close("&$D$12&") when LocalYear("&$D$12&")="&$D$5&" and localMonth("&$D$12&") ="&$E$5&" and LocalDay("&$D$12&")="&$F$5&" and Barix("&$D$12&",reference:=StartOfSession)="&A10&"", "Bar", "", "Close","5","0","PrimaryOnly",,,"False","T","EveryTick") -> 191.63 | Q10: 0.00209172201 | R10: =RTD("cqg.rtd",,"StudyData", "Close("&$D$12&") when LocalYear("&$D$12&")="&$D$6&" and localMonth("&$D$12&") ="&$E$6&" and LocalDay("&$D$12&")="&$F$6&" and Barix("&$D$12&",reference:=StartOfSession)="&A10&"", "Bar", "", "Close","5","0","PrimaryOnly",,,"False","T","EveryTick") -> 190.69 | S10: -0.005268648931 | T10: =RTD("cqg.rtd",,"StudyData", "Close("&$D$12&") when LocalYear("&$D$12&")="&$D$7&" and localMonth("&$D$12&") ="&$E$7&" and LocalDay("&$D$12&")="&$F$7&" and Barix("&$D$12&",reference:=StartOfSession)="&A10&"", "Bar", "", "Close","5","0","PrimaryOnly",,,"False","T","EveryTick") -> 190.72 | U10: -0.0141631345 | V10: =RTD("cqg.rtd",,"StudyData", "Close("&$D$12&") when LocalYear("&$D$12&")="&$D$8&" and localMonth("&$D$12&") ="&$E$8&" and LocalDay("&$D$12&")="&$F$8&" and Barix("&$D$12&",reference:=StartOfSession)="&A10&"", "Bar", "", "Close","5","0","PrimaryOnly",,,"False","T","EveryTick") -> 193.25 | W10: -0.003763274564 | X10: =RTD("cqg.rtd",,"StudyData", "Close("&$D$12&") when LocalYear("&$D$12&")="&$D$9&" and localMonth("&$D$12&") ="&$E$9&" and LocalDay("&$D$12&")="&$F$9&" and Barix("&$D$12&",reference:=StartOfSession)="&A10&"", "Bar", "", "Close","5","0","PrimaryOnly",,,"False","T","EveryTick") -> 192.41 | Y10: -0.004655734313 | Z10: =RTD("cqg.rtd",,"StudyData", "Close("&$D$12&") when LocalYear("&$D$12&")="&$D$10&" and localMonth("&$D$12&") ="&$E$10&" and LocalDay("&$D$12&")="&$F$10&" and Barix("&$D$12&",reference:=StartOfSession)="&A10&"", "Bar", "", "Close","5","0","PrimaryOnly",,,"False","T","EveryTick") -> 193.8 | AA10: 0.01026950946 | AB10: =RANK(AD10,$AD$1:$AD$10)+COUNTIF($AD$1:AD10,AD10)-1 -> 1 | AC10: 2018-06-05 | AD10: =VLOOKUP(MAX(AE2:AE81),A1:AA81,27,FALSE) -> 0.005056560496 | AF10: 10 | AG10: 2018-06-08 | AH10: -0.01772976326 | AK10: 2018-06-08 | AL10: 2018-06-05 | AM10: 9 | AN10: 6
A11: 10 | B11: 09:20:00 | C11: 2018-06-04 | D11: 2018 | E11: =MONTH(C11) -> 6 | F11: =DAY(C11) -> 4 | G11: =RTD("cqg.rtd",,"StudyData",$D$12,"Bar",,"Close","D","-10",,,,,"T") -> 191.83 | H11: =RTD("cqg.rtd",,"StudyData", "Close("&$D$12&") when LocalYear("&$D$12&")="&$D$1&" and localMonth("&$D$12&") ="&$E$1&" and LocalDay("&$D$12&")="&$F$1&" and Barix("&$D$12&",reference:=StartOfSession)="&A11&"", "Bar", "", "Close","5","0","PrimaryOnly",,,"False","T","EveryTick") ->  | J11: =RTD("cqg.rtd",,"StudyData", "Close("&$D$12&") when LocalYear("&$D$12&")="&$D$2&" and localMonth("&$D$12&") ="&$E$2&" and LocalDay("&$D$12&")="&$F$2&" and Barix("&$D$12&",reference:=StartOfSession)="&A11&"", "Bar", "", "Close","5","0","PrimaryOnly",,,"False","T","EveryTick") -> 189.02 | K11: -0.009329140461 | L11: =RTD("cqg.rtd",,"StudyData", "Close("&$D$12&") when LocalYear("&$D$12&")="&$D$3&" and localMonth("&$D$12&") ="&$E$3&" and LocalDay("&$D$12&")="&$F$3&" and Barix("&$D$12&",reference:=StartOfSession)="&A11&"", "Bar", "", "Close","5","0","PrimaryOnly",,,"False","T","EveryTick") -> 191.3 | M11: 0.003146303094 | N11: =RTD("cqg.rtd",,"StudyData", "Close("&$D$12&") when LocalYear("&$D$12&")="&$D$4&" and localMonth("&$D$12&") ="&$E$4&" and LocalDay("&$D$12&")="&$F$4&" and Barix("&$D$12&",reference:=StartOfSession)="&A11&"", "Bar", "", "Close","5","0","PrimaryOnly",,,"False","T","EveryTick") -> 192.34 | O11: 0.0003120449345 | P11: =RTD("cqg.rtd",,"StudyData", "Close("&$D$12&") when LocalYear("&$D$12&")="&$D$5&" and localMonth("&$D$12&") ="&$E$5&" and LocalDay("&$D$12&")="&$F$5&" and Barix("&$D$12&",reference:=StartOfSession)="&A11&"", "Bar", "", "Close","5","0","PrimaryOnly",,,"False","T","EveryTick") -> 191.59 | Q11: 0.001882549809 | R11: =RTD("cqg.rtd",,"StudyData", "Close("&$D$12&") when LocalYear("&$D$12&")="&$D$6&" and localMonth("&$D$12&") ="&$E$6&" and LocalDay("&$D$12&")="&$F$6&" and Barix("&$D$12&",reference:=StartOfSession)="&A11&"", "Bar", "", "Close","5","0","PrimaryOnly",,,"False","T","EveryTick") -> 190.79 | S11: -0.004747000522 | T11: =RTD("cqg.rtd",,"StudyData", "Close("&$D$12&") when LocalYear("&$D$12&")="&$D$7&" and localMonth("&$D$12&") ="&$E$7&" and LocalDay("&$D$12&")="&$F$7&" and Barix("&$D$12&",reference:=StartOfSession)="&A11&"", "Bar", "", "Close","5","0","PrimaryOnly",,,"False","T","EveryTick") -> 190.47 | U11: -0.0154553913 | V11: =RTD("cqg.rtd",,"StudyData", "Close("&$D$12&") when LocalYear("&$D$12&")="&$D$8&" and localMonth("&$D$12&") ="&$E$8&" and LocalDay("&$D$12&")="&$F$8&" and Barix("&$D$12&",reference:=StartOfSession)="&A11&"", "Bar", "", "Close","5","0","PrimaryOnly",,,"False","T","EveryTick") -> 193.21 | W11: -0.00396948139 | X11: =RTD("cqg.rtd",,"StudyData", "Close("&$D$12&") when LocalYear("&$D$12&")="&$D$9&" and localMonth("&$D$12&") ="&$E$9&" and LocalDay("&$D$12&")="&$F$9&" and Barix("&$D$12&",reference:=StartOfSession)="&A11&"", "Bar", "", "Close","5","0","PrimaryOnly",,,"False","T","EveryTick") -> 192.79 | Y11: -0.002689979825 | Z11: =RTD("cqg.rtd",,"StudyData", "Close("&$D$12&") when LocalYear("&$D$12&")="&$D$10&" and localMonth("&$D$12&") ="&$E$10&" and LocalDay("&$D$12&")="&$F$10&" and Barix("&$D$12&",reference:=StartOfSession)="&A11&"", "Bar", "", "Close","5","0","PrimaryOnly",,,"False","T","EveryTick") -> 193.77 | AA11: 0.01011312099
A12: 11 | B12: 09:25:00 | D12: =MainDisplay!B5 -> S.AAPL | H12: =RTD("cqg.rtd",,"StudyData", "Close("&$D$12&") when LocalYear("&$D$12&")="&$D$1&" and localMonth("&$D$12&") ="&$E$1&" and LocalDay("&$D$12&")="&$F$1&" and Barix("&$D$12&",reference:=StartOfSession)="&A12&"", "Bar", "", "Close","5","0","PrimaryOnly",,,"False","T","EveryTick") ->  | J12: =RTD("cqg.rtd",,"StudyData", "Close("&$D$12&") when LocalYear("&$D$12&")="&$D$2&" and localMonth("&$D$12&") ="&$E$2&" and LocalDay("&$D$12&")="&$F$2&" and Barix("&$D$12&",reference:=StartOfSession)="&A12&"", "Bar", "", "Close","5","0","PrimaryOnly",,,"False","T","EveryTick") -> 188.87 | K12: -0.01011530398 | L12: =RTD("cqg.rtd",,"StudyData", "Close("&$D$12&") when LocalYear("&$D$12&")="&$D$3&" and localMonth("&$D$12&") ="&$E$3&" and LocalDay("&$D$12&")="&$F$3&" and Barix("&$D$12&",reference:=StartOfSession)="&A12&"", "Bar", "", "Close","5","0","PrimaryOnly",,,"False","T","EveryTick") -> 191.33 | M12: 0.003303618249 | N12: =RTD("cqg.rtd",,"StudyData", "Close("&$D$12&") when LocalYear("&$D$12&")="&$D$4&" and localMonth("&$D$12&") ="&$E$4&" and LocalDay("&$D$12&")="&$F$4&" and Barix("&$D$12&",reference:=StartOfSession)="&A12&"", "Bar", "", "Close","5","0","PrimaryOnly",,,"False","T","EveryTick") -> 192.4 | O12: 0.0006240898689 | P12: =RTD("cqg.rtd",,"StudyData", "Close("&$D$12&") when LocalYear("&$D$12&")="&$D$5&" and localMonth("&$D$12&") ="&$E$5&" and LocalDay("&$D$12&")="&$F$5&" and Barix("&$D$12&",reference:=StartOfSession)="&A12&"", "Bar", "", "Close","5","0","PrimaryOnly",,,"False","T","EveryTick") -> 191.51 | Q12: 0.001464205407 | R12: =RTD("cqg.rtd",,"StudyData", "Close("&$D$12&") when LocalYear("&$D$12&")="&$D$6&" and localMonth("&$D$12&") ="&$E$6&" and LocalDay("&$D$12&")="&$F$6&" and Barix("&$D$12&",reference:=StartOfSession)="&A12&"", "Bar", "", "Close","5","0","PrimaryOnly",,,"False","T","EveryTick") -> 190.63 | S12: -0.005581637976 | T12: =RTD("cqg.rtd",,"StudyData", "Close("&$D$12&") when LocalYear("&$D$12&")="&$D$7&" and localMonth("&$D$12&") ="&$E$7&" and LocalDay("&$D$12&")="&$F$7&" and Barix("&$D$12&",reference:=StartOfSession)="&A12&"", "Bar", "", "Close","5","0","PrimaryOnly",,,"False","T","EveryTick") -> 190.38 | U12: -0.01592060374 | V12: =RTD("cqg.rtd",,"StudyData", "Close("&$D$12&") when LocalYear("&$D$12&")="&$D$8&" and localMonth("&$D$12&") ="&$E$8&" and LocalDay("&$D$12&")="&$F$8&" and Barix("&$D$12&",reference:=StartOfSession)="&A12&"", "Bar", "", "Close","5","0","PrimaryOnly",,,"False","T","EveryTick") -> 193.13 | W12: -0.004381895041 | X12: =RTD("cqg.rtd",,"StudyData", "Close("&$D$12&") when LocalYear("&$D$12&")="&$D$9&" and localMonth("&$D$12&") ="&$E$9&" and LocalDay("&$D$12&")="&$F$9&" and Barix("&$D$12&",reference:=StartOfSession)="&A12&"", "Bar", "", "Close","5","0","PrimaryOnly",,,"False","T","EveryTick") -> 192.67 | Y12: -0.0033107444 | Z12: =RTD("cqg.rtd",,"StudyData", "Close("&$D$12&") when LocalYear("&$D$12&")="&$D$10&" and localMonth("&$D$12&") ="&$E$10&" and LocalDay("&$D$12&")="&$F$10&" and Barix("&$D$12&",reference:=StartOfSession)="&A12&"", "Bar", "", "Close","5","0","PrimaryOnly",,,"False","T","EveryTick") -> 193.63 | AA12: 0.009383308137 | AC12: =VLOOKUP(MAX(AE2:AE81),A1:B81,2,FALSE) -> 08:40:00
A13: 12 | B13: 09:30:00 | D13: =RTD("cqg.rtd", ,"ContractData",D12, "LastQuoteToday",, "T") -> 187.93 | G13: =C1 -> 2018-06-18 | H13: =RTD("cqg.rtd",,"StudyData", "Close("&$D$12&") when LocalYear("&$D$12&")="&$D$1&" and localMonth("&$D$12&") ="&$E$1&" and LocalDay("&$D$12&")="&$F$1&" and Barix("&$D$12&",reference:=StartOfSession)="&A13&"", "Bar", "", "Close","5","0","PrimaryOnly",,,"False","T","EveryTick") ->  | J13: =RTD("cqg.rtd",,"StudyData", "Close("&$D$12&") when LocalYear("&$D$12&")="&$D$2&" and localMonth("&$D$12&") ="&$E$2&" and LocalDay("&$D$12&")="&$F$2&" and Barix("&$D$12&",reference:=StartOfSession)="&A13&"", "Bar", "", "Close","5","0","PrimaryOnly",,,"False","T","EveryTick") -> 188.75 | K13: -0.0107442348 | L13: =RTD("cqg.rtd",,"StudyData", "Close("&$D$12&") when LocalYear("&$D$12&")="&$D$3&" and localMonth("&$D$12&") ="&$E$3&" and LocalDay("&$D$12&")="&$F$3&" and Barix("&$D$12&",reference:=StartOfSession)="&A13&"", "Bar", "", "Close","5","0","PrimaryOnly",,,"False","T","EveryTick") -> 191.06 | M13: 0.001887781856 | N13: =RTD("cqg.rtd",,"StudyData", "Close("&$D$12&") when LocalYear("&$D$12&")="&$D$4&" and localMonth("&$D$12&") ="&$E$4&" and LocalDay("&$D$12&")="&$F$4&" and Barix("&$D$12&",reference:=StartOfSession)="&A13&"", "Bar", "", "Close","5","0","PrimaryOnly",,,"False","T","EveryTick") -> 192.5 | O13: 0.00114416476 | P13: =RTD("cqg.rtd",,"StudyData", "Close("&$D$12&") when LocalYear("&$D$12&")="&$D$5&" and localMonth("&$D$12&") ="&$E$5&" and LocalDay("&$D$12&")="&$F$5&" and Barix("&$D$12&",reference:=StartOfSession)="&A13&"", "Bar", "", "Close","5","0","PrimaryOnly",,,"False","T","EveryTick") -> 191.61 | Q13: 0.00198713591 | R13: =RTD("cqg.rtd",,"StudyData", "Close("&$D$12&") when LocalYear("&$D$12&")="&$D$6&" and localMonth("&$D$12&") ="&$E$6&" and LocalDay("&$D$12&")="&$F$6&" and Barix("&$D$12&",reference:=StartOfSession)="&A13&"", "Bar", "", "Close","5","0","PrimaryOnly",,,"False","T","EveryTick") -> 190.68 | S13: -0.005320813772 | T13: =RTD("cqg.rtd",,"StudyData", "Close("&$D$12&") when LocalYear("&$D$12&")="&$D$7&" and localMonth("&$D$12&") ="&$E$7&" and LocalDay("&$D$12&")="&$F$7&" and Barix("&$D$12&",reference:=StartOfSession)="&A13&"", "Bar", "", "Close","5","0","PrimaryOnly",,,"False","T","EveryTick") -> 190.19 | U13: -0.01690271891 | V13: =RTD("cqg.rtd",,"StudyData", "Close("&$D$12&") when LocalYear("&$D$12&")="&$D$8&" and localMonth("&$D$12&") ="&$E$8&" and LocalDay("&$D$12&")="&$F$8&" and Barix("&$D$12&",reference:=StartOfSession)="&A13&"", "Bar", "", "Close","5","0","PrimaryOnly",,,"False","T","EveryTick") -> 192.68 | W13: -0.006701721827 | X13: =RTD("cqg.rtd",,"StudyData", "Close("&$D$12&") when LocalYear("&$D$12&")="&$D$9&" and localMonth("&$D$12&") ="&$E$9&" and LocalDay("&$D$12&")="&$F$9&" and Barix("&$D$12&",reference:=StartOfSession)="&A13&"", "Bar", "", "Close","5","0","PrimaryOnly",,,"False","T","EveryTick") -> 192.67 | Y13: -0.0033107444 | Z13: =RTD("cqg.rtd",,"StudyData", "Close("&$D$12&") when LocalYear("&$D$12&")="&$D$10&" and localMonth("&$D$12&") ="&$E$10&" and LocalDay("&$D$12&")="&$F$10&" and Barix("&$D$12&",reference:=StartOfSession)="&A13&"", "Bar", "", "Close","5","0","PrimaryOnly",,,"False","T","EveryTick") -> 193.56 | AA13: 0.00901840171
A14: 13 | B14: 09:35:00 | D14: =RTD("cqg.rtd", ,"ContractData",D12, "LongDescription",, "T") -> Apple Inc | G14: =C2 -> 2018-06-15 | H14: =RTD("cqg.rtd",,"StudyData", "Close("&$D$12&") when LocalYear("&$D$12&")="&$D$1&" and localMonth("&$D$12&") ="&$E$1&" and LocalDay("&$D$12&")="&$F$1&" and Barix("&$D$12&",reference:=StartOfSession)="&A14&"", "Bar", "", "Close","5","0","PrimaryOnly",,,"False","T","EveryTick") ->  | J14: =RTD("cqg.rtd",,"StudyData", "Close("&$D$12&") when LocalYear("&$D$12&")="&$D$2&" and localMonth("&$D$12&") ="&$E$2&" and LocalDay("&$D$12&")="&$F$2&" and Barix("&$D$12&",reference:=StartOfSession)="&A14&"", "Bar", "", "Close","5","0","PrimaryOnly",,,"False","T","EveryTick") -> 188.39 | K14: -0.01263102725 | L14: =RTD("cqg.rtd",,"StudyData", "Close("&$D$12&") when LocalYear("&$D$12&")="&$D$3&" and localMonth("&$D$12&") ="&$E$3&" and LocalDay("&$D$12&")="&$F$3&" and Barix("&$D$12&",reference:=StartOfSession)="&A14&"", "Bar", "", "Close","5","0","PrimaryOnly",,,"False","T","EveryTick") -> 191.07 | M14: 0.001940220241 | N14: =RTD("cqg.rtd",,"StudyData", "Close("&$D$12&") when LocalYear("&$D$12&")="&$D$4&" and localMonth("&$D$12&") ="&$E$4&" and LocalDay("&$D$12&")="&$F$4&" and Barix("&$D$12&",reference:=StartOfSession)="&A14&"", "Bar", "", "Close","5","0","PrimaryOnly",,,"False","T","EveryTick") -> 192.17 | O14: -0.0005720823799 | P14: =RTD("cqg.rtd",,"StudyData", "Close("&$D$12&") when LocalYear("&$D$12&")="&$D$5&" and localMonth("&$D$12&") ="&$E$5&" and LocalDay("&$D$12&")="&$F$5&" and Barix("&$D$12&",reference:=StartOfSession)="&A14&"", "Bar", "", "Close","5","0","PrimaryOnly",,,"False","T","EveryTick") -> 191.43 | Q14: 0.001045861005 | R14: =RTD("cqg.rtd",,"StudyData", "Close("&$D$12&") when LocalYear("&$D$12&")="&$D$6&" and localMonth("&$D$12&") ="&$E$6&" and LocalDay("&$D$12&")="&$F$6&" and Barix("&$D$12&",reference:=StartOfSession)="&A14&"", "Bar", "", "Close","5","0","PrimaryOnly",,,"False","T","EveryTick") -> 190.5 | S14: -0.006259780908 | T14: =RTD("cqg.rtd",,"StudyData", "Close("&$D$12&") when LocalYear("&$D$12&")="&$D$7&" and localMonth("&$D$12&") ="&$E$7&" and LocalDay("&$D$12&")="&$F$7&" and Barix("&$D$12&",reference:=StartOfSession)="&A14&"", "Bar", "", "Close","5","0","PrimaryOnly",,,"False","T","EveryTick") -> 190.01 | U14: -0.0178331438 | V14: =RTD("cqg.rtd",,"StudyData", "Close("&$D$12&") when LocalYear("&$D$12&")="&$D$8&" and localMonth("&$D$12&") ="&$E$8&" and LocalDay("&$D$12&")="&$F$8&" and Barix("&$D$12&",reference:=StartOfSession)="&A14&"", "Bar", "", "Close","5","0","PrimaryOnly",,,"False","T","EveryTick") -> 192.72 | W14: -0.006495515002 | X14: =RTD("cqg.rtd",,"StudyData", "Close("&$D$12&") when LocalYear("&$D$12&")="&$D$9&" and localMonth("&$D$12&") ="&$E$9&" and LocalDay("&$D$12&")="&$F$9&" and Barix("&$D$12&",reference:=StartOfSession)="&A14&"", "Bar", "", "Close","5","0","PrimaryOnly",,,"False","T","EveryTick") -> 192.56 | Y14: -0.003879778594 | Z14: =RTD("cqg.rtd",,"StudyData", "Close("&$D$12&") when LocalYear("&$D$12&")="&$D$10&" and localMonth("&$D$12&") ="&$E$10&" and LocalDay("&$D$12&")="&$F$10&" and Barix("&$D$12&",reference:=StartOfSession)="&A14&"", "Bar", "", "Close","5","0","PrimaryOnly",,,"False","T","EveryTick") -> 193.39 | AA14: 0.008132200386
A15: 14 | B15: 09:40:00 | G15: 2018-06-14 | H15: =RTD("cqg.rtd",,"StudyData", "Close("&$D$12&") when LocalYear("&$D$12&")="&$D$1&" and localMonth("&$D$12&") ="&$E$1&" and LocalDay("&$D$12&")="&$F$1&" and Barix("&$D$12&",reference:=StartOfSession)="&A15&"", "Bar", "", "Close","5","0","PrimaryOnly",,,"False","T","EveryTick") ->  | J15: =RTD("cqg.rtd",,"StudyData", "Close("&$D$12&") when LocalYear("&$D$12&")="&$D$2&" and localMonth("&$D$12&") ="&$E$2&" and LocalDay("&$D$12&")="&$F$2&" and Barix("&$D$12&",reference:=StartOfSession)="&A15&"", "Bar", "", "Close","5","0","PrimaryOnly",,,"False","T","EveryTick") -> 188.86 | K15: -0.01016771488 | L15: =RTD("cqg.rtd",,"StudyData", "Close("&$D$12&") when LocalYear("&$D$12&")="&$D$3&" and localMonth("&$D$12&") ="&$E$3&" and LocalDay("&$D$12&")="&$F$3&" and Barix("&$D$12&",reference:=StartOfSession)="&A15&"", "Bar", "", "Close","5","0","PrimaryOnly",,,"False","T","EveryTick") -> 191.16 | M15: 0.002412165705 | N15: =RTD("cqg.rtd",,"StudyData", "Close("&$D$12&") when LocalYear("&$D$12&")="&$D$4&" and localMonth("&$D$12&") ="&$E$4&" and LocalDay("&$D$12&")="&$F$4&" and Barix("&$D$12&",reference:=StartOfSession)="&A15&"", "Bar", "", "Close","5","0","PrimaryOnly",,,"False","T","EveryTick") -> 192.14 | O15: -0.0007281048471 | P15: =RTD("cqg.rtd",,"StudyData", "Close("&$D$12&") when LocalYear("&$D$12&")="&$D$5&" and localMonth("&$D$12&") ="&$E$5&" and LocalDay("&$D$12&")="&$F$5&" and Barix("&$D$12&",reference:=StartOfSession)="&A15&"", "Bar", "", "Close","5","0","PrimaryOnly",,,"False","T","EveryTick") -> 191.55 | Q15: 0.001673377608 | R15: =RTD("cqg.rtd",,"StudyData", "Close("&$D$12&") when LocalYear("&$D$12&")="&$D$6&" and localMonth("&$D$12&") ="&$E$6&" and LocalDay("&$D$12&")="&$F$6&" and Barix("&$D$12&",reference:=StartOfSession)="&A15&"", "Bar", "", "Close","5","0","PrimaryOnly",,,"False","T","EveryTick") -> 190.38 | S15: -0.006885758998 | T15: =RTD("cqg.rtd",,"StudyData", "Close("&$D$12&") when LocalYear("&$D$12&")="&$D$7&" and localMonth("&$D$12&") ="&$E$7&" and LocalDay("&$D$12&")="&$F$7&" and Barix("&$D$12&",reference:=StartOfSession)="&A15&"", "Bar", "", "Close","5","0","PrimaryOnly",,,"False","T","EveryTick") -> 190.19 | U15: -0.01690271891 | V15: =RTD("cqg.rtd",,"StudyData", "Close("&$D$12&") when LocalYear("&$D$12&")="&$D$8&" and localMonth("&$D$12&") ="&$E$8&" and LocalDay("&$D$12&")="&$F$8&" and Barix("&$D$12&",reference:=StartOfSession)="&A15&"", "Bar", "", "Close","5","0","PrimaryOnly",,,"False","T","EveryTick") -> 192.69 | W15: -0.006650170121 | X15: =RTD("cqg.rtd",,"StudyData", "Close("&$D$12&") when LocalYear("&$D$12&")="&$D$9&" and localMonth("&$D$12&") ="&$E$9&" and LocalDay("&$D$12&")="&$F$9&" and Barix("&$D$12&",reference:=StartOfSession)="&A15&"", "Bar", "", "Close","5","0","PrimaryOnly",,,"False","T","EveryTick") -> 192.4 | Y15: -0.004707464694 | Z15: =RTD("cqg.rtd",,"StudyData", "Close("&$D$12&") when LocalYear("&$D$12&")="&$D$10&" and localMonth("&$D$12&") ="&$E$10&" and LocalDay("&$D$12&")="&$F$10&" and Barix("&$D$12&",reference:=StartOfSession)="&A15&"", "Bar", "", "Close","5","0","PrimaryOnly",,,"False","T","EveryTick") -> 193.45 | AA15: 0.008444977324
A16: 15 | B16: 09:45:00 | D16: =RTD("cqg.rtd", ,"ContractData",D12, "Ticksize",, "T") -> 0.01 | G16: 2018-06-13 | H16: =RTD("cqg.rtd",,"StudyData", "Close("&$D$12&") when LocalYear("&$D$12&")="&$D$1&" and localMonth("&$D$12&") ="&$E$1&" and LocalDay("&$D$12&")="&$F$1&" and Barix("&$D$12&",reference:=StartOfSession)="&A16&"", "Bar", "", "Close","5","0","PrimaryOnly",,,"False","T","EveryTick") ->  | J16: =RTD("cqg.rtd",,"StudyData", "Close("&$D$12&") when LocalYear("&$D$12&")="&$D$2&" and localMonth("&$D$12&") ="&$E$2&" and LocalDay("&$D$12&")="&$F$2&" and Barix("&$D$12&",reference:=StartOfSession)="&A16&"", "Bar", "", "Close","5","0","PrimaryOnly",,,"False","T","EveryTick") -> 188.99 | K16: -0.009486373166 | L16: =RTD("cqg.rtd",,"StudyData", "Close("&$D$12&") when LocalYear("&$D$12&")="&$D$3&" and localMonth("&$D$12&") ="&$E$3&" and LocalDay("&$D$12&")="&$F$3&" and Barix("&$D$12&",reference:=StartOfSession)="&A16&"", "Bar", "", "Close","5","0","PrimaryOnly",,,"False","T","EveryTick") -> 190.92 | M16: 0.001153644468 | N16: =RTD("cqg.rtd",,"StudyData", "Close("&$D$12&") when LocalYear("&$D$12&")="&$D$4&" and localMonth("&$D$12&") ="&$E$4&" and LocalDay("&$D$12&")="&$F$4&" and Barix("&$D$12&",reference:=StartOfSession)="&A16&"", "Bar", "", "Close","5","0","PrimaryOnly",,,"False","T","EveryTick") -> 192.27 | O16: -5.200748908e-05 | P16: =RTD("cqg.rtd",,"StudyData", "Close("&$D$12&") when LocalYear("&$D$12&")="&$D$5&" and localMonth("&$D$12&") ="&$E$5&" and LocalDay("&$D$12&")="&$F$5&" and Barix("&$D$12&",reference:=StartOfSession)="&A16&"", "Bar", "", "Close","5","0","PrimaryOnly",,,"False","T","EveryTick") -> 191.61 | Q16: 0.00198713591 | R16: =RTD("cqg.rtd",,"StudyData", "Close("&$D$12&") when LocalYear("&$D$12&")="&$D$6&" and localMonth("&$D$12&") ="&$E$6&" and LocalDay("&$D$12&")="&$F$6&" and Barix("&$D$12&",reference:=StartOfSession)="&A16&"", "Bar", "", "Close","5","0","PrimaryOnly",,,"False","T","EveryTick") -> 190.3 | S16: -0.007303077726 | T16: =RTD("cqg.rtd",,"StudyData", "Close("&$D$12&") when LocalYear("&$D$12&")="&$D$7&" and localMonth("&$D$12&") ="&$E$7&" and LocalDay("&$D$12&")="&$F$7&" and Barix("&$D$12&",reference:=StartOfSession)="&A16&"", "Bar", "", "Close","5","0","PrimaryOnly",,,"False","T","EveryTick") -> 190.34 | U16: -0.01612736483 | V16: =RTD("cqg.rtd",,"StudyData", "Close("&$D$12&") when LocalYear("&$D$12&")="&$D$8&" and localMonth("&$D$12&") ="&$E$8&" and LocalDay("&$D$12&")="&$F$8&" and Barix("&$D$12&",reference:=StartOfSession)="&A16&"", "Bar", "", "Close","5","0","PrimaryOnly",,,"False","T","EveryTick") -> 192.7 | W16: -0.006598618414 | X16: =RTD("cqg.rtd",,"StudyData", "Close("&$D$12&") when LocalYear("&$D$12&")="&$D$9&" and localMonth("&$D$12&") ="&$E$9&" and LocalDay("&$D$12&")="&$F$9&" and Barix("&$D$12&",reference:=StartOfSession)="&A16&"", "Bar", "", "Close","5","0","PrimaryOnly",,,"False","T","EveryTick") -> 192.01 | Y16: -0.006724949563 | Z16: =RTD("cqg.rtd",,"StudyData", "Close("&$D$12&") when LocalYear("&$D$12&")="&$D$10&" and localMonth("&$D$12&") ="&$E$10&" and LocalDay("&$D$12&")="&$F$10&" and Barix("&$D$12&",reference:=StartOfSession)="&A16&"", "Bar", "", "Close","5","0","PrimaryOnly",,,"False","T","EveryTick") -> 193.4 | AA16: 0.008184329875
A17: 16 | B17: 09:50:00 | D17: =IF(D16>=1,0,IF(LEN(D16)-2=1,2,LEN(D16)-2)) -> 2 | F17: =VLOOKUP(D17,D18:E25,2,FALSE) -> #.00 | G17: 2018-06-12 | H17: =RTD("cqg.rtd",,"StudyData", "Close("&$D$12&") when LocalYear("&$D$12&")="&$D$1&" and localMonth("&$D$12&") ="&$E$1&" and LocalDay("&$D$12&")="&$F$1&" and Barix("&$D$12&",reference:=StartOfSession)="&A17&"", "Bar", "", "Close","5","0","PrimaryOnly",,,"False","T","EveryTick") ->  | J17: =RTD("cqg.rtd",,"StudyData", "Close("&$D$12&") when LocalYear("&$D$12&")="&$D$2&" and localMonth("&$D$12&") ="&$E$2&" and LocalDay("&$D$12&")="&$F$2&" and Barix("&$D$12&",reference:=StartOfSession)="&A17&"", "Bar", "", "Close","5","0","PrimaryOnly",,,"False","T","EveryTick") -> 188.84 | K17: -0.01027253669 | L17: =RTD("cqg.rtd",,"StudyData", "Close("&$D$12&") when LocalYear("&$D$12&")="&$D$3&" and localMonth("&$D$12&") ="&$E$3&" and LocalDay("&$D$12&")="&$F$3&" and Barix("&$D$12&",reference:=StartOfSession)="&A17&"", "Bar", "", "Close","5","0","PrimaryOnly",,,"False","T","EveryTick") -> 190.87 | M17: 0.0008914525433 | N17: =RTD("cqg.rtd",,"StudyData", "Close("&$D$12&") when LocalYear("&$D$12&")="&$D$4&" and localMonth("&$D$12&") ="&$E$4&" and LocalDay("&$D$12&")="&$F$4&" and Barix("&$D$12&",reference:=StartOfSession)="&A17&"", "Bar", "", "Close","5","0","PrimaryOnly",,,"False","T","EveryTick") -> 192.4 | O17: 0.0006240898689 | P17: =RTD("cqg.rtd",,"StudyData", "Close("&$D$12&") when LocalYear("&$D$12&")="&$D$5&" and localMonth("&$D$12&") ="&$E$5&" and LocalDay("&$D$12&")="&$F$5&" and Barix("&$D$12&",reference:=StartOfSession)="&A17&"", "Bar", "", "Close","5","0","PrimaryOnly",,,"False","T","EveryTick") -> 191.51 | Q17: 0.001464205407 | R17: =RTD("cqg.rtd",,"StudyData", "Close("&$D$12&") when LocalYear("&$D$12&")="&$D$6&" and localMonth("&$D$12&") ="&$E$6&" and LocalDay("&$D$12&")="&$F$6&" and Barix("&$D$12&",reference:=StartOfSession)="&A17&"", "Bar", "", "Close","5","0","PrimaryOnly",,,"False","T","EveryTick") -> 190.36 | S17: -0.00699008868 | T17: =RTD("cqg.rtd",,"StudyData", "Close("&$D$12&") when LocalYear("&$D$12&")="&$D$7&" and localMonth("&$D$12&") ="&$E$7&" and LocalDay("&$D$12&")="&$F$7&" and Barix("&$D$12&",reference:=StartOfSession)="&A17&"", "Bar", "", "Close","5","0","PrimaryOnly",,,"False","T","EveryTick") -> 190.6 | U17: -0.01478341776 | V17: =RTD("cqg.rtd",,"StudyData", "Close("&$D$12&") when LocalYear("&$D$12&")="&$D$8&" and localMonth("&$D$12&") ="&$E$8&" and LocalDay("&$D$12&")="&$F$8&" and Barix("&$D$12&",reference:=StartOfSession)="&A17&"", "Bar", "", "Close","5","0","PrimaryOnly",,,"False","T","EveryTick") -> 192.96 | W17: -0.005258274049 | X17: =RTD("cqg.rtd",,"StudyData", "Close("&$D$12&") when LocalYear("&$D$12&")="&$D$9&" and localMonth("&$D$12&") ="&$E$9&" and LocalDay("&$D$12&")="&$F$9&" and Barix("&$D$12&",reference:=StartOfSession)="&A17&"", "Bar", "", "Close","5","0","PrimaryOnly",,,"False","T","EveryTick") -> 192.29 | Y17: -0.005276498888 | Z17: =RTD("cqg.rtd",,"StudyData", "Close("&$D$12&") when LocalYear("&$D$12&")="&$D$10&" and localMonth("&$D$12&") ="&$E$10&" and LocalDay("&$D$12&")="&$F$10&" and Barix("&$D$12&",reference:=StartOfSession)="&A17&"", "Bar", "", "Close","5","0","PrimaryOnly",,,"False","T","EveryTick") -> 193.65 | AA17: 0.009487567117
A18: 17 | B18: 09:55:00 | D18: 0 | E18: # | G18: 2018-06-11 | H18: =RTD("cqg.rtd",,"StudyData", "Close("&$D$12&") when LocalYear("&$D$12&")="&$D$1&" and localMonth("&$D$12&") ="&$E$1&" and LocalDay("&$D$12&")="&$F$1&" and Barix("&$D$12&",reference:=StartOfSession)="&A18&"", "Bar", "", "Close","5","0","PrimaryOnly",,,"False","T","EveryTick") ->  | J18: =RTD("cqg.rtd",,"StudyData", "Close("&$D$12&") when LocalYear("&$D$12&")="&$D$2&" and localMonth("&$D$12&") ="&$E$2&" and LocalDay("&$D$12&")="&$F$2&" and Barix("&$D$12&",reference:=StartOfSession)="&A18&"", "Bar", "", "Close","5","0","PrimaryOnly",,,"False","T","EveryTick") -> 188.73 | K18: -0.0108490566 | L18: =RTD("cqg.rtd",,"StudyData", "Close("&$D$12&") when LocalYear("&$D$12&")="&$D$3&" and localMonth("&$D$12&") ="&$E$3&" and LocalDay("&$D$12&")="&$F$3&" and Barix("&$D$12&",reference:=StartOfSession)="&A18&"", "Bar", "", "Close","5","0","PrimaryOnly",,,"False","T","EveryTick") -> 190.53 | M18: -0.0008914525433 | N18: =RTD("cqg.rtd",,"StudyData", "Close("&$D$12&") when LocalYear("&$D$12&")="&$D$4&" and localMonth("&$D$12&") ="&$E$4&" and LocalDay("&$D$12&")="&$F$4&" and Barix("&$D$12&",reference:=StartOfSession)="&A18&"", "Bar", "", "Close","5","0","PrimaryOnly",,,"False","T","EveryTick") -> 192.5 | O18: 0.00114416476 | P18: =RTD("cqg.rtd",,"StudyData", "Close("&$D$12&") when LocalYear("&$D$12&")="&$D$5&" and localMonth("&$D$12&") ="&$E$5&" and LocalDay("&$D$12&")="&$F$5&" and Barix("&$D$12&",reference:=StartOfSession)="&A18&"", "Bar", "", "Close","5","0","PrimaryOnly",,,"False","T","EveryTick") -> 191.48 | Q18: 0.001307326256 | R18: =RTD("cqg.rtd",,"StudyData", "Close("&$D$12&") when LocalYear("&$D$12&")="&$D$6&" and localMonth("&$D$12&") ="&$E$6&" and LocalDay("&$D$12&")="&$F$6&" and Barix("&$D$12&",reference:=StartOfSession)="&A18&"", "Bar", "", "Close","5","0","PrimaryOnly",,,"False","T","EveryTick") -> 190.52 | S18: -0.006155451226 | T18: =RTD("cqg.rtd",,"StudyData", "Close("&$D$12&") when LocalYear("&$D$12&")="&$D$7&" and localMonth("&$D$12&") ="&$E$7&" and LocalDay("&$D$12&")="&$F$7&" and Barix("&$D$12&",reference:=StartOfSession)="&A18&"", "Bar", "", "Close","5","0","PrimaryOnly",,,"False","T","EveryTick") -> 190.45 | U18: -0.01555877184 | V18: =RTD("cqg.rtd",,"StudyData", "Close("&$D$12&") when LocalYear("&$D$12&")="&$D$8&" and localMonth("&$D$12&") ="&$E$8&" and LocalDay("&$D$12&")="&$F$8&" and Barix("&$D$12&",reference:=StartOfSession)="&A18&"", "Bar", "", "Close","5","0","PrimaryOnly",,,"False","T","EveryTick") -> 193.28 | W18: -0.003608619445 | X18: =RTD("cqg.rtd",,"StudyData", "Close("&$D$12&") when LocalYear("&$D$12&")="&$D$9&" and localMonth("&$D$12&") ="&$E$9&" and LocalDay("&$D$12&")="&$F$9&" and Barix("&$D$12&",reference:=StartOfSession)="&A18&"", "Bar", "", "Close","5","0","PrimaryOnly",,,"False","T","EveryTick") -> 192.43 | Y18: -0.00455227355 | Z18: =RTD("cqg.rtd",,"StudyData", "Close("&$D$12&") when LocalYear("&$D$12&")="&$D$10&" and localMonth("&$D$12&") ="&$E$10&" and LocalDay("&$D$12&")="&$F$10&" and Barix("&$D$12&",reference:=StartOfSession)="&A18&"", "Bar", "", "Close","5","0","PrimaryOnly",,,"False","T","EveryTick") -> 193.69 | AA18: 0.009696085075
A19: 18 | B19: 10:00:00 | D19: 1 | E19: #.0 | G19: 2018-06-08 | H19: =RTD("cqg.rtd",,"StudyData", "Close("&$D$12&") when LocalYear("&$D$12&")="&$D$1&" and localMonth("&$D$12&") ="&$E$1&" and LocalDay("&$D$12&")="&$F$1&" and Barix("&$D$12&",reference:=StartOfSession)="&A19&"", "Bar", "", "Close","5","0","PrimaryOnly",,,"False","T","EveryTick") ->  | J19: =RTD("cqg.rtd",,"StudyData", "Close("&$D$12&") when LocalYear("&$D$12&")="&$D$2&" and localMonth("&$D$12&") ="&$E$2&" and LocalDay("&$D$12&")="&$F$2&" and Barix("&$D$12&",reference:=StartOfSession)="&A19&"", "Bar", "", "Close","5","0","PrimaryOnly",,,"False","T","EveryTick") -> 188.43 | K19: -0.01242138365 | L19: =RTD("cqg.rtd",,"StudyData", "Close("&$D$12&") when LocalYear("&$D$12&")="&$D$3&" and localMonth("&$D$12&") ="&$E$3&" and LocalDay("&$D$12&")="&$F$3&" and Barix("&$D$12&",reference:=StartOfSession)="&A19&"", "Bar", "", "Close","5","0","PrimaryOnly",,,"False","T","EveryTick") -> 190.75 | M19: 0.0002621919245 | N19: =RTD("cqg.rtd",,"StudyData", "Close("&$D$12&") when LocalYear("&$D$12&")="&$D$4&" and localMonth("&$D$12&") ="&$E$4&" and LocalDay("&$D$12&")="&$F$4&" and Barix("&$D$12&",reference:=StartOfSession)="&A19&"", "Bar", "", "Close","5","0","PrimaryOnly",,,"False","T","EveryTick") -> 192.79 | O19: 0.002652381943 | P19: =RTD("cqg.rtd",,"StudyData", "Close("&$D$12&") when LocalYear("&$D$12&")="&$D$5&" and localMonth("&$D$12&") ="&$E$5&" and LocalDay("&$D$12&")="&$F$5&" and Barix("&$D$12&",reference:=StartOfSession)="&A19&"", "Bar", "", "Close","5","0","PrimaryOnly",,,"False","T","EveryTick") -> 191.41 | Q19: 0.0009412749046 | R19: =RTD("cqg.rtd",,"StudyData", "Close("&$D$12&") when LocalYear("&$D$12&")="&$D$6&" and localMonth("&$D$12&") ="&$E$6&" and LocalDay("&$D$12&")="&$F$6&" and Barix("&$D$12&",reference:=StartOfSession)="&A19&"", "Bar", "", "Close","5","0","PrimaryOnly",,,"False","T","EveryTick") -> 190.67 | S19: -0.005372978612 | T19: =RTD("cqg.rtd",,"StudyData", "Close("&$D$12&") when LocalYear("&$D$12&")="&$D$7&" and localMonth("&$D$12&") ="&$E$7&" and LocalDay("&$D$12&")="&$F$7&" and Barix("&$D$12&",reference:=StartOfSession)="&A19&"", "Bar", "", "Close","5","0","PrimaryOnly",,,"False","T","EveryTick") -> 190.28 | U19: -0.01643750646 | V19: =RTD("cqg.rtd",,"StudyData", "Close("&$D$12&") when LocalYear("&$D$12&")="&$D$8&" and localMonth("&$D$12&") ="&$E$8&" and LocalDay("&$D$12&")="&$F$8&" and Barix("&$D$12&",reference:=StartOfSession)="&A19&"", "Bar", "", "Close","5","0","PrimaryOnly",,,"False","T","EveryTick") -> 193.2 | W19: -0.004021033096 | X19: =RTD("cqg.rtd",,"StudyData", "Close("&$D$12&") when LocalYear("&$D$12&")="&$D$9&" and localMonth("&$D$12&") ="&$E$9&" and LocalDay("&$D$12&")="&$F$9&" and Barix("&$D$12&",reference:=StartOfSession)="&A19&"", "Bar", "", "Close","5","0","PrimaryOnly",,,"False","T","EveryTick") -> 192.6 | Y19: -0.003672857069 | Z19: =RTD("cqg.rtd",,"StudyData", "Close("&$D$12&") when LocalYear("&$D$12&")="&$D$10&" and localMonth("&$D$12&") ="&$E$10&" and LocalDay("&$D$12&")="&$F$10&" and Barix("&$D$12&",reference:=StartOfSession)="&A19&"", "Bar", "", "Close","5","0","PrimaryOnly",,,"False","T","EveryTick") -> 193.54 | AA19: 0.008914142731
A20: 19 | B20: 10:05:00 | D20: 2 | E20: #.00 | G20: 2018-06-07 | H20: =RTD("cqg.rtd",,"StudyData", "Close("&$D$12&") when LocalYear("&$D$12&")="&$D$1&" and localMonth("&$D$12&") ="&$E$1&" and LocalDay("&$D$12&")="&$F$1&" and Barix("&$D$12&",reference:=StartOfSession)="&A20&"", "Bar", "", "Close","5","0","PrimaryOnly",,,"False","T","EveryTick") ->  | J20: =RTD("cqg.rtd",,"StudyData", "Close("&$D$12&") when LocalYear("&$D$12&")="&$D$2&" and localMonth("&$D$12&") ="&$E$2&" and LocalDay("&$D$12&")="&$F$2&" and Barix("&$D$12&",reference:=StartOfSession)="&A20&"", "Bar", "", "Close","5","0","PrimaryOnly",,,"False","T","EveryTick") -> 188.38 | K20: -0.01268343816 | L20: =RTD("cqg.rtd",,"StudyData", "Close("&$D$12&") when LocalYear("&$D$12&")="&$D$3&" and localMonth("&$D$12&") ="&$E$3&" and LocalDay("&$D$12&")="&$F$3&" and Barix("&$D$12&",reference:=StartOfSession)="&A20&"", "Bar", "", "Close","5","0","PrimaryOnly",,,"False","T","EveryTick") -> 190.86 | M20: 0.0008390141584 | N20: =RTD("cqg.rtd",,"StudyData", "Close("&$D$12&") when LocalYear("&$D$12&")="&$D$4&" and localMonth("&$D$12&") ="&$E$4&" and LocalDay("&$D$12&")="&$F$4&" and Barix("&$D$12&",reference:=StartOfSession)="&A20&"", "Bar", "", "Close","5","0","PrimaryOnly",,,"False","T","EveryTick") -> 192.7 | O20: 0.002184314541 | P20: =RTD("cqg.rtd",,"StudyData", "Close("&$D$12&") when LocalYear("&$D$12&")="&$D$5&" and localMonth("&$D$12&") ="&$E$5&" and LocalDay("&$D$12&")="&$F$5&" and Barix("&$D$12&",reference:=StartOfSession)="&A20&"", "Bar", "", "Close","5","0","PrimaryOnly",,,"False","T","EveryTick") -> 191.39 | Q20: 0.0008366888041 | R20: =RTD("cqg.rtd",,"StudyData", "Close("&$D$12&") when LocalYear("&$D$12&")="&$D$6&" and localMonth("&$D$12&") ="&$E$6&" and LocalDay("&$D$12&")="&$F$6&" and Barix("&$D$12&",reference:=StartOfSession)="&A20&"", "Bar", "", "Close","5","0","PrimaryOnly",,,"False","T","EveryTick") -> 190.75 | S20: -0.004955659885 | T20: =RTD("cqg.rtd",,"StudyData", "Close("&$D$12&") when LocalYear("&$D$12&")="&$D$7&" and localMonth("&$D$12&") ="&$E$7&" and LocalDay("&$D$12&")="&$F$7&" and Barix("&$D$12&",reference:=StartOfSession)="&A20&"", "Bar", "", "Close","5","0","PrimaryOnly",,,"False","T","EveryTick") -> 190.4 | U20: -0.0158172232 | V20: =RTD("cqg.rtd",,"StudyData", "Close("&$D$12&") when LocalYear("&$D$12&")="&$D$8&" and localMonth("&$D$12&") ="&$E$8&" and LocalDay("&$D$12&")="&$F$8&" and Barix("&$D$12&",reference:=StartOfSession)="&A20&"", "Bar", "", "Close","5","0","PrimaryOnly",,,"False","T","EveryTick") -> 193.04 | W20: -0.004845860398 | X20: =RTD("cqg.rtd",,"StudyData", "Close("&$D$12&") when LocalYear("&$D$12&")="&$D$9&" and localMonth("&$D$12&") ="&$E$9&" and LocalDay("&$D$12&")="&$F$9&" and Barix("&$D$12&",reference:=StartOfSession)="&A20&"", "Bar", "", "Close","5","0","PrimaryOnly",,,"False","T","EveryTick") -> 192.67 | Y20: -0.0033107444 | Z20: =RTD("cqg.rtd",,"StudyData", "Close("&$D$12&") when LocalYear("&$D$12&")="&$D$10&" and localMonth("&$D$12&") ="&$E$10&" and LocalDay("&$D$12&")="&$F$10&" and Barix("&$D$12&",reference:=StartOfSession)="&A20&"", "Bar", "", "Close","5","0","PrimaryOnly",,,"False","T","EveryTick") -> 193.07 | AA20: 0.006464056717
A21: 20 | B21: 10:10:00 | D21: 3 | E21: #.000 | G21: 2018-06-06 | H21: =RTD("cqg.rtd",,"StudyData", "Close("&$D$12&") when LocalYear("&$D$12&")="&$D$1&" and localMonth("&$D$12&") ="&$E$1&" and LocalDay("&$D$12&")="&$F$1&" and Barix("&$D$12&",reference:=StartOfSession)="&A21&"", "Bar", "", "Close","5","0","PrimaryOnly",,,"False","T","EveryTick") ->  | J21: =RTD("cqg.rtd",,"StudyData", "Close("&$D$12&") when LocalYear("&$D$12&")="&$D$2&" and localMonth("&$D$12&") ="&$E$2&" and LocalDay("&$D$12&")="&$F$2&" and Barix("&$D$12&",reference:=StartOfSession)="&A21&"", "Bar", "", "Close","5","0","PrimaryOnly",,,"False","T","EveryTick") -> 188.46 | K21: -0.01226415094 | L21: =RTD("cqg.rtd",,"StudyData", "Close("&$D$12&") when LocalYear("&$D$12&")="&$D$3&" and localMonth("&$D$12&") ="&$E$3&" and LocalDay("&$D$12&")="&$F$3&" and Barix("&$D$12&",reference:=StartOfSession)="&A21&"", "Bar", "", "Close","5","0","PrimaryOnly",,,"False","T","EveryTick") -> 191.03 | M21: 0.001730466702 | N21: =RTD("cqg.rtd",,"StudyData", "Close("&$D$12&") when LocalYear("&$D$12&")="&$D$4&" and localMonth("&$D$12&") ="&$E$4&" and LocalDay("&$D$12&")="&$F$4&" and Barix("&$D$12&",reference:=StartOfSession)="&A21&"", "Bar", "", "Close","5","0","PrimaryOnly",,,"False","T","EveryTick") -> 192.61 | O21: 0.00171624714 | P21: =RTD("cqg.rtd",,"StudyData", "Close("&$D$12&") when LocalYear("&$D$12&")="&$D$5&" and localMonth("&$D$12&") ="&$E$5&" and LocalDay("&$D$12&")="&$F$5&" and Barix("&$D$12&",reference:=StartOfSession)="&A21&"", "Bar", "", "Close","5","0","PrimaryOnly",,,"False","T","EveryTick") -> 191.32 | Q21: 0.0004706374523 | R21: =RTD("cqg.rtd",,"StudyData", "Close("&$D$12&") when LocalYear("&$D$12&")="&$D$6&" and localMonth("&$D$12&") ="&$E$6&" and LocalDay("&$D$12&")="&$F$6&" and Barix("&$D$12&",reference:=StartOfSession)="&A21&"", "Bar", "", "Close","5","0","PrimaryOnly",,,"False","T","EveryTick") -> 190.63 | S21: -0.005581637976 | T21: =RTD("cqg.rtd",,"StudyData", "Close("&$D$12&") when LocalYear("&$D$12&")="&$D$7&" and localMonth("&$D$12&") ="&$E$7&" and LocalDay("&$D$12&")="&$F$7&" and Barix("&$D$12&",reference:=StartOfSession)="&A21&"", "Bar", "", "Close","5","0","PrimaryOnly",,,"False","T","EveryTick") -> 190.74 | U21: -0.01405975395 | V21: =RTD("cqg.rtd",,"StudyData", "Close("&$D$12&") when LocalYear("&$D$12&")="&$D$8&" and localMonth("&$D$12&") ="&$E$8&" and LocalDay("&$D$12&")="&$F$8&" and Barix("&$D$12&",reference:=StartOfSession)="&A21&"", "Bar", "", "Close","5","0","PrimaryOnly",,,"False","T","EveryTick") -> 193.39 | W21: -0.003041550675 | X21: =RTD("cqg.rtd",,"StudyData", "Close("&$D$12&") when LocalYear("&$D$12&")="&$D$9&" and localMonth("&$D$12&") ="&$E$9&" and LocalDay("&$D$12&")="&$F$9&" and Barix("&$D$12&",reference:=StartOfSession)="&A21&"", "Bar", "", "Close","5","0","PrimaryOnly",,,"False","T","EveryTick") -> 192.93 | Y21: -0.001965754488 | Z21: =RTD("cqg.rtd",,"StudyData", "Close("&$D$12&") when LocalYear("&$D$12&")="&$D$10&" and localMonth("&$D$12&") ="&$E$10&" and LocalDay("&$D$12&")="&$F$10&" and Barix("&$D$12&",reference:=StartOfSession)="&A21&"", "Bar", "", "Close","5","0","PrimaryOnly",,,"False","T","EveryTick") -> 193.32 | AA21: 0.007767293958
A22: 21 | B22: 10:15:00 | D22: 4 | E22: #.0000 | G22: 2018-06-05 | H22: =RTD("cqg.rtd",,"StudyData", "Close("&$D$12&") when LocalYear("&$D$12&")="&$D$1&" and localMonth("&$D$12&") ="&$E$1&" and LocalDay("&$D$12&")="&$F$1&" and Barix("&$D$12&",reference:=StartOfSession)="&A22&"", "Bar", "", "Close","5","0","PrimaryOnly",,,"False","T","EveryTick") ->  | J22: =RTD("cqg.rtd",,"StudyData", "Close("&$D$12&") when LocalYear("&$D$12&")="&$D$2&" and localMonth("&$D$12&") ="&$E$2&" and LocalDay("&$D$12&")="&$F$2&" and Barix("&$D$12&",reference:=StartOfSession)="&A22&"", "Bar", "", "Close","5","0","PrimaryOnly",,,"False","T","EveryTick") -> 188.73 | K22: -0.0108490566 | L22: =RTD("cqg.rtd",,"StudyData", "Close("&$D$12&") when LocalYear("&$D$12&")="&$D$3&" and localMonth("&$D$12&") ="&$E$3&" and LocalDay("&$D$12&")="&$F$3&" and Barix("&$D$12&",reference:=StartOfSession)="&A22&"", "Bar", "", "Close","5","0","PrimaryOnly",,,"False","T","EveryTick") -> 191.07 | M22: 0.001940220241 | N22: =RTD("cqg.rtd",,"StudyData", "Close("&$D$12&") when LocalYear("&$D$12&")="&$D$4&" and localMonth("&$D$12&") ="&$E$4&" and LocalDay("&$D$12&")="&$F$4&" and Barix("&$D$12&",reference:=StartOfSession)="&A22&"", "Bar", "", "Close","5","0","PrimaryOnly",,,"False","T","EveryTick") -> 192.73 | O22: 0.002340337009 | P22: =RTD("cqg.rtd",,"StudyData", "Close("&$D$12&") when LocalYear("&$D$12&")="&$D$5&" and localMonth("&$D$12&") ="&$E$5&" and LocalDay("&$D$12&")="&$F$5&" and Barix("&$D$12&",reference:=StartOfSession)="&A22&"", "Bar", "", "Close","5","0","PrimaryOnly",,,"False","T","EveryTick") -> 191.29 | Q22: 0.0003137583015 | R22: =RTD("cqg.rtd",,"StudyData", "Close("&$D$12&") when LocalYear("&$D$12&")="&$D$6&" and localMonth("&$D$12&") ="&$E$6&" and LocalDay("&$D$12&")="&$F$6&" and Barix("&$D$12&",reference:=StartOfSession)="&A22&"", "Bar", "", "Close","5","0","PrimaryOnly",,,"False","T","EveryTick") -> 190.64 | S22: -0.005529473135 | T22: =RTD("cqg.rtd",,"StudyData", "Close("&$D$12&") when LocalYear("&$D$12&")="&$D$7&" and localMonth("&$D$12&") ="&$E$7&" and LocalDay("&$D$12&")="&$F$7&" and Barix("&$D$12&",reference:=StartOfSession)="&A22&"", "Bar", "", "Close","5","0","PrimaryOnly",,,"False","T","EveryTick") -> 190.73 | U22: -0.01411144423 | V22: =RTD("cqg.rtd",,"StudyData", "Close("&$D$12&") when LocalYear("&$D$12&")="&$D$8&" and localMonth("&$D$12&") ="&$E$8&" and LocalDay("&$D$12&")="&$F$8&" and Barix("&$D$12&",reference:=StartOfSession)="&A22&"", "Bar", "", "Close","5","0","PrimaryOnly",,,"False","T","EveryTick") -> 193.37 | W22: -0.003144654088 | X22: =RTD("cqg.rtd",,"StudyData", "Close("&$D$12&") when LocalYear("&$D$12&")="&$D$9&" and localMonth("&$D$12&") ="&$E$9&" and LocalDay("&$D$12&")="&$F$9&" and Barix("&$D$12&",reference:=StartOfSession)="&A22&"", "Bar", "", "Close","5","0","PrimaryOnly",,,"False","T","EveryTick") -> 192.96 | Y22: -0.001810563344 | Z22: =RTD("cqg.rtd",,"StudyData", "Close("&$D$12&") when LocalYear("&$D$12&")="&$D$10&" and localMonth("&$D$12&") ="&$E$10&" and LocalDay("&$D$12&")="&$F$10&" and Barix("&$D$12&",reference:=StartOfSession)="&A22&"", "Bar", "", "Close","5","0","PrimaryOnly",,,"False","T","EveryTick") -> 193.5 | AA22: 0.008705624772
A23: 22 | B23: 10:20:00 | D23: 5 | E23: #.00000 | H23: =RTD("cqg.rtd",,"StudyData", "Close("&$D$12&") when LocalYear("&$D$12&")="&$D$1&" and localMonth("&$D$12&") ="&$E$1&" and LocalDay("&$D$12&")="&$F$1&" and Barix("&$D$12&",reference:=StartOfSession)="&A23&"", "Bar", "", "Close","5","0","PrimaryOnly",,,"False","T","EveryTick") ->  | J23: =RTD("cqg.rtd",,"StudyData", "Close("&$D$12&") when LocalYear("&$D$12&")="&$D$2&" and localMonth("&$D$12&") ="&$E$2&" and LocalDay("&$D$12&")="&$F$2&" and Barix("&$D$12&",reference:=StartOfSession)="&A23&"", "Bar", "", "Close","5","0","PrimaryOnly",,,"False","T","EveryTick") -> 188.94 | K23: -0.009748427673 | L23: =RTD("cqg.rtd",,"StudyData", "Close("&$D$12&") when LocalYear("&$D$12&")="&$D$3&" and localMonth("&$D$12&") ="&$E$3&" and LocalDay("&$D$12&")="&$F$3&" and Barix("&$D$12&",reference:=StartOfSession)="&A23&"", "Bar", "", "Close","5","0","PrimaryOnly",,,"False","T","EveryTick") -> 191.14 | M23: 0.002307288936 | N23: =RTD("cqg.rtd",,"StudyData", "Close("&$D$12&") when LocalYear("&$D$12&")="&$D$4&" and localMonth("&$D$12&") ="&$E$4&" and LocalDay("&$D$12&")="&$F$4&" and Barix("&$D$12&",reference:=StartOfSession)="&A23&"", "Bar", "", "Close","5","0","PrimaryOnly",,,"False","T","EveryTick") -> 192.71 | O23: 0.00223632203 | P23: =RTD("cqg.rtd",,"StudyData", "Close("&$D$12&") when LocalYear("&$D$12&")="&$D$5&" and localMonth("&$D$12&") ="&$E$5&" and LocalDay("&$D$12&")="&$F$5&" and Barix("&$D$12&",reference:=StartOfSession)="&A23&"", "Bar", "", "Close","5","0","PrimaryOnly",,,"False","T","EveryTick") -> 191.37 | Q23: 0.0007321027036 | R23: =RTD("cqg.rtd",,"StudyData", "Close("&$D$12&") when LocalYear("&$D$12&")="&$D$6&" and localMonth("&$D$12&") ="&$E$6&" and LocalDay("&$D$12&")="&$F$6&" and Barix("&$D$12&",reference:=StartOfSession)="&A23&"", "Bar", "", "Close","5","0","PrimaryOnly",,,"False","T","EveryTick") -> 190.8 | S23: -0.004694835681 | T23: =RTD("cqg.rtd",,"StudyData", "Close("&$D$12&") when LocalYear("&$D$12&")="&$D$7&" and localMonth("&$D$12&") ="&$E$7&" and LocalDay("&$D$12&")="&$F$7&" and Barix("&$D$12&",reference:=StartOfSession)="&A23&"", "Bar", "", "Close","5","0","PrimaryOnly",,,"False","T","EveryTick") -> 190.86 | U23: -0.01343947069 | V23: =RTD("cqg.rtd",,"StudyData", "Close("&$D$12&") when LocalYear("&$D$12&")="&$D$8&" and localMonth("&$D$12&") ="&$E$8&" and LocalDay("&$D$12&")="&$F$8&" and Barix("&$D$12&",reference:=StartOfSession)="&A23&"", "Bar", "", "Close","5","0","PrimaryOnly",,,"False","T","EveryTick") -> 193.44 | W23: -0.002783792144 | X23: =RTD("cqg.rtd",,"StudyData", "Close("&$D$12&") when LocalYear("&$D$12&")="&$D$9&" and localMonth("&$D$12&") ="&$E$9&" and LocalDay("&$D$12&")="&$F$9&" and Barix("&$D$12&",reference:=StartOfSession)="&A23&"", "Bar", "", "Close","5","0","PrimaryOnly",,,"False","T","EveryTick") -> 193.08 | Y23: -0.001189798769 | Z23: =RTD("cqg.rtd",,"StudyData", "Close("&$D$12&") when LocalYear("&$D$12&")="&$D$10&" and localMonth("&$D$12&") ="&$E$10&" and LocalDay("&$D$12&")="&$F$10&" and Barix("&$D$12&",reference:=StartOfSession)="&A23&"", "Bar", "", "Close","5","0","PrimaryOnly",,,"False","T","EveryTick") -> 193.49 | AA23: 0.008653495282
A24: 23 | B24: 10:25:00 | D24: 6 | E24: #.000000 | H24: =RTD("cqg.rtd",,"StudyData", "Close("&$D$12&") when LocalYear("&$D$12&")="&$D$1&" and localMonth("&$D$12&") ="&$E$1&" and LocalDay("&$D$12&")="&$F$1&" and Barix("&$D$12&",reference:=StartOfSession)="&A24&"", "Bar", "", "Close","5","0","PrimaryOnly",,,"False","T","EveryTick") ->  | J24: =RTD("cqg.rtd",,"StudyData", "Close("&$D$12&") when LocalYear("&$D$12&")="&$D$2&" and localMonth("&$D$12&") ="&$E$2&" and LocalDay("&$D$12&")="&$F$2&" and Barix("&$D$12&",reference:=StartOfSession)="&A24&"", "Bar", "", "Close","5","0","PrimaryOnly",,,"False","T","EveryTick") -> 188.79 | K24: -0.01053459119 | L24: =RTD("cqg.rtd",,"StudyData", "Close("&$D$12&") when LocalYear("&$D$12&")="&$D$3&" and localMonth("&$D$12&") ="&$E$3&" and LocalDay("&$D$12&")="&$F$3&" and Barix("&$D$12&",reference:=StartOfSession)="&A24&"", "Bar", "", "Close","5","0","PrimaryOnly",,,"False","T","EveryTick") -> 191.07 | M24: 0.001940220241 | N24: =RTD("cqg.rtd",,"StudyData", "Close("&$D$12&") when LocalYear("&$D$12&")="&$D$4&" and localMonth("&$D$12&") ="&$E$4&" and LocalDay("&$D$12&")="&$F$4&" and Barix("&$D$12&",reference:=StartOfSession)="&A24&"", "Bar", "", "Close","5","0","PrimaryOnly",,,"False","T","EveryTick") -> 192.66 | O24: 0.001976284585 | P24: =RTD("cqg.rtd",,"StudyData", "Close("&$D$12&") when LocalYear("&$D$12&")="&$D$5&" and localMonth("&$D$12&") ="&$E$5&" and LocalDay("&$D$12&")="&$F$5&" and Barix("&$D$12&",reference:=StartOfSession)="&A24&"", "Bar", "", "Close","5","0","PrimaryOnly",,,"False","T","EveryTick") -> 191.4 | Q24: 0.0008889818543 | R24: =RTD("cqg.rtd",,"StudyData", "Close("&$D$12&") when LocalYear("&$D$12&")="&$D$6&" and localMonth("&$D$12&") ="&$E$6&" and LocalDay("&$D$12&")="&$F$6&" and Barix("&$D$12&",reference:=StartOfSession)="&A24&"", "Bar", "", "Close","5","0","PrimaryOnly",,,"False","T","EveryTick") -> 190.81 | S24: -0.00464267084 | T24: =RTD("cqg.rtd",,"StudyData", "Close("&$D$12&") when LocalYear("&$D$12&")="&$D$7&" and localMonth("&$D$12&") ="&$E$7&" and LocalDay("&$D$12&")="&$F$7&" and Barix("&$D$12&",reference:=StartOfSession)="&A24&"", "Bar", "", "Close","5","0","PrimaryOnly",,,"False","T","EveryTick") -> 190.74 | U24: -0.01405975395 | V24: =RTD("cqg.rtd",,"StudyData", "Close("&$D$12&") when LocalYear("&$D$12&")="&$D$8&" and localMonth("&$D$12&") ="&$E$8&" and LocalDay("&$D$12&")="&$F$8&" and Barix("&$D$12&",reference:=StartOfSession)="&A24&"", "Bar", "", "Close","5","0","PrimaryOnly",,,"False","T","EveryTick") -> 193.31 | W24: -0.003453964326 | X24: =RTD("cqg.rtd",,"StudyData", "Close("&$D$12&") when LocalYear("&$D$12&")="&$D$9&" and localMonth("&$D$12&") ="&$E$9&" and LocalDay("&$D$12&")="&$F$9&" and Barix("&$D$12&",reference:=StartOfSession)="&A24&"", "Bar", "", "Close","5","0","PrimaryOnly",,,"False","T","EveryTick") -> 193.16 | Y24: -0.0007759557188 | Z24: =RTD("cqg.rtd",,"StudyData", "Close("&$D$12&") when LocalYear("&$D$12&")="&$D$10&" and localMonth("&$D$12&") ="&$E$10&" and LocalDay("&$D$12&")="&$F$10&" and Barix("&$D$12&",reference:=StartOfSession)="&A24&"", "Bar", "", "Close","5","0","PrimaryOnly",,,"False","T","EveryTick") -> 193.39 | AA24: 0.008132200386
A25: 24 | B25: 10:30:00 | D25: 7 | E25: #.0000000 | H25: =RTD("cqg.rtd",,"StudyData", "Close("&$D$12&") when LocalYear("&$D$12&")="&$D$1&" and localMonth("&$D$12&") ="&$E$1&" and LocalDay("&$D$12&")="&$F$1&" and Barix("&$D$12&",reference:=StartOfSession)="&A25&"", "Bar", "", "Close","5","0","PrimaryOnly",,,"False","T","EveryTick") ->  | J25: =RTD("cqg.rtd",,"StudyData", "Close("&$D$12&") when LocalYear("&$D$12&")="&$D$2&" and localMonth("&$D$12&") ="&$E$2&" and LocalDay("&$D$12&")="&$F$2&" and Barix("&$D$12&",reference:=StartOfSession)="&A25&"", "Bar", "", "Close","5","0","PrimaryOnly",,,"False","T","EveryTick") -> 188.73 | K25: -0.0108490566 | L25: =RTD("cqg.rtd",,"StudyData", "Close("&$D$12&") when LocalYear("&$D$12&")="&$D$3&" and localMonth("&$D$12&") ="&$E$3&" and LocalDay("&$D$12&")="&$F$3&" and Barix("&$D$12&",reference:=StartOfSession)="&A25&"", "Bar", "", "Close","5","0","PrimaryOnly",,,"False","T","EveryTick") -> 191.2 | M25: 0.002621919245 | N25: =RTD("cqg.rtd",,"StudyData", "Close("&$D$12&") when LocalYear("&$D$12&")="&$D$4&" and localMonth("&$D$12&") ="&$E$4&" and LocalDay("&$D$12&")="&$F$4&" and Barix("&$D$12&",reference:=StartOfSession)="&A25&"", "Bar", "", "Close","5","0","PrimaryOnly",,,"False","T","EveryTick") -> 192.77 | O25: 0.002548366965 | P25: =RTD("cqg.rtd",,"StudyData", "Close("&$D$12&") when LocalYear("&$D$12&")="&$D$5&" and localMonth("&$D$12&") ="&$E$5&" and LocalDay("&$D$12&")="&$F$5&" and Barix("&$D$12&",reference:=StartOfSession)="&A25&"", "Bar", "", "Close","5","0","PrimaryOnly",,,"False","T","EveryTick") -> 191.32 | Q25: 0.0004706374523 | R25: =RTD("cqg.rtd",,"StudyData", "Close("&$D$12&") when LocalYear("&$D$12&")="&$D$6&" and localMonth("&$D$12&") ="&$E$6&" and LocalDay("&$D$12&")="&$F$6&" and Barix("&$D$12&",reference:=StartOfSession)="&A25&"", "Bar", "", "Close","5","0","PrimaryOnly",,,"False","T","EveryTick") -> 190.92 | S25: -0.00406885759 | T25: =RTD("cqg.rtd",,"StudyData", "Close("&$D$12&") when LocalYear("&$D$12&")="&$D$7&" and localMonth("&$D$12&") ="&$E$7&" and LocalDay("&$D$12&")="&$F$7&" and Barix("&$D$12&",reference:=StartOfSession)="&A25&"", "Bar", "", "Close","5","0","PrimaryOnly",,,"False","T","EveryTick") -> 190.62 | U25: -0.01468003722 | V25: =RTD("cqg.rtd",,"StudyData", "Close("&$D$12&") when LocalYear("&$D$12&")="&$D$8&" and localMonth("&$D$12&") ="&$E$8&" and LocalDay("&$D$12&")="&$F$8&" and Barix("&$D$12&",reference:=StartOfSession)="&A25&"", "Bar", "", "Close","5","0","PrimaryOnly",,,"False","T","EveryTick") -> 193.06 | W25: -0.004742756985 | X25: =RTD("cqg.rtd",,"StudyData", "Close("&$D$12&") when LocalYear("&$D$12&")="&$D$9&" and localMonth("&$D$12&") ="&$E$9&" and LocalDay("&$D$12&")="&$F$9&" and Barix("&$D$12&",reference:=StartOfSession)="&A25&"", "Bar", "", "Close","5","0","PrimaryOnly",,,"False","T","EveryTick") -> 193.18 | Y25: -0.0006724949563 | Z25: =RTD("cqg.rtd",,"StudyData", "Close("&$D$12&") when LocalYear("&$D$12&")="&$D$10&" and localMonth("&$D$12&") ="&$E$10&" and LocalDay("&$D$12&")="&$F$10&" and Barix("&$D$12&",reference:=StartOfSession)="&A25&"", "Bar", "", "Close","5","0","PrimaryOnly",,,"False","T","EveryTick") -> 193.06 | AA25: 0.006411927227
A26: 25 | B26: 10:35:00 | C26: =IF(WEEKDAY(TODAY())=7,TODAY()-1,IF(WEEKDAY(TODAY())=1,TODAY()-2,TODAY())) -> 2018-06-18 | D26: =YEAR(C26) -> 2018 | E26: =MONTH(C26) -> 6 | F26: =DAY(C26) -> 18 | H26: =RTD("cqg.rtd",,"StudyData", "Close("&$D$12&") when LocalYear("&$D$12&")="&$D$1&" and localMonth("&$D$12&") ="&$E$1&" and LocalDay("&$D$12&")="&$F$1&" and Barix("&$D$12&",reference:=StartOfSession)="&A26&"", "Bar", "", "Close","5","0","PrimaryOnly",,,"False","T","EveryTick") ->  | J26: =RTD("cqg.rtd",,"StudyData", "Close("&$D$12&") when LocalYear("&$D$12&")="&$D$2&" and localMonth("&$D$12&") ="&$E$2&" and LocalDay("&$D$12&")="&$F$2&" and Barix("&$D$12&",reference:=StartOfSession)="&A26&"", "Bar", "", "Close","5","0","PrimaryOnly",,,"False","T","EveryTick") -> 188.66 | K26: -0.01121593291 | L26: =RTD("cqg.rtd",,"StudyData", "Close("&$D$12&") when LocalYear("&$D$12&")="&$D$3&" and localMonth("&$D$12&") ="&$E$3&" and LocalDay("&$D$12&")="&$F$3&" and Barix("&$D$12&",reference:=StartOfSession)="&A26&"", "Bar", "", "Close","5","0","PrimaryOnly",,,"False","T","EveryTick") -> 191.33 | M26: 0.003303618249 | N26: =RTD("cqg.rtd",,"StudyData", "Close("&$D$12&") when LocalYear("&$D$12&")="&$D$4&" and localMonth("&$D$12&") ="&$E$4&" and LocalDay("&$D$12&")="&$F$4&" and Barix("&$D$12&",reference:=StartOfSession)="&A26&"", "Bar", "", "Close","5","0","PrimaryOnly",,,"False","T","EveryTick") -> 192.79 | O26: 0.002652381943 | P26: =RTD("cqg.rtd",,"StudyData", "Close("&$D$12&") when LocalYear("&$D$12&")="&$D$5&" and localMonth("&$D$12&") ="&$E$5&" and LocalDay("&$D$12&")="&$F$5&" and Barix("&$D$12&",reference:=StartOfSession)="&A26&"", "Bar", "", "Close","5","0","PrimaryOnly",,,"False","T","EveryTick") -> 191.42 | Q26: 0.0009935679548 | R26: =RTD("cqg.rtd",,"StudyData", "Close("&$D$12&") when LocalYear("&$D$12&")="&$D$6&" and localMonth("&$D$12&") ="&$E$6&" and LocalDay("&$D$12&")="&$F$6&" and Barix("&$D$12&",reference:=StartOfSession)="&A26&"", "Bar", "", "Close","5","0","PrimaryOnly",,,"False","T","EveryTick") -> 191 | S26: -0.003651538863 | T26: =RTD("cqg.rtd",,"StudyData", "Close("&$D$12&") when LocalYear("&$D$12&")="&$D$7&" and localMonth("&$D$12&") ="&$E$7&" and LocalDay("&$D$12&")="&$F$7&" and Barix("&$D$12&",reference:=StartOfSession)="&A26&"", "Bar", "", "Close","5","0","PrimaryOnly",,,"False","T","EveryTick") -> 190.6 | U26: -0.01478341776 | V26: =RTD("cqg.rtd",,"StudyData", "Close("&$D$12&") when LocalYear("&$D$12&")="&$D$8&" and localMonth("&$D$12&") ="&$E$8&" and LocalDay("&$D$12&")="&$F$8&" and Barix("&$D$12&",reference:=StartOfSession)="&A26&"", "Bar", "", "Close","5","0","PrimaryOnly",,,"False","T","EveryTick") -> 193.23 | W26: -0.003866377977 | X26: =RTD("cqg.rtd",,"StudyData", "Close("&$D$12&") when LocalYear("&$D$12&")="&$D$9&" and localMonth("&$D$12&") ="&$E$9&" and LocalDay("&$D$12&")="&$F$9&" and Barix("&$D$12&",reference:=StartOfSession)="&A26&"", "Bar", "", "Close","5","0","PrimaryOnly",,,"False","T","EveryTick") -> 193.01 | Y26: -0.001551911438 | Z26: =RTD("cqg.rtd",,"StudyData", "Close("&$D$12&") when LocalYear("&$D$12&")="&$D$10&" and localMonth("&$D$12&") ="&$E$10&" and LocalDay("&$D$12&")="&$F$10&" and Barix("&$D$12&",reference:=StartOfSession)="&A26&"", "Bar", "", "Close","5","0","PrimaryOnly",,,"False","T","EveryTick") -> 193.24 | AA26: 0.007350258041
A27: 26 | B27: 10:40:00 | C27: =WORKDAY(C26,-1) -> 2018-06-15 | D27: =YEAR(C27) -> 2018 | E27: =MONTH(C27) -> 6 | F27: =DAY(C27) -> 15 | G27: =IF(RTD("cqg.rtd",,"StudyData", "Close("&$D$12&") when LocalYear("&$D$12&")="&D27&" and localMonth("&$D$12&") ="&E27&" and LocalDay("&$D$12&")="&F27&" and Barix("&$D$12&",reference:=StartOfSession)=77", "Bar", "", "Close","5","0","PrimaryOnly",,,"False","T","EveryTick")="",2,1) -> 1 | H27: =RTD("cqg.rtd",,"StudyData", "Close("&$D$12&") when LocalYear("&$D$12&")="&$D$1&" and localMonth("&$D$12&") ="&$E$1&" and LocalDay("&$D$12&")="&$F$1&" and Barix("&$D$12&",reference:=StartOfSession)="&A27&"", "Bar", "", "Close","5","0","PrimaryOnly",,,"False","T","EveryTick") ->  | J27: =RTD("cqg.rtd",,"StudyData", "Close("&$D$12&") when LocalYear("&$D$12&")="&$D$2&" and localMonth("&$D$12&") ="&$E$2&" and LocalDay("&$D$12&")="&$F$2&" and Barix("&$D$12&",reference:=StartOfSession)="&A27&"", "Bar", "", "Close","5","0","PrimaryOnly",,,"False","T","EveryTick") -> 188.59 | K27: -0.01158280922 | L27: =RTD("cqg.rtd",,"StudyData", "Close("&$D$12&") when LocalYear("&$D$12&")="&$D$3&" and localMonth("&$D$12&") ="&$E$3&" and LocalDay("&$D$12&")="&$F$3&" and Barix("&$D$12&",reference:=StartOfSession)="&A27&"", "Bar", "", "Close","5","0","PrimaryOnly",,,"False","T","EveryTick") -> 191.31 | M27: 0.003198741479 | N27: =RTD("cqg.rtd",,"StudyData", "Close("&$D$12&") when LocalYear("&$D$12&")="&$D$4&" and localMonth("&$D$12&") ="&$E$4&" and LocalDay("&$D$12&")="&$F$4&" and Barix("&$D$12&",reference:=StartOfSession)="&A27&"", "Bar", "", "Close","5","0","PrimaryOnly",,,"False","T","EveryTick") -> 192.68 | O27: 0.002080299563 | P27: =RTD("cqg.rtd",,"StudyData", "Close("&$D$12&") when LocalYear("&$D$12&")="&$D$5&" and localMonth("&$D$12&") ="&$E$5&" and LocalDay("&$D$12&")="&$F$5&" and Barix("&$D$12&",reference:=StartOfSession)="&A27&"", "Bar", "", "Close","5","0","PrimaryOnly",,,"False","T","EveryTick") -> 191.46 | Q27: 0.001202740156 | R27: =RTD("cqg.rtd",,"StudyData", "Close("&$D$12&") when LocalYear("&$D$12&")="&$D$6&" and localMonth("&$D$12&") ="&$E$6&" and LocalDay("&$D$12&")="&$F$6&" and Barix("&$D$12&",reference:=StartOfSession)="&A27&"", "Bar", "", "Close","5","0","PrimaryOnly",,,"False","T","EveryTick") -> 191.35 | S27: -0.001825769431 | T27: =RTD("cqg.rtd",,"StudyData", "Close("&$D$12&") when LocalYear("&$D$12&")="&$D$7&" and localMonth("&$D$12&") ="&$E$7&" and LocalDay("&$D$12&")="&$F$7&" and Barix("&$D$12&",reference:=StartOfSession)="&A27&"", "Bar", "", "Close","5","0","PrimaryOnly",,,"False","T","EveryTick") -> 190.7 | U27: -0.01426651504 | V27: =RTD("cqg.rtd",,"StudyData", "Close("&$D$12&") when LocalYear("&$D$12&")="&$D$8&" and localMonth("&$D$12&") ="&$E$8&" and LocalDay("&$D$12&")="&$F$8&" and Barix("&$D$12&",reference:=StartOfSession)="&A27&"", "Bar", "", "Close","5","0","PrimaryOnly",,,"False","T","EveryTick") -> 193.39 | W27: -0.003041550675 | X27: =RTD("cqg.rtd",,"StudyData", "Close("&$D$12&") when LocalYear("&$D$12&")="&$D$9&" and localMonth("&$D$12&") ="&$E$9&" and LocalDay("&$D$12&")="&$F$9&" and Barix("&$D$12&",reference:=StartOfSession)="&A27&"", "Bar", "", "Close","5","0","PrimaryOnly",,,"False","T","EveryTick") -> 193.21 | Y27: -0.0005173038125 | Z27: =RTD("cqg.rtd",,"StudyData", "Close("&$D$12&") when LocalYear("&$D$12&")="&$D$10&" and localMonth("&$D$12&") ="&$E$10&" and LocalDay("&$D$12&")="&$F$10&" and Barix("&$D$12&",reference:=StartOfSession)="&A27&"", "Bar", "", "Close","5","0","PrimaryOnly",,,"False","T","EveryTick") -> 193 | AA27: 0.006099150289
A28: 27 | B28: 10:45:00 | C28: =WORKDAY(C27,-1) -> 2018-06-14 | D28: 2018 | E28: 6 | F28: 14 | G28: =IF(RTD("cqg.rtd",,"StudyData", "Close(EP) when LocalYear("&$D$12&")="&D28&" and localMonth("&$D$12&") ="&E28&" and LocalDay("&$D$12&")="&F28&" and Barix("&$D$12&",reference:=StartOfSession)=77", "Bar", "", "Close","5","0","PrimaryOnly",,,"False","T","EveryTick")="",2,1) -> 1 | H28: =RTD("cqg.rtd",,"StudyData", "Close("&$D$12&") when LocalYear("&$D$12&")="&$D$1&" and localMonth("&$D$12&") ="&$E$1&" and LocalDay("&$D$12&")="&$F$1&" and Barix("&$D$12&",reference:=StartOfSession)="&A28&"", "Bar", "", "Close","5","0","PrimaryOnly",,,"False","T","EveryTick") ->  | J28: =RTD("cqg.rtd",,"StudyData", "Close("&$D$12&") when LocalYear("&$D$12&")="&$D$2&" and localMonth("&$D$12&") ="&$E$2&" and LocalDay("&$D$12&")="&$F$2&" and Barix("&$D$12&",reference:=StartOfSession)="&A28&"", "Bar", "", "Close","5","0","PrimaryOnly",,,"False","T","EveryTick") -> 188.79 | K28: -0.01053459119 | L28: =RTD("cqg.rtd",,"StudyData", "Close("&$D$12&") when LocalYear("&$D$12&")="&$D$3&" and localMonth("&$D$12&") ="&$E$3&" and LocalDay("&$D$12&")="&$F$3&" and Barix("&$D$12&",reference:=StartOfSession)="&A28&"", "Bar", "", "Close","5","0","PrimaryOnly",,,"False","T","EveryTick") -> 191.15 | M28: 0.00235972732 | N28: =RTD("cqg.rtd",,"StudyData", "Close("&$D$12&") when LocalYear("&$D$12&")="&$D$4&" and localMonth("&$D$12&") ="&$E$4&" and LocalDay("&$D$12&")="&$F$4&" and Barix("&$D$12&",reference:=StartOfSession)="&A28&"", "Bar", "", "Close","5","0","PrimaryOnly",,,"False","T","EveryTick") -> 192.82 | O28: 0.00280840441 | P28: =RTD("cqg.rtd",,"StudyData", "Close("&$D$12&") when LocalYear("&$D$12&")="&$D$5&" and localMonth("&$D$12&") ="&$E$5&" and LocalDay("&$D$12&")="&$F$5&" and Barix("&$D$12&",reference:=StartOfSession)="&A28&"", "Bar", "", "Close","5","0","PrimaryOnly",,,"False","T","EveryTick") -> 191.58 | Q28: 0.001830256759 | R28: =RTD("cqg.rtd",,"StudyData", "Close("&$D$12&") when LocalYear("&$D$12&")="&$D$6&" and localMonth("&$D$12&") ="&$E$6&" and LocalDay("&$D$12&")="&$F$6&" and Barix("&$D$12&",reference:=StartOfSession)="&A28&"", "Bar", "", "Close","5","0","PrimaryOnly",,,"False","T","EveryTick") -> 191.11 | S28: -0.003077725613 | T28: =RTD("cqg.rtd",,"StudyData", "Close("&$D$12&") when LocalYear("&$D$12&")="&$D$7&" and localMonth("&$D$12&") ="&$E$7&" and LocalDay("&$D$12&")="&$F$7&" and Barix("&$D$12&",reference:=StartOfSession)="&A28&"", "Bar", "", "Close","5","0","PrimaryOnly",,,"False","T","EveryTick") -> 190.58 | U28: -0.0148867983 | V28: =RTD("cqg.rtd",,"StudyData", "Close("&$D$12&") when LocalYear("&$D$12&")="&$D$8&" and localMonth("&$D$12&") ="&$E$8&" and LocalDay("&$D$12&")="&$F$8&" and Barix("&$D$12&",reference:=StartOfSession)="&A28&"", "Bar", "", "Close","5","0","PrimaryOnly",,,"False","T","EveryTick") -> 193.19 | W28: -0.004072584803 | X28: =RTD("cqg.rtd",,"StudyData", "Close("&$D$12&") when LocalYear("&$D$12&")="&$D$9&" and localMonth("&$D$12&") ="&$E$9&" and LocalDay("&$D$12&")="&$F$9&" and Barix("&$D$12&",reference:=StartOfSession)="&A28&"", "Bar", "", "Close","5","0","PrimaryOnly",,,"False","T","EveryTick") -> 193.08 | Y28: -0.001189798769 | Z28: =RTD("cqg.rtd",,"StudyData", "Close("&$D$12&") when LocalYear("&$D$12&")="&$D$10&" and localMonth("&$D$12&") ="&$E$10&" and LocalDay("&$D$12&")="&$F$10&" and Barix("&$D$12&",reference:=StartOfSession)="&A28&"", "Bar", "", "Close","5","0","PrimaryOnly",,,"False","T","EveryTick") -> 193.16 | AA28: 0.006933222124
A29: 28 | B29: 10:50:00 | C29: 2018-06-13 | D29: 2018 | E29: 6 | F29: 13 | G29: =IF(RTD("cqg.rtd",,"StudyData", "Close(EP) when LocalYear("&$D$12&")="&D29&" and localMonth("&$D$12&") ="&E29&" and LocalDay("&$D$12&")="&F29&" and Barix("&$D$12&",reference:=StartOfSession)=77", "Bar", "", "Close","5","0","PrimaryOnly",,,"False","T","EveryTick")="",2,1) -> 1 | H29: =RTD("cqg.rtd",,"StudyData", "Close("&$D$12&") when LocalYear("&$D$12&")="&$D$1&" and localMonth("&$D$12&") ="&$E$1&" and LocalDay("&$D$12&")="&$F$1&" and Barix("&$D$12&",reference:=StartOfSession)="&A29&"", "Bar", "", "Close","5","0","PrimaryOnly",,,"False","T","EveryTick") ->  | J29: =RTD("cqg.rtd",,"StudyData", "Close("&$D$12&") when LocalYear("&$D$12&")="&$D$2&" and localMonth("&$D$12&") ="&$E$2&" and LocalDay("&$D$12&")="&$F$2&" and Barix("&$D$12&",reference:=StartOfSession)="&A29&"", "Bar", "", "Close","5","0","PrimaryOnly",,,"False","T","EveryTick") -> 189.17 | K29: -0.008542976939 | L29: =RTD("cqg.rtd",,"StudyData", "Close("&$D$12&") when LocalYear("&$D$12&")="&$D$3&" and localMonth("&$D$12&") ="&$E$3&" and LocalDay("&$D$12&")="&$F$3&" and Barix("&$D$12&",reference:=StartOfSession)="&A29&"", "Bar", "", "Close","5","0","PrimaryOnly",,,"False","T","EveryTick") -> 191.1 | M29: 0.002097535396 | N29: =RTD("cqg.rtd",,"StudyData", "Close("&$D$12&") when LocalYear("&$D$12&")="&$D$4&" and localMonth("&$D$12&") ="&$E$4&" and LocalDay("&$D$12&")="&$F$4&" and Barix("&$D$12&",reference:=StartOfSession)="&A29&"", "Bar", "", "Close","5","0","PrimaryOnly",,,"False","T","EveryTick") -> 192.81 | O29: 0.002756396921 | P29: =RTD("cqg.rtd",,"StudyData", "Close("&$D$12&") when LocalYear("&$D$12&")="&$D$5&" and localMonth("&$D$12&") ="&$E$5&" and LocalDay("&$D$12&")="&$F$5&" and Barix("&$D$12&",reference:=StartOfSession)="&A29&"", "Bar", "", "Close","5","0","PrimaryOnly",,,"False","T","EveryTick") -> 191.72 | Q29: 0.002562359462 | R29: =RTD("cqg.rtd",,"StudyData", "Close("&$D$12&") when LocalYear("&$D$12&")="&$D$6&" and localMonth("&$D$12&") ="&$E$6&" and LocalDay("&$D$12&")="&$F$6&" and Barix("&$D$12&",reference:=StartOfSession)="&A29&"", "Bar", "", "Close","5","0","PrimaryOnly",,,"False","T","EveryTick") -> 191.17 | S29: -0.002764736568 | T29: =RTD("cqg.rtd",,"StudyData", "Close("&$D$12&") when LocalYear("&$D$12&")="&$D$7&" and localMonth("&$D$12&") ="&$E$7&" and LocalDay("&$D$12&")="&$F$7&" and Barix("&$D$12&",reference:=StartOfSession)="&A29&"", "Bar", "", "Close","5","0","PrimaryOnly",,,"False","T","EveryTick") -> 190.43 | U29: -0.01566215238 | V29: =RTD("cqg.rtd",,"StudyData", "Close("&$D$12&") when LocalYear("&$D$12&")="&$D$8&" and localMonth("&$D$12&") ="&$E$8&" and LocalDay("&$D$12&")="&$F$8&" and Barix("&$D$12&",reference:=StartOfSession)="&A29&"", "Bar", "", "Close","5","0","PrimaryOnly",,,"False","T","EveryTick") -> 193.3 | W29: -0.003505516033 | X29: =RTD("cqg.rtd",,"StudyData", "Close("&$D$12&") when LocalYear("&$D$12&")="&$D$9&" and localMonth("&$D$12&") ="&$E$9&" and LocalDay("&$D$12&")="&$F$9&" and Barix("&$D$12&",reference:=StartOfSession)="&A29&"", "Bar", "", "Close","5","0","PrimaryOnly",,,"False","T","EveryTick") -> 192.81 | Y29: -0.002586519063 | Z29: =RTD("cqg.rtd",,"StudyData", "Close("&$D$12&") when LocalYear("&$D$12&")="&$D$10&" and localMonth("&$D$12&") ="&$E$10&" and LocalDay("&$D$12&")="&$F$10&" and Barix("&$D$12&",reference:=StartOfSession)="&A29&"", "Bar", "", "Close","5","0","PrimaryOnly",,,"False","T","EveryTick") -> 193.13 | AA29: 0.006776833655
A30: 29 | B30: 10:55:00 | C30: 2018-06-12 | D30: 2018 | E30: 6 | F30: 12 | G30: =IF(RTD("cqg.rtd",,"StudyData", "Close(EP) when LocalYear("&$D$12&")="&D30&" and localMonth("&$D$12&") ="&E30&" and LocalDay("&$D$12&")="&F30&" and Barix("&$D$12&",reference:=StartOfSession)=77", "Bar", "", "Close","5","0","PrimaryOnly",,,"False","T","EveryTick")="",2,1) -> 1 | H30: =RTD("cqg.rtd",,"StudyData", "Close("&$D$12&") when LocalYear("&$D$12&")="&$D$1&" and localMonth("&$D$12&") ="&$E$1&" and LocalDay("&$D$12&")="&$F$1&" and Barix("&$D$12&",reference:=StartOfSession)="&A30&"", "Bar", "", "Close","5","0","PrimaryOnly",,,"False","T","EveryTick") ->  | J30: =RTD("cqg.rtd",,"StudyData", "Close("&$D$12&") when LocalYear("&$D$12&")="&$D$2&" and localMonth("&$D$12&") ="&$E$2&" and LocalDay("&$D$12&")="&$F$2&" and Barix("&$D$12&",reference:=StartOfSession)="&A30&"", "Bar", "", "Close","5","0","PrimaryOnly",,,"False","T","EveryTick") -> 189.11 | K30: -0.008857442348 | L30: =RTD("cqg.rtd",,"StudyData", "Close("&$D$12&") when LocalYear("&$D$12&")="&$D$3&" and localMonth("&$D$12&") ="&$E$3&" and LocalDay("&$D$12&")="&$F$3&" and Barix("&$D$12&",reference:=StartOfSession)="&A30&"", "Bar", "", "Close","5","0","PrimaryOnly",,,"False","T","EveryTick") -> 191.11 | M30: 0.002149973781 | N30: =RTD("cqg.rtd",,"StudyData", "Close("&$D$12&") when LocalYear("&$D$12&")="&$D$4&" and localMonth("&$D$12&") ="&$E$4&" and LocalDay("&$D$12&")="&$F$4&" and Barix("&$D$12&",reference:=StartOfSession)="&A30&"", "Bar", "", "Close","5","0","PrimaryOnly",,,"False","T","EveryTick") -> 192.74 | O30: 0.002392344498 | P30: =RTD("cqg.rtd",,"StudyData", "Close("&$D$12&") when LocalYear("&$D$12&")="&$D$5&" and localMonth("&$D$12&") ="&$E$5&" and LocalDay("&$D$12&")="&$F$5&" and Barix("&$D$12&",reference:=StartOfSession)="&A30&"", "Bar", "", "Close","5","0","PrimaryOnly",,,"False","T","EveryTick") -> 191.69 | Q30: 0.002405480312 | R30: =RTD("cqg.rtd",,"StudyData", "Close("&$D$12&") when LocalYear("&$D$12&")="&$D$6&" and localMonth("&$D$12&") ="&$E$6&" and LocalDay("&$D$12&")="&$F$6&" and Barix("&$D$12&",reference:=StartOfSession)="&A30&"", "Bar", "", "Close","5","0","PrimaryOnly",,,"False","T","EveryTick") -> 191.18 | S30: -0.002712571727 | T30: =RTD("cqg.rtd",,"StudyData", "Close("&$D$12&") when LocalYear("&$D$12&")="&$D$7&" and localMonth("&$D$12&") ="&$E$7&" and LocalDay("&$D$12&")="&$F$7&" and Barix("&$D$12&",reference:=StartOfSession)="&A30&"", "Bar", "", "Close","5","0","PrimaryOnly",,,"False","T","EveryTick") -> 190.53 | U30: -0.01514524966 | V30: =RTD("cqg.rtd",,"StudyData", "Close("&$D$12&") when LocalYear("&$D$12&")="&$D$8&" and localMonth("&$D$12&") ="&$E$8&" and LocalDay("&$D$12&")="&$F$8&" and Barix("&$D$12&",reference:=StartOfSession)="&A30&"", "Bar", "", "Close","5","0","PrimaryOnly",,,"False","T","EveryTick") -> 193.32 | W30: -0.00340241262 | X30: =RTD("cqg.rtd",,"StudyData", "Close("&$D$12&") when LocalYear("&$D$12&")="&$D$9&" and localMonth("&$D$12&") ="&$E$9&" and LocalDay("&$D$12&")="&$F$9&" and Barix("&$D$12&",reference:=StartOfSession)="&A30&"", "Bar", "", "Close","5","0","PrimaryOnly",,,"False","T","EveryTick") -> 193.09 | Y30: -0.001138068388 | Z30: =RTD("cqg.rtd",,"StudyData", "Close("&$D$12&") when LocalYear("&$D$12&")="&$D$10&" and localMonth("&$D$12&") ="&$E$10&" and LocalDay("&$D$12&")="&$F$10&" and Barix("&$D$12&",reference:=StartOfSession)="&A30&"", "Bar", "", "Close","5","0","PrimaryOnly",,,"False","T","EveryTick") -> 193.2 | AA30: 0.007141740082
A31: 30 | B31: 11:00:00 | C31: 2018-06-11 | D31: 2018 | E31: 6 | F31: 11 | G31: =IF(RTD("cqg.rtd",,"StudyData", "Close(EP) when LocalYear("&$D$12&")="&D31&" and localMonth("&$D$12&") ="&E31&" and LocalDay("&$D$12&")="&F31&" and Barix("&$D$12&",reference:=StartOfSession)=77", "Bar", "", "Close","5","0","PrimaryOnly",,,"False","T","EveryTick")="",2,1) -> 1 | H31: =RTD("cqg.rtd",,"StudyData", "Close("&$D$12&") when LocalYear("&$D$12&")="&$D$1&" and localMonth("&$D$12&") ="&$E$1&" and LocalDay("&$D$12&")="&$F$1&" and Barix("&$D$12&",reference:=StartOfSession)="&A31&"", "Bar", "", "Close","5","0","PrimaryOnly",,,"False","T","EveryTick") ->  | J31: =RTD("cqg.rtd",,"StudyData", "Close("&$D$12&") when LocalYear("&$D$12&")="&$D$2&" and localMonth("&$D$12&") ="&$E$2&" and LocalDay("&$D$12&")="&$F$2&" and Barix("&$D$12&",reference:=StartOfSession)="&A31&"", "Bar", "", "Close","5","0","PrimaryOnly",,,"False","T","EveryTick") -> 189.07 | K31: -0.009067085954 | L31: =RTD("cqg.rtd",,"StudyData", "Close("&$D$12&") when LocalYear("&$D$12&")="&$D$3&" and localMonth("&$D$12&") ="&$E$3&" and LocalDay("&$D$12&")="&$F$3&" and Barix("&$D$12&",reference:=StartOfSession)="&A31&"", "Bar", "", "Close","5","0","PrimaryOnly",,,"False","T","EveryTick") -> 191.06 | M31: 0.001887781856 | N31: =RTD("cqg.rtd",,"StudyData", "Close("&$D$12&") when LocalYear("&$D$12&")="&$D$4&" and localMonth("&$D$12&") ="&$E$4&" and LocalDay("&$D$12&")="&$F$4&" and Barix("&$D$12&",reference:=StartOfSession)="&A31&"", "Bar", "", "Close","5","0","PrimaryOnly",,,"False","T","EveryTick") -> 192.67 | O31: 0.002028292074 | P31: =RTD("cqg.rtd",,"StudyData", "Close("&$D$12&") when LocalYear("&$D$12&")="&$D$5&" and localMonth("&$D$12&") ="&$E$5&" and LocalDay("&$D$12&")="&$F$5&" and Barix("&$D$12&",reference:=StartOfSession)="&A31&"", "Bar", "", "Close","5","0","PrimaryOnly",,,"False","T","EveryTick") -> 191.73 | Q31: 0.002614652513 | R31: =RTD("cqg.rtd",,"StudyData", "Close("&$D$12&") when LocalYear("&$D$12&")="&$D$6&" and localMonth("&$D$12&") ="&$E$6&" and LocalDay("&$D$12&")="&$F$6&" and Barix("&$D$12&",reference:=StartOfSession)="&A31&"", "Bar", "", "Close","5","0","PrimaryOnly",,,"False","T","EveryTick") -> 191.24 | S31: -0.002399582681 | T31: =RTD("cqg.rtd",,"StudyData", "Close("&$D$12&") when LocalYear("&$D$12&")="&$D$7&" and localMonth("&$D$12&") ="&$E$7&" and LocalDay("&$D$12&")="&$F$7&" and Barix("&$D$12&",reference:=StartOfSession)="&A31&"", "Bar", "", "Close","5","0","PrimaryOnly",,,"False","T","EveryTick") -> 190.78 | U31: -0.01385299287 | V31: =RTD("cqg.rtd",,"StudyData", "Close("&$D$12&") when LocalYear("&$D$12&")="&$D$8&" and localMonth("&$D$12&") ="&$E$8&" and LocalDay("&$D$12&")="&$F$8&" and Barix("&$D$12&",reference:=StartOfSession)="&A31&"", "Bar", "", "Close","5","0","PrimaryOnly",,,"False","T","EveryTick") -> 193.36 | W31: -0.003196205794 | X31: =RTD("cqg.rtd",,"StudyData", "Close("&$D$12&") when LocalYear("&$D$12&")="&$D$9&" and localMonth("&$D$12&") ="&$E$9&" and LocalDay("&$D$12&")="&$F$9&" and Barix("&$D$12&",reference:=StartOfSession)="&A31&"", "Bar", "", "Close","5","0","PrimaryOnly",,,"False","T","EveryTick") -> 192.88 | Y31: -0.002224406394 | Z31: =RTD("cqg.rtd",,"StudyData", "Close("&$D$12&") when LocalYear("&$D$12&")="&$D$10&" and localMonth("&$D$12&") ="&$E$10&" and LocalDay("&$D$12&")="&$F$10&" and Barix("&$D$12&",reference:=StartOfSession)="&A31&"", "Bar", "", "Close","5","0","PrimaryOnly",,,"False","T","EveryTick") -> 192.91 | AA31: 0.005629984882
A32: 31 | B32: 11:05:00 | C32: 2018-06-08 | D32: 2018 | E32: 6 | F32: 8 | G32: =IF(RTD("cqg.rtd",,"StudyData", "Close(EP) when LocalYear("&$D$12&")="&D32&" and localMonth("&$D$12&") ="&E32&" and LocalDay("&$D$12&")="&F32&" and Barix("&$D$12&",reference:=StartOfSession)=77", "Bar", "", "Close","5","0","PrimaryOnly",,,"False","T","EveryTick")="",2,1) -> 1 | H32: =RTD("cqg.rtd",,"StudyData", "Close("&$D$12&") when LocalYear("&$D$12&")="&$D$1&" and localMonth("&$D$12&") ="&$E$1&" and LocalDay("&$D$12&")="&$F$1&" and Barix("&$D$12&",reference:=StartOfSession)="&A32&"", "Bar", "", "Close","5","0","PrimaryOnly",,,"False","T","EveryTick") ->  | J32: =RTD("cqg.rtd",,"StudyData", "Close("&$D$12&") when LocalYear("&$D$12&")="&$D$2&" and localMonth("&$D$12&") ="&$E$2&" and LocalDay("&$D$12&")="&$F$2&" and Barix("&$D$12&",reference:=StartOfSession)="&A32&"", "Bar", "", "Close","5","0","PrimaryOnly",,,"False","T","EveryTick") -> 188.94 | K32: -0.009748427673 | L32: =RTD("cqg.rtd",,"StudyData", "Close("&$D$12&") when LocalYear("&$D$12&")="&$D$3&" and localMonth("&$D$12&") ="&$E$3&" and LocalDay("&$D$12&")="&$F$3&" and Barix("&$D$12&",reference:=StartOfSession)="&A32&"", "Bar", "", "Close","5","0","PrimaryOnly",,,"False","T","EveryTick") -> 191.04 | M32: 0.001782905087 | N32: =RTD("cqg.rtd",,"StudyData", "Close("&$D$12&") when LocalYear("&$D$12&")="&$D$4&" and localMonth("&$D$12&") ="&$E$4&" and LocalDay("&$D$12&")="&$F$4&" and Barix("&$D$12&",reference:=StartOfSession)="&A32&"", "Bar", "", "Close","5","0","PrimaryOnly",,,"False","T","EveryTick") -> 192.63 | O32: 0.001820262118 | P32: =RTD("cqg.rtd",,"StudyData", "Close("&$D$12&") when LocalYear("&$D$12&")="&$D$5&" and localMonth("&$D$12&") ="&$E$5&" and LocalDay("&$D$12&")="&$F$5&" and Barix("&$D$12&",reference:=StartOfSession)="&A32&"", "Bar", "", "Close","5","0","PrimaryOnly",,,"False","T","EveryTick") -> 191.67 | Q32: 0.002300894211 | R32: =RTD("cqg.rtd",,"StudyData", "Close("&$D$12&") when LocalYear("&$D$12&")="&$D$6&" and localMonth("&$D$12&") ="&$E$6&" and LocalDay("&$D$12&")="&$F$6&" and Barix("&$D$12&",reference:=StartOfSession)="&A32&"", "Bar", "", "Close","5","0","PrimaryOnly",,,"False","T","EveryTick") -> 191.34 | S32: -0.001877934272 | T32: =RTD("cqg.rtd",,"StudyData", "Close("&$D$12&") when LocalYear("&$D$12&")="&$D$7&" and localMonth("&$D$12&") ="&$E$7&" and LocalDay("&$D$12&")="&$F$7&" and Barix("&$D$12&",reference:=StartOfSession)="&A32&"", "Bar", "", "Close","5","0","PrimaryOnly",,,"False","T","EveryTick") -> 190.85 | U32: -0.01349116096 | V32: =RTD("cqg.rtd",,"StudyData", "Close("&$D$12&") when LocalYear("&$D$12&")="&$D$8&" and localMonth("&$D$12&") ="&$E$8&" and LocalDay("&$D$12&")="&$F$8&" and Barix("&$D$12&",reference:=StartOfSession)="&A32&"", "Bar", "", "Close","5","0","PrimaryOnly",,,"False","T","EveryTick") -> 193.33 | W32: -0.003350860913 | X32: =RTD("cqg.rtd",,"StudyData", "Close("&$D$12&") when LocalYear("&$D$12&")="&$D$9&" and localMonth("&$D$12&") ="&$E$9&" and LocalDay("&$D$12&")="&$F$9&" and Barix("&$D$12&",reference:=StartOfSession)="&A32&"", "Bar", "", "Close","5","0","PrimaryOnly",,,"False","T","EveryTick") -> 192.71 | Y32: -0.003103822875 | Z32: =RTD("cqg.rtd",,"StudyData", "Close("&$D$12&") when LocalYear("&$D$12&")="&$D$10&" and localMonth("&$D$12&") ="&$E$10&" and LocalDay("&$D$12&")="&$F$10&" and Barix("&$D$12&",reference:=StartOfSession)="&A32&"", "Bar", "", "Close","5","0","PrimaryOnly",,,"False","T","EveryTick") -> 193.04 | AA32: 0.006307668248
A33: 32 | B33: 11:10:00 | C33: 2018-06-07 | D33: 2018 | E33: 6 | F33: 7 | G33: =IF(RTD("cqg.rtd",,"StudyData", "Close(EP) when LocalYear("&$D$12&")="&D33&" and localMonth("&$D$12&") ="&E33&" and LocalDay("&$D$12&")="&F33&" and Barix("&$D$12&",reference:=StartOfSession)=77", "Bar", "", "Close","5","0","PrimaryOnly",,,"False","T","EveryTick")="",2,1) -> 1 | H33: =RTD("cqg.rtd",,"StudyData", "Close("&$D$12&") when LocalYear("&$D$12&")="&$D$1&" and localMonth("&$D$12&") ="&$E$1&" and LocalDay("&$D$12&")="&$F$1&" and Barix("&$D$12&",reference:=StartOfSession)="&A33&"", "Bar", "", "Close","5","0","PrimaryOnly",,,"False","T","EveryTick") ->  | J33: =RTD("cqg.rtd",,"StudyData", "Close("&$D$12&") when LocalYear("&$D$12&")="&$D$2&" and localMonth("&$D$12&") ="&$E$2&" and LocalDay("&$D$12&")="&$F$2&" and Barix("&$D$12&",reference:=StartOfSession)="&A33&"", "Bar", "", "Close","5","0","PrimaryOnly",,,"False","T","EveryTick") -> 188.99 | K33: -0.009486373166 | L33: =RTD("cqg.rtd",,"StudyData", "Close("&$D$12&") when LocalYear("&$D$12&")="&$D$3&" and localMonth("&$D$12&") ="&$E$3&" and LocalDay("&$D$12&")="&$F$3&" and Barix("&$D$12&",reference:=StartOfSession)="&A33&"", "Bar", "", "Close","5","0","PrimaryOnly",,,"False","T","EveryTick") -> 191.02 | M33: 0.001678028317 | N33: =RTD("cqg.rtd",,"StudyData", "Close("&$D$12&") when LocalYear("&$D$12&")="&$D$4&" and localMonth("&$D$12&") ="&$E$4&" and LocalDay("&$D$12&")="&$F$4&" and Barix("&$D$12&",reference:=StartOfSession)="&A33&"", "Bar", "", "Close","5","0","PrimaryOnly",,,"False","T","EveryTick") -> 192.56 | O33: 0.001456209694 | P33: =RTD("cqg.rtd",,"StudyData", "Close("&$D$12&") when LocalYear("&$D$12&")="&$D$5&" and localMonth("&$D$12&") ="&$E$5&" and LocalDay("&$D$12&")="&$F$5&" and Barix("&$D$12&",reference:=StartOfSession)="&A33&"", "Bar", "", "Close","5","0","PrimaryOnly",,,"False","T","EveryTick") -> 191.66 | Q33: 0.002248601161 | R33: =RTD("cqg.rtd",,"StudyData", "Close("&$D$12&") when LocalYear("&$D$12&")="&$D$6&" and localMonth("&$D$12&") ="&$E$6&" and LocalDay("&$D$12&")="&$F$6&" and Barix("&$D$12&",reference:=StartOfSession)="&A33&"", "Bar", "", "Close","5","0","PrimaryOnly",,,"False","T","EveryTick") -> 191.34 | S33: -0.001877934272 | T33: =RTD("cqg.rtd",,"StudyData", "Close("&$D$12&") when LocalYear("&$D$12&")="&$D$7&" and localMonth("&$D$12&") ="&$E$7&" and LocalDay("&$D$12&")="&$F$7&" and Barix("&$D$12&",reference:=StartOfSession)="&A33&"", "Bar", "", "Close","5","0","PrimaryOnly",,,"False","T","EveryTick") -> 190.8 | U33: -0.01374961232 | V33: =RTD("cqg.rtd",,"StudyData", "Close("&$D$12&") when LocalYear("&$D$12&")="&$D$8&" and localMonth("&$D$12&") ="&$E$8&" and LocalDay("&$D$12&")="&$F$8&" and Barix("&$D$12&",reference:=StartOfSession)="&A33&"", "Bar", "", "Close","5","0","PrimaryOnly",,,"False","T","EveryTick") -> 193.28 | W33: -0.003608619445 | X33: =RTD("cqg.rtd",,"StudyData", "Close("&$D$12&") when LocalYear("&$D$12&")="&$D$9&" and localMonth("&$D$12&") ="&$E$9&" and LocalDay("&$D$12&")="&$F$9&" and Barix("&$D$12&",reference:=StartOfSession)="&A33&"", "Bar", "", "Close","5","0","PrimaryOnly",,,"False","T","EveryTick") -> 192.81 | Y33: -0.002586519063 | Z33: =RTD("cqg.rtd",,"StudyData", "Close("&$D$12&") when LocalYear("&$D$12&")="&$D$10&" and localMonth("&$D$12&") ="&$E$10&" and LocalDay("&$D$12&")="&$F$10&" and Barix("&$D$12&",reference:=StartOfSession)="&A33&"", "Bar", "", "Close","5","0","PrimaryOnly",,,"False","T","EveryTick") -> 193.1 | AA33: 0.006620445186
A34: 33 | B34: 11:15:00 | C34: 2018-06-06 | D34: 2018 | E34: 6 | F34: 6 | G34: =IF(RTD("cqg.rtd",,"StudyData", "Close(EP) when LocalYear("&$D$12&")="&D34&" and localMonth("&$D$12&") ="&E34&" and LocalDay("&$D$12&")="&F34&" and Barix("&$D$12&",reference:=StartOfSession)=77", "Bar", "", "Close","5","0","PrimaryOnly",,,"False","T","EveryTick")="",2,1) -> 1 | H34: =RTD("cqg.rtd",,"StudyData", "Close("&$D$12&") when LocalYear("&$D$12&")="&$D$1&" and localMonth("&$D$12&") ="&$E$1&" and LocalDay("&$D$12&")="&$F$1&" and Barix("&$D$12&",reference:=StartOfSession)="&A34&"", "Bar", "", "Close","5","0","PrimaryOnly",,,"False","T","EveryTick") ->  | J34: =RTD("cqg.rtd",,"StudyData", "Close("&$D$12&") when LocalYear("&$D$12&")="&$D$2&" and localMonth("&$D$12&") ="&$E$2&" and LocalDay("&$D$12&")="&$F$2&" and Barix("&$D$12&",reference:=StartOfSession)="&A34&"", "Bar", "", "Close","5","0","PrimaryOnly",,,"False","T","EveryTick") -> 188.93 | K34: -0.009800838574 | L34: =RTD("cqg.rtd",,"StudyData", "Close("&$D$12&") when LocalYear("&$D$12&")="&$D$3&" and localMonth("&$D$12&") ="&$E$3&" and LocalDay("&$D$12&")="&$F$3&" and Barix("&$D$12&",reference:=StartOfSession)="&A34&"", "Bar", "", "Close","5","0","PrimaryOnly",,,"False","T","EveryTick") -> 190.94 | M34: 0.001258521238 | N34: =RTD("cqg.rtd",,"StudyData", "Close("&$D$12&") when LocalYear("&$D$12&")="&$D$4&" and localMonth("&$D$12&") ="&$E$4&" and LocalDay("&$D$12&")="&$F$4&" and Barix("&$D$12&",reference:=StartOfSession)="&A34&"", "Bar", "", "Close","5","0","PrimaryOnly",,,"False","T","EveryTick") -> 192.37 | O34: 0.0004680674017 | P34: =RTD("cqg.rtd",,"StudyData", "Close("&$D$12&") when LocalYear("&$D$12&")="&$D$5&" and localMonth("&$D$12&") ="&$E$5&" and LocalDay("&$D$12&")="&$F$5&" and Barix("&$D$12&",reference:=StartOfSession)="&A34&"", "Bar", "", "Close","5","0","PrimaryOnly",,,"False","T","EveryTick") -> 191.76 | Q34: 0.002771531663 | R34: =RTD("cqg.rtd",,"StudyData", "Close("&$D$12&") when LocalYear("&$D$12&")="&$D$6&" and localMonth("&$D$12&") ="&$E$6&" and LocalDay("&$D$12&")="&$F$6&" and Barix("&$D$12&",reference:=StartOfSession)="&A34&"", "Bar", "", "Close","5","0","PrimaryOnly",,,"False","T","EveryTick") -> 191.43 | S34: -0.001408450704 | T34: =RTD("cqg.rtd",,"StudyData", "Close("&$D$12&") when LocalYear("&$D$12&")="&$D$7&" and localMonth("&$D$12&") ="&$E$7&" and LocalDay("&$D$12&")="&$F$7&" and Barix("&$D$12&",reference:=StartOfSession)="&A34&"", "Bar", "", "Close","5","0","PrimaryOnly",,,"False","T","EveryTick") -> 190.76 | U34: -0.01395637341 | V34: =RTD("cqg.rtd",,"StudyData", "Close("&$D$12&") when LocalYear("&$D$12&")="&$D$8&" and localMonth("&$D$12&") ="&$E$8&" and LocalDay("&$D$12&")="&$F$8&" and Barix("&$D$12&",reference:=StartOfSession)="&A34&"", "Bar", "", "Close","5","0","PrimaryOnly",,,"False","T","EveryTick") -> 193.17 | W34: -0.004175688215 | X34: =RTD("cqg.rtd",,"StudyData", "Close("&$D$12&") when LocalYear("&$D$12&")="&$D$9&" and localMonth("&$D$12&") ="&$E$9&" and LocalDay("&$D$12&")="&$F$9&" and Barix("&$D$12&",reference:=StartOfSession)="&A34&"", "Bar", "", "Close","5","0","PrimaryOnly",,,"False","T","EveryTick") -> 192.82 | Y34: -0.002534788681 | Z34: =RTD("cqg.rtd",,"StudyData", "Close("&$D$12&") when LocalYear("&$D$12&")="&$D$10&" and localMonth("&$D$12&") ="&$E$10&" and LocalDay("&$D$12&")="&$F$10&" and Barix("&$D$12&",reference:=StartOfSession)="&A34&"", "Bar", "", "Close","5","0","PrimaryOnly",,,"False","T","EveryTick") -> 192.89 | AA34: 0.005525725903
A35: 34 | B35: 11:20:00 | C35: 2018-06-05 | D35: 2018 | E35: 6 | F35: 5 | G35: =IF(RTD("cqg.rtd",,"StudyData", "Close(EP) when LocalYear("&$D$12&")="&D35&" and localMonth("&$D$12&") ="&E35&" and LocalDay("&$D$12&")="&F35&" and Barix("&$D$12&",reference:=StartOfSession)=77", "Bar", "", "Close","5","0","PrimaryOnly",,,"False","T","EveryTick")="",2,1) -> 1 | H35: =RTD("cqg.rtd",,"StudyData", "Close("&$D$12&") when LocalYear("&$D$12&")="&$D$1&" and localMonth("&$D$12&") ="&$E$1&" and LocalDay("&$D$12&")="&$F$1&" and Barix("&$D$12&",reference:=StartOfSession)="&A35&"", "Bar", "", "Close","5","0","PrimaryOnly",,,"False","T","EveryTick") ->  | J35: =RTD("cqg.rtd",,"StudyData", "Close("&$D$12&") when LocalYear("&$D$12&")="&$D$2&" and localMonth("&$D$12&") ="&$E$2&" and LocalDay("&$D$12&")="&$F$2&" and Barix("&$D$12&",reference:=StartOfSession)="&A35&"", "Bar", "", "Close","5","0","PrimaryOnly",,,"False","T","EveryTick") -> 188.87 | K35: -0.01011530398 | L35: =RTD("cqg.rtd",,"StudyData", "Close("&$D$12&") when LocalYear("&$D$12&")="&$D$3&" and localMonth("&$D$12&") ="&$E$3&" and LocalDay("&$D$12&")="&$F$3&" and Barix("&$D$12&",reference:=StartOfSession)="&A35&"", "Bar", "", "Close","5","0","PrimaryOnly",,,"False","T","EveryTick") -> 190.92 | M35: 0.001153644468 | N35: =RTD("cqg.rtd",,"StudyData", "Close("&$D$12&") when LocalYear("&$D$12&")="&$D$4&" and localMonth("&$D$12&") ="&$E$4&" and LocalDay("&$D$12&")="&$F$4&" and Barix("&$D$12&",reference:=StartOfSession)="&A35&"", "Bar", "", "Close","5","0","PrimaryOnly",,,"False","T","EveryTick") -> 192.46 | O35: 0.0009361348034 | P35: =RTD("cqg.rtd",,"StudyData", "Close("&$D$12&") when LocalYear("&$D$12&")="&$D$5&" and localMonth("&$D$12&") ="&$E$5&" and LocalDay("&$D$12&")="&$F$5&" and Barix("&$D$12&",reference:=StartOfSession)="&A35&"", "Bar", "", "Close","5","0","PrimaryOnly",,,"False","T","EveryTick") -> 191.79 | Q35: 0.002928410814 | R35: =RTD("cqg.rtd",,"StudyData", "Close("&$D$12&") when LocalYear("&$D$12&")="&$D$6&" and localMonth("&$D$12&") ="&$E$6&" and LocalDay("&$D$12&")="&$F$6&" and Barix("&$D$12&",reference:=StartOfSession)="&A35&"", "Bar", "", "Close","5","0","PrimaryOnly",,,"False","T","EveryTick") -> 191.44 | S35: -0.001356285863 | T35: =RTD("cqg.rtd",,"StudyData", "Close("&$D$12&") when LocalYear("&$D$12&")="&$D$7&" and localMonth("&$D$12&") ="&$E$7&" and LocalDay("&$D$12&")="&$F$7&" and Barix("&$D$12&",reference:=StartOfSession)="&A35&"", "Bar", "", "Close","5","0","PrimaryOnly",,,"False","T","EveryTick") -> 190.94 | U35: -0.01302594852 | V35: =RTD("cqg.rtd",,"StudyData", "Close("&$D$12&") when LocalYear("&$D$12&")="&$D$8&" and localMonth("&$D$12&") ="&$E$8&" and LocalDay("&$D$12&")="&$F$8&" and Barix("&$D$12&",reference:=StartOfSession)="&A35&"", "Bar", "", "Close","5","0","PrimaryOnly",,,"False","T","EveryTick") -> 193.34 | W35: -0.003299309207 | X35: =RTD("cqg.rtd",,"StudyData", "Close("&$D$12&") when LocalYear("&$D$12&")="&$D$9&" and localMonth("&$D$12&") ="&$E$9&" and LocalDay("&$D$12&")="&$F$9&" and Barix("&$D$12&",reference:=StartOfSession)="&A35&"", "Bar", "", "Close","5","0","PrimaryOnly",,,"False","T","EveryTick") -> 192.83 | Y35: -0.0024830583 | Z35: =RTD("cqg.rtd",,"StudyData", "Close("&$D$12&") when LocalYear("&$D$12&")="&$D$10&" and localMonth("&$D$12&") ="&$E$10&" and LocalDay("&$D$12&")="&$F$10&" and Barix("&$D$12&",reference:=StartOfSession)="&A35&"", "Bar", "", "Close","5","0","PrimaryOnly",,,"False","T","EveryTick") -> 192.67 | AA35: 0.004378877131
A36: 35 | B36: 11:25:00 | C36: 2018-06-04 | D36: 2018 | E36: 6 | F36: 4 | G36: =IF(RTD("cqg.rtd",,"StudyData", "Close(EP) when LocalYear("&$D$12&")="&D36&" and localMonth("&$D$12&") ="&E36&" and LocalDay("&$D$12&")="&F36&" and Barix("&$D$12&",reference:=StartOfSession)=77", "Bar", "", "Close","5","0","PrimaryOnly",,,"False","T","EveryTick")="",2,1) -> 1 | H36: =RTD("cqg.rtd",,"StudyData", "Close("&$D$12&") when LocalYear("&$D$12&")="&$D$1&" and localMonth("&$D$12&") ="&$E$1&" and LocalDay("&$D$12&")="&$F$1&" and Barix("&$D$12&",reference:=StartOfSession)="&A36&"", "Bar", "", "Close","5","0","PrimaryOnly",,,"False","T","EveryTick") ->  | J36: =RTD("cqg.rtd",,"StudyData", "Close("&$D$12&") when LocalYear("&$D$12&")="&$D$2&" and localMonth("&$D$12&") ="&$E$2&" and LocalDay("&$D$12&")="&$F$2&" and Barix("&$D$12&",reference:=StartOfSession)="&A36&"", "Bar", "", "Close","5","0","PrimaryOnly",,,"False","T","EveryTick") -> 188.89 | K36: -0.01001048218 | L36: =RTD("cqg.rtd",,"StudyData", "Close("&$D$12&") when LocalYear("&$D$12&")="&$D$3&" and localMonth("&$D$12&") ="&$E$3&" and LocalDay("&$D$12&")="&$F$3&" and Barix("&$D$12&",reference:=StartOfSession)="&A36&"", "Bar", "", "Close","5","0","PrimaryOnly",,,"False","T","EveryTick") -> 190.83 | M36: 0.0006816990037 | N36: =RTD("cqg.rtd",,"StudyData", "Close("&$D$12&") when LocalYear("&$D$12&")="&$D$4&" and localMonth("&$D$12&") ="&$E$4&" and LocalDay("&$D$12&")="&$F$4&" and Barix("&$D$12&",reference:=StartOfSession)="&A36&"", "Bar", "", "Close","5","0","PrimaryOnly",,,"False","T","EveryTick") -> 192.34 | O36: 0.0003120449345 | P36: =RTD("cqg.rtd",,"StudyData", "Close("&$D$12&") when LocalYear("&$D$12&")="&$D$5&" and localMonth("&$D$12&") ="&$E$5&" and LocalDay("&$D$12&")="&$F$5&" and Barix("&$D$12&",reference:=StartOfSession)="&A36&"", "Bar", "", "Close","5","0","PrimaryOnly",,,"False","T","EveryTick") -> 191.68 | Q36: 0.002353187261 | R36: =RTD("cqg.rtd",,"StudyData", "Close("&$D$12&") when LocalYear("&$D$12&")="&$D$6&" and localMonth("&$D$12&") ="&$E$6&" and LocalDay("&$D$12&")="&$F$6&" and Barix("&$D$12&",reference:=StartOfSession)="&A36&"", "Bar", "", "Close","5","0","PrimaryOnly",,,"False","T","EveryTick") -> 191.42 | S36: -0.001460615545 | T36: =RTD("cqg.rtd",,"StudyData", "Close("&$D$12&") when LocalYear("&$D$12&")="&$D$7&" and localMonth("&$D$12&") ="&$E$7&" and LocalDay("&$D$12&")="&$F$7&" and Barix("&$D$12&",reference:=StartOfSession)="&A36&"", "Bar", "", "Close","5","0","PrimaryOnly",,,"False","T","EveryTick") -> 190.96 | U36: -0.01292256797 | V36: =RTD("cqg.rtd",,"StudyData", "Close("&$D$12&") when LocalYear("&$D$12&")="&$D$8&" and localMonth("&$D$12&") ="&$E$8&" and LocalDay("&$D$12&")="&$F$8&" and Barix("&$D$12&",reference:=StartOfSession)="&A36&"", "Bar", "", "Close","5","0","PrimaryOnly",,,"False","T","EveryTick") -> 193.31 | W36: -0.003453964326 | X36: =RTD("cqg.rtd",,"StudyData", "Close("&$D$12&") when LocalYear("&$D$12&")="&$D$9&" and localMonth("&$D$12&") ="&$E$9&" and LocalDay("&$D$12&")="&$F$9&" and Barix("&$D$12&",reference:=StartOfSession)="&A36&"", "Bar", "", "Close","5","0","PrimaryOnly",,,"False","T","EveryTick") -> 192.8 | Y36: -0.002638249444 | Z36: =RTD("cqg.rtd",,"StudyData", "Close("&$D$12&") when LocalYear("&$D$12&")="&$D$10&" and localMonth("&$D$12&") ="&$E$10&" and LocalDay("&$D$12&")="&$F$10&" and Barix("&$D$12&",reference:=StartOfSession)="&A36&"", "Bar", "", "Close","5","0","PrimaryOnly",,,"False","T","EveryTick") -> 192.93 | AA36: 0.005734243862
A37: 36 | B37: 11:30:00 | H37: =RTD("cqg.rtd",,"StudyData", "Close("&$D$12&") when LocalYear("&$D$12&")="&$D$1&" and localMonth("&$D$12&") ="&$E$1&" and LocalDay("&$D$12&")="&$F$1&" and Barix("&$D$12&",reference:=StartOfSession)="&A37&"", "Bar", "", "Close","5","0","PrimaryOnly",,,"False","T","EveryTick") ->  | J37: =RTD("cqg.rtd",,"StudyData", "Close("&$D$12&") when LocalYear("&$D$12&")="&$D$2&" and localMonth("&$D$12&") ="&$E$2&" and LocalDay("&$D$12&")="&$F$2&" and Barix("&$D$12&",reference:=StartOfSession)="&A37&"", "Bar", "", "Close","5","0","PrimaryOnly",,,"False","T","EveryTick") -> 188.92 | K37: -0.009853249476 | L37: =RTD("cqg.rtd",,"StudyData", "Close("&$D$12&") when LocalYear("&$D$12&")="&$D$3&" and localMonth("&$D$12&") ="&$E$3&" and LocalDay("&$D$12&")="&$F$3&" and Barix("&$D$12&",reference:=StartOfSession)="&A37&"", "Bar", "", "Close","5","0","PrimaryOnly",,,"False","T","EveryTick") -> 190.77 | M37: 0.0003670686943 | N37: =RTD("cqg.rtd",,"StudyData", "Close("&$D$12&") when LocalYear("&$D$12&")="&$D$4&" and localMonth("&$D$12&") ="&$E$4&" and LocalDay("&$D$12&")="&$F$4&" and Barix("&$D$12&",reference:=StartOfSession)="&A37&"", "Bar", "", "Close","5","0","PrimaryOnly",,,"False","T","EveryTick") -> 192.37 | O37: 0.0004680674017 | P37: =RTD("cqg.rtd",,"StudyData", "Close("&$D$12&") when LocalYear("&$D$12&")="&$D$5&" and localMonth("&$D$12&") ="&$E$5&" and LocalDay("&$D$12&")="&$F$5&" and Barix("&$D$12&",reference:=StartOfSession)="&A37&"", "Bar", "", "Close","5","0","PrimaryOnly",,,"False","T","EveryTick") -> 191.71 | Q37: 0.002510066412 | R37: =RTD("cqg.rtd",,"StudyData", "Close("&$D$12&") when LocalYear("&$D$12&")="&$D$6&" and localMonth("&$D$12&") ="&$E$6&" and LocalDay("&$D$12&")="&$F$6&" and Barix("&$D$12&",reference:=StartOfSession)="&A37&"", "Bar", "", "Close","5","0","PrimaryOnly",,,"False","T","EveryTick") -> 191.62 | S37: -0.0004173187272 | T37: =RTD("cqg.rtd",,"StudyData", "Close("&$D$12&") when LocalYear("&$D$12&")="&$D$7&" and localMonth("&$D$12&") ="&$E$7&" and LocalDay("&$D$12&")="&$F$7&" and Barix("&$D$12&",reference:=StartOfSession)="&A37&"", "Bar", "", "Close","5","0","PrimaryOnly",,,"False","T","EveryTick") -> 191.08 | U37: -0.01230228471 | V37: =RTD("cqg.rtd",,"StudyData", "Close("&$D$12&") when LocalYear("&$D$12&")="&$D$8&" and localMonth("&$D$12&") ="&$E$8&" and LocalDay("&$D$12&")="&$F$8&" and Barix("&$D$12&",reference:=StartOfSession)="&A37&"", "Bar", "", "Close","5","0","PrimaryOnly",,,"False","T","EveryTick") -> 193.16 | W37: -0.004227239922 | X37: =RTD("cqg.rtd",,"StudyData", "Close("&$D$12&") when LocalYear("&$D$12&")="&$D$9&" and localMonth("&$D$12&") ="&$E$9&" and LocalDay("&$D$12&")="&$F$9&" and Barix("&$D$12&",reference:=StartOfSession)="&A37&"", "Bar", "", "Close","5","0","PrimaryOnly",,,"False","T","EveryTick") -> 192.83 | Y37: -0.0024830583 | Z37: =RTD("cqg.rtd",,"StudyData", "Close("&$D$12&") when LocalYear("&$D$12&")="&$D$10&" and localMonth("&$D$12&") ="&$E$10&" and LocalDay("&$D$12&")="&$F$10&" and Barix("&$D$12&",reference:=StartOfSession)="&A37&"", "Bar", "", "Close","5","0","PrimaryOnly",,,"False","T","EveryTick") -> 192.7 | AA37: 0.0045352656
A38: 37 | B38: 11:35:00 | C38: -40 | D38: =RTD("cqg.rtd",,"StudyData", $D$12, "Tick", "FlatTicks=0", "Tick","D",C38,"PrimaryOnly") -> 187.86 | F38: EP | H38: =RTD("cqg.rtd",,"StudyData", "Close("&$D$12&") when LocalYear("&$D$12&")="&$D$1&" and localMonth("&$D$12&") ="&$E$1&" and LocalDay("&$D$12&")="&$F$1&" and Barix("&$D$12&",reference:=StartOfSession)="&A38&"", "Bar", "", "Close","5","0","PrimaryOnly",,,"False","T","EveryTick") ->  | J38: =RTD("cqg.rtd",,"StudyData", "Close("&$D$12&") when LocalYear("&$D$12&")="&$D$2&" and localMonth("&$D$12&") ="&$E$2&" and LocalDay("&$D$12&")="&$F$2&" and Barix("&$D$12&",reference:=StartOfSession)="&A38&"", "Bar", "", "Close","5","0","PrimaryOnly",,,"False","T","EveryTick") -> 188.94 | K38: -0.009748427673 | L38: =RTD("cqg.rtd",,"StudyData", "Close("&$D$12&") when LocalYear("&$D$12&")="&$D$3&" and localMonth("&$D$12&") ="&$E$3&" and LocalDay("&$D$12&")="&$F$3&" and Barix("&$D$12&",reference:=StartOfSession)="&A38&"", "Bar", "", "Close","5","0","PrimaryOnly",,,"False","T","EveryTick") -> 190.78 | M38: 0.0004195070792 | N38: =RTD("cqg.rtd",,"StudyData", "Close("&$D$12&") when LocalYear("&$D$12&")="&$D$4&" and localMonth("&$D$12&") ="&$E$4&" and LocalDay("&$D$12&")="&$F$4&" and Barix("&$D$12&",reference:=StartOfSession)="&A38&"", "Bar", "", "Close","5","0","PrimaryOnly",,,"False","T","EveryTick") -> 192.33 | O38: 0.0002600374454 | P38: =RTD("cqg.rtd",,"StudyData", "Close("&$D$12&") when LocalYear("&$D$12&")="&$D$5&" and localMonth("&$D$12&") ="&$E$5&" and LocalDay("&$D$12&")="&$F$5&" and Barix("&$D$12&",reference:=StartOfSession)="&A38&"", "Bar", "", "Close","5","0","PrimaryOnly",,,"False","T","EveryTick") -> 191.76 | Q38: 0.002771531663 | R38: =RTD("cqg.rtd",,"StudyData", "Close("&$D$12&") when LocalYear("&$D$12&")="&$D$6&" and localMonth("&$D$12&") ="&$E$6&" and LocalDay("&$D$12&")="&$F$6&" and Barix("&$D$12&",reference:=StartOfSession)="&A38&"", "Bar", "", "Close","5","0","PrimaryOnly",,,"False","T","EveryTick") -> 191.66 | S38: -0.0002086593636 | T38: =RTD("cqg.rtd",,"StudyData", "Close("&$D$12&") when LocalYear("&$D$12&")="&$D$7&" and localMonth("&$D$12&") ="&$E$7&" and LocalDay("&$D$12&")="&$F$7&" and Barix("&$D$12&",reference:=StartOfSession)="&A38&"", "Bar", "", "Close","5","0","PrimaryOnly",,,"False","T","EveryTick") -> 190.94 | U38: -0.01302594852 | V38: =RTD("cqg.rtd",,"StudyData", "Close("&$D$12&") when LocalYear("&$D$12&")="&$D$8&" and localMonth("&$D$12&") ="&$E$8&" and LocalDay("&$D$12&")="&$F$8&" and Barix("&$D$12&",reference:=StartOfSession)="&A38&"", "Bar", "", "Close","5","0","PrimaryOnly",,,"False","T","EveryTick") -> 193.2 | W38: -0.004021033096 | X38: =RTD("cqg.rtd",,"StudyData", "Close("&$D$12&") when LocalYear("&$D$12&")="&$D$9&" and localMonth("&$D$12&") ="&$E$9&" and LocalDay("&$D$12&")="&$F$9&" and Barix("&$D$12&",reference:=StartOfSession)="&A38&"", "Bar", "", "Close","5","0","PrimaryOnly",,,"False","T","EveryTick") -> 192.79 | Y38: -0.002689979825 | Z38: =RTD("cqg.rtd",,"StudyData", "Close("&$D$12&") when LocalYear("&$D$12&")="&$D$10&" and localMonth("&$D$12&") ="&$E$10&" and LocalDay("&$D$12&")="&$F$10&" and Barix("&$D$12&",reference:=StartOfSession)="&A38&"", "Bar", "", "Close","5","0","PrimaryOnly",,,"False","T","EveryTick") -> 192.94 | AA38: 0.005786373351
A39: 38 | B39: 11:40:00 | C39: =C38+1 -> -39 | D39: =RTD("cqg.rtd",,"StudyData", $D$12, "Tick", "FlatTicks=0", "Tick","D",C39,"PrimaryOnly") -> 187.87 | F39: ENQ | H39: =RTD("cqg.rtd",,"StudyData", "Close("&$D$12&") when LocalYear("&$D$12&")="&$D$1&" and localMonth("&$D$12&") ="&$E$1&" and LocalDay("&$D$12&")="&$F$1&" and Barix("&$D$12&",reference:=StartOfSession)="&A39&"", "Bar", "", "Close","5","0","PrimaryOnly",,,"False","T","EveryTick") ->  | J39: =RTD("cqg.rtd",,"StudyData", "Close("&$D$12&") when LocalYear("&$D$12&")="&$D$2&" and localMonth("&$D$12&") ="&$E$2&" and LocalDay("&$D$12&")="&$F$2&" and Barix("&$D$12&",reference:=StartOfSession)="&A39&"", "Bar", "", "Close","5","0","PrimaryOnly",,,"False","T","EveryTick") -> 188.89 | K39: -0.01001048218 | L39: =RTD("cqg.rtd",,"StudyData", "Close("&$D$12&") when LocalYear("&$D$12&")="&$D$3&" and localMonth("&$D$12&") ="&$E$3&" and LocalDay("&$D$12&")="&$F$3&" and Barix("&$D$12&",reference:=StartOfSession)="&A39&"", "Bar", "", "Close","5","0","PrimaryOnly",,,"False","T","EveryTick") -> 190.76 | M39: 0.0003146303094 | N39: =RTD("cqg.rtd",,"StudyData", "Close("&$D$12&") when LocalYear("&$D$12&")="&$D$4&" and localMonth("&$D$12&") ="&$E$4&" and LocalDay("&$D$12&")="&$F$4&" and Barix("&$D$12&",reference:=StartOfSession)="&A39&"", "Bar", "", "Close","5","0","PrimaryOnly",,,"False","T","EveryTick") -> 192.31 | O39: 0.0001560224672 | P39: =RTD("cqg.rtd",,"StudyData", "Close("&$D$12&") when LocalYear("&$D$12&")="&$D$5&" and localMonth("&$D$12&") ="&$E$5&" and LocalDay("&$D$12&")="&$F$5&" and Barix("&$D$12&",reference:=StartOfSession)="&A39&"", "Bar", "", "Close","5","0","PrimaryOnly",,,"False","T","EveryTick") -> 191.76 | Q39: 0.002771531663 | R39: =RTD("cqg.rtd",,"StudyData", "Close("&$D$12&") when LocalYear("&$D$12&")="&$D$6&" and localMonth("&$D$12&") ="&$E$6&" and LocalDay("&$D$12&")="&$F$6&" and Barix("&$D$12&",reference:=StartOfSession)="&A39&"", "Bar", "", "Close","5","0","PrimaryOnly",,,"False","T","EveryTick") -> 191.62 | S39: -0.0004173187272 | T39: =RTD("cqg.rtd",,"StudyData", "Close("&$D$12&") when LocalYear("&$D$12&")="&$D$7&" and localMonth("&$D$12&") ="&$E$7&" and LocalDay("&$D$12&")="&$F$7&" and Barix("&$D$12&",reference:=StartOfSession)="&A39&"", "Bar", "", "Close","5","0","PrimaryOnly",,,"False","T","EveryTick") -> 190.86 | U39: -0.01343947069 | V39: =RTD("cqg.rtd",,"StudyData", "Close("&$D$12&") when LocalYear("&$D$12&")="&$D$8&" and localMonth("&$D$12&") ="&$E$8&" and LocalDay("&$D$12&")="&$F$8&" and Barix("&$D$12&",reference:=StartOfSession)="&A39&"", "Bar", "", "Close","5","0","PrimaryOnly",,,"False","T","EveryTick") -> 193.3 | W39: -0.003505516033 | X39: =RTD("cqg.rtd",,"StudyData", "Close("&$D$12&") when LocalYear("&$D$12&")="&$D$9&" and localMonth("&$D$12&") ="&$E$9&" and LocalDay("&$D$12&")="&$F$9&" and Barix("&$D$12&",reference:=StartOfSession)="&A39&"", "Bar", "", "Close","5","0","PrimaryOnly",,,"False","T","EveryTick") -> 192.75 | Y39: -0.00289690135 | Z39: =RTD("cqg.rtd",,"StudyData", "Close("&$D$12&") when LocalYear("&$D$12&")="&$D$10&" and localMonth("&$D$12&") ="&$E$10&" and LocalDay("&$D$12&")="&$F$10&" and Barix("&$D$12&",reference:=StartOfSession)="&A39&"", "Bar", "", "Close","5","0","PrimaryOnly",,,"False","T","EveryTick") -> 193.09 | AA39: 0.006568315696
A40: 39 | B40: 11:45:00 | C40: =C39+1 -> -38 | D40: =RTD("cqg.rtd",,"StudyData", $D$12, "Tick", "FlatTicks=0", "Tick","D",C40,"PrimaryOnly") -> 187.88 | F40: YM | H40: =RTD("cqg.rtd",,"StudyData", "Close("&$D$12&") when LocalYear("&$D$12&")="&$D$1&" and localMonth("&$D$12&") ="&$E$1&" and LocalDay("&$D$12&")="&$F$1&" and Barix("&$D$12&",reference:=StartOfSession)="&A40&"", "Bar", "", "Close","5","0","PrimaryOnly",,,"False","T","EveryTick") ->  | J40: =RTD("cqg.rtd",,"StudyData", "Close("&$D$12&") when LocalYear("&$D$12&")="&$D$2&" and localMonth("&$D$12&") ="&$E$2&" and LocalDay("&$D$12&")="&$F$2&" and Barix("&$D$12&",reference:=StartOfSession)="&A40&"", "Bar", "", "Close","5","0","PrimaryOnly",,,"False","T","EveryTick") -> 188.92 | K40: -0.009853249476 | L40: =RTD("cqg.rtd",,"StudyData", "Close("&$D$12&") when LocalYear("&$D$12&")="&$D$3&" and localMonth("&$D$12&") ="&$E$3&" and LocalDay("&$D$12&")="&$F$3&" and Barix("&$D$12&",reference:=StartOfSession)="&A40&"", "Bar", "", "Close","5","0","PrimaryOnly",,,"False","T","EveryTick") -> 190.64 | M40: -0.0003146303094 | N40: =RTD("cqg.rtd",,"StudyData", "Close("&$D$12&") when LocalYear("&$D$12&")="&$D$4&" and localMonth("&$D$12&") ="&$E$4&" and LocalDay("&$D$12&")="&$F$4&" and Barix("&$D$12&",reference:=StartOfSession)="&A40&"", "Bar", "", "Close","5","0","PrimaryOnly",,,"False","T","EveryTick") -> 192.2 | O40: -0.0004160599126 | P40: =RTD("cqg.rtd",,"StudyData", "Close("&$D$12&") when LocalYear("&$D$12&")="&$D$5&" and localMonth("&$D$12&") ="&$E$5&" and LocalDay("&$D$12&")="&$F$5&" and Barix("&$D$12&",reference:=StartOfSession)="&A40&"", "Bar", "", "Close","5","0","PrimaryOnly",,,"False","T","EveryTick") -> 191.77 | Q40: 0.002823824714 | R40: =RTD("cqg.rtd",,"StudyData", "Close("&$D$12&") when LocalYear("&$D$12&")="&$D$6&" and localMonth("&$D$12&") ="&$E$6&" and LocalDay("&$D$12&")="&$F$6&" and Barix("&$D$12&",reference:=StartOfSession)="&A40&"", "Bar", "", "Close","5","0","PrimaryOnly",,,"False","T","EveryTick") -> 191.67 | S40: -0.0001564945227 | T40: =RTD("cqg.rtd",,"StudyData", "Close("&$D$12&") when LocalYear("&$D$12&")="&$D$7&" and localMonth("&$D$12&") ="&$E$7&" and LocalDay("&$D$12&")="&$F$7&" and Barix("&$D$12&",reference:=StartOfSession)="&A40&"", "Bar", "", "Close","5","0","PrimaryOnly",,,"False","T","EveryTick") -> 190.92 | U40: -0.01312932906 | V40: =RTD("cqg.rtd",,"StudyData", "Close("&$D$12&") when LocalYear("&$D$12&")="&$D$8&" and localMonth("&$D$12&") ="&$E$8&" and LocalDay("&$D$12&")="&$F$8&" and Barix("&$D$12&",reference:=StartOfSession)="&A40&"", "Bar", "", "Close","5","0","PrimaryOnly",,,"False","T","EveryTick") -> 193.01 | W40: -0.005000515517 | X40: =RTD("cqg.rtd",,"StudyData", "Close("&$D$12&") when LocalYear("&$D$12&")="&$D$9&" and localMonth("&$D$12&") ="&$E$9&" and LocalDay("&$D$12&")="&$F$9&" and Barix("&$D$12&",reference:=StartOfSession)="&A40&"", "Bar", "", "Close","5","0","PrimaryOnly",,,"False","T","EveryTick") -> 192.76 | Y40: -0.002845170969 | Z40: =RTD("cqg.rtd",,"StudyData", "Close("&$D$12&") when LocalYear("&$D$12&")="&$D$10&" and localMonth("&$D$12&") ="&$E$10&" and LocalDay("&$D$12&")="&$F$10&" and Barix("&$D$12&",reference:=StartOfSession)="&A40&"", "Bar", "", "Close","5","0","PrimaryOnly",,,"False","T","EveryTick") -> 192.94 | AA40: 0.005786373351
A41: 40 | B41: 11:50:00 | C41: -37 | D41: =RTD("cqg.rtd",,"StudyData", $D$12, "Tick", "FlatTicks=0", "Tick","D",C41,"PrimaryOnly") -> 187.89 | F41: RTY | H41: =RTD("cqg.rtd",,"StudyData", "Close("&$D$12&") when LocalYear("&$D$12&")="&$D$1&" and localMonth("&$D$12&") ="&$E$1&" and LocalDay("&$D$12&")="&$F$1&" and Barix("&$D$12&",reference:=StartOfSession)="&A41&"", "Bar", "", "Close","5","0","PrimaryOnly",,,"False","T","EveryTick") ->  | J41: =RTD("cqg.rtd",,"StudyData", "Close("&$D$12&") when LocalYear("&$D$12&")="&$D$2&" and localMonth("&$D$12&") ="&$E$2&" and LocalDay("&$D$12&")="&$F$2&" and Barix("&$D$12&",reference:=StartOfSession)="&A41&"", "Bar", "", "Close","5","0","PrimaryOnly",,,"False","T","EveryTick") -> 188.73 | K41: -0.0108490566 | L41: =RTD("cqg.rtd",,"StudyData", "Close("&$D$12&") when LocalYear("&$D$12&")="&$D$3&" and localMonth("&$D$12&") ="&$E$3&" and LocalDay("&$D$12&")="&$F$3&" and Barix("&$D$12&",reference:=StartOfSession)="&A41&"", "Bar", "", "Close","5","0","PrimaryOnly",,,"False","T","EveryTick") -> 190.87 | M41: 0.0008914525433 | N41: =RTD("cqg.rtd",,"StudyData", "Close("&$D$12&") when LocalYear("&$D$12&")="&$D$4&" and localMonth("&$D$12&") ="&$E$4&" and LocalDay("&$D$12&")="&$F$4&" and Barix("&$D$12&",reference:=StartOfSession)="&A41&"", "Bar", "", "Close","5","0","PrimaryOnly",,,"False","T","EveryTick") -> 192.28 | O41: 0 | P41: =RTD("cqg.rtd",,"StudyData", "Close("&$D$12&") when LocalYear("&$D$12&")="&$D$5&" and localMonth("&$D$12&") ="&$E$5&" and LocalDay("&$D$12&")="&$F$5&" and Barix("&$D$12&",reference:=StartOfSession)="&A41&"", "Bar", "", "Close","5","0","PrimaryOnly",,,"False","T","EveryTick") -> 191.77 | Q41: 0.002823824714 | R41: =RTD("cqg.rtd",,"StudyData", "Close("&$D$12&") when LocalYear("&$D$12&")="&$D$6&" and localMonth("&$D$12&") ="&$E$6&" and LocalDay("&$D$12&")="&$F$6&" and Barix("&$D$12&",reference:=StartOfSession)="&A41&"", "Bar", "", "Close","5","0","PrimaryOnly",,,"False","T","EveryTick") -> 191.81 | S41: 0.0005738132499 | T41: =RTD("cqg.rtd",,"StudyData", "Close("&$D$12&") when LocalYear("&$D$12&")="&$D$7&" and localMonth("&$D$12&") ="&$E$7&" and LocalDay("&$D$12&")="&$F$7&" and Barix("&$D$12&",reference:=StartOfSession)="&A41&"", "Bar", "", "Close","5","0","PrimaryOnly",,,"False","T","EveryTick") -> 191.08 | U41: -0.01230228471 | V41: =RTD("cqg.rtd",,"StudyData", "Close("&$D$12&") when LocalYear("&$D$12&")="&$D$8&" and localMonth("&$D$12&") ="&$E$8&" and LocalDay("&$D$12&")="&$F$8&" and Barix("&$D$12&",reference:=StartOfSession)="&A41&"", "Bar", "", "Close","5","0","PrimaryOnly",,,"False","T","EveryTick") -> 193.07 | W41: -0.004691205279 | X41: =RTD("cqg.rtd",,"StudyData", "Close("&$D$12&") when LocalYear("&$D$12&")="&$D$9&" and localMonth("&$D$12&") ="&$E$9&" and LocalDay("&$D$12&")="&$F$9&" and Barix("&$D$12&",reference:=StartOfSession)="&A41&"", "Bar", "", "Close","5","0","PrimaryOnly",,,"False","T","EveryTick") -> 192.92 | Y41: -0.002017484869 | Z41: =RTD("cqg.rtd",,"StudyData", "Close("&$D$12&") when LocalYear("&$D$12&")="&$D$10&" and localMonth("&$D$12&") ="&$E$10&" and LocalDay("&$D$12&")="&$F$10&" and Barix("&$D$12&",reference:=StartOfSession)="&A41&"", "Bar", "", "Close","5","0","PrimaryOnly",,,"False","T","EveryTick") -> 193.1 | AA41: 0.006620445186
A42: 41 | B42: 11:55:00 | C42: -36 | D42: =RTD("cqg.rtd",,"StudyData", $D$12, "Tick", "FlatTicks=0", "Tick","D",C42,"PrimaryOnly") -> 187.9 | F42: EMD | H42: =RTD("cqg.rtd",,"StudyData", "Close("&$D$12&") when LocalYear("&$D$12&")="&$D$1&" and localMonth("&$D$12&") ="&$E$1&" and LocalDay("&$D$12&")="&$F$1&" and Barix("&$D$12&",reference:=StartOfSession)="&A42&"", "Bar", "", "Close","5","0","PrimaryOnly",,,"False","T","EveryTick") ->  | J42: =RTD("cqg.rtd",,"StudyData", "Close("&$D$12&") when LocalYear("&$D$12&")="&$D$2&" and localMonth("&$D$12&") ="&$E$2&" and LocalDay("&$D$12&")="&$F$2&" and Barix("&$D$12&",reference:=StartOfSession)="&A42&"", "Bar", "", "Close","5","0","PrimaryOnly",,,"False","T","EveryTick") -> 188.84 | K42: -0.01027253669 | L42: =RTD("cqg.rtd",,"StudyData", "Close("&$D$12&") when LocalYear("&$D$12&")="&$D$3&" and localMonth("&$D$12&") ="&$E$3&" and LocalDay("&$D$12&")="&$F$3&" and Barix("&$D$12&",reference:=StartOfSession)="&A42&"", "Bar", "", "Close","5","0","PrimaryOnly",,,"False","T","EveryTick") -> 190.76 | M42: 0.0003146303094 | N42: =RTD("cqg.rtd",,"StudyData", "Close("&$D$12&") when LocalYear("&$D$12&")="&$D$4&" and localMonth("&$D$12&") ="&$E$4&" and LocalDay("&$D$12&")="&$F$4&" and Barix("&$D$12&",reference:=StartOfSession)="&A42&"", "Bar", "", "Close","5","0","PrimaryOnly",,,"False","T","EveryTick") -> 192.18 | O42: -0.0005200748908 | P42: =RTD("cqg.rtd",,"StudyData", "Close("&$D$12&") when LocalYear("&$D$12&")="&$D$5&" and localMonth("&$D$12&") ="&$E$5&" and LocalDay("&$D$12&")="&$F$5&" and Barix("&$D$12&",reference:=StartOfSession)="&A42&"", "Bar", "", "Close","5","0","PrimaryOnly",,,"False","T","EveryTick") -> 191.82 | Q42: 0.003085289965 | R42: =RTD("cqg.rtd",,"StudyData", "Close("&$D$12&") when LocalYear("&$D$12&")="&$D$6&" and localMonth("&$D$12&") ="&$E$6&" and LocalDay("&$D$12&")="&$F$6&" and Barix("&$D$12&",reference:=StartOfSession)="&A42&"", "Bar", "", "Close","5","0","PrimaryOnly",,,"False","T","EveryTick") -> 191.72 | S42: 0.0001043296818 | T42: =RTD("cqg.rtd",,"StudyData", "Close("&$D$12&") when LocalYear("&$D$12&")="&$D$7&" and localMonth("&$D$12&") ="&$E$7&" and LocalDay("&$D$12&")="&$F$7&" and Barix("&$D$12&",reference:=StartOfSession)="&A42&"", "Bar", "", "Close","5","0","PrimaryOnly",,,"False","T","EveryTick") -> 191.07 | U42: -0.01235397498 | V42: =RTD("cqg.rtd",,"StudyData", "Close("&$D$12&") when LocalYear("&$D$12&")="&$D$8&" and localMonth("&$D$12&") ="&$E$8&" and LocalDay("&$D$12&")="&$F$8&" and Barix("&$D$12&",reference:=StartOfSession)="&A42&"", "Bar", "", "Close","5","0","PrimaryOnly",,,"False","T","EveryTick") -> 193.22 | W42: -0.003917929683 | X42: =RTD("cqg.rtd",,"StudyData", "Close("&$D$12&") when LocalYear("&$D$12&")="&$D$9&" and localMonth("&$D$12&") ="&$E$9&" and LocalDay("&$D$12&")="&$F$9&" and Barix("&$D$12&",reference:=StartOfSession)="&A42&"", "Bar", "", "Close","5","0","PrimaryOnly",,,"False","T","EveryTick") -> 192.97 | Y42: -0.001758832963 | Z42: =RTD("cqg.rtd",,"StudyData", "Close("&$D$12&") when LocalYear("&$D$12&")="&$D$10&" and localMonth("&$D$12&") ="&$E$10&" and LocalDay("&$D$12&")="&$F$10&" and Barix("&$D$12&",reference:=StartOfSession)="&A42&"", "Bar", "", "Close","5","0","PrimaryOnly",,,"False","T","EveryTick") -> 193.1 | AA42: 0.006620445186
A43: 42 | B43: 12:00:00 | C43: -35 | D43: =RTD("cqg.rtd",,"StudyData", $D$12, "Tick", "FlatTicks=0", "Tick","D",C43,"PrimaryOnly") -> 187.89 | F43: FTS | H43: =RTD("cqg.rtd",,"StudyData", "Close("&$D$12&") when LocalYear("&$D$12&")="&$D$1&" and localMonth("&$D$12&") ="&$E$1&" and LocalDay("&$D$12&")="&$F$1&" and Barix("&$D$12&",reference:=StartOfSession)="&A43&"", "Bar", "", "Close","5","0","PrimaryOnly",,,"False","T","EveryTick") ->  | J43: =RTD("cqg.rtd",,"StudyData", "Close("&$D$12&") when LocalYear("&$D$12&")="&$D$2&" and localMonth("&$D$12&") ="&$E$2&" and LocalDay("&$D$12&")="&$F$2&" and Barix("&$D$12&",reference:=StartOfSession)="&A43&"", "Bar", "", "Close","5","0","PrimaryOnly",,,"False","T","EveryTick") -> 188.79 | K43: -0.01053459119 | L43: =RTD("cqg.rtd",,"StudyData", "Close("&$D$12&") when LocalYear("&$D$12&")="&$D$3&" and localMonth("&$D$12&") ="&$E$3&" and LocalDay("&$D$12&")="&$F$3&" and Barix("&$D$12&",reference:=StartOfSession)="&A43&"", "Bar", "", "Close","5","0","PrimaryOnly",,,"False","T","EveryTick") -> 190.76 | M43: 0.0003146303094 | N43: =RTD("cqg.rtd",,"StudyData", "Close("&$D$12&") when LocalYear("&$D$12&")="&$D$4&" and localMonth("&$D$12&") ="&$E$4&" and LocalDay("&$D$12&")="&$F$4&" and Barix("&$D$12&",reference:=StartOfSession)="&A43&"", "Bar", "", "Close","5","0","PrimaryOnly",,,"False","T","EveryTick") -> 192.18 | O43: -0.0005200748908 | P43: =RTD("cqg.rtd",,"StudyData", "Close("&$D$12&") when LocalYear("&$D$12&")="&$D$5&" and localMonth("&$D$12&") ="&$E$5&" and LocalDay("&$D$12&")="&$F$5&" and Barix("&$D$12&",reference:=StartOfSession)="&A43&"", "Bar", "", "Close","5","0","PrimaryOnly",,,"False","T","EveryTick") -> 191.95 | Q43: 0.003765099618 | R43: =RTD("cqg.rtd",,"StudyData", "Close("&$D$12&") when LocalYear("&$D$12&")="&$D$6&" and localMonth("&$D$12&") ="&$E$6&" and LocalDay("&$D$12&")="&$F$6&" and Barix("&$D$12&",reference:=StartOfSession)="&A43&"", "Bar", "", "Close","5","0","PrimaryOnly",,,"False","T","EveryTick") -> 191.55 | S43: -0.0007824726135 | T43: =RTD("cqg.rtd",,"StudyData", "Close("&$D$12&") when LocalYear("&$D$12&")="&$D$7&" and localMonth("&$D$12&") ="&$E$7&" and LocalDay("&$D$12&")="&$F$7&" and Barix("&$D$12&",reference:=StartOfSession)="&A43&"", "Bar", "", "Close","5","0","PrimaryOnly",,,"False","T","EveryTick") -> 191.07 | U43: -0.01235397498 | V43: =RTD("cqg.rtd",,"StudyData", "Close("&$D$12&") when LocalYear("&$D$12&")="&$D$8&" and localMonth("&$D$12&") ="&$E$8&" and LocalDay("&$D$12&")="&$F$8&" and Barix("&$D$12&",reference:=StartOfSession)="&A43&"", "Bar", "", "Close","5","0","PrimaryOnly",,,"False","T","EveryTick") -> 193.34 | W43: -0.003299309207 | X43: =RTD("cqg.rtd",,"StudyData", "Close("&$D$12&") when LocalYear("&$D$12&")="&$D$9&" and localMonth("&$D$12&") ="&$E$9&" and LocalDay("&$D$12&")="&$F$9&" and Barix("&$D$12&",reference:=StartOfSession)="&A43&"", "Bar", "", "Close","5","0","PrimaryOnly",,,"False","T","EveryTick") -> 193.03 | Y43: -0.001448450675 | Z43: =RTD("cqg.rtd",,"StudyData", "Close("&$D$12&") when LocalYear("&$D$12&")="&$D$10&" and localMonth("&$D$12&") ="&$E$10&" and LocalDay("&$D$12&")="&$F$10&" and Barix("&$D$12&",reference:=StartOfSession)="&A43&"", "Bar", "", "Close","5","0","PrimaryOnly",,,"False","T","EveryTick") -> 193.03 | AA43: 0.006255538758
A44: 43 | B44: 12:05:00 | C44: -34 | D44: =RTD("cqg.rtd",,"StudyData", $D$12, "Tick", "FlatTicks=0", "Tick","D",C44,"PrimaryOnly") -> 187.87 | F44: BTC | H44: =RTD("cqg.rtd",,"StudyData", "Close("&$D$12&") when LocalYear("&$D$12&")="&$D$1&" and localMonth("&$D$12&") ="&$E$1&" and LocalDay("&$D$12&")="&$F$1&" and Barix("&$D$12&",reference:=StartOfSession)="&A44&"", "Bar", "", "Close","5","0","PrimaryOnly",,,"False","T","EveryTick") ->  | J44: =RTD("cqg.rtd",,"StudyData", "Close("&$D$12&") when LocalYear("&$D$12&")="&$D$2&" and localMonth("&$D$12&") ="&$E$2&" and LocalDay("&$D$12&")="&$F$2&" and Barix("&$D$12&",reference:=StartOfSession)="&A44&"", "Bar", "", "Close","5","0","PrimaryOnly",,,"False","T","EveryTick") -> 189.03 | K44: -0.00927672956 | L44: =RTD("cqg.rtd",,"StudyData", "Close("&$D$12&") when LocalYear("&$D$12&")="&$D$3&" and localMonth("&$D$12&") ="&$E$3&" and LocalDay("&$D$12&")="&$F$3&" and Barix("&$D$12&",reference:=StartOfSession)="&A44&"", "Bar", "", "Close","5","0","PrimaryOnly",,,"False","T","EveryTick") -> 190.84 | M44: 0.0007341373886 | N44: =RTD("cqg.rtd",,"StudyData", "Close("&$D$12&") when LocalYear("&$D$12&")="&$D$4&" and localMonth("&$D$12&") ="&$E$4&" and LocalDay("&$D$12&")="&$F$4&" and Barix("&$D$12&",reference:=StartOfSession)="&A44&"", "Bar", "", "Close","5","0","PrimaryOnly",,,"False","T","EveryTick") -> 192.05 | O44: -0.001196172249 | P44: =RTD("cqg.rtd",,"StudyData", "Close("&$D$12&") when LocalYear("&$D$12&")="&$D$5&" and localMonth("&$D$12&") ="&$E$5&" and LocalDay("&$D$12&")="&$F$5&" and Barix("&$D$12&",reference:=StartOfSession)="&A44&"", "Bar", "", "Close","5","0","PrimaryOnly",,,"False","T","EveryTick") -> 192.2 | Q44: 0.005072425875 | R44: =RTD("cqg.rtd",,"StudyData", "Close("&$D$12&") when LocalYear("&$D$12&")="&$D$6&" and localMonth("&$D$12&") ="&$E$6&" and LocalDay("&$D$12&")="&$F$6&" and Barix("&$D$12&",reference:=StartOfSession)="&A44&"", "Bar", "", "Close","5","0","PrimaryOnly",,,"False","T","EveryTick") -> 191.55 | S44: -0.0007824726135 | T44: =RTD("cqg.rtd",,"StudyData", "Close("&$D$12&") when LocalYear("&$D$12&")="&$D$7&" and localMonth("&$D$12&") ="&$E$7&" and LocalDay("&$D$12&")="&$F$7&" and Barix("&$D$12&",reference:=StartOfSession)="&A44&"", "Bar", "", "Close","5","0","PrimaryOnly",,,"False","T","EveryTick") -> 191.12 | U44: -0.01209552362 | V44: =RTD("cqg.rtd",,"StudyData", "Close("&$D$12&") when LocalYear("&$D$12&")="&$D$8&" and localMonth("&$D$12&") ="&$E$8&" and LocalDay("&$D$12&")="&$F$8&" and Barix("&$D$12&",reference:=StartOfSession)="&A44&"", "Bar", "", "Close","5","0","PrimaryOnly",,,"False","T","EveryTick") -> 193.2 | W44: -0.004021033096 | X44: =RTD("cqg.rtd",,"StudyData", "Close("&$D$12&") when LocalYear("&$D$12&")="&$D$9&" and localMonth("&$D$12&") ="&$E$9&" and LocalDay("&$D$12&")="&$F$9&" and Barix("&$D$12&",reference:=StartOfSession)="&A44&"", "Bar", "", "Close","5","0","PrimaryOnly",,,"False","T","EveryTick") -> 193.01 | Y44: -0.001551911438 | Z44: =RTD("cqg.rtd",,"StudyData", "Close("&$D$12&") when LocalYear("&$D$12&")="&$D$10&" and localMonth("&$D$12&") ="&$E$10&" and LocalDay("&$D$12&")="&$F$10&" and Barix("&$D$12&",reference:=StartOfSession)="&A44&"", "Bar", "", "Close","5","0","PrimaryOnly",,,"False","T","EveryTick") -> 193.11 | AA44: 0.006672574675
A45: 44 | B45: 12:10:00 | C45: -33 | D45: =RTD("cqg.rtd",,"StudyData", $D$12, "Tick", "FlatTicks=0", "Tick","D",C45,"PrimaryOnly") -> 187.89 | H45: =RTD("cqg.rtd",,"StudyData", "Close("&$D$12&") when LocalYear("&$D$12&")="&$D$1&" and localMonth("&$D$12&") ="&$E$1&" and LocalDay("&$D$12&")="&$F$1&" and Barix("&$D$12&",reference:=StartOfSession)="&A45&"", "Bar", "", "Close","5","0","PrimaryOnly",,,"False","T","EveryTick") ->  | J45: =RTD("cqg.rtd",,"StudyData", "Close("&$D$12&") when LocalYear("&$D$12&")="&$D$2&" and localMonth("&$D$12&") ="&$E$2&" and LocalDay("&$D$12&")="&$F$2&" and Barix("&$D$12&",reference:=StartOfSession)="&A45&"", "Bar", "", "Close","5","0","PrimaryOnly",,,"False","T","EveryTick") -> 188.96 | K45: -0.00964360587 | L45: =RTD("cqg.rtd",,"StudyData", "Close("&$D$12&") when LocalYear("&$D$12&")="&$D$3&" and localMonth("&$D$12&") ="&$E$3&" and LocalDay("&$D$12&")="&$F$3&" and Barix("&$D$12&",reference:=StartOfSession)="&A45&"", "Bar", "", "Close","5","0","PrimaryOnly",,,"False","T","EveryTick") -> 190.96 | M45: 0.001363398007 | N45: =RTD("cqg.rtd",,"StudyData", "Close("&$D$12&") when LocalYear("&$D$12&")="&$D$4&" and localMonth("&$D$12&") ="&$E$4&" and LocalDay("&$D$12&")="&$F$4&" and Barix("&$D$12&",reference:=StartOfSession)="&A45&"", "Bar", "", "Close","5","0","PrimaryOnly",,,"False","T","EveryTick") -> 191.99 | O45: -0.001508217183 | P45: =RTD("cqg.rtd",,"StudyData", "Close("&$D$12&") when LocalYear("&$D$12&")="&$D$5&" and localMonth("&$D$12&") ="&$E$5&" and LocalDay("&$D$12&")="&$F$5&" and Barix("&$D$12&",reference:=StartOfSession)="&A45&"", "Bar", "", "Close","5","0","PrimaryOnly",,,"False","T","EveryTick") -> 192.22 | Q45: 0.005177011975 | R45: =RTD("cqg.rtd",,"StudyData", "Close("&$D$12&") when LocalYear("&$D$12&")="&$D$6&" and localMonth("&$D$12&") ="&$E$6&" and LocalDay("&$D$12&")="&$F$6&" and Barix("&$D$12&",reference:=StartOfSession)="&A45&"", "Bar", "", "Close","5","0","PrimaryOnly",,,"False","T","EveryTick") -> 191.78 | S45: 0.0004173187272 | T45: =RTD("cqg.rtd",,"StudyData", "Close("&$D$12&") when LocalYear("&$D$12&")="&$D$7&" and localMonth("&$D$12&") ="&$E$7&" and LocalDay("&$D$12&")="&$F$7&" and Barix("&$D$12&",reference:=StartOfSession)="&A45&"", "Bar", "", "Close","5","0","PrimaryOnly",,,"False","T","EveryTick") -> 191.06 | U45: -0.01240566525 | V45: =RTD("cqg.rtd",,"StudyData", "Close("&$D$12&") when LocalYear("&$D$12&")="&$D$8&" and localMonth("&$D$12&") ="&$E$8&" and LocalDay("&$D$12&")="&$F$8&" and Barix("&$D$12&",reference:=StartOfSession)="&A45&"", "Bar", "", "Close","5","0","PrimaryOnly",,,"False","T","EveryTick") -> 193.25 | W45: -0.003763274564 | X45: =RTD("cqg.rtd",,"StudyData", "Close("&$D$12&") when LocalYear("&$D$12&")="&$D$9&" and localMonth("&$D$12&") ="&$E$9&" and LocalDay("&$D$12&")="&$F$9&" and Barix("&$D$12&",reference:=StartOfSession)="&A45&"", "Bar", "", "Close","5","0","PrimaryOnly",,,"False","T","EveryTick") -> 192.96 | Y45: -0.001810563344 | Z45: =RTD("cqg.rtd",,"StudyData", "Close("&$D$12&") when LocalYear("&$D$12&")="&$D$10&" and localMonth("&$D$12&") ="&$E$10&" and LocalDay("&$D$12&")="&$F$10&" and Barix("&$D$12&",reference:=StartOfSession)="&A45&"", "Bar", "", "Close","5","0","PrimaryOnly",,,"False","T","EveryTick") -> 193.15 | AA45: 0.006881092634
A46: 45 | B46: 12:15:00 | C46: -32 | D46: =RTD("cqg.rtd",,"StudyData", $D$12, "Tick", "FlatTicks=0", "Tick","D",C46,"PrimaryOnly") -> 187.9 | H46: =RTD("cqg.rtd",,"StudyData", "Close("&$D$12&") when LocalYear("&$D$12&")="&$D$1&" and localMonth("&$D$12&") ="&$E$1&" and LocalDay("&$D$12&")="&$F$1&" and Barix("&$D$12&",reference:=StartOfSession)="&A46&"", "Bar", "", "Close","5","0","PrimaryOnly",,,"False","T","EveryTick") ->  | J46: =RTD("cqg.rtd",,"StudyData", "Close("&$D$12&") when LocalYear("&$D$12&")="&$D$2&" and localMonth("&$D$12&") ="&$E$2&" and LocalDay("&$D$12&")="&$F$2&" and Barix("&$D$12&",reference:=StartOfSession)="&A46&"", "Bar", "", "Close","5","0","PrimaryOnly",,,"False","T","EveryTick") -> 189.01 | K46: -0.009381551363 | L46: =RTD("cqg.rtd",,"StudyData", "Close("&$D$12&") when LocalYear("&$D$12&")="&$D$3&" and localMonth("&$D$12&") ="&$E$3&" and LocalDay("&$D$12&")="&$F$3&" and Barix("&$D$12&",reference:=StartOfSession)="&A46&"", "Bar", "", "Close","5","0","PrimaryOnly",,,"False","T","EveryTick") -> 190.93 | M46: 0.001206082853 | N46: =RTD("cqg.rtd",,"StudyData", "Close("&$D$12&") when LocalYear("&$D$12&")="&$D$4&" and localMonth("&$D$12&") ="&$E$4&" and LocalDay("&$D$12&")="&$F$4&" and Barix("&$D$12&",reference:=StartOfSession)="&A46&"", "Bar", "", "Close","5","0","PrimaryOnly",,,"False","T","EveryTick") -> 192.15 | O46: -0.000676097358 | P46: =RTD("cqg.rtd",,"StudyData", "Close("&$D$12&") when LocalYear("&$D$12&")="&$D$5&" and localMonth("&$D$12&") ="&$E$5&" and LocalDay("&$D$12&")="&$F$5&" and Barix("&$D$12&",reference:=StartOfSession)="&A46&"", "Bar", "", "Close","5","0","PrimaryOnly",,,"False","T","EveryTick") -> 192.27 | Q46: 0.005438477226 | R46: =RTD("cqg.rtd",,"StudyData", "Close("&$D$12&") when LocalYear("&$D$12&")="&$D$6&" and localMonth("&$D$12&") ="&$E$6&" and LocalDay("&$D$12&")="&$F$6&" and Barix("&$D$12&",reference:=StartOfSession)="&A46&"", "Bar", "", "Close","5","0","PrimaryOnly",,,"False","T","EveryTick") -> 191.7 | S46: 0 | T46: =RTD("cqg.rtd",,"StudyData", "Close("&$D$12&") when LocalYear("&$D$12&")="&$D$7&" and localMonth("&$D$12&") ="&$E$7&" and LocalDay("&$D$12&")="&$F$7&" and Barix("&$D$12&",reference:=StartOfSession)="&A46&"", "Bar", "", "Close","5","0","PrimaryOnly",,,"False","T","EveryTick") -> 191.27 | U46: -0.01132016954 | V46: =RTD("cqg.rtd",,"StudyData", "Close("&$D$12&") when LocalYear("&$D$12&")="&$D$8&" and localMonth("&$D$12&") ="&$E$8&" and LocalDay("&$D$12&")="&$F$8&" and Barix("&$D$12&",reference:=StartOfSession)="&A46&"", "Bar", "", "Close","5","0","PrimaryOnly",,,"False","T","EveryTick") -> 193.12 | W46: -0.004433446747 | X46: =RTD("cqg.rtd",,"StudyData", "Close("&$D$12&") when LocalYear("&$D$12&")="&$D$9&" and localMonth("&$D$12&") ="&$E$9&" and LocalDay("&$D$12&")="&$F$9&" and Barix("&$D$12&",reference:=StartOfSession)="&A46&"", "Bar", "", "Close","5","0","PrimaryOnly",,,"False","T","EveryTick") -> 192.87 | Y46: -0.002276136775 | Z46: =RTD("cqg.rtd",,"StudyData", "Close("&$D$12&") when LocalYear("&$D$12&")="&$D$10&" and localMonth("&$D$12&") ="&$E$10&" and LocalDay("&$D$12&")="&$F$10&" and Barix("&$D$12&",reference:=StartOfSession)="&A46&"", "Bar", "", "Close","5","0","PrimaryOnly",,,"False","T","EveryTick") -> 193.11 | AA46: 0.006672574675
A47: 46 | B47: 12:20:00 | C47: -31 | D47: =RTD("cqg.rtd",,"StudyData", $D$12, "Tick", "FlatTicks=0", "Tick","D",C47,"PrimaryOnly") -> 187.89 | H47: =RTD("cqg.rtd",,"StudyData", "Close("&$D$12&") when LocalYear("&$D$12&")="&$D$1&" and localMonth("&$D$12&") ="&$E$1&" and LocalDay("&$D$12&")="&$F$1&" and Barix("&$D$12&",reference:=StartOfSession)="&A47&"", "Bar", "", "Close","5","0","PrimaryOnly",,,"False","T","EveryTick") ->  | J47: =RTD("cqg.rtd",,"StudyData", "Close("&$D$12&") when LocalYear("&$D$12&")="&$D$2&" and localMonth("&$D$12&") ="&$E$2&" and LocalDay("&$D$12&")="&$F$2&" and Barix("&$D$12&",reference:=StartOfSession)="&A47&"", "Bar", "", "Close","5","0","PrimaryOnly",,,"False","T","EveryTick") -> 188.9 | K47: -0.009958071279 | L47: =RTD("cqg.rtd",,"StudyData", "Close("&$D$12&") when LocalYear("&$D$12&")="&$D$3&" and localMonth("&$D$12&") ="&$E$3&" and LocalDay("&$D$12&")="&$F$3&" and Barix("&$D$12&",reference:=StartOfSession)="&A47&"", "Bar", "", "Close","5","0","PrimaryOnly",,,"False","T","EveryTick") -> 191.04 | M47: 0.001782905087 | N47: =RTD("cqg.rtd",,"StudyData", "Close("&$D$12&") when LocalYear("&$D$12&")="&$D$4&" and localMonth("&$D$12&") ="&$E$4&" and LocalDay("&$D$12&")="&$F$4&" and Barix("&$D$12&",reference:=StartOfSession)="&A47&"", "Bar", "", "Close","5","0","PrimaryOnly",,,"False","T","EveryTick") -> 192.17 | O47: -0.0005720823799 | P47: =RTD("cqg.rtd",,"StudyData", "Close("&$D$12&") when LocalYear("&$D$12&")="&$D$5&" and localMonth("&$D$12&") ="&$E$5&" and LocalDay("&$D$12&")="&$F$5&" and Barix("&$D$12&",reference:=StartOfSession)="&A47&"", "Bar", "", "Close","5","0","PrimaryOnly",,,"False","T","EveryTick") -> 192.4 | Q47: 0.00611828688 | R47: =RTD("cqg.rtd",,"StudyData", "Close("&$D$12&") when LocalYear("&$D$12&")="&$D$6&" and localMonth("&$D$12&") ="&$E$6&" and LocalDay("&$D$12&")="&$F$6&" and Barix("&$D$12&",reference:=StartOfSession)="&A47&"", "Bar", "", "Close","5","0","PrimaryOnly",,,"False","T","EveryTick") -> 191.68 | S47: -0.0001043296818 | T47: =RTD("cqg.rtd",,"StudyData", "Close("&$D$12&") when LocalYear("&$D$12&")="&$D$7&" and localMonth("&$D$12&") ="&$E$7&" and LocalDay("&$D$12&")="&$F$7&" and Barix("&$D$12&",reference:=StartOfSession)="&A47&"", "Bar", "", "Close","5","0","PrimaryOnly",,,"False","T","EveryTick") -> 191.31 | U47: -0.01111340846 | V47: =RTD("cqg.rtd",,"StudyData", "Close("&$D$12&") when LocalYear("&$D$12&")="&$D$8&" and localMonth("&$D$12&") ="&$E$8&" and LocalDay("&$D$12&")="&$F$8&" and Barix("&$D$12&",reference:=StartOfSession)="&A47&"", "Bar", "", "Close","5","0","PrimaryOnly",,,"False","T","EveryTick") -> 193.33 | W47: -0.003350860913 | X47: =RTD("cqg.rtd",,"StudyData", "Close("&$D$12&") when LocalYear("&$D$12&")="&$D$9&" and localMonth("&$D$12&") ="&$E$9&" and LocalDay("&$D$12&")="&$F$9&" and Barix("&$D$12&",reference:=StartOfSession)="&A47&"", "Bar", "", "Close","5","0","PrimaryOnly",,,"False","T","EveryTick") -> 192.71 | Y47: -0.003103822875 | Z47: =RTD("cqg.rtd",,"StudyData", "Close("&$D$12&") when LocalYear("&$D$12&")="&$D$10&" and localMonth("&$D$12&") ="&$E$10&" and LocalDay("&$D$12&")="&$F$10&" and Barix("&$D$12&",reference:=StartOfSession)="&A47&"", "Bar", "", "Close","5","0","PrimaryOnly",,,"False","T","EveryTick") -> 193.03 | AA47: 0.006255538758
A48: 47 | B48: 12:25:00 | C48: -30 | D48: =RTD("cqg.rtd",,"StudyData", $D$12, "Tick", "FlatTicks=0", "Tick","D",C48,"PrimaryOnly") -> 187.87 | H48: =RTD("cqg.rtd",,"StudyData", "Close("&$D$12&") when LocalYear("&$D$12&")="&$D$1&" and localMonth("&$D$12&") ="&$E$1&" and LocalDay("&$D$12&")="&$F$1&" and Barix("&$D$12&",reference:=StartOfSession)="&A48&"", "Bar", "", "Close","5","0","PrimaryOnly",,,"False","T","EveryTick") ->  | J48: =RTD("cqg.rtd",,"StudyData", "Close("&$D$12&") when LocalYear("&$D$12&")="&$D$2&" and localMonth("&$D$12&") ="&$E$2&" and LocalDay("&$D$12&")="&$F$2&" and Barix("&$D$12&",reference:=StartOfSession)="&A48&"", "Bar", "", "Close","5","0","PrimaryOnly",,,"False","T","EveryTick") -> 188.84 | K48: -0.01027253669 | L48: =RTD("cqg.rtd",,"StudyData", "Close("&$D$12&") when LocalYear("&$D$12&")="&$D$3&" and localMonth("&$D$12&") ="&$E$3&" and LocalDay("&$D$12&")="&$F$3&" and Barix("&$D$12&",reference:=StartOfSession)="&A48&"", "Bar", "", "Close","5","0","PrimaryOnly",,,"False","T","EveryTick") -> 191.02 | M48: 0.001678028317 | N48: =RTD("cqg.rtd",,"StudyData", "Close("&$D$12&") when LocalYear("&$D$12&")="&$D$4&" and localMonth("&$D$12&") ="&$E$4&" and LocalDay("&$D$12&")="&$F$4&" and Barix("&$D$12&",reference:=StartOfSession)="&A48&"", "Bar", "", "Close","5","0","PrimaryOnly",,,"False","T","EveryTick") -> 192.18 | O48: -0.0005200748908 | P48: =RTD("cqg.rtd",,"StudyData", "Close("&$D$12&") when LocalYear("&$D$12&")="&$D$5&" and localMonth("&$D$12&") ="&$E$5&" and LocalDay("&$D$12&")="&$F$5&" and Barix("&$D$12&",reference:=StartOfSession)="&A48&"", "Bar", "", "Close","5","0","PrimaryOnly",,,"False","T","EveryTick") -> 192.52 | Q48: 0.006745803483 | R48: =RTD("cqg.rtd",,"StudyData", "Close("&$D$12&") when LocalYear("&$D$12&")="&$D$6&" and localMonth("&$D$12&") ="&$E$6&" and LocalDay("&$D$12&")="&$F$6&" and Barix("&$D$12&",reference:=StartOfSession)="&A48&"", "Bar", "", "Close","5","0","PrimaryOnly",,,"False","T","EveryTick") -> 191.7 | S48: 0 | T48: =RTD("cqg.rtd",,"StudyData", "Close("&$D$12&") when LocalYear("&$D$12&")="&$D$7&" and localMonth("&$D$12&") ="&$E$7&" and LocalDay("&$D$12&")="&$F$7&" and Barix("&$D$12&",reference:=StartOfSession)="&A48&"", "Bar", "", "Close","5","0","PrimaryOnly",,,"False","T","EveryTick") -> 191.36 | U48: -0.0108549571 | V48: =RTD("cqg.rtd",,"StudyData", "Close("&$D$12&") when LocalYear("&$D$12&")="&$D$8&" and localMonth("&$D$12&") ="&$E$8&" and LocalDay("&$D$12&")="&$F$8&" and Barix("&$D$12&",reference:=StartOfSession)="&A48&"", "Bar", "", "Close","5","0","PrimaryOnly",,,"False","T","EveryTick") -> 193.08 | W48: -0.004639653573 | X48: =RTD("cqg.rtd",,"StudyData", "Close("&$D$12&") when LocalYear("&$D$12&")="&$D$9&" and localMonth("&$D$12&") ="&$E$9&" and LocalDay("&$D$12&")="&$F$9&" and Barix("&$D$12&",reference:=StartOfSession)="&A48&"", "Bar", "", "Close","5","0","PrimaryOnly",,,"False","T","EveryTick") -> 192.71 | Y48: -0.003103822875 | Z48: =RTD("cqg.rtd",,"StudyData", "Close("&$D$12&") when LocalYear("&$D$12&")="&$D$10&" and localMonth("&$D$12&") ="&$E$10&" and LocalDay("&$D$12&")="&$F$10&" and Barix("&$D$12&",reference:=StartOfSession)="&A48&"", "Bar", "", "Close","5","0","PrimaryOnly",,,"False","T","EveryTick") -> 193.16 | AA48: 0.006933222124
A49: 48 | B49: 12:30:00 | C49: -29 | D49: =RTD("cqg.rtd",,"StudyData", $D$12, "Tick", "FlatTicks=0", "Tick","D",C49,"PrimaryOnly") -> 187.86 | H49: =RTD("cqg.rtd",,"StudyData", "Close("&$D$12&") when LocalYear("&$D$12&")="&$D$1&" and localMonth("&$D$12&") ="&$E$1&" and LocalDay("&$D$12&")="&$F$1&" and Barix("&$D$12&",reference:=StartOfSession)="&A49&"", "Bar", "", "Close","5","0","PrimaryOnly",,,"False","T","EveryTick") ->  | J49: =RTD("cqg.rtd",,"StudyData", "Close("&$D$12&") when LocalYear("&$D$12&")="&$D$2&" and localMonth("&$D$12&") ="&$E$2&" and LocalDay("&$D$12&")="&$F$2&" and Barix("&$D$12&",reference:=StartOfSession)="&A49&"", "Bar", "", "Close","5","0","PrimaryOnly",,,"False","T","EveryTick") -> 188.84 | K49: -0.01027253669 | L49: =RTD("cqg.rtd",,"StudyData", "Close("&$D$12&") when LocalYear("&$D$12&")="&$D$3&" and localMonth("&$D$12&") ="&$E$3&" and LocalDay("&$D$12&")="&$F$3&" and Barix("&$D$12&",reference:=StartOfSession)="&A49&"", "Bar", "", "Close","5","0","PrimaryOnly",,,"False","T","EveryTick") -> 191.23 | M49: 0.0027792344 | N49: =RTD("cqg.rtd",,"StudyData", "Close("&$D$12&") when LocalYear("&$D$12&")="&$D$4&" and localMonth("&$D$12&") ="&$E$4&" and LocalDay("&$D$12&")="&$F$4&" and Barix("&$D$12&",reference:=StartOfSession)="&A49&"", "Bar", "", "Close","5","0","PrimaryOnly",,,"False","T","EveryTick") -> 192.14 | O49: -0.0007281048471 | P49: =RTD("cqg.rtd",,"StudyData", "Close("&$D$12&") when LocalYear("&$D$12&")="&$D$5&" and localMonth("&$D$12&") ="&$E$5&" and LocalDay("&$D$12&")="&$F$5&" and Barix("&$D$12&",reference:=StartOfSession)="&A49&"", "Bar", "", "Close","5","0","PrimaryOnly",,,"False","T","EveryTick") -> 192.44 | Q49: 0.006327459081 | R49: =RTD("cqg.rtd",,"StudyData", "Close("&$D$12&") when LocalYear("&$D$12&")="&$D$6&" and localMonth("&$D$12&") ="&$E$6&" and LocalDay("&$D$12&")="&$F$6&" and Barix("&$D$12&",reference:=StartOfSession)="&A49&"", "Bar", "", "Close","5","0","PrimaryOnly",,,"False","T","EveryTick") -> 191.66 | S49: -0.0002086593636 | T49: =RTD("cqg.rtd",,"StudyData", "Close("&$D$12&") when LocalYear("&$D$12&")="&$D$7&" and localMonth("&$D$12&") ="&$E$7&" and LocalDay("&$D$12&")="&$F$7&" and Barix("&$D$12&",reference:=StartOfSession)="&A49&"", "Bar", "", "Close","5","0","PrimaryOnly",,,"False","T","EveryTick") -> 191.28 | U49: -0.01126847927 | V49: =RTD("cqg.rtd",,"StudyData", "Close("&$D$12&") when LocalYear("&$D$12&")="&$D$8&" and localMonth("&$D$12&") ="&$E$8&" and LocalDay("&$D$12&")="&$F$8&" and Barix("&$D$12&",reference:=StartOfSession)="&A49&"", "Bar", "", "Close","5","0","PrimaryOnly",,,"False","T","EveryTick") -> 193.21 | W49: -0.00396948139 | X49: =RTD("cqg.rtd",,"StudyData", "Close("&$D$12&") when LocalYear("&$D$12&")="&$D$9&" and localMonth("&$D$12&") ="&$E$9&" and LocalDay("&$D$12&")="&$F$9&" and Barix("&$D$12&",reference:=StartOfSession)="&A49&"", "Bar", "", "Close","5","0","PrimaryOnly",,,"False","T","EveryTick") -> 192.64 | Y49: -0.003465935544 | Z49: =RTD("cqg.rtd",,"StudyData", "Close("&$D$12&") when LocalYear("&$D$12&")="&$D$10&" and localMonth("&$D$12&") ="&$E$10&" and LocalDay("&$D$12&")="&$F$10&" and Barix("&$D$12&",reference:=StartOfSession)="&A49&"", "Bar", "", "Close","5","0","PrimaryOnly",,,"False","T","EveryTick") -> 193.1 | AA49: 0.006620445186
A50: 49 | B50: 12:35:00 | C50: -28 | D50: =RTD("cqg.rtd",,"StudyData", $D$12, "Tick", "FlatTicks=0", "Tick","D",C50,"PrimaryOnly") -> 187.85 | H50: =RTD("cqg.rtd",,"StudyData", "Close("&$D$12&") when LocalYear("&$D$12&")="&$D$1&" and localMonth("&$D$12&") ="&$E$1&" and LocalDay("&$D$12&")="&$F$1&" and Barix("&$D$12&",reference:=StartOfSession)="&A50&"", "Bar", "", "Close","5","0","PrimaryOnly",,,"False","T","EveryTick") ->  | J50: =RTD("cqg.rtd",,"StudyData", "Close("&$D$12&") when LocalYear("&$D$12&")="&$D$2&" and localMonth("&$D$12&") ="&$E$2&" and LocalDay("&$D$12&")="&$F$2&" and Barix("&$D$12&",reference:=StartOfSession)="&A50&"", "Bar", "", "Close","5","0","PrimaryOnly",,,"False","T","EveryTick") -> 188.83 | K50: -0.01032494759 | L50: =RTD("cqg.rtd",,"StudyData", "Close("&$D$12&") when LocalYear("&$D$12&")="&$D$3&" and localMonth("&$D$12&") ="&$E$3&" and LocalDay("&$D$12&")="&$F$3&" and Barix("&$D$12&",reference:=StartOfSession)="&A50&"", "Bar", "", "Close","5","0","PrimaryOnly",,,"False","T","EveryTick") -> 191.19 | M50: 0.00256948086 | N50: =RTD("cqg.rtd",,"StudyData", "Close("&$D$12&") when LocalYear("&$D$12&")="&$D$4&" and localMonth("&$D$12&") ="&$E$4&" and LocalDay("&$D$12&")="&$F$4&" and Barix("&$D$12&",reference:=StartOfSession)="&A50&"", "Bar", "", "Close","5","0","PrimaryOnly",,,"False","T","EveryTick") -> 192.24 | O50: -0.0002080299563 | P50: =RTD("cqg.rtd",,"StudyData", "Close("&$D$12&") when LocalYear("&$D$12&")="&$D$5&" and localMonth("&$D$12&") ="&$E$5&" and LocalDay("&$D$12&")="&$F$5&" and Barix("&$D$12&",reference:=StartOfSession)="&A50&"", "Bar", "", "Close","5","0","PrimaryOnly",,,"False","T","EveryTick") -> 192.33 | Q50: 0.005752235528 | R50: =RTD("cqg.rtd",,"StudyData", "Close("&$D$12&") when LocalYear("&$D$12&")="&$D$6&" and localMonth("&$D$12&") ="&$E$6&" and LocalDay("&$D$12&")="&$F$6&" and Barix("&$D$12&",reference:=StartOfSession)="&A50&"", "Bar", "", "Close","5","0","PrimaryOnly",,,"False","T","EveryTick") -> 191.69 | S50: -5.21648409e-05 | T50: =RTD("cqg.rtd",,"StudyData", "Close("&$D$12&") when LocalYear("&$D$12&")="&$D$7&" and localMonth("&$D$12&") ="&$E$7&" and LocalDay("&$D$12&")="&$F$7&" and Barix("&$D$12&",reference:=StartOfSession)="&A50&"", "Bar", "", "Close","5","0","PrimaryOnly",,,"False","T","EveryTick") -> 191.17 | U50: -0.01183707226 | V50: =RTD("cqg.rtd",,"StudyData", "Close("&$D$12&") when LocalYear("&$D$12&")="&$D$8&" and localMonth("&$D$12&") ="&$E$8&" and LocalDay("&$D$12&")="&$F$8&" and Barix("&$D$12&",reference:=StartOfSession)="&A50&"", "Bar", "", "Close","5","0","PrimaryOnly",,,"False","T","EveryTick") -> 192.78 | W50: -0.006186204763 | X50: =RTD("cqg.rtd",,"StudyData", "Close("&$D$12&") when LocalYear("&$D$12&")="&$D$9&" and localMonth("&$D$12&") ="&$E$9&" and LocalDay("&$D$12&")="&$F$9&" and Barix("&$D$12&",reference:=StartOfSession)="&A50&"", "Bar", "", "Close","5","0","PrimaryOnly",,,"False","T","EveryTick") -> 192.74 | Y50: -0.002948631731 | Z50: =RTD("cqg.rtd",,"StudyData", "Close("&$D$12&") when LocalYear("&$D$12&")="&$D$10&" and localMonth("&$D$12&") ="&$E$10&" and LocalDay("&$D$12&")="&$F$10&" and Barix("&$D$12&",reference:=StartOfSession)="&A50&"", "Bar", "", "Close","5","0","PrimaryOnly",,,"False","T","EveryTick") -> 193.09 | AA50: 0.006568315696
A51: 50 | B51: 12:40:00 | C51: -27 | D51: =RTD("cqg.rtd",,"StudyData", $D$12, "Tick", "FlatTicks=0", "Tick","D",C51,"PrimaryOnly") -> 187.86 | H51: =RTD("cqg.rtd",,"StudyData", "Close("&$D$12&") when LocalYear("&$D$12&")="&$D$1&" and localMonth("&$D$12&") ="&$E$1&" and LocalDay("&$D$12&")="&$F$1&" and Barix("&$D$12&",reference:=StartOfSession)="&A51&"", "Bar", "", "Close","5","0","PrimaryOnly",,,"False","T","EveryTick") ->  | J51: =RTD("cqg.rtd",,"StudyData", "Close("&$D$12&") when LocalYear("&$D$12&")="&$D$2&" and localMonth("&$D$12&") ="&$E$2&" and LocalDay("&$D$12&")="&$F$2&" and Barix("&$D$12&",reference:=StartOfSession)="&A51&"", "Bar", "", "Close","5","0","PrimaryOnly",,,"False","T","EveryTick") -> 188.87 | K51: -0.01011530398 | L51: =RTD("cqg.rtd",,"StudyData", "Close("&$D$12&") when LocalYear("&$D$12&")="&$D$3&" and localMonth("&$D$12&") ="&$E$3&" and LocalDay("&$D$12&")="&$F$3&" and Barix("&$D$12&",reference:=StartOfSession)="&A51&"", "Bar", "", "Close","5","0","PrimaryOnly",,,"False","T","EveryTick") -> 191.12 | M51: 0.002202412166 | N51: =RTD("cqg.rtd",,"StudyData", "Close("&$D$12&") when LocalYear("&$D$12&")="&$D$4&" and localMonth("&$D$12&") ="&$E$4&" and LocalDay("&$D$12&")="&$F$4&" and Barix("&$D$12&",reference:=StartOfSession)="&A51&"", "Bar", "", "Close","5","0","PrimaryOnly",,,"False","T","EveryTick") -> 192.23 | O51: -0.0002600374454 | P51: =RTD("cqg.rtd",,"StudyData", "Close("&$D$12&") when LocalYear("&$D$12&")="&$D$5&" and localMonth("&$D$12&") ="&$E$5&" and LocalDay("&$D$12&")="&$F$5&" and Barix("&$D$12&",reference:=StartOfSession)="&A51&"", "Bar", "", "Close","5","0","PrimaryOnly",,,"False","T","EveryTick") -> 192.23 | Q51: 0.005229305025 | R51: =RTD("cqg.rtd",,"StudyData", "Close("&$D$12&") when LocalYear("&$D$12&")="&$D$6&" and localMonth("&$D$12&") ="&$E$6&" and LocalDay("&$D$12&")="&$F$6&" and Barix("&$D$12&",reference:=StartOfSession)="&A51&"", "Bar", "", "Close","5","0","PrimaryOnly",,,"False","T","EveryTick") -> 191.59 | S51: -0.0005738132499 | T51: =RTD("cqg.rtd",,"StudyData", "Close("&$D$12&") when LocalYear("&$D$12&")="&$D$7&" and localMonth("&$D$12&") ="&$E$7&" and LocalDay("&$D$12&")="&$F$7&" and Barix("&$D$12&",reference:=StartOfSession)="&A51&"", "Bar", "", "Close","5","0","PrimaryOnly",,,"False","T","EveryTick") -> 191.3 | U51: -0.01116509873 | V51: =RTD("cqg.rtd",,"StudyData", "Close("&$D$12&") when LocalYear("&$D$12&")="&$D$8&" and localMonth("&$D$12&") ="&$E$8&" and LocalDay("&$D$12&")="&$F$8&" and Barix("&$D$12&",reference:=StartOfSession)="&A51&"", "Bar", "", "Close","5","0","PrimaryOnly",,,"False","T","EveryTick") -> 192.82 | W51: -0.005979997938 | X51: =RTD("cqg.rtd",,"StudyData", "Close("&$D$12&") when LocalYear("&$D$12&")="&$D$9&" and localMonth("&$D$12&") ="&$E$9&" and LocalDay("&$D$12&")="&$F$9&" and Barix("&$D$12&",reference:=StartOfSession)="&A51&"", "Bar", "", "Close","5","0","PrimaryOnly",,,"False","T","EveryTick") -> 192.81 | Y51: -0.002586519063 | Z51: =RTD("cqg.rtd",,"StudyData", "Close("&$D$12&") when LocalYear("&$D$12&")="&$D$10&" and localMonth("&$D$12&") ="&$E$10&" and LocalDay("&$D$12&")="&$F$10&" and Barix("&$D$12&",reference:=StartOfSession)="&A51&"", "Bar", "", "Close","5","0","PrimaryOnly",,,"False","T","EveryTick") -> 193.13 | AA51: 0.006776833655
A52: 51 | B52: 12:45:00 | C52: -26 | D52: =RTD("cqg.rtd",,"StudyData", $D$12, "Tick", "FlatTicks=0", "Tick","D",C52,"PrimaryOnly") -> 187.87 | H52: =RTD("cqg.rtd",,"StudyData", "Close("&$D$12&") when LocalYear("&$D$12&")="&$D$1&" and localMonth("&$D$12&") ="&$E$1&" and LocalDay("&$D$12&")="&$F$1&" and Barix("&$D$12&",reference:=StartOfSession)="&A52&"", "Bar", "", "Close","5","0","PrimaryOnly",,,"False","T","EveryTick") ->  | J52: =RTD("cqg.rtd",,"StudyData", "Close("&$D$12&") when LocalYear("&$D$12&")="&$D$2&" and localMonth("&$D$12&") ="&$E$2&" and LocalDay("&$D$12&")="&$F$2&" and Barix("&$D$12&",reference:=StartOfSession)="&A52&"", "Bar", "", "Close","5","0","PrimaryOnly",,,"False","T","EveryTick") -> 188.67 | K52: -0.01116352201 | L52: =RTD("cqg.rtd",,"StudyData", "Close("&$D$12&") when LocalYear("&$D$12&")="&$D$3&" and localMonth("&$D$12&") ="&$E$3&" and LocalDay("&$D$12&")="&$F$3&" and Barix("&$D$12&",reference:=StartOfSession)="&A52&"", "Bar", "", "Close","5","0","PrimaryOnly",,,"False","T","EveryTick") -> 191.04 | M52: 0.001782905087 | N52: =RTD("cqg.rtd",,"StudyData", "Close("&$D$12&") when LocalYear("&$D$12&")="&$D$4&" and localMonth("&$D$12&") ="&$E$4&" and LocalDay("&$D$12&")="&$F$4&" and Barix("&$D$12&",reference:=StartOfSession)="&A52&"", "Bar", "", "Close","5","0","PrimaryOnly",,,"False","T","EveryTick") -> 192.23 | O52: -0.0002600374454 | P52: =RTD("cqg.rtd",,"StudyData", "Close("&$D$12&") when LocalYear("&$D$12&")="&$D$5&" and localMonth("&$D$12&") ="&$E$5&" and LocalDay("&$D$12&")="&$F$5&" and Barix("&$D$12&",reference:=StartOfSession)="&A52&"", "Bar", "", "Close","5","0","PrimaryOnly",,,"False","T","EveryTick") -> 192.26 | Q52: 0.005386184176 | R52: =RTD("cqg.rtd",,"StudyData", "Close("&$D$12&") when LocalYear("&$D$12&")="&$D$6&" and localMonth("&$D$12&") ="&$E$6&" and LocalDay("&$D$12&")="&$F$6&" and Barix("&$D$12&",reference:=StartOfSession)="&A52&"", "Bar", "", "Close","5","0","PrimaryOnly",,,"False","T","EveryTick") -> 191.56 | S52: -0.0007303077726 | T52: =RTD("cqg.rtd",,"StudyData", "Close("&$D$12&") when LocalYear("&$D$12&")="&$D$7&" and localMonth("&$D$12&") ="&$E$7&" and LocalDay("&$D$12&")="&$F$7&" and Barix("&$D$12&",reference:=StartOfSession)="&A52&"", "Bar", "", "Close","5","0","PrimaryOnly",,,"False","T","EveryTick") -> 191.13 | U52: -0.01204383335 | V52: =RTD("cqg.rtd",,"StudyData", "Close("&$D$12&") when LocalYear("&$D$12&")="&$D$8&" and localMonth("&$D$12&") ="&$E$8&" and LocalDay("&$D$12&")="&$F$8&" and Barix("&$D$12&",reference:=StartOfSession)="&A52&"", "Bar", "", "Close","5","0","PrimaryOnly",,,"False","T","EveryTick") -> 193.01 | W52: -0.005000515517 | X52: =RTD("cqg.rtd",,"StudyData", "Close("&$D$12&") when LocalYear("&$D$12&")="&$D$9&" and localMonth("&$D$12&") ="&$E$9&" and LocalDay("&$D$12&")="&$F$9&" and Barix("&$D$12&",reference:=StartOfSession)="&A52&"", "Bar", "", "Close","5","0","PrimaryOnly",,,"False","T","EveryTick") -> 192.83 | Y52: -0.0024830583 | Z52: =RTD("cqg.rtd",,"StudyData", "Close("&$D$12&") when LocalYear("&$D$12&")="&$D$10&" and localMonth("&$D$12&") ="&$E$10&" and LocalDay("&$D$12&")="&$F$10&" and Barix("&$D$12&",reference:=StartOfSession)="&A52&"", "Bar", "", "Close","5","0","PrimaryOnly",,,"False","T","EveryTick") -> 193.15 | AA52: 0.006881092634
A53: 52 | B53: 12:50:00 | C53: -25 | D53: =RTD("cqg.rtd",,"StudyData", $D$12, "Tick", "FlatTicks=0", "Tick","D",C53,"PrimaryOnly") -> 187.88 | H53: =RTD("cqg.rtd",,"StudyData", "Close("&$D$12&") when LocalYear("&$D$12&")="&$D$1&" and localMonth("&$D$12&") ="&$E$1&" and LocalDay("&$D$12&")="&$F$1&" and Barix("&$D$12&",reference:=StartOfSession)="&A53&"", "Bar", "", "Close","5","0","PrimaryOnly",,,"False","T","EveryTick") ->  | J53: =RTD("cqg.rtd",,"StudyData", "Close("&$D$12&") when LocalYear("&$D$12&")="&$D$2&" and localMonth("&$D$12&") ="&$E$2&" and LocalDay("&$D$12&")="&$F$2&" and Barix("&$D$12&",reference:=StartOfSession)="&A53&"", "Bar", "", "Close","5","0","PrimaryOnly",,,"False","T","EveryTick") -> 188.69 | K53: -0.01105870021 | L53: =RTD("cqg.rtd",,"StudyData", "Close("&$D$12&") when LocalYear("&$D$12&")="&$D$3&" and localMonth("&$D$12&") ="&$E$3&" and LocalDay("&$D$12&")="&$F$3&" and Barix("&$D$12&",reference:=StartOfSession)="&A53&"", "Bar", "", "Close","5","0","PrimaryOnly",,,"False","T","EveryTick") -> 191.1 | M53: 0.002097535396 | N53: =RTD("cqg.rtd",,"StudyData", "Close("&$D$12&") when LocalYear("&$D$12&")="&$D$4&" and localMonth("&$D$12&") ="&$E$4&" and LocalDay("&$D$12&")="&$F$4&" and Barix("&$D$12&",reference:=StartOfSession)="&A53&"", "Bar", "", "Close","5","0","PrimaryOnly",,,"False","T","EveryTick") -> 192.26 | O53: -0.0001040149782 | P53: =RTD("cqg.rtd",,"StudyData", "Close("&$D$12&") when LocalYear("&$D$12&")="&$D$5&" and localMonth("&$D$12&") ="&$E$5&" and LocalDay("&$D$12&")="&$F$5&" and Barix("&$D$12&",reference:=StartOfSession)="&A53&"", "Bar", "", "Close","5","0","PrimaryOnly",,,"False","T","EveryTick") -> 192.13 | Q53: 0.004706374523 | R53: =RTD("cqg.rtd",,"StudyData", "Close("&$D$12&") when LocalYear("&$D$12&")="&$D$6&" and localMonth("&$D$12&") ="&$E$6&" and LocalDay("&$D$12&")="&$F$6&" and Barix("&$D$12&",reference:=StartOfSession)="&A53&"", "Bar", "", "Close","5","0","PrimaryOnly",,,"False","T","EveryTick") -> 191.44 | S53: -0.001356285863 | T53: =RTD("cqg.rtd",,"StudyData", "Close("&$D$12&") when LocalYear("&$D$12&")="&$D$7&" and localMonth("&$D$12&") ="&$E$7&" and LocalDay("&$D$12&")="&$F$7&" and Barix("&$D$12&",reference:=StartOfSession)="&A53&"", "Bar", "", "Close","5","0","PrimaryOnly",,,"False","T","EveryTick") -> 191.09 | U53: -0.01225059444 | V53: =RTD("cqg.rtd",,"StudyData", "Close("&$D$12&") when LocalYear("&$D$12&")="&$D$8&" and localMonth("&$D$12&") ="&$E$8&" and LocalDay("&$D$12&")="&$F$8&" and Barix("&$D$12&",reference:=StartOfSession)="&A53&"", "Bar", "", "Close","5","0","PrimaryOnly",,,"False","T","EveryTick") -> 192.76 | W53: -0.006289308176 | X53: =RTD("cqg.rtd",,"StudyData", "Close("&$D$12&") when LocalYear("&$D$12&")="&$D$9&" and localMonth("&$D$12&") ="&$E$9&" and LocalDay("&$D$12&")="&$F$9&" and Barix("&$D$12&",reference:=StartOfSession)="&A53&"", "Bar", "", "Close","5","0","PrimaryOnly",,,"False","T","EveryTick") -> 192.68 | Y53: -0.003259014019 | Z53: =RTD("cqg.rtd",,"StudyData", "Close("&$D$12&") when LocalYear("&$D$12&")="&$D$10&" and localMonth("&$D$12&") ="&$E$10&" and LocalDay("&$D$12&")="&$F$10&" and Barix("&$D$12&",reference:=StartOfSession)="&A53&"", "Bar", "", "Close","5","0","PrimaryOnly",,,"False","T","EveryTick") -> 193.09 | AA53: 0.006568315696
A54: 53 | B54: 12:55:00 | C54: -24 | D54: =RTD("cqg.rtd",,"StudyData", $D$12, "Tick", "FlatTicks=0", "Tick","D",C54,"PrimaryOnly") -> 187.89 | H54: =RTD("cqg.rtd",,"StudyData", "Close("&$D$12&") when LocalYear("&$D$12&")="&$D$1&" and localMonth("&$D$12&") ="&$E$1&" and LocalDay("&$D$12&")="&$F$1&" and Barix("&$D$12&",reference:=StartOfSession)="&A54&"", "Bar", "", "Close","5","0","PrimaryOnly",,,"False","T","EveryTick") ->  | J54: =RTD("cqg.rtd",,"StudyData", "Close("&$D$12&") when LocalYear("&$D$12&")="&$D$2&" and localMonth("&$D$12&") ="&$E$2&" and LocalDay("&$D$12&")="&$F$2&" and Barix("&$D$12&",reference:=StartOfSession)="&A54&"", "Bar", "", "Close","5","0","PrimaryOnly",,,"False","T","EveryTick") -> 188.67 | K54: -0.01116352201 | L54: =RTD("cqg.rtd",,"StudyData", "Close("&$D$12&") when LocalYear("&$D$12&")="&$D$3&" and localMonth("&$D$12&") ="&$E$3&" and LocalDay("&$D$12&")="&$F$3&" and Barix("&$D$12&",reference:=StartOfSession)="&A54&"", "Bar", "", "Close","5","0","PrimaryOnly",,,"False","T","EveryTick") -> 190.95 | M54: 0.001310959622 | N54: =RTD("cqg.rtd",,"StudyData", "Close("&$D$12&") when LocalYear("&$D$12&")="&$D$4&" and localMonth("&$D$12&") ="&$E$4&" and LocalDay("&$D$12&")="&$F$4&" and Barix("&$D$12&",reference:=StartOfSession)="&A54&"", "Bar", "", "Close","5","0","PrimaryOnly",,,"False","T","EveryTick") -> 192.17 | O54: -0.0005720823799 | P54: =RTD("cqg.rtd",,"StudyData", "Close("&$D$12&") when LocalYear("&$D$12&")="&$D$5&" and localMonth("&$D$12&") ="&$E$5&" and LocalDay("&$D$12&")="&$F$5&" and Barix("&$D$12&",reference:=StartOfSession)="&A54&"", "Bar", "", "Close","5","0","PrimaryOnly",,,"False","T","EveryTick") -> 192.42 | Q54: 0.00622287298 | R54: =RTD("cqg.rtd",,"StudyData", "Close("&$D$12&") when LocalYear("&$D$12&")="&$D$6&" and localMonth("&$D$12&") ="&$E$6&" and LocalDay("&$D$12&")="&$F$6&" and Barix("&$D$12&",reference:=StartOfSession)="&A54&"", "Bar", "", "Close","5","0","PrimaryOnly",,,"False","T","EveryTick") -> 191.38 | S54: -0.001669274909 | T54: =RTD("cqg.rtd",,"StudyData", "Close("&$D$12&") when LocalYear("&$D$12&")="&$D$7&" and localMonth("&$D$12&") ="&$E$7&" and LocalDay("&$D$12&")="&$F$7&" and Barix("&$D$12&",reference:=StartOfSession)="&A54&"", "Bar", "", "Close","5","0","PrimaryOnly",,,"False","T","EveryTick") -> 191.13 | U54: -0.01204383335 | V54: =RTD("cqg.rtd",,"StudyData", "Close("&$D$12&") when LocalYear("&$D$12&")="&$D$8&" and localMonth("&$D$12&") ="&$E$8&" and LocalDay("&$D$12&")="&$F$8&" and Barix("&$D$12&",reference:=StartOfSession)="&A54&"", "Bar", "", "Close","5","0","PrimaryOnly",,,"False","T","EveryTick") -> 192.58 | W54: -0.007217238891 | X54: =RTD("cqg.rtd",,"StudyData", "Close("&$D$12&") when LocalYear("&$D$12&")="&$D$9&" and localMonth("&$D$12&") ="&$E$9&" and LocalDay("&$D$12&")="&$F$9&" and Barix("&$D$12&",reference:=StartOfSession)="&A54&"", "Bar", "", "Close","5","0","PrimaryOnly",,,"False","T","EveryTick") -> 192.69 | Y54: -0.003207283638 | Z54: =RTD("cqg.rtd",,"StudyData", "Close("&$D$12&") when LocalYear("&$D$12&")="&$D$10&" and localMonth("&$D$12&") ="&$E$10&" and LocalDay("&$D$12&")="&$F$10&" and Barix("&$D$12&",reference:=StartOfSession)="&A54&"", "Bar", "", "Close","5","0","PrimaryOnly",,,"False","T","EveryTick") -> 193.05 | AA54: 0.006359797738
A55: 54 | B55: 13:00:00 | C55: -23 | D55: =RTD("cqg.rtd",,"StudyData", $D$12, "Tick", "FlatTicks=0", "Tick","D",C55,"PrimaryOnly") -> 187.88 | H55: =RTD("cqg.rtd",,"StudyData", "Close("&$D$12&") when LocalYear("&$D$12&")="&$D$1&" and localMonth("&$D$12&") ="&$E$1&" and LocalDay("&$D$12&")="&$F$1&" and Barix("&$D$12&",reference:=StartOfSession)="&A55&"", "Bar", "", "Close","5","0","PrimaryOnly",,,"False","T","EveryTick") ->  | J55: =RTD("cqg.rtd",,"StudyData", "Close("&$D$12&") when LocalYear("&$D$12&")="&$D$2&" and localMonth("&$D$12&") ="&$E$2&" and LocalDay("&$D$12&")="&$F$2&" and Barix("&$D$12&",reference:=StartOfSession)="&A55&"", "Bar", "", "Close","5","0","PrimaryOnly",,,"False","T","EveryTick") -> 188.58 | K55: -0.01163522013 | L55: =RTD("cqg.rtd",,"StudyData", "Close("&$D$12&") when LocalYear("&$D$12&")="&$D$3&" and localMonth("&$D$12&") ="&$E$3&" and LocalDay("&$D$12&")="&$F$3&" and Barix("&$D$12&",reference:=StartOfSession)="&A55&"", "Bar", "", "Close","5","0","PrimaryOnly",,,"False","T","EveryTick") -> 191.04 | M55: 0.001782905087 | N55: =RTD("cqg.rtd",,"StudyData", "Close("&$D$12&") when LocalYear("&$D$12&")="&$D$4&" and localMonth("&$D$12&") ="&$E$4&" and LocalDay("&$D$12&")="&$F$4&" and Barix("&$D$12&",reference:=StartOfSession)="&A55&"", "Bar", "", "Close","5","0","PrimaryOnly",,,"False","T","EveryTick") -> 191.67 | O55: -0.003172456834 | P55: =RTD("cqg.rtd",,"StudyData", "Close("&$D$12&") when LocalYear("&$D$12&")="&$D$5&" and localMonth("&$D$12&") ="&$E$5&" and LocalDay("&$D$12&")="&$F$5&" and Barix("&$D$12&",reference:=StartOfSession)="&A55&"", "Bar", "", "Close","5","0","PrimaryOnly",,,"False","T","EveryTick") -> 192.28 | Q55: 0.005490770277 | R55: =RTD("cqg.rtd",,"StudyData", "Close("&$D$12&") when LocalYear("&$D$12&")="&$D$6&" and localMonth("&$D$12&") ="&$E$6&" and LocalDay("&$D$12&")="&$F$6&" and Barix("&$D$12&",reference:=StartOfSession)="&A55&"", "Bar", "", "Close","5","0","PrimaryOnly",,,"False","T","EveryTick") -> 191.24 | S55: -0.002399582681 | T55: =RTD("cqg.rtd",,"StudyData", "Close("&$D$12&") when LocalYear("&$D$12&")="&$D$7&" and localMonth("&$D$12&") ="&$E$7&" and LocalDay("&$D$12&")="&$F$7&" and Barix("&$D$12&",reference:=StartOfSession)="&A55&"", "Bar", "", "Close","5","0","PrimaryOnly",,,"False","T","EveryTick") -> 191.2 | U55: -0.01168200145 | V55: =RTD("cqg.rtd",,"StudyData", "Close("&$D$12&") when LocalYear("&$D$12&")="&$D$8&" and localMonth("&$D$12&") ="&$E$8&" and LocalDay("&$D$12&")="&$F$8&" and Barix("&$D$12&",reference:=StartOfSession)="&A55&"", "Bar", "", "Close","5","0","PrimaryOnly",,,"False","T","EveryTick") -> 192.8 | W55: -0.006083101351 | X55: =RTD("cqg.rtd",,"StudyData", "Close("&$D$12&") when LocalYear("&$D$12&")="&$D$9&" and localMonth("&$D$12&") ="&$E$9&" and LocalDay("&$D$12&")="&$F$9&" and Barix("&$D$12&",reference:=StartOfSession)="&A55&"", "Bar", "", "Close","5","0","PrimaryOnly",,,"False","T","EveryTick") -> 192.83 | Y55: -0.0024830583 | Z55: =RTD("cqg.rtd",,"StudyData", "Close("&$D$12&") when LocalYear("&$D$12&")="&$D$10&" and localMonth("&$D$12&") ="&$E$10&" and LocalDay("&$D$12&")="&$F$10&" and Barix("&$D$12&",reference:=StartOfSession)="&A55&"", "Bar", "", "Close","5","0","PrimaryOnly",,,"False","T","EveryTick") -> 192.91 | AA55: 0.005629984882
A56: 55 | B56: 13:05:00 | C56: -22 | D56: =RTD("cqg.rtd",,"StudyData", $D$12, "Tick", "FlatTicks=0", "Tick","D",C56,"PrimaryOnly") -> 187.89 | H56: =RTD("cqg.rtd",,"StudyData", "Close("&$D$12&") when LocalYear("&$D$12&")="&$D$1&" and localMonth("&$D$12&") ="&$E$1&" and LocalDay("&$D$12&")="&$F$1&" and Barix("&$D$12&",reference:=StartOfSession)="&A56&"", "Bar", "", "Close","5","0","PrimaryOnly",,,"False","T","EveryTick") ->  | J56: =RTD("cqg.rtd",,"StudyData", "Close("&$D$12&") when LocalYear("&$D$12&")="&$D$2&" and localMonth("&$D$12&") ="&$E$2&" and LocalDay("&$D$12&")="&$F$2&" and Barix("&$D$12&",reference:=StartOfSession)="&A56&"", "Bar", "", "Close","5","0","PrimaryOnly",,,"False","T","EveryTick") -> 188.72 | K56: -0.01090146751 | L56: =RTD("cqg.rtd",,"StudyData", "Close("&$D$12&") when LocalYear("&$D$12&")="&$D$3&" and localMonth("&$D$12&") ="&$E$3&" and LocalDay("&$D$12&")="&$F$3&" and Barix("&$D$12&",reference:=StartOfSession)="&A56&"", "Bar", "", "Close","5","0","PrimaryOnly",,,"False","T","EveryTick") -> 191.04 | M56: 0.001782905087 | N56: =RTD("cqg.rtd",,"StudyData", "Close("&$D$12&") when LocalYear("&$D$12&")="&$D$4&" and localMonth("&$D$12&") ="&$E$4&" and LocalDay("&$D$12&")="&$F$4&" and Barix("&$D$12&",reference:=StartOfSession)="&A56&"", "Bar", "", "Close","5","0","PrimaryOnly",,,"False","T","EveryTick") -> 191.26 | O56: -0.005304763886 | P56: =RTD("cqg.rtd",,"StudyData", "Close("&$D$12&") when LocalYear("&$D$12&")="&$D$5&" and localMonth("&$D$12&") ="&$E$5&" and LocalDay("&$D$12&")="&$F$5&" and Barix("&$D$12&",reference:=StartOfSession)="&A56&"", "Bar", "", "Close","5","0","PrimaryOnly",,,"False","T","EveryTick") -> 192.18 | Q56: 0.004967839774 | R56: =RTD("cqg.rtd",,"StudyData", "Close("&$D$12&") when LocalYear("&$D$12&")="&$D$6&" and localMonth("&$D$12&") ="&$E$6&" and LocalDay("&$D$12&")="&$F$6&" and Barix("&$D$12&",reference:=StartOfSession)="&A56&"", "Bar", "", "Close","5","0","PrimaryOnly",,,"False","T","EveryTick") -> 191.28 | S56: -0.002190923318 | T56: =RTD("cqg.rtd",,"StudyData", "Close("&$D$12&") when LocalYear("&$D$12&")="&$D$7&" and localMonth("&$D$12&") ="&$E$7&" and LocalDay("&$D$12&")="&$F$7&" and Barix("&$D$12&",reference:=StartOfSession)="&A56&"", "Bar", "", "Close","5","0","PrimaryOnly",,,"False","T","EveryTick") -> 191.25 | U56: -0.01142355009 | V56: =RTD("cqg.rtd",,"StudyData", "Close("&$D$12&") when LocalYear("&$D$12&")="&$D$8&" and localMonth("&$D$12&") ="&$E$8&" and LocalDay("&$D$12&")="&$F$8&" and Barix("&$D$12&",reference:=StartOfSession)="&A56&"", "Bar", "", "Close","5","0","PrimaryOnly",,,"False","T","EveryTick") -> 192.87 | W56: -0.005722239406 | X56: =RTD("cqg.rtd",,"StudyData", "Close("&$D$12&") when LocalYear("&$D$12&")="&$D$9&" and localMonth("&$D$12&") ="&$E$9&" and LocalDay("&$D$12&")="&$F$9&" and Barix("&$D$12&",reference:=StartOfSession)="&A56&"", "Bar", "", "Close","5","0","PrimaryOnly",,,"False","T","EveryTick") -> 192.77 | Y56: -0.002793440588 | Z56: =RTD("cqg.rtd",,"StudyData", "Close("&$D$12&") when LocalYear("&$D$12&")="&$D$10&" and localMonth("&$D$12&") ="&$E$10&" and LocalDay("&$D$12&")="&$F$10&" and Barix("&$D$12&",reference:=StartOfSession)="&A56&"", "Bar", "", "Close","5","0","PrimaryOnly",,,"False","T","EveryTick") -> 193.01 | AA56: 0.006151279779
A57: 56 | B57: 13:10:00 | C57: -21 | D57: =RTD("cqg.rtd",,"StudyData", $D$12, "Tick", "FlatTicks=0", "Tick","D",C57,"PrimaryOnly") -> 187.9 | H57: =RTD("cqg.rtd",,"StudyData", "Close("&$D$12&") when LocalYear("&$D$12&")="&$D$1&" and localMonth("&$D$12&") ="&$E$1&" and LocalDay("&$D$12&")="&$F$1&" and Barix("&$D$12&",reference:=StartOfSession)="&A57&"", "Bar", "", "Close","5","0","PrimaryOnly",,,"False","T","EveryTick") ->  | J57: =RTD("cqg.rtd",,"StudyData", "Close("&$D$12&") when LocalYear("&$D$12&")="&$D$2&" and localMonth("&$D$12&") ="&$E$2&" and LocalDay("&$D$12&")="&$F$2&" and Barix("&$D$12&",reference:=StartOfSession)="&A57&"", "Bar", "", "Close","5","0","PrimaryOnly",,,"False","T","EveryTick") -> 188.94 | K57: -0.009748427673 | L57: =RTD("cqg.rtd",,"StudyData", "Close("&$D$12&") when LocalYear("&$D$12&")="&$D$3&" and localMonth("&$D$12&") ="&$E$3&" and LocalDay("&$D$12&")="&$F$3&" and Barix("&$D$12&",reference:=StartOfSession)="&A57&"", "Bar", "", "Close","5","0","PrimaryOnly",,,"False","T","EveryTick") -> 191.06 | M57: 0.001887781856 | N57: =RTD("cqg.rtd",,"StudyData", "Close("&$D$12&") when LocalYear("&$D$12&")="&$D$4&" and localMonth("&$D$12&") ="&$E$4&" and LocalDay("&$D$12&")="&$F$4&" and Barix("&$D$12&",reference:=StartOfSession)="&A57&"", "Bar", "", "Close","5","0","PrimaryOnly",,,"False","T","EveryTick") -> 191.68 | O57: -0.003120449345 | P57: =RTD("cqg.rtd",,"StudyData", "Close("&$D$12&") when LocalYear("&$D$12&")="&$D$5&" and localMonth("&$D$12&") ="&$E$5&" and LocalDay("&$D$12&")="&$F$5&" and Barix("&$D$12&",reference:=StartOfSession)="&A57&"", "Bar", "", "Close","5","0","PrimaryOnly",,,"False","T","EveryTick") -> 192.1 | Q57: 0.004549495372 | R57: =RTD("cqg.rtd",,"StudyData", "Close("&$D$12&") when LocalYear("&$D$12&")="&$D$6&" and localMonth("&$D$12&") ="&$E$6&" and LocalDay("&$D$12&")="&$F$6&" and Barix("&$D$12&",reference:=StartOfSession)="&A57&"", "Bar", "", "Close","5","0","PrimaryOnly",,,"False","T","EveryTick") -> 191.22 | S57: -0.002503912363 | T57: =RTD("cqg.rtd",,"StudyData", "Close("&$D$12&") when LocalYear("&$D$12&")="&$D$7&" and localMonth("&$D$12&") ="&$E$7&" and LocalDay("&$D$12&")="&$F$7&" and Barix("&$D$12&",reference:=StartOfSession)="&A57&"", "Bar", "", "Close","5","0","PrimaryOnly",,,"False","T","EveryTick") -> 191.44 | U57: -0.01044143492 | V57: =RTD("cqg.rtd",,"StudyData", "Close("&$D$12&") when LocalYear("&$D$12&")="&$D$8&" and localMonth("&$D$12&") ="&$E$8&" and LocalDay("&$D$12&")="&$F$8&" and Barix("&$D$12&",reference:=StartOfSession)="&A57&"", "Bar", "", "Close","5","0","PrimaryOnly",,,"False","T","EveryTick") -> 192.98 | W57: -0.005155170636 | X57: =RTD("cqg.rtd",,"StudyData", "Close("&$D$12&") when LocalYear("&$D$12&")="&$D$9&" and localMonth("&$D$12&") ="&$E$9&" and LocalDay("&$D$12&")="&$F$9&" and Barix("&$D$12&",reference:=StartOfSession)="&A57&"", "Bar", "", "Close","5","0","PrimaryOnly",,,"False","T","EveryTick") -> 192.94 | Y57: -0.001914024106 | Z57: =RTD("cqg.rtd",,"StudyData", "Close("&$D$12&") when LocalYear("&$D$12&")="&$D$10&" and localMonth("&$D$12&") ="&$E$10&" and LocalDay("&$D$12&")="&$F$10&" and Barix("&$D$12&",reference:=StartOfSession)="&A57&"", "Bar", "", "Close","5","0","PrimaryOnly",,,"False","T","EveryTick") -> 193.07 | AA57: 0.006464056717
A58: 57 | B58: 13:15:00 | C58: -20 | D58: =RTD("cqg.rtd",,"StudyData", $D$12, "Tick", "FlatTicks=0", "Tick","D",C58,"PrimaryOnly") -> 187.89 | H58: =RTD("cqg.rtd",,"StudyData", "Close("&$D$12&") when LocalYear("&$D$12&")="&$D$1&" and localMonth("&$D$12&") ="&$E$1&" and LocalDay("&$D$12&")="&$F$1&" and Barix("&$D$12&",reference:=StartOfSession)="&A58&"", "Bar", "", "Close","5","0","PrimaryOnly",,,"False","T","EveryTick") ->  | J58: =RTD("cqg.rtd",,"StudyData", "Close("&$D$12&") when LocalYear("&$D$12&")="&$D$2&" and localMonth("&$D$12&") ="&$E$2&" and LocalDay("&$D$12&")="&$F$2&" and Barix("&$D$12&",reference:=StartOfSession)="&A58&"", "Bar", "", "Close","5","0","PrimaryOnly",,,"False","T","EveryTick") -> 189.01 | K58: -0.009381551363 | L58: =RTD("cqg.rtd",,"StudyData", "Close("&$D$12&") when LocalYear("&$D$12&")="&$D$3&" and localMonth("&$D$12&") ="&$E$3&" and LocalDay("&$D$12&")="&$F$3&" and Barix("&$D$12&",reference:=StartOfSession)="&A58&"", "Bar", "", "Close","5","0","PrimaryOnly",,,"False","T","EveryTick") -> 191.01 | M58: 0.001625589932 | N58: =RTD("cqg.rtd",,"StudyData", "Close("&$D$12&") when LocalYear("&$D$12&")="&$D$4&" and localMonth("&$D$12&") ="&$E$4&" and LocalDay("&$D$12&")="&$F$4&" and Barix("&$D$12&",reference:=StartOfSession)="&A58&"", "Bar", "", "Close","5","0","PrimaryOnly",,,"False","T","EveryTick") -> 191.45 | O58: -0.004316621594 | P58: =RTD("cqg.rtd",,"StudyData", "Close("&$D$12&") when LocalYear("&$D$12&")="&$D$5&" and localMonth("&$D$12&") ="&$E$5&" and LocalDay("&$D$12&")="&$F$5&" and Barix("&$D$12&",reference:=StartOfSession)="&A58&"", "Bar", "", "Close","5","0","PrimaryOnly",,,"False","T","EveryTick") -> 191.97 | Q58: 0.003869685719 | R58: =RTD("cqg.rtd",,"StudyData", "Close("&$D$12&") when LocalYear("&$D$12&")="&$D$6&" and localMonth("&$D$12&") ="&$E$6&" and LocalDay("&$D$12&")="&$F$6&" and Barix("&$D$12&",reference:=StartOfSession)="&A58&"", "Bar", "", "Close","5","0","PrimaryOnly",,,"False","T","EveryTick") -> 191.39 | S58: -0.001617110068 | T58: =RTD("cqg.rtd",,"StudyData", "Close("&$D$12&") when LocalYear("&$D$12&")="&$D$7&" and localMonth("&$D$12&") ="&$E$7&" and LocalDay("&$D$12&")="&$F$7&" and Barix("&$D$12&",reference:=StartOfSession)="&A58&"", "Bar", "", "Close","5","0","PrimaryOnly",,,"False","T","EveryTick") -> 191.39 | U58: -0.01069988628 | V58: =RTD("cqg.rtd",,"StudyData", "Close("&$D$12&") when LocalYear("&$D$12&")="&$D$8&" and localMonth("&$D$12&") ="&$E$8&" and LocalDay("&$D$12&")="&$F$8&" and Barix("&$D$12&",reference:=StartOfSession)="&A58&"", "Bar", "", "Close","5","0","PrimaryOnly",,,"False","T","EveryTick") -> 193.01 | W58: -0.005000515517 | X58: =RTD("cqg.rtd",,"StudyData", "Close("&$D$12&") when LocalYear("&$D$12&")="&$D$9&" and localMonth("&$D$12&") ="&$E$9&" and LocalDay("&$D$12&")="&$F$9&" and Barix("&$D$12&",reference:=StartOfSession)="&A58&"", "Bar", "", "Close","5","0","PrimaryOnly",,,"False","T","EveryTick") -> 192.93 | Y58: -0.001965754488 | Z58: =RTD("cqg.rtd",,"StudyData", "Close("&$D$12&") when LocalYear("&$D$12&")="&$D$10&" and localMonth("&$D$12&") ="&$E$10&" and LocalDay("&$D$12&")="&$F$10&" and Barix("&$D$12&",reference:=StartOfSession)="&A58&"", "Bar", "", "Close","5","0","PrimaryOnly",,,"False","T","EveryTick") -> 193.14 | AA58: 0.006828963144
A59: 58 | B59: 13:20:00 | C59: =C58+1 -> -19 | D59: =RTD("cqg.rtd",,"StudyData", $D$12, "Tick", "FlatTicks=0", "Tick","D",C59,"PrimaryOnly") -> 187.88 | H59: =RTD("cqg.rtd",,"StudyData", "Close("&$D$12&") when LocalYear("&$D$12&")="&$D$1&" and localMonth("&$D$12&") ="&$E$1&" and LocalDay("&$D$12&")="&$F$1&" and Barix("&$D$12&",reference:=StartOfSession)="&A59&"", "Bar", "", "Close","5","0","PrimaryOnly",,,"False","T","EveryTick") ->  | J59: =RTD("cqg.rtd",,"StudyData", "Close("&$D$12&") when LocalYear("&$D$12&")="&$D$2&" and localMonth("&$D$12&") ="&$E$2&" and LocalDay("&$D$12&")="&$F$2&" and Barix("&$D$12&",reference:=StartOfSession)="&A59&"", "Bar", "", "Close","5","0","PrimaryOnly",,,"False","T","EveryTick") -> 189.34 | K59: -0.007651991614 | L59: =RTD("cqg.rtd",,"StudyData", "Close("&$D$12&") when LocalYear("&$D$12&")="&$D$3&" and localMonth("&$D$12&") ="&$E$3&" and LocalDay("&$D$12&")="&$F$3&" and Barix("&$D$12&",reference:=StartOfSession)="&A59&"", "Bar", "", "Close","5","0","PrimaryOnly",,,"False","T","EveryTick") -> 191.04 | M59: 0.001782905087 | N59: =RTD("cqg.rtd",,"StudyData", "Close("&$D$12&") when LocalYear("&$D$12&")="&$D$4&" and localMonth("&$D$12&") ="&$E$4&" and LocalDay("&$D$12&")="&$F$4&" and Barix("&$D$12&",reference:=StartOfSession)="&A59&"", "Bar", "", "Close","5","0","PrimaryOnly",,,"False","T","EveryTick") -> 190.96 | O59: -0.006864988558 | P59: =RTD("cqg.rtd",,"StudyData", "Close("&$D$12&") when LocalYear("&$D$12&")="&$D$5&" and localMonth("&$D$12&") ="&$E$5&" and LocalDay("&$D$12&")="&$F$5&" and Barix("&$D$12&",reference:=StartOfSession)="&A59&"", "Bar", "", "Close","5","0","PrimaryOnly",,,"False","T","EveryTick") -> 191.88 | Q59: 0.003399048266 | R59: =RTD("cqg.rtd",,"StudyData", "Close("&$D$12&") when LocalYear("&$D$12&")="&$D$6&" and localMonth("&$D$12&") ="&$E$6&" and LocalDay("&$D$12&")="&$F$6&" and Barix("&$D$12&",reference:=StartOfSession)="&A59&"", "Bar", "", "Close","5","0","PrimaryOnly",,,"False","T","EveryTick") -> 191.47 | S59: -0.001199791341 | T59: =RTD("cqg.rtd",,"StudyData", "Close("&$D$12&") when LocalYear("&$D$12&")="&$D$7&" and localMonth("&$D$12&") ="&$E$7&" and LocalDay("&$D$12&")="&$F$7&" and Barix("&$D$12&",reference:=StartOfSession)="&A59&"", "Bar", "", "Close","5","0","PrimaryOnly",,,"False","T","EveryTick") -> 191.29 | U59: -0.011216789 | V59: =RTD("cqg.rtd",,"StudyData", "Close("&$D$12&") when LocalYear("&$D$12&")="&$D$8&" and localMonth("&$D$12&") ="&$E$8&" and LocalDay("&$D$12&")="&$F$8&" and Barix("&$D$12&",reference:=StartOfSession)="&A59&"", "Bar", "", "Close","5","0","PrimaryOnly",,,"False","T","EveryTick") -> 193 | W59: -0.005052067223 | X59: =RTD("cqg.rtd",,"StudyData", "Close("&$D$12&") when LocalYear("&$D$12&")="&$D$9&" and localMonth("&$D$12&") ="&$E$9&" and LocalDay("&$D$12&")="&$F$9&" and Barix("&$D$12&",reference:=StartOfSession)="&A59&"", "Bar", "", "Close","5","0","PrimaryOnly",,,"False","T","EveryTick") -> 192.98 | Y59: -0.001707102581 | Z59: =RTD("cqg.rtd",,"StudyData", "Close("&$D$12&") when LocalYear("&$D$12&")="&$D$10&" and localMonth("&$D$12&") ="&$E$10&" and LocalDay("&$D$12&")="&$F$10&" and Barix("&$D$12&",reference:=StartOfSession)="&A59&"", "Bar", "", "Close","5","0","PrimaryOnly",,,"False","T","EveryTick") -> 193.1 | AA59: 0.006620445186
A60: 59 | B60: 13:25:00 | C60: =C59+1 -> -18 | D60: =RTD("cqg.rtd",,"StudyData", $D$12, "Tick", "FlatTicks=0", "Tick","D",C60,"PrimaryOnly") -> 187.89 | H60: =RTD("cqg.rtd",,"StudyData", "Close("&$D$12&") when LocalYear("&$D$12&")="&$D$1&" and localMonth("&$D$12&") ="&$E$1&" and LocalDay("&$D$12&")="&$F$1&" and Barix("&$D$12&",reference:=StartOfSession)="&A60&"", "Bar", "", "Close","5","0","PrimaryOnly",,,"False","T","EveryTick") ->  | J60: =RTD("cqg.rtd",,"StudyData", "Close("&$D$12&") when LocalYear("&$D$12&")="&$D$2&" and localMonth("&$D$12&") ="&$E$2&" and LocalDay("&$D$12&")="&$F$2&" and Barix("&$D$12&",reference:=StartOfSession)="&A60&"", "Bar", "", "Close","5","0","PrimaryOnly",,,"False","T","EveryTick") -> 189.37 | K60: -0.00749475891 | L60: =RTD("cqg.rtd",,"StudyData", "Close("&$D$12&") when LocalYear("&$D$12&")="&$D$3&" and localMonth("&$D$12&") ="&$E$3&" and LocalDay("&$D$12&")="&$F$3&" and Barix("&$D$12&",reference:=StartOfSession)="&A60&"", "Bar", "", "Close","5","0","PrimaryOnly",,,"False","T","EveryTick") -> 190.97 | M60: 0.001415836392 | N60: =RTD("cqg.rtd",,"StudyData", "Close("&$D$12&") when LocalYear("&$D$12&")="&$D$4&" and localMonth("&$D$12&") ="&$E$4&" and LocalDay("&$D$12&")="&$F$4&" and Barix("&$D$12&",reference:=StartOfSession)="&A60&"", "Bar", "", "Close","5","0","PrimaryOnly",,,"False","T","EveryTick") -> 191.1 | O60: -0.006136883711 | P60: =RTD("cqg.rtd",,"StudyData", "Close("&$D$12&") when LocalYear("&$D$12&")="&$D$5&" and localMonth("&$D$12&") ="&$E$5&" and LocalDay("&$D$12&")="&$F$5&" and Barix("&$D$12&",reference:=StartOfSession)="&A60&"", "Bar", "", "Close","5","0","PrimaryOnly",,,"False","T","EveryTick") -> 191.56 | Q60: 0.001725670658 | R60: =RTD("cqg.rtd",,"StudyData", "Close("&$D$12&") when LocalYear("&$D$12&")="&$D$6&" and localMonth("&$D$12&") ="&$E$6&" and LocalDay("&$D$12&")="&$F$6&" and Barix("&$D$12&",reference:=StartOfSession)="&A60&"", "Bar", "", "Close","5","0","PrimaryOnly",,,"False","T","EveryTick") -> 191.42 | S60: -0.001460615545 | T60: =RTD("cqg.rtd",,"StudyData", "Close("&$D$12&") when LocalYear("&$D$12&")="&$D$7&" and localMonth("&$D$12&") ="&$E$7&" and LocalDay("&$D$12&")="&$F$7&" and Barix("&$D$12&",reference:=StartOfSession)="&A60&"", "Bar", "", "Close","5","0","PrimaryOnly",,,"False","T","EveryTick") -> 191.15 | U60: -0.01194045281 | V60: =RTD("cqg.rtd",,"StudyData", "Close("&$D$12&") when LocalYear("&$D$12&")="&$D$8&" and localMonth("&$D$12&") ="&$E$8&" and LocalDay("&$D$12&")="&$F$8&" and Barix("&$D$12&",reference:=StartOfSession)="&A60&"", "Bar", "", "Close","5","0","PrimaryOnly",,,"False","T","EveryTick") -> 192.99 | W60: -0.00510361893 | X60: =RTD("cqg.rtd",,"StudyData", "Close("&$D$12&") when LocalYear("&$D$12&")="&$D$9&" and localMonth("&$D$12&") ="&$E$9&" and LocalDay("&$D$12&")="&$F$9&" and Barix("&$D$12&",reference:=StartOfSession)="&A60&"", "Bar", "", "Close","5","0","PrimaryOnly",,,"False","T","EveryTick") -> 193.13 | Y60: -0.0009311468626 | Z60: =RTD("cqg.rtd",,"StudyData", "Close("&$D$12&") when LocalYear("&$D$12&")="&$D$10&" and localMonth("&$D$12&") ="&$E$10&" and LocalDay("&$D$12&")="&$F$10&" and Barix("&$D$12&",reference:=StartOfSession)="&A60&"", "Bar", "", "Close","5","0","PrimaryOnly",,,"False","T","EveryTick") -> 193.07 | AA60: 0.006464056717
A61: 60 | B61: 13:30:00 | C61: -17 | D61: =RTD("cqg.rtd",,"StudyData", $D$12, "Tick", "FlatTicks=0", "Tick","D",C61,"PrimaryOnly") -> 187.88 | H61: =RTD("cqg.rtd",,"StudyData", "Close("&$D$12&") when LocalYear("&$D$12&")="&$D$1&" and localMonth("&$D$12&") ="&$E$1&" and LocalDay("&$D$12&")="&$F$1&" and Barix("&$D$12&",reference:=StartOfSession)="&A61&"", "Bar", "", "Close","5","0","PrimaryOnly",,,"False","T","EveryTick") ->  | J61: =RTD("cqg.rtd",,"StudyData", "Close("&$D$12&") when LocalYear("&$D$12&")="&$D$2&" and localMonth("&$D$12&") ="&$E$2&" and LocalDay("&$D$12&")="&$F$2&" and Barix("&$D$12&",reference:=StartOfSession)="&A61&"", "Bar", "", "Close","5","0","PrimaryOnly",,,"False","T","EveryTick") -> 189.43 | K61: -0.007180293501 | L61: =RTD("cqg.rtd",,"StudyData", "Close("&$D$12&") when LocalYear("&$D$12&")="&$D$3&" and localMonth("&$D$12&") ="&$E$3&" and LocalDay("&$D$12&")="&$F$3&" and Barix("&$D$12&",reference:=StartOfSession)="&A61&"", "Bar", "", "Close","5","0","PrimaryOnly",,,"False","T","EveryTick") -> 190.92 | M61: 0.001153644468 | N61: =RTD("cqg.rtd",,"StudyData", "Close("&$D$12&") when LocalYear("&$D$12&")="&$D$4&" and localMonth("&$D$12&") ="&$E$4&" and LocalDay("&$D$12&")="&$F$4&" and Barix("&$D$12&",reference:=StartOfSession)="&A61&"", "Bar", "", "Close","5","0","PrimaryOnly",,,"False","T","EveryTick") -> 190.91 | O61: -0.007125026004 | P61: =RTD("cqg.rtd",,"StudyData", "Close("&$D$12&") when LocalYear("&$D$12&")="&$D$5&" and localMonth("&$D$12&") ="&$E$5&" and LocalDay("&$D$12&")="&$F$5&" and Barix("&$D$12&",reference:=StartOfSession)="&A61&"", "Bar", "", "Close","5","0","PrimaryOnly",,,"False","T","EveryTick") -> 191.35 | Q61: 0.000627516603 | R61: =RTD("cqg.rtd",,"StudyData", "Close("&$D$12&") when LocalYear("&$D$12&")="&$D$6&" and localMonth("&$D$12&") ="&$E$6&" and LocalDay("&$D$12&")="&$F$6&" and Barix("&$D$12&",reference:=StartOfSession)="&A61&"", "Bar", "", "Close","5","0","PrimaryOnly",,,"False","T","EveryTick") -> 191.36 | S61: -0.001773604591 | T61: =RTD("cqg.rtd",,"StudyData", "Close("&$D$12&") when LocalYear("&$D$12&")="&$D$7&" and localMonth("&$D$12&") ="&$E$7&" and LocalDay("&$D$12&")="&$F$7&" and Barix("&$D$12&",reference:=StartOfSession)="&A61&"", "Bar", "", "Close","5","0","PrimaryOnly",,,"False","T","EveryTick") -> 191.27 | U61: -0.01132016954 | V61: =RTD("cqg.rtd",,"StudyData", "Close("&$D$12&") when LocalYear("&$D$12&")="&$D$8&" and localMonth("&$D$12&") ="&$E$8&" and LocalDay("&$D$12&")="&$F$8&" and Barix("&$D$12&",reference:=StartOfSession)="&A61&"", "Bar", "", "Close","5","0","PrimaryOnly",,,"False","T","EveryTick") -> 193.21 | W61: -0.00396948139 | X61: =RTD("cqg.rtd",,"StudyData", "Close("&$D$12&") when LocalYear("&$D$12&")="&$D$9&" and localMonth("&$D$12&") ="&$E$9&" and LocalDay("&$D$12&")="&$F$9&" and Barix("&$D$12&",reference:=StartOfSession)="&A61&"", "Bar", "", "Close","5","0","PrimaryOnly",,,"False","T","EveryTick") -> 193.21 | Y61: -0.0005173038125 | Z61: =RTD("cqg.rtd",,"StudyData", "Close("&$D$12&") when LocalYear("&$D$12&")="&$D$10&" and localMonth("&$D$12&") ="&$E$10&" and LocalDay("&$D$12&")="&$F$10&" and Barix("&$D$12&",reference:=StartOfSession)="&A61&"", "Bar", "", "Close","5","0","PrimaryOnly",,,"False","T","EveryTick") -> 193 | AA61: 0.006099150289
A62: 61 | B62: 13:35:00 | C62: -16 | D62: =RTD("cqg.rtd",,"StudyData", $D$12, "Tick", "FlatTicks=0", "Tick","D",C62,"PrimaryOnly") -> 187.89 | H62: =RTD("cqg.rtd",,"StudyData", "Close("&$D$12&") when LocalYear("&$D$12&")="&$D$1&" and localMonth("&$D$12&") ="&$E$1&" and LocalDay("&$D$12&")="&$F$1&" and Barix("&$D$12&",reference:=StartOfSession)="&A62&"", "Bar", "", "Close","5","0","PrimaryOnly",,,"False","T","EveryTick") ->  | J62: =RTD("cqg.rtd",,"StudyData", "Close("&$D$12&") when LocalYear("&$D$12&")="&$D$2&" and localMonth("&$D$12&") ="&$E$2&" and LocalDay("&$D$12&")="&$F$2&" and Barix("&$D$12&",reference:=StartOfSession)="&A62&"", "Bar", "", "Close","5","0","PrimaryOnly",,,"False","T","EveryTick") -> 189.27 | K62: -0.008018867925 | L62: =RTD("cqg.rtd",,"StudyData", "Close("&$D$12&") when LocalYear("&$D$12&")="&$D$3&" and localMonth("&$D$12&") ="&$E$3&" and LocalDay("&$D$12&")="&$F$3&" and Barix("&$D$12&",reference:=StartOfSession)="&A62&"", "Bar", "", "Close","5","0","PrimaryOnly",,,"False","T","EveryTick") -> 190.91 | M62: 0.001101206083 | N62: =RTD("cqg.rtd",,"StudyData", "Close("&$D$12&") when LocalYear("&$D$12&")="&$D$4&" and localMonth("&$D$12&") ="&$E$4&" and LocalDay("&$D$12&")="&$F$4&" and Barix("&$D$12&",reference:=StartOfSession)="&A62&"", "Bar", "", "Close","5","0","PrimaryOnly",,,"False","T","EveryTick") -> 191.17 | O62: -0.005772831288 | P62: =RTD("cqg.rtd",,"StudyData", "Close("&$D$12&") when LocalYear("&$D$12&")="&$D$5&" and localMonth("&$D$12&") ="&$E$5&" and LocalDay("&$D$12&")="&$F$5&" and Barix("&$D$12&",reference:=StartOfSession)="&A62&"", "Bar", "", "Close","5","0","PrimaryOnly",,,"False","T","EveryTick") -> 191.52 | Q62: 0.001516498457 | R62: =RTD("cqg.rtd",,"StudyData", "Close("&$D$12&") when LocalYear("&$D$12&")="&$D$6&" and localMonth("&$D$12&") ="&$E$6&" and LocalDay("&$D$12&")="&$F$6&" and Barix("&$D$12&",reference:=StartOfSession)="&A62&"", "Bar", "", "Close","5","0","PrimaryOnly",,,"False","T","EveryTick") -> 191.33 | S62: -0.001930099113 | T62: =RTD("cqg.rtd",,"StudyData", "Close("&$D$12&") when LocalYear("&$D$12&")="&$D$7&" and localMonth("&$D$12&") ="&$E$7&" and LocalDay("&$D$12&")="&$F$7&" and Barix("&$D$12&",reference:=StartOfSession)="&A62&"", "Bar", "", "Close","5","0","PrimaryOnly",,,"False","T","EveryTick") -> 191.36 | U62: -0.0108549571 | V62: =RTD("cqg.rtd",,"StudyData", "Close("&$D$12&") when LocalYear("&$D$12&")="&$D$8&" and localMonth("&$D$12&") ="&$E$8&" and LocalDay("&$D$12&")="&$F$8&" and Barix("&$D$12&",reference:=StartOfSession)="&A62&"", "Bar", "", "Close","5","0","PrimaryOnly",,,"False","T","EveryTick") -> 193.33 | W62: -0.003350860913 | X62: =RTD("cqg.rtd",,"StudyData", "Close("&$D$12&") when LocalYear("&$D$12&")="&$D$9&" and localMonth("&$D$12&") ="&$E$9&" and LocalDay("&$D$12&")="&$F$9&" and Barix("&$D$12&",reference:=StartOfSession)="&A62&"", "Bar", "", "Close","5","0","PrimaryOnly",,,"False","T","EveryTick") -> 193.36 | Y62: 0.0002586519063 | Z62: =RTD("cqg.rtd",,"StudyData", "Close("&$D$12&") when LocalYear("&$D$12&")="&$D$10&" and localMonth("&$D$12&") ="&$E$10&" and LocalDay("&$D$12&")="&$F$10&" and Barix("&$D$12&",reference:=StartOfSession)="&A62&"", "Bar", "", "Close","5","0","PrimaryOnly",,,"False","T","EveryTick") -> 192.94 | AA62: 0.005786373351
A63: 62 | B63: 13:40:00 | C63: -15 | D63: =RTD("cqg.rtd",,"StudyData", $D$12, "Tick", "FlatTicks=0", "Tick","D",C63,"PrimaryOnly") -> 187.88 | H63: =RTD("cqg.rtd",,"StudyData", "Close("&$D$12&") when LocalYear("&$D$12&")="&$D$1&" and localMonth("&$D$12&") ="&$E$1&" and LocalDay("&$D$12&")="&$F$1&" and Barix("&$D$12&",reference:=StartOfSession)="&A63&"", "Bar", "", "Close","5","0","PrimaryOnly",,,"False","T","EveryTick") ->  | J63: =RTD("cqg.rtd",,"StudyData", "Close("&$D$12&") when LocalYear("&$D$12&")="&$D$2&" and localMonth("&$D$12&") ="&$E$2&" and LocalDay("&$D$12&")="&$F$2&" and Barix("&$D$12&",reference:=StartOfSession)="&A63&"", "Bar", "", "Close","5","0","PrimaryOnly",,,"False","T","EveryTick") -> 189.26 | K63: -0.008071278826 | L63: =RTD("cqg.rtd",,"StudyData", "Close("&$D$12&") when LocalYear("&$D$12&")="&$D$3&" and localMonth("&$D$12&") ="&$E$3&" and LocalDay("&$D$12&")="&$F$3&" and Barix("&$D$12&",reference:=StartOfSession)="&A63&"", "Bar", "", "Close","5","0","PrimaryOnly",,,"False","T","EveryTick") -> 190.91 | M63: 0.001101206083 | N63: =RTD("cqg.rtd",,"StudyData", "Close("&$D$12&") when LocalYear("&$D$12&")="&$D$4&" and localMonth("&$D$12&") ="&$E$4&" and LocalDay("&$D$12&")="&$F$4&" and Barix("&$D$12&",reference:=StartOfSession)="&A63&"", "Bar", "", "Close","5","0","PrimaryOnly",,,"False","T","EveryTick") -> 191.17 | O63: -0.005772831288 | P63: =RTD("cqg.rtd",,"StudyData", "Close("&$D$12&") when LocalYear("&$D$12&")="&$D$5&" and localMonth("&$D$12&") ="&$E$5&" and LocalDay("&$D$12&")="&$F$5&" and Barix("&$D$12&",reference:=StartOfSession)="&A63&"", "Bar", "", "Close","5","0","PrimaryOnly",,,"False","T","EveryTick") -> 191.54 | Q63: 0.001621084558 | R63: =RTD("cqg.rtd",,"StudyData", "Close("&$D$12&") when LocalYear("&$D$12&")="&$D$6&" and localMonth("&$D$12&") ="&$E$6&" and LocalDay("&$D$12&")="&$F$6&" and Barix("&$D$12&",reference:=StartOfSession)="&A63&"", "Bar", "", "Close","5","0","PrimaryOnly",,,"False","T","EveryTick") -> 191.27 | S63: -0.002243088159 | T63: =RTD("cqg.rtd",,"StudyData", "Close("&$D$12&") when LocalYear("&$D$12&")="&$D$7&" and localMonth("&$D$12&") ="&$E$7&" and LocalDay("&$D$12&")="&$F$7&" and Barix("&$D$12&",reference:=StartOfSession)="&A63&"", "Bar", "", "Close","5","0","PrimaryOnly",,,"False","T","EveryTick") -> 191.46 | U63: -0.01033805438 | V63: =RTD("cqg.rtd",,"StudyData", "Close("&$D$12&") when LocalYear("&$D$12&")="&$D$8&" and localMonth("&$D$12&") ="&$E$8&" and LocalDay("&$D$12&")="&$F$8&" and Barix("&$D$12&",reference:=StartOfSession)="&A63&"", "Bar", "", "Close","5","0","PrimaryOnly",,,"False","T","EveryTick") -> 193.25 | W63: -0.003763274564 | X63: =RTD("cqg.rtd",,"StudyData", "Close("&$D$12&") when LocalYear("&$D$12&")="&$D$9&" and localMonth("&$D$12&") ="&$E$9&" and LocalDay("&$D$12&")="&$F$9&" and Barix("&$D$12&",reference:=StartOfSession)="&A63&"", "Bar", "", "Close","5","0","PrimaryOnly",,,"False","T","EveryTick") -> 193.48 | Y63: 0.0008794164813 | Z63: =RTD("cqg.rtd",,"StudyData", "Close("&$D$12&") when LocalYear("&$D$12&")="&$D$10&" and localMonth("&$D$12&") ="&$E$10&" and LocalDay("&$D$12&")="&$F$10&" and Barix("&$D$12&",reference:=StartOfSession)="&A63&"", "Bar", "", "Close","5","0","PrimaryOnly",,,"False","T","EveryTick") -> 192.97 | AA63: 0.00594276182
A64: 63 | B64: 13:45:00 | C64: -14 | D64: =RTD("cqg.rtd",,"StudyData", $D$12, "Tick", "FlatTicks=0", "Tick","D",C64,"PrimaryOnly") -> 187.89 | H64: =RTD("cqg.rtd",,"StudyData", "Close("&$D$12&") when LocalYear("&$D$12&")="&$D$1&" and localMonth("&$D$12&") ="&$E$1&" and LocalDay("&$D$12&")="&$F$1&" and Barix("&$D$12&",reference:=StartOfSession)="&A64&"", "Bar", "", "Close","5","0","PrimaryOnly",,,"False","T","EveryTick") ->  | J64: =RTD("cqg.rtd",,"StudyData", "Close("&$D$12&") when LocalYear("&$D$12&")="&$D$2&" and localMonth("&$D$12&") ="&$E$2&" and LocalDay("&$D$12&")="&$F$2&" and Barix("&$D$12&",reference:=StartOfSession)="&A64&"", "Bar", "", "Close","5","0","PrimaryOnly",,,"False","T","EveryTick") -> 189.11 | K64: -0.008857442348 | L64: =RTD("cqg.rtd",,"StudyData", "Close("&$D$12&") when LocalYear("&$D$12&")="&$D$3&" and localMonth("&$D$12&") ="&$E$3&" and LocalDay("&$D$12&")="&$F$3&" and Barix("&$D$12&",reference:=StartOfSession)="&A64&"", "Bar", "", "Close","5","0","PrimaryOnly",,,"False","T","EveryTick") -> 190.87 | M64: 0.0008914525433 | N64: =RTD("cqg.rtd",,"StudyData", "Close("&$D$12&") when LocalYear("&$D$12&")="&$D$4&" and localMonth("&$D$12&") ="&$E$4&" and LocalDay("&$D$12&")="&$F$4&" and Barix("&$D$12&",reference:=StartOfSession)="&A64&"", "Bar", "", "Close","5","0","PrimaryOnly",,,"False","T","EveryTick") -> 190.97 | O64: -0.006812981069 | P64: =RTD("cqg.rtd",,"StudyData", "Close("&$D$12&") when LocalYear("&$D$12&")="&$D$5&" and localMonth("&$D$12&") ="&$E$5&" and LocalDay("&$D$12&")="&$F$5&" and Barix("&$D$12&",reference:=StartOfSession)="&A64&"", "Bar", "", "Close","5","0","PrimaryOnly",,,"False","T","EveryTick") -> 191.46 | Q64: 0.001202740156 | R64: =RTD("cqg.rtd",,"StudyData", "Close("&$D$12&") when LocalYear("&$D$12&")="&$D$6&" and localMonth("&$D$12&") ="&$E$6&" and LocalDay("&$D$12&")="&$F$6&" and Barix("&$D$12&",reference:=StartOfSession)="&A64&"", "Bar", "", "Close","5","0","PrimaryOnly",,,"False","T","EveryTick") -> 191.31 | S64: -0.002034428795 | T64: =RTD("cqg.rtd",,"StudyData", "Close("&$D$12&") when LocalYear("&$D$12&")="&$D$7&" and localMonth("&$D$12&") ="&$E$7&" and LocalDay("&$D$12&")="&$F$7&" and Barix("&$D$12&",reference:=StartOfSession)="&A64&"", "Bar", "", "Close","5","0","PrimaryOnly",,,"False","T","EveryTick") -> 191.35 | U64: -0.01090664737 | V64: =RTD("cqg.rtd",,"StudyData", "Close("&$D$12&") when LocalYear("&$D$12&")="&$D$8&" and localMonth("&$D$12&") ="&$E$8&" and LocalDay("&$D$12&")="&$F$8&" and Barix("&$D$12&",reference:=StartOfSession)="&A64&"", "Bar", "", "Close","5","0","PrimaryOnly",,,"False","T","EveryTick") -> 193.42 | W64: -0.002886895556 | X64: =RTD("cqg.rtd",,"StudyData", "Close("&$D$12&") when LocalYear("&$D$12&")="&$D$9&" and localMonth("&$D$12&") ="&$E$9&" and LocalDay("&$D$12&")="&$F$9&" and Barix("&$D$12&",reference:=StartOfSession)="&A64&"", "Bar", "", "Close","5","0","PrimaryOnly",,,"False","T","EveryTick") -> 193.42 | Y64: 0.0005690341938 | Z64: =RTD("cqg.rtd",,"StudyData", "Close("&$D$12&") when LocalYear("&$D$12&")="&$D$10&" and localMonth("&$D$12&") ="&$E$10&" and LocalDay("&$D$12&")="&$F$10&" and Barix("&$D$12&",reference:=StartOfSession)="&A64&"", "Bar", "", "Close","5","0","PrimaryOnly",,,"False","T","EveryTick") -> 193.06 | AA64: 0.006411927227
A65: 64 | B65: 13:50:00 | C65: -13 | D65: =RTD("cqg.rtd",,"StudyData", $D$12, "Tick", "FlatTicks=0", "Tick","D",C65,"PrimaryOnly") -> 187.88 | H65: =RTD("cqg.rtd",,"StudyData", "Close("&$D$12&") when LocalYear("&$D$12&")="&$D$1&" and localMonth("&$D$12&") ="&$E$1&" and LocalDay("&$D$12&")="&$F$1&" and Barix("&$D$12&",reference:=StartOfSession)="&A65&"", "Bar", "", "Close","5","0","PrimaryOnly",,,"False","T","EveryTick") ->  | J65: =RTD("cqg.rtd",,"StudyData", "Close("&$D$12&") when LocalYear("&$D$12&")="&$D$2&" and localMonth("&$D$12&") ="&$E$2&" and LocalDay("&$D$12&")="&$F$2&" and Barix("&$D$12&",reference:=StartOfSession)="&A65&"", "Bar", "", "Close","5","0","PrimaryOnly",,,"False","T","EveryTick") -> 189.17 | K65: -0.008542976939 | L65: =RTD("cqg.rtd",,"StudyData", "Close("&$D$12&") when LocalYear("&$D$12&")="&$D$3&" and localMonth("&$D$12&") ="&$E$3&" and LocalDay("&$D$12&")="&$F$3&" and Barix("&$D$12&",reference:=StartOfSession)="&A65&"", "Bar", "", "Close","5","0","PrimaryOnly",,,"False","T","EveryTick") -> 190.79 | M65: 0.0004719454641 | N65: =RTD("cqg.rtd",,"StudyData", "Close("&$D$12&") when LocalYear("&$D$12&")="&$D$4&" and localMonth("&$D$12&") ="&$E$4&" and LocalDay("&$D$12&")="&$F$4&" and Barix("&$D$12&",reference:=StartOfSession)="&A65&"", "Bar", "", "Close","5","0","PrimaryOnly",,,"False","T","EveryTick") -> 191.17 | O65: -0.005772831288 | P65: =RTD("cqg.rtd",,"StudyData", "Close("&$D$12&") when LocalYear("&$D$12&")="&$D$5&" and localMonth("&$D$12&") ="&$E$5&" and LocalDay("&$D$12&")="&$F$5&" and Barix("&$D$12&",reference:=StartOfSession)="&A65&"", "Bar", "", "Close","5","0","PrimaryOnly",,,"False","T","EveryTick") -> 191.52 | Q65: 0.001516498457 | R65: =RTD("cqg.rtd",,"StudyData", "Close("&$D$12&") when LocalYear("&$D$12&")="&$D$6&" and localMonth("&$D$12&") ="&$E$6&" and LocalDay("&$D$12&")="&$F$6&" and Barix("&$D$12&",reference:=StartOfSession)="&A65&"", "Bar", "", "Close","5","0","PrimaryOnly",,,"False","T","EveryTick") -> 191.23 | S65: -0.002451747522 | T65: =RTD("cqg.rtd",,"StudyData", "Close("&$D$12&") when LocalYear("&$D$12&")="&$D$7&" and localMonth("&$D$12&") ="&$E$7&" and LocalDay("&$D$12&")="&$F$7&" and Barix("&$D$12&",reference:=StartOfSession)="&A65&"", "Bar", "", "Close","5","0","PrimaryOnly",,,"False","T","EveryTick") -> 191.41 | U65: -0.01059650574 | V65: =RTD("cqg.rtd",,"StudyData", "Close("&$D$12&") when LocalYear("&$D$12&")="&$D$8&" and localMonth("&$D$12&") ="&$E$8&" and LocalDay("&$D$12&")="&$F$8&" and Barix("&$D$12&",reference:=StartOfSession)="&A65&"", "Bar", "", "Close","5","0","PrimaryOnly",,,"False","T","EveryTick") -> 193.37 | W65: -0.003144654088 | X65: =RTD("cqg.rtd",,"StudyData", "Close("&$D$12&") when LocalYear("&$D$12&")="&$D$9&" and localMonth("&$D$12&") ="&$E$9&" and LocalDay("&$D$12&")="&$F$9&" and Barix("&$D$12&",reference:=StartOfSession)="&A65&"", "Bar", "", "Close","5","0","PrimaryOnly",,,"False","T","EveryTick") -> 193.39 | Y65: 0.00041384305 | Z65: =RTD("cqg.rtd",,"StudyData", "Close("&$D$12&") when LocalYear("&$D$12&")="&$D$10&" and localMonth("&$D$12&") ="&$E$10&" and LocalDay("&$D$12&")="&$F$10&" and Barix("&$D$12&",reference:=StartOfSession)="&A65&"", "Bar", "", "Close","5","0","PrimaryOnly",,,"False","T","EveryTick") -> 193.25 | AA65: 0.007402387531
A66: 65 | B66: 13:55:00 | C66: -12 | D66: =RTD("cqg.rtd",,"StudyData", $D$12, "Tick", "FlatTicks=0", "Tick","D",C66,"PrimaryOnly") -> 187.89 | H66: =RTD("cqg.rtd",,"StudyData", "Close("&$D$12&") when LocalYear("&$D$12&")="&$D$1&" and localMonth("&$D$12&") ="&$E$1&" and LocalDay("&$D$12&")="&$F$1&" and Barix("&$D$12&",reference:=StartOfSession)="&A66&"", "Bar", "", "Close","5","0","PrimaryOnly",,,"False","T","EveryTick") ->  | J66: =RTD("cqg.rtd",,"StudyData", "Close("&$D$12&") when LocalYear("&$D$12&")="&$D$2&" and localMonth("&$D$12&") ="&$E$2&" and LocalDay("&$D$12&")="&$F$2&" and Barix("&$D$12&",reference:=StartOfSession)="&A66&"", "Bar", "", "Close","5","0","PrimaryOnly",,,"False","T","EveryTick") -> 189.23 | K66: =IFERROR((J66-$G$3)/$G$3,NA()) -> -0.00822851153 | L66: =RTD("cqg.rtd",,"StudyData", "Close("&$D$12&") when LocalYear("&$D$12&")="&$D$3&" and localMonth("&$D$12&") ="&$E$3&" and LocalDay("&$D$12&")="&$F$3&" and Barix("&$D$12&",reference:=StartOfSession)="&A66&"", "Bar", "", "Close","5","0","PrimaryOnly",,,"False","T","EveryTick") -> 190.6 | M66: =IFERROR((L66-$G$4)/$G$4,NA()) -> -0.000524383849 | N66: =RTD("cqg.rtd",,"StudyData", "Close("&$D$12&") when LocalYear("&$D$12&")="&$D$4&" and localMonth("&$D$12&") ="&$E$4&" and LocalDay("&$D$12&")="&$F$4&" and Barix("&$D$12&",reference:=StartOfSession)="&A66&"", "Bar", "", "Close","5","0","PrimaryOnly",,,"False","T","EveryTick") -> 191.47 | O66: =IFERROR((N66-$G$5)/$G$5,NA()) -> -0.004212606615 | P66: =RTD("cqg.rtd",,"StudyData", "Close("&$D$12&") when LocalYear("&$D$12&")="&$D$5&" and localMonth("&$D$12&") ="&$E$5&" and LocalDay("&$D$12&")="&$F$5&" and Barix("&$D$12&",reference:=StartOfSession)="&A66&"", "Bar", "", "Close","5","0","PrimaryOnly",,,"False","T","EveryTick") -> 191.31 | Q66: =IFERROR((P66-$G$6)/$G$6,NA()) -> 0.000418344402 | R66: =RTD("cqg.rtd",,"StudyData", "Close("&$D$12&") when LocalYear("&$D$12&")="&$D$6&" and localMonth("&$D$12&") ="&$E$6&" and LocalDay("&$D$12&")="&$F$6&" and Barix("&$D$12&",reference:=StartOfSession)="&A66&"", "Bar", "", "Close","5","0","PrimaryOnly",,,"False","T","EveryTick") -> 191.38 | S66: =IFERROR((R66-$G$7)/$G$7,NA()) -> -0.001669274909 | T66: =RTD("cqg.rtd",,"StudyData", "Close("&$D$12&") when LocalYear("&$D$12&")="&$D$7&" and localMonth("&$D$12&") ="&$E$7&" and LocalDay("&$D$12&")="&$F$7&" and Barix("&$D$12&",reference:=StartOfSession)="&A66&"", "Bar", "", "Close","5","0","PrimaryOnly",,,"False","T","EveryTick") -> 191.39 | U66: =IFERROR((T66-$G$8)/$G$8,NA()) -> -0.01069988628 | V66: =RTD("cqg.rtd",,"StudyData", "Close("&$D$12&") when LocalYear("&$D$12&")="&$D$8&" and localMonth("&$D$12&") ="&$E$8&" and LocalDay("&$D$12&")="&$F$8&" and Barix("&$D$12&",reference:=StartOfSession)="&A66&"", "Bar", "", "Close","5","0","PrimaryOnly",,,"False","T","EveryTick") -> 193.36 | W66: =IFERROR((V66-$G$9)/$G$9,NA()) -> -0.003196205794 | X66: =RTD("cqg.rtd",,"StudyData", "Close("&$D$12&") when LocalYear("&$D$12&")="&$D$9&" and localMonth("&$D$12&") ="&$E$9&" and LocalDay("&$D$12&")="&$F$9&" and Barix("&$D$12&",reference:=StartOfSession)="&A66&"", "Bar", "", "Close","5","0","PrimaryOnly",,,"False","T","EveryTick") -> 193.44 | Y66: =IFERROR((X66-$G$10)/$G$10,NA()) -> 0.0006724949563 | Z66: =RTD("cqg.rtd",,"StudyData", "Close("&$D$12&") when LocalYear("&$D$12&")="&$D$10&" and localMonth("&$D$12&") ="&$E$10&" and LocalDay("&$D$12&")="&$F$10&" and Barix("&$D$12&",reference:=StartOfSession)="&A66&"", "Bar", "", "Close","5","0","PrimaryOnly",,,"False","T","EveryTick") -> 193.23 | AA66: =IFERROR((Z66-$G$11)/$G$11,NA()) -> 0.007298128551
A67: =A66+1 -> 66 | B67: 14:00:00 | C67: -11 | D67: =RTD("cqg.rtd",,"StudyData", $D$12, "Tick", "FlatTicks=0", "Tick","D",C67,"PrimaryOnly") -> 187.9 | H67: =RTD("cqg.rtd",,"StudyData", "Close("&$D$12&") when LocalYear("&$D$12&")="&$D$1&" and localMonth("&$D$12&") ="&$E$1&" and LocalDay("&$D$12&")="&$F$1&" and Barix("&$D$12&",reference:=StartOfSession)="&A67&"", "Bar", "", "Close","5","0","PrimaryOnly",,,"False","T","EveryTick") ->  | I67: =IFERROR((H67-$G$2)/$G$2,NA()) ->  | J67: =RTD("cqg.rtd",,"StudyData", "Close("&$D$12&") when LocalYear("&$D$12&")="&$D$2&" and localMonth("&$D$12&") ="&$E$2&" and LocalDay("&$D$12&")="&$F$2&" and Barix("&$D$12&",reference:=StartOfSession)="&A67&"", "Bar", "", "Close","5","0","PrimaryOnly",,,"False","T","EveryTick") -> 189.01 | K67: -0.009381551363 | L67: =RTD("cqg.rtd",,"StudyData", "Close("&$D$12&") when LocalYear("&$D$12&")="&$D$3&" and localMonth("&$D$12&") ="&$E$3&" and LocalDay("&$D$12&")="&$F$3&" and Barix("&$D$12&",reference:=StartOfSession)="&A67&"", "Bar", "", "Close","5","0","PrimaryOnly",,,"False","T","EveryTick") -> 190.73 | M67: 0.0001573151547 | N67: =RTD("cqg.rtd",,"StudyData", "Close("&$D$12&") when LocalYear("&$D$12&")="&$D$4&" and localMonth("&$D$12&") ="&$E$4&" and LocalDay("&$D$12&")="&$F$4&" and Barix("&$D$12&",reference:=StartOfSession)="&A67&"", "Bar", "", "Close","5","0","PrimaryOnly",,,"False","T","EveryTick") -> 191.74 | O67: -0.00280840441 | P67: =RTD("cqg.rtd",,"StudyData", "Close("&$D$12&") when LocalYear("&$D$12&")="&$D$5&" and localMonth("&$D$12&") ="&$E$5&" and LocalDay("&$D$12&")="&$F$5&" and Barix("&$D$12&",reference:=StartOfSession)="&A67&"", "Bar", "", "Close","5","0","PrimaryOnly",,,"False","T","EveryTick") -> 191.43 | Q67: 0.001045861005 | R67: =RTD("cqg.rtd",,"StudyData", "Close("&$D$12&") when LocalYear("&$D$12&")="&$D$6&" and localMonth("&$D$12&") ="&$E$6&" and LocalDay("&$D$12&")="&$F$6&" and Barix("&$D$12&",reference:=StartOfSession)="&A67&"", "Bar", "", "Close","5","0","PrimaryOnly",,,"False","T","EveryTick") -> 191.42 | S67: -0.001460615545 | T67: =RTD("cqg.rtd",,"StudyData", "Close("&$D$12&") when LocalYear("&$D$12&")="&$D$7&" and localMonth("&$D$12&") ="&$E$7&" and LocalDay("&$D$12&")="&$F$7&" and Barix("&$D$12&",reference:=StartOfSession)="&A67&"", "Bar", "", "Close","5","0","PrimaryOnly",,,"False","T","EveryTick") -> 191.48 | U67: -0.01023467383 | V67: =RTD("cqg.rtd",,"StudyData", "Close("&$D$12&") when LocalYear("&$D$12&")="&$D$8&" and localMonth("&$D$12&") ="&$E$8&" and LocalDay("&$D$12&")="&$F$8&" and Barix("&$D$12&",reference:=StartOfSession)="&A67&"", "Bar", "", "Close","5","0","PrimaryOnly",,,"False","T","EveryTick") -> 193.37 | W67: -0.003144654088 | X67: =RTD("cqg.rtd",,"StudyData", "Close("&$D$12&") when LocalYear("&$D$12&")="&$D$9&" and localMonth("&$D$12&") ="&$E$9&" and LocalDay("&$D$12&")="&$F$9&" and Barix("&$D$12&",reference:=StartOfSession)="&A67&"", "Bar", "", "Close","5","0","PrimaryOnly",,,"False","T","EveryTick") -> 193.42 | Y67: 0.0005690341938 | Z67: =RTD("cqg.rtd",,"StudyData", "Close("&$D$12&") when LocalYear("&$D$12&")="&$D$10&" and localMonth("&$D$12&") ="&$E$10&" and LocalDay("&$D$12&")="&$F$10&" and Barix("&$D$12&",reference:=StartOfSession)="&A67&"", "Bar", "", "Close","5","0","PrimaryOnly",,,"False","T","EveryTick") -> 193.09 | AA67: 0.006568315696 | AE67: =IF(AND(H66<>"",H67<>"",H68=""),A67,"") -> 
A68: 67 | B68: 14:05:00 | C68: -10 | D68: =RTD("cqg.rtd",,"StudyData", $D$12, "Tick", "FlatTicks=0", "Tick","D",C68,"PrimaryOnly") -> 187.89 | H68: =RTD("cqg.rtd",,"StudyData", "Close("&$D$12&") when LocalYear("&$D$12&")="&$D$1&" and localMonth("&$D$12&") ="&$E$1&" and LocalDay("&$D$12&")="&$F$1&" and Barix("&$D$12&",reference:=StartOfSession)="&A68&"", "Bar", "", "Close","5","0","PrimaryOnly",,,"False","T","EveryTick") ->  | J68: =RTD("cqg.rtd",,"StudyData", "Close("&$D$12&") when LocalYear("&$D$12&")="&$D$2&" and localMonth("&$D$12&") ="&$E$2&" and LocalDay("&$D$12&")="&$F$2&" and Barix("&$D$12&",reference:=StartOfSession)="&A68&"", "Bar", "", "Close","5","0","PrimaryOnly",,,"False","T","EveryTick") -> 188.89 | K68: -0.01001048218 | L68: =RTD("cqg.rtd",,"StudyData", "Close("&$D$12&") when LocalYear("&$D$12&")="&$D$3&" and localMonth("&$D$12&") ="&$E$3&" and LocalDay("&$D$12&")="&$F$3&" and Barix("&$D$12&",reference:=StartOfSession)="&A68&"", "Bar", "", "Close","5","0","PrimaryOnly",,,"False","T","EveryTick") -> 190.78 | M68: 0.0004195070792 | N68: =RTD("cqg.rtd",,"StudyData", "Close("&$D$12&") when LocalYear("&$D$12&")="&$D$4&" and localMonth("&$D$12&") ="&$E$4&" and LocalDay("&$D$12&")="&$F$4&" and Barix("&$D$12&",reference:=StartOfSession)="&A68&"", "Bar", "", "Close","5","0","PrimaryOnly",,,"False","T","EveryTick") -> 191.71 | O68: -0.002964426877 | P68: =RTD("cqg.rtd",,"StudyData", "Close("&$D$12&") when LocalYear("&$D$12&")="&$D$5&" and localMonth("&$D$12&") ="&$E$5&" and LocalDay("&$D$12&")="&$F$5&" and Barix("&$D$12&",reference:=StartOfSession)="&A68&"", "Bar", "", "Close","5","0","PrimaryOnly",,,"False","T","EveryTick") -> 191.49 | Q68: 0.001359619307 | R68: =RTD("cqg.rtd",,"StudyData", "Close("&$D$12&") when LocalYear("&$D$12&")="&$D$6&" and localMonth("&$D$12&") ="&$E$6&" and LocalDay("&$D$12&")="&$F$6&" and Barix("&$D$12&",reference:=StartOfSession)="&A68&"", "Bar", "", "Close","5","0","PrimaryOnly",,,"False","T","EveryTick") -> 191.32 | S68: -0.001982263954 | T68: =RTD("cqg.rtd",,"StudyData", "Close("&$D$12&") when LocalYear("&$D$12&")="&$D$7&" and localMonth("&$D$12&") ="&$E$7&" and LocalDay("&$D$12&")="&$F$7&" and Barix("&$D$12&",reference:=StartOfSession)="&A68&"", "Bar", "", "Close","5","0","PrimaryOnly",,,"False","T","EveryTick") -> 191.51 | U68: -0.01007960302 | V68: =RTD("cqg.rtd",,"StudyData", "Close("&$D$12&") when LocalYear("&$D$12&")="&$D$8&" and localMonth("&$D$12&") ="&$E$8&" and LocalDay("&$D$12&")="&$F$8&" and Barix("&$D$12&",reference:=StartOfSession)="&A68&"", "Bar", "", "Close","5","0","PrimaryOnly",,,"False","T","EveryTick") -> 193.18 | W68: -0.004124136509 | X68: =RTD("cqg.rtd",,"StudyData", "Close("&$D$12&") when LocalYear("&$D$12&")="&$D$9&" and localMonth("&$D$12&") ="&$E$9&" and LocalDay("&$D$12&")="&$F$9&" and Barix("&$D$12&",reference:=StartOfSession)="&A68&"", "Bar", "", "Close","5","0","PrimaryOnly",,,"False","T","EveryTick") -> 193.31 | Y68: 0 | Z68: =RTD("cqg.rtd",,"StudyData", "Close("&$D$12&") when LocalYear("&$D$12&")="&$D$10&" and localMonth("&$D$12&") ="&$E$10&" and LocalDay("&$D$12&")="&$F$10&" and Barix("&$D$12&",reference:=StartOfSession)="&A68&"", "Bar", "", "Close","5","0","PrimaryOnly",,,"False","T","EveryTick") -> 193.16 | AA68: 0.006933222124
A69: 68 | B69: 14:10:00 | C69: =C68+1 -> -9 | D69: =RTD("cqg.rtd",,"StudyData", $D$12, "Tick", "FlatTicks=0", "Tick","D",C69,"PrimaryOnly") -> 187.9 | H69: =RTD("cqg.rtd",,"StudyData", "Close("&$D$12&") when LocalYear("&$D$12&")="&$D$1&" and localMonth("&$D$12&") ="&$E$1&" and LocalDay("&$D$12&")="&$F$1&" and Barix("&$D$12&",reference:=StartOfSession)="&A69&"", "Bar", "", "Close","5","0","PrimaryOnly",,,"False","T","EveryTick") ->  | J69: =RTD("cqg.rtd",,"StudyData", "Close("&$D$12&") when LocalYear("&$D$12&")="&$D$2&" and localMonth("&$D$12&") ="&$E$2&" and LocalDay("&$D$12&")="&$F$2&" and Barix("&$D$12&",reference:=StartOfSession)="&A69&"", "Bar", "", "Close","5","0","PrimaryOnly",,,"False","T","EveryTick") -> 188.81 | K69: -0.01042976939 | L69: =RTD("cqg.rtd",,"StudyData", "Close("&$D$12&") when LocalYear("&$D$12&")="&$D$3&" and localMonth("&$D$12&") ="&$E$3&" and LocalDay("&$D$12&")="&$F$3&" and Barix("&$D$12&",reference:=StartOfSession)="&A69&"", "Bar", "", "Close","5","0","PrimaryOnly",,,"False","T","EveryTick") -> 190.77 | M69: 0.0003670686943 | N69: =RTD("cqg.rtd",,"StudyData", "Close("&$D$12&") when LocalYear("&$D$12&")="&$D$4&" and localMonth("&$D$12&") ="&$E$4&" and LocalDay("&$D$12&")="&$F$4&" and Barix("&$D$12&",reference:=StartOfSession)="&A69&"", "Bar", "", "Close","5","0","PrimaryOnly",,,"False","T","EveryTick") -> 191.72 | O69: -0.002912419388 | P69: =RTD("cqg.rtd",,"StudyData", "Close("&$D$12&") when LocalYear("&$D$12&")="&$D$5&" and localMonth("&$D$12&") ="&$E$5&" and LocalDay("&$D$12&")="&$F$5&" and Barix("&$D$12&",reference:=StartOfSession)="&A69&"", "Bar", "", "Close","5","0","PrimaryOnly",,,"False","T","EveryTick") -> 191.63 | Q69: 0.00209172201 | R69: =RTD("cqg.rtd",,"StudyData", "Close("&$D$12&") when LocalYear("&$D$12&")="&$D$6&" and localMonth("&$D$12&") ="&$E$6&" and LocalDay("&$D$12&")="&$F$6&" and Barix("&$D$12&",reference:=StartOfSession)="&A69&"", "Bar", "", "Close","5","0","PrimaryOnly",,,"False","T","EveryTick") -> 191.36 | S69: -0.001773604591 | T69: =RTD("cqg.rtd",,"StudyData", "Close("&$D$12&") when LocalYear("&$D$12&")="&$D$7&" and localMonth("&$D$12&") ="&$E$7&" and LocalDay("&$D$12&")="&$F$7&" and Barix("&$D$12&",reference:=StartOfSession)="&A69&"", "Bar", "", "Close","5","0","PrimaryOnly",,,"False","T","EveryTick") -> 191.55 | U69: -0.009872841931 | V69: =RTD("cqg.rtd",,"StudyData", "Close("&$D$12&") when LocalYear("&$D$12&")="&$D$8&" and localMonth("&$D$12&") ="&$E$8&" and LocalDay("&$D$12&")="&$F$8&" and Barix("&$D$12&",reference:=StartOfSession)="&A69&"", "Bar", "", "Close","5","0","PrimaryOnly",,,"False","T","EveryTick") -> 193.29 | W69: -0.003557067739 | X69: =RTD("cqg.rtd",,"StudyData", "Close("&$D$12&") when LocalYear("&$D$12&")="&$D$9&" and localMonth("&$D$12&") ="&$E$9&" and LocalDay("&$D$12&")="&$F$9&" and Barix("&$D$12&",reference:=StartOfSession)="&A69&"", "Bar", "", "Close","5","0","PrimaryOnly",,,"False","T","EveryTick") -> 193.38 | Y69: 0.0003621126688 | Z69: =RTD("cqg.rtd",,"StudyData", "Close("&$D$12&") when LocalYear("&$D$12&")="&$D$10&" and localMonth("&$D$12&") ="&$E$10&" and LocalDay("&$D$12&")="&$F$10&" and Barix("&$D$12&",reference:=StartOfSession)="&A69&"", "Bar", "", "Close","5","0","PrimaryOnly",,,"False","T","EveryTick") -> 192.96 | AA69: 0.005890632331
A70: 69 | B70: 14:15:00 | C70: -8 | D70: =RTD("cqg.rtd",,"StudyData", $D$12, "Tick", "FlatTicks=0", "Tick","D",C70,"PrimaryOnly") -> 187.91 | H70: =RTD("cqg.rtd",,"StudyData", "Close("&$D$12&") when LocalYear("&$D$12&")="&$D$1&" and localMonth("&$D$12&") ="&$E$1&" and LocalDay("&$D$12&")="&$F$1&" and Barix("&$D$12&",reference:=StartOfSession)="&A70&"", "Bar", "", "Close","5","0","PrimaryOnly",,,"False","T","EveryTick") ->  | J70: =RTD("cqg.rtd",,"StudyData", "Close("&$D$12&") when LocalYear("&$D$12&")="&$D$2&" and localMonth("&$D$12&") ="&$E$2&" and LocalDay("&$D$12&")="&$F$2&" and Barix("&$D$12&",reference:=StartOfSession)="&A70&"", "Bar", "", "Close","5","0","PrimaryOnly",,,"False","T","EveryTick") -> 188.77 | K70: -0.010639413 | L70: =RTD("cqg.rtd",,"StudyData", "Close("&$D$12&") when LocalYear("&$D$12&")="&$D$3&" and localMonth("&$D$12&") ="&$E$3&" and LocalDay("&$D$12&")="&$F$3&" and Barix("&$D$12&",reference:=StartOfSession)="&A70&"", "Bar", "", "Close","5","0","PrimaryOnly",,,"False","T","EveryTick") -> 190.77 | M70: 0.0003670686943 | N70: =RTD("cqg.rtd",,"StudyData", "Close("&$D$12&") when LocalYear("&$D$12&")="&$D$4&" and localMonth("&$D$12&") ="&$E$4&" and LocalDay("&$D$12&")="&$F$4&" and Barix("&$D$12&",reference:=StartOfSession)="&A70&"", "Bar", "", "Close","5","0","PrimaryOnly",,,"False","T","EveryTick") -> 191.74 | O70: -0.00280840441 | P70: =RTD("cqg.rtd",,"StudyData", "Close("&$D$12&") when LocalYear("&$D$12&")="&$D$5&" and localMonth("&$D$12&") ="&$E$5&" and LocalDay("&$D$12&")="&$F$5&" and Barix("&$D$12&",reference:=StartOfSession)="&A70&"", "Bar", "", "Close","5","0","PrimaryOnly",,,"False","T","EveryTick") -> 191.7 | Q70: 0.002457773362 | R70: =RTD("cqg.rtd",,"StudyData", "Close("&$D$12&") when LocalYear("&$D$12&")="&$D$6&" and localMonth("&$D$12&") ="&$E$6&" and LocalDay("&$D$12&")="&$F$6&" and Barix("&$D$12&",reference:=StartOfSession)="&A70&"", "Bar", "", "Close","5","0","PrimaryOnly",,,"False","T","EveryTick") -> 191.3 | S70: -0.002086593636 | T70: =RTD("cqg.rtd",,"StudyData", "Close("&$D$12&") when LocalYear("&$D$12&")="&$D$7&" and localMonth("&$D$12&") ="&$E$7&" and LocalDay("&$D$12&")="&$F$7&" and Barix("&$D$12&",reference:=StartOfSession)="&A70&"", "Bar", "", "Close","5","0","PrimaryOnly",,,"False","T","EveryTick") -> 191.49 | U70: -0.01018298356 | V70: =RTD("cqg.rtd",,"StudyData", "Close("&$D$12&") when LocalYear("&$D$12&")="&$D$8&" and localMonth("&$D$12&") ="&$E$8&" and LocalDay("&$D$12&")="&$F$8&" and Barix("&$D$12&",reference:=StartOfSession)="&A70&"", "Bar", "", "Close","5","0","PrimaryOnly",,,"False","T","EveryTick") -> 193.37 | W70: -0.003144654088 | X70: =RTD("cqg.rtd",,"StudyData", "Close("&$D$12&") when LocalYear("&$D$12&")="&$D$9&" and localMonth("&$D$12&") ="&$E$9&" and LocalDay("&$D$12&")="&$F$9&" and Barix("&$D$12&",reference:=StartOfSession)="&A70&"", "Bar", "", "Close","5","0","PrimaryOnly",,,"False","T","EveryTick") -> 193.41 | Y70: 0.0005173038125 | Z70: =RTD("cqg.rtd",,"StudyData", "Close("&$D$12&") when LocalYear("&$D$12&")="&$D$10&" and localMonth("&$D$12&") ="&$E$10&" and LocalDay("&$D$12&")="&$F$10&" and Barix("&$D$12&",reference:=StartOfSession)="&A70&"", "Bar", "", "Close","5","0","PrimaryOnly",,,"False","T","EveryTick") -> 193.02 | AA70: 0.006203409269
A71: 70 | B71: 14:20:00 | C71: -7 | D71: =RTD("cqg.rtd",,"StudyData", $D$12, "Tick", "FlatTicks=0", "Tick","D",C71,"PrimaryOnly") -> 187.92 | H71: =RTD("cqg.rtd",,"StudyData", "Close("&$D$12&") when LocalYear("&$D$12&")="&$D$1&" and localMonth("&$D$12&") ="&$E$1&" and LocalDay("&$D$12&")="&$F$1&" and Barix("&$D$12&",reference:=StartOfSession)="&A71&"", "Bar", "", "Close","5","0","PrimaryOnly",,,"False","T","EveryTick") ->  | J71: =RTD("cqg.rtd",,"StudyData", "Close("&$D$12&") when LocalYear("&$D$12&")="&$D$2&" and localMonth("&$D$12&") ="&$E$2&" and LocalDay("&$D$12&")="&$F$2&" and Barix("&$D$12&",reference:=StartOfSession)="&A71&"", "Bar", "", "Close","5","0","PrimaryOnly",,,"False","T","EveryTick") -> 188.93 | K71: -0.009800838574 | L71: =RTD("cqg.rtd",,"StudyData", "Close("&$D$12&") when LocalYear("&$D$12&")="&$D$3&" and localMonth("&$D$12&") ="&$E$3&" and LocalDay("&$D$12&")="&$F$3&" and Barix("&$D$12&",reference:=StartOfSession)="&A71&"", "Bar", "", "Close","5","0","PrimaryOnly",,,"False","T","EveryTick") -> 190.84 | M71: 0.0007341373886 | N71: =RTD("cqg.rtd",,"StudyData", "Close("&$D$12&") when LocalYear("&$D$12&")="&$D$4&" and localMonth("&$D$12&") ="&$E$4&" and LocalDay("&$D$12&")="&$F$4&" and Barix("&$D$12&",reference:=StartOfSession)="&A71&"", "Bar", "", "Close","5","0","PrimaryOnly",,,"False","T","EveryTick") -> 191.57 | O71: -0.003692531725 | P71: =RTD("cqg.rtd",,"StudyData", "Close("&$D$12&") when LocalYear("&$D$12&")="&$D$5&" and localMonth("&$D$12&") ="&$E$5&" and LocalDay("&$D$12&")="&$F$5&" and Barix("&$D$12&",reference:=StartOfSession)="&A71&"", "Bar", "", "Close","5","0","PrimaryOnly",,,"False","T","EveryTick") -> 191.8 | Q71: 0.002980703864 | R71: =RTD("cqg.rtd",,"StudyData", "Close("&$D$12&") when LocalYear("&$D$12&")="&$D$6&" and localMonth("&$D$12&") ="&$E$6&" and LocalDay("&$D$12&")="&$F$6&" and Barix("&$D$12&",reference:=StartOfSession)="&A71&"", "Bar", "", "Close","5","0","PrimaryOnly",,,"False","T","EveryTick") -> 191.39 | S71: -0.001617110068 | T71: =RTD("cqg.rtd",,"StudyData", "Close("&$D$12&") when LocalYear("&$D$12&")="&$D$7&" and localMonth("&$D$12&") ="&$E$7&" and LocalDay("&$D$12&")="&$F$7&" and Barix("&$D$12&",reference:=StartOfSession)="&A71&"", "Bar", "", "Close","5","0","PrimaryOnly",,,"False","T","EveryTick") -> 191.63 | U71: -0.009459319756 | V71: =RTD("cqg.rtd",,"StudyData", "Close("&$D$12&") when LocalYear("&$D$12&")="&$D$8&" and localMonth("&$D$12&") ="&$E$8&" and LocalDay("&$D$12&")="&$F$8&" and Barix("&$D$12&",reference:=StartOfSession)="&A71&"", "Bar", "", "Close","5","0","PrimaryOnly",,,"False","T","EveryTick") -> 193.47 | W71: -0.002629137024 | X71: =RTD("cqg.rtd",,"StudyData", "Close("&$D$12&") when LocalYear("&$D$12&")="&$D$9&" and localMonth("&$D$12&") ="&$E$9&" and LocalDay("&$D$12&")="&$F$9&" and Barix("&$D$12&",reference:=StartOfSession)="&A71&"", "Bar", "", "Close","5","0","PrimaryOnly",,,"False","T","EveryTick") -> 193.39 | Y71: 0.00041384305 | Z71: =RTD("cqg.rtd",,"StudyData", "Close("&$D$12&") when LocalYear("&$D$12&")="&$D$10&" and localMonth("&$D$12&") ="&$E$10&" and LocalDay("&$D$12&")="&$F$10&" and Barix("&$D$12&",reference:=StartOfSession)="&A71&"", "Bar", "", "Close","5","0","PrimaryOnly",,,"False","T","EveryTick") -> 192.89 | AA71: 0.005525725903
A72: 71 | B72: 14:25:00 | C72: -6 | D72: =RTD("cqg.rtd",,"StudyData", $D$12, "Tick", "FlatTicks=0", "Tick","D",C72,"PrimaryOnly") -> 187.91 | H72: =RTD("cqg.rtd",,"StudyData", "Close("&$D$12&") when LocalYear("&$D$12&")="&$D$1&" and localMonth("&$D$12&") ="&$E$1&" and LocalDay("&$D$12&")="&$F$1&" and Barix("&$D$12&",reference:=StartOfSession)="&A72&"", "Bar", "", "Close","5","0","PrimaryOnly",,,"False","T","EveryTick") ->  | J72: =RTD("cqg.rtd",,"StudyData", "Close("&$D$12&") when LocalYear("&$D$12&")="&$D$2&" and localMonth("&$D$12&") ="&$E$2&" and LocalDay("&$D$12&")="&$F$2&" and Barix("&$D$12&",reference:=StartOfSession)="&A72&"", "Bar", "", "Close","5","0","PrimaryOnly",,,"False","T","EveryTick") -> 188.96 | K72: -0.00964360587 | L72: =RTD("cqg.rtd",,"StudyData", "Close("&$D$12&") when LocalYear("&$D$12&")="&$D$3&" and localMonth("&$D$12&") ="&$E$3&" and LocalDay("&$D$12&")="&$F$3&" and Barix("&$D$12&",reference:=StartOfSession)="&A72&"", "Bar", "", "Close","5","0","PrimaryOnly",,,"False","T","EveryTick") -> 190.9 | M72: 0.001048767698 | N72: =RTD("cqg.rtd",,"StudyData", "Close("&$D$12&") when LocalYear("&$D$12&")="&$D$4&" and localMonth("&$D$12&") ="&$E$4&" and LocalDay("&$D$12&")="&$F$4&" and Barix("&$D$12&",reference:=StartOfSession)="&A72&"", "Bar", "", "Close","5","0","PrimaryOnly",,,"False","T","EveryTick") -> 191.12 | O72: -0.006032868733 | P72: =RTD("cqg.rtd",,"StudyData", "Close("&$D$12&") when LocalYear("&$D$12&")="&$D$5&" and localMonth("&$D$12&") ="&$E$5&" and LocalDay("&$D$12&")="&$F$5&" and Barix("&$D$12&",reference:=StartOfSession)="&A72&"", "Bar", "", "Close","5","0","PrimaryOnly",,,"False","T","EveryTick") -> 191.78 | Q72: 0.002876117764 | R72: =RTD("cqg.rtd",,"StudyData", "Close("&$D$12&") when LocalYear("&$D$12&")="&$D$6&" and localMonth("&$D$12&") ="&$E$6&" and LocalDay("&$D$12&")="&$F$6&" and Barix("&$D$12&",reference:=StartOfSession)="&A72&"", "Bar", "", "Close","5","0","PrimaryOnly",,,"False","T","EveryTick") -> 191.45 | S72: -0.001304121022 | T72: =RTD("cqg.rtd",,"StudyData", "Close("&$D$12&") when LocalYear("&$D$12&")="&$D$7&" and localMonth("&$D$12&") ="&$E$7&" and LocalDay("&$D$12&")="&$F$7&" and Barix("&$D$12&",reference:=StartOfSession)="&A72&"", "Bar", "", "Close","5","0","PrimaryOnly",,,"False","T","EveryTick") -> 191.55 | U72: -0.009872841931 | V72: =RTD("cqg.rtd",,"StudyData", "Close("&$D$12&") when LocalYear("&$D$12&")="&$D$8&" and localMonth("&$D$12&") ="&$E$8&" and LocalDay("&$D$12&")="&$F$8&" and Barix("&$D$12&",reference:=StartOfSession)="&A72&"", "Bar", "", "Close","5","0","PrimaryOnly",,,"False","T","EveryTick") -> 193.67 | W72: -0.001598102897 | X72: =RTD("cqg.rtd",,"StudyData", "Close("&$D$12&") when LocalYear("&$D$12&")="&$D$9&" and localMonth("&$D$12&") ="&$E$9&" and LocalDay("&$D$12&")="&$F$9&" and Barix("&$D$12&",reference:=StartOfSession)="&A72&"", "Bar", "", "Close","5","0","PrimaryOnly",,,"False","T","EveryTick") -> 193.38 | Y72: 0.0003621126688 | Z72: =RTD("cqg.rtd",,"StudyData", "Close("&$D$12&") when LocalYear("&$D$12&")="&$D$10&" and localMonth("&$D$12&") ="&$E$10&" and LocalDay("&$D$12&")="&$F$10&" and Barix("&$D$12&",reference:=StartOfSession)="&A72&"", "Bar", "", "Close","5","0","PrimaryOnly",,,"False","T","EveryTick") -> 193.09 | AA72: 0.006568315696
A73: 72 | B73: 14:30:00 | C73: -5 | D73: =RTD("cqg.rtd",,"StudyData", $D$12, "Tick", "FlatTicks=0", "Tick","D",C73,"PrimaryOnly") -> 187.92 | H73: =RTD("cqg.rtd",,"StudyData", "Close("&$D$12&") when LocalYear("&$D$12&")="&$D$1&" and localMonth("&$D$12&") ="&$E$1&" and LocalDay("&$D$12&")="&$F$1&" and Barix("&$D$12&",reference:=StartOfSession)="&A73&"", "Bar", "", "Close","5","0","PrimaryOnly",,,"False","T","EveryTick") ->  | J73: =RTD("cqg.rtd",,"StudyData", "Close("&$D$12&") when LocalYear("&$D$12&")="&$D$2&" and localMonth("&$D$12&") ="&$E$2&" and LocalDay("&$D$12&")="&$F$2&" and Barix("&$D$12&",reference:=StartOfSession)="&A73&"", "Bar", "", "Close","5","0","PrimaryOnly",,,"False","T","EveryTick") -> 189.02 | K73: -0.009329140461 | L73: =RTD("cqg.rtd",,"StudyData", "Close("&$D$12&") when LocalYear("&$D$12&")="&$D$3&" and localMonth("&$D$12&") ="&$E$3&" and LocalDay("&$D$12&")="&$F$3&" and Barix("&$D$12&",reference:=StartOfSession)="&A73&"", "Bar", "", "Close","5","0","PrimaryOnly",,,"False","T","EveryTick") -> 190.93 | M73: 0.001206082853 | N73: =RTD("cqg.rtd",,"StudyData", "Close("&$D$12&") when LocalYear("&$D$12&")="&$D$4&" and localMonth("&$D$12&") ="&$E$4&" and LocalDay("&$D$12&")="&$F$4&" and Barix("&$D$12&",reference:=StartOfSession)="&A73&"", "Bar", "", "Close","5","0","PrimaryOnly",,,"False","T","EveryTick") -> 191.14 | O73: -0.005928853755 | P73: =RTD("cqg.rtd",,"StudyData", "Close("&$D$12&") when LocalYear("&$D$12&")="&$D$5&" and localMonth("&$D$12&") ="&$E$5&" and LocalDay("&$D$12&")="&$F$5&" and Barix("&$D$12&",reference:=StartOfSession)="&A73&"", "Bar", "", "Close","5","0","PrimaryOnly",,,"False","T","EveryTick") -> 191.76 | Q73: 0.002771531663 | R73: =RTD("cqg.rtd",,"StudyData", "Close("&$D$12&") when LocalYear("&$D$12&")="&$D$6&" and localMonth("&$D$12&") ="&$E$6&" and LocalDay("&$D$12&")="&$F$6&" and Barix("&$D$12&",reference:=StartOfSession)="&A73&"", "Bar", "", "Close","5","0","PrimaryOnly",,,"False","T","EveryTick") -> 191.45 | S73: -0.001304121022 | T73: =RTD("cqg.rtd",,"StudyData", "Close("&$D$12&") when LocalYear("&$D$12&")="&$D$7&" and localMonth("&$D$12&") ="&$E$7&" and LocalDay("&$D$12&")="&$F$7&" and Barix("&$D$12&",reference:=StartOfSession)="&A73&"", "Bar", "", "Close","5","0","PrimaryOnly",,,"False","T","EveryTick") -> 191.5 | U73: -0.01013129329 | V73: =RTD("cqg.rtd",,"StudyData", "Close("&$D$12&") when LocalYear("&$D$12&")="&$D$8&" and localMonth("&$D$12&") ="&$E$8&" and LocalDay("&$D$12&")="&$F$8&" and Barix("&$D$12&",reference:=StartOfSession)="&A73&"", "Bar", "", "Close","5","0","PrimaryOnly",,,"False","T","EveryTick") -> 193.83 | W73: -0.0007732755954 | X73: =RTD("cqg.rtd",,"StudyData", "Close("&$D$12&") when LocalYear("&$D$12&")="&$D$9&" and localMonth("&$D$12&") ="&$E$9&" and LocalDay("&$D$12&")="&$F$9&" and Barix("&$D$12&",reference:=StartOfSession)="&A73&"", "Bar", "", "Close","5","0","PrimaryOnly",,,"False","T","EveryTick") -> 193.34 | Y73: 0.0001551911438 | Z73: =RTD("cqg.rtd",,"StudyData", "Close("&$D$12&") when LocalYear("&$D$12&")="&$D$10&" and localMonth("&$D$12&") ="&$E$10&" and LocalDay("&$D$12&")="&$F$10&" and Barix("&$D$12&",reference:=StartOfSession)="&A73&"", "Bar", "", "Close","5","0","PrimaryOnly",,,"False","T","EveryTick") -> 193.08 | AA73: 0.006516186207
A74: 73 | B74: 14:35:00 | C74: -4 | D74: =RTD("cqg.rtd",,"StudyData", $D$12, "Tick", "FlatTicks=0", "Tick","D",C74,"PrimaryOnly") -> 187.91 | H74: =RTD("cqg.rtd",,"StudyData", "Close("&$D$12&") when LocalYear("&$D$12&")="&$D$1&" and localMonth("&$D$12&") ="&$E$1&" and LocalDay("&$D$12&")="&$F$1&" and Barix("&$D$12&",reference:=StartOfSession)="&A74&"", "Bar", "", "Close","5","0","PrimaryOnly",,,"False","T","EveryTick") ->  | J74: =RTD("cqg.rtd",,"StudyData", "Close("&$D$12&") when LocalYear("&$D$12&")="&$D$2&" and localMonth("&$D$12&") ="&$E$2&" and LocalDay("&$D$12&")="&$F$2&" and Barix("&$D$12&",reference:=StartOfSession)="&A74&"", "Bar", "", "Close","5","0","PrimaryOnly",,,"False","T","EveryTick") -> 188.63 | K74: -0.01137316562 | L74: =RTD("cqg.rtd",,"StudyData", "Close("&$D$12&") when LocalYear("&$D$12&")="&$D$3&" and localMonth("&$D$12&") ="&$E$3&" and LocalDay("&$D$12&")="&$F$3&" and Barix("&$D$12&",reference:=StartOfSession)="&A74&"", "Bar", "", "Close","5","0","PrimaryOnly",,,"False","T","EveryTick") -> 190.92 | M74: 0.001153644468 | N74: =RTD("cqg.rtd",,"StudyData", "Close("&$D$12&") when LocalYear("&$D$12&")="&$D$4&" and localMonth("&$D$12&") ="&$E$4&" and LocalDay("&$D$12&")="&$F$4&" and Barix("&$D$12&",reference:=StartOfSession)="&A74&"", "Bar", "", "Close","5","0","PrimaryOnly",,,"False","T","EveryTick") -> 191.02 | O74: -0.006552943624 | P74: =RTD("cqg.rtd",,"StudyData", "Close("&$D$12&") when LocalYear("&$D$12&")="&$D$5&" and localMonth("&$D$12&") ="&$E$5&" and LocalDay("&$D$12&")="&$F$5&" and Barix("&$D$12&",reference:=StartOfSession)="&A74&"", "Bar", "", "Close","5","0","PrimaryOnly",,,"False","T","EveryTick") -> 191.79 | Q74: 0.002928410814 | R74: =RTD("cqg.rtd",,"StudyData", "Close("&$D$12&") when LocalYear("&$D$12&")="&$D$6&" and localMonth("&$D$12&") ="&$E$6&" and LocalDay("&$D$12&")="&$F$6&" and Barix("&$D$12&",reference:=StartOfSession)="&A74&"", "Bar", "", "Close","5","0","PrimaryOnly",,,"False","T","EveryTick") -> 191.32 | S74: -0.001982263954 | T74: =RTD("cqg.rtd",,"StudyData", "Close("&$D$12&") when LocalYear("&$D$12&")="&$D$7&" and localMonth("&$D$12&") ="&$E$7&" and LocalDay("&$D$12&")="&$F$7&" and Barix("&$D$12&",reference:=StartOfSession)="&A74&"", "Bar", "", "Close","5","0","PrimaryOnly",,,"False","T","EveryTick") -> 191.58 | U74: -0.009717771115 | V74: =RTD("cqg.rtd",,"StudyData", "Close("&$D$12&") when LocalYear("&$D$12&")="&$D$8&" and localMonth("&$D$12&") ="&$E$8&" and LocalDay("&$D$12&")="&$F$8&" and Barix("&$D$12&",reference:=StartOfSession)="&A74&"", "Bar", "", "Close","5","0","PrimaryOnly",,,"False","T","EveryTick") -> 193.81 | W74: -0.0008763790081 | X74: =RTD("cqg.rtd",,"StudyData", "Close("&$D$12&") when LocalYear("&$D$12&")="&$D$9&" and localMonth("&$D$12&") ="&$E$9&" and LocalDay("&$D$12&")="&$F$9&" and Barix("&$D$12&",reference:=StartOfSession)="&A74&"", "Bar", "", "Close","5","0","PrimaryOnly",,,"False","T","EveryTick") -> 193.33 | Y74: 0.0001034607625 | Z74: =RTD("cqg.rtd",,"StudyData", "Close("&$D$12&") when LocalYear("&$D$12&")="&$D$10&" and localMonth("&$D$12&") ="&$E$10&" and LocalDay("&$D$12&")="&$F$10&" and Barix("&$D$12&",reference:=StartOfSession)="&A74&"", "Bar", "", "Close","5","0","PrimaryOnly",,,"False","T","EveryTick") -> 193.25 | AA74: 0.007402387531
A75: 74 | B75: 14:40:00 | C75: -3 | D75: =RTD("cqg.rtd",,"StudyData", $D$12, "Tick", "FlatTicks=0", "Tick","D",C75,"PrimaryOnly") -> 187.9 | H75: =RTD("cqg.rtd",,"StudyData", "Close("&$D$12&") when LocalYear("&$D$12&")="&$D$1&" and localMonth("&$D$12&") ="&$E$1&" and LocalDay("&$D$12&")="&$F$1&" and Barix("&$D$12&",reference:=StartOfSession)="&A75&"", "Bar", "", "Close","5","0","PrimaryOnly",,,"False","T","EveryTick") ->  | J75: =RTD("cqg.rtd",,"StudyData", "Close("&$D$12&") when LocalYear("&$D$12&")="&$D$2&" and localMonth("&$D$12&") ="&$E$2&" and LocalDay("&$D$12&")="&$F$2&" and Barix("&$D$12&",reference:=StartOfSession)="&A75&"", "Bar", "", "Close","5","0","PrimaryOnly",,,"False","T","EveryTick") -> 188.74 | K75: -0.0107966457 | L75: =RTD("cqg.rtd",,"StudyData", "Close("&$D$12&") when LocalYear("&$D$12&")="&$D$3&" and localMonth("&$D$12&") ="&$E$3&" and LocalDay("&$D$12&")="&$F$3&" and Barix("&$D$12&",reference:=StartOfSession)="&A75&"", "Bar", "", "Close","5","0","PrimaryOnly",,,"False","T","EveryTick") -> 191.11 | M75: 0.002149973781 | N75: =RTD("cqg.rtd",,"StudyData", "Close("&$D$12&") when LocalYear("&$D$12&")="&$D$4&" and localMonth("&$D$12&") ="&$E$4&" and LocalDay("&$D$12&")="&$F$4&" and Barix("&$D$12&",reference:=StartOfSession)="&A75&"", "Bar", "", "Close","5","0","PrimaryOnly",,,"False","T","EveryTick") -> 191.21 | O75: -0.005564801331 | P75: =RTD("cqg.rtd",,"StudyData", "Close("&$D$12&") when LocalYear("&$D$12&")="&$D$5&" and localMonth("&$D$12&") ="&$E$5&" and LocalDay("&$D$12&")="&$F$5&" and Barix("&$D$12&",reference:=StartOfSession)="&A75&"", "Bar", "", "Close","5","0","PrimaryOnly",,,"False","T","EveryTick") -> 191.66 | Q75: 0.002248601161 | R75: =RTD("cqg.rtd",,"StudyData", "Close("&$D$12&") when LocalYear("&$D$12&")="&$D$6&" and localMonth("&$D$12&") ="&$E$6&" and LocalDay("&$D$12&")="&$F$6&" and Barix("&$D$12&",reference:=StartOfSession)="&A75&"", "Bar", "", "Close","5","0","PrimaryOnly",,,"False","T","EveryTick") -> 191.21 | S75: -0.002556077204 | T75: =RTD("cqg.rtd",,"StudyData", "Close("&$D$12&") when LocalYear("&$D$12&")="&$D$7&" and localMonth("&$D$12&") ="&$E$7&" and LocalDay("&$D$12&")="&$F$7&" and Barix("&$D$12&",reference:=StartOfSession)="&A75&"", "Bar", "", "Close","5","0","PrimaryOnly",,,"False","T","EveryTick") -> 191.56 | U75: -0.009821151659 | V75: =RTD("cqg.rtd",,"StudyData", "Close("&$D$12&") when LocalYear("&$D$12&")="&$D$8&" and localMonth("&$D$12&") ="&$E$8&" and LocalDay("&$D$12&")="&$F$8&" and Barix("&$D$12&",reference:=StartOfSession)="&A75&"", "Bar", "", "Close","5","0","PrimaryOnly",,,"False","T","EveryTick") -> 193.58 | W75: -0.002062068254 | X75: =RTD("cqg.rtd",,"StudyData", "Close("&$D$12&") when LocalYear("&$D$12&")="&$D$9&" and localMonth("&$D$12&") ="&$E$9&" and LocalDay("&$D$12&")="&$F$9&" and Barix("&$D$12&",reference:=StartOfSession)="&A75&"", "Bar", "", "Close","5","0","PrimaryOnly",,,"False","T","EveryTick") -> 193.38 | Y75: 0.0003621126688 | Z75: =RTD("cqg.rtd",,"StudyData", "Close("&$D$12&") when LocalYear("&$D$12&")="&$D$10&" and localMonth("&$D$12&") ="&$E$10&" and LocalDay("&$D$12&")="&$F$10&" and Barix("&$D$12&",reference:=StartOfSession)="&A75&"", "Bar", "", "Close","5","0","PrimaryOnly",,,"False","T","EveryTick") -> 193.25 | AA75: 0.007402387531
A76: 75 | B76: 14:45:00 | C76: -2 | D76: =RTD("cqg.rtd",,"StudyData", $D$12, "Tick", "FlatTicks=0", "Tick","D",C76,"PrimaryOnly") -> 187.91 | H76: =RTD("cqg.rtd",,"StudyData", "Close("&$D$12&") when LocalYear("&$D$12&")="&$D$1&" and localMonth("&$D$12&") ="&$E$1&" and LocalDay("&$D$12&")="&$F$1&" and Barix("&$D$12&",reference:=StartOfSession)="&A76&"", "Bar", "", "Close","5","0","PrimaryOnly",,,"False","T","EveryTick") ->  | J76: =RTD("cqg.rtd",,"StudyData", "Close("&$D$12&") when LocalYear("&$D$12&")="&$D$2&" and localMonth("&$D$12&") ="&$E$2&" and LocalDay("&$D$12&")="&$F$2&" and Barix("&$D$12&",reference:=StartOfSession)="&A76&"", "Bar", "", "Close","5","0","PrimaryOnly",,,"False","T","EveryTick") -> 188.62 | K76: -0.01142557652 | L76: =RTD("cqg.rtd",,"StudyData", "Close("&$D$12&") when LocalYear("&$D$12&")="&$D$3&" and localMonth("&$D$12&") ="&$E$3&" and LocalDay("&$D$12&")="&$F$3&" and Barix("&$D$12&",reference:=StartOfSession)="&A76&"", "Bar", "", "Close","5","0","PrimaryOnly",,,"False","T","EveryTick") -> 190.96 | M76: 0.001363398007 | N76: =RTD("cqg.rtd",,"StudyData", "Close("&$D$12&") when LocalYear("&$D$12&")="&$D$4&" and localMonth("&$D$12&") ="&$E$4&" and LocalDay("&$D$12&")="&$F$4&" and Barix("&$D$12&",reference:=StartOfSession)="&A76&"", "Bar", "", "Close","5","0","PrimaryOnly",,,"False","T","EveryTick") -> 190.91 | O76: -0.007125026004 | P76: =RTD("cqg.rtd",,"StudyData", "Close("&$D$12&") when LocalYear("&$D$12&")="&$D$5&" and localMonth("&$D$12&") ="&$E$5&" and LocalDay("&$D$12&")="&$F$5&" and Barix("&$D$12&",reference:=StartOfSession)="&A76&"", "Bar", "", "Close","5","0","PrimaryOnly",,,"False","T","EveryTick") -> 191.77 | Q76: 0.002823824714 | R76: =RTD("cqg.rtd",,"StudyData", "Close("&$D$12&") when LocalYear("&$D$12&")="&$D$6&" and localMonth("&$D$12&") ="&$E$6&" and LocalDay("&$D$12&")="&$F$6&" and Barix("&$D$12&",reference:=StartOfSession)="&A76&"", "Bar", "", "Close","5","0","PrimaryOnly",,,"False","T","EveryTick") -> 191.36 | S76: -0.001773604591 | T76: =RTD("cqg.rtd",,"StudyData", "Close("&$D$12&") when LocalYear("&$D$12&")="&$D$7&" and localMonth("&$D$12&") ="&$E$7&" and LocalDay("&$D$12&")="&$F$7&" and Barix("&$D$12&",reference:=StartOfSession)="&A76&"", "Bar", "", "Close","5","0","PrimaryOnly",,,"False","T","EveryTick") -> 191.61 | U76: -0.0095627003 | V76: =RTD("cqg.rtd",,"StudyData", "Close("&$D$12&") when LocalYear("&$D$12&")="&$D$8&" and localMonth("&$D$12&") ="&$E$8&" and LocalDay("&$D$12&")="&$F$8&" and Barix("&$D$12&",reference:=StartOfSession)="&A76&"", "Bar", "", "Close","5","0","PrimaryOnly",,,"False","T","EveryTick") -> 193.27 | W76: -0.003660171152 | X76: =RTD("cqg.rtd",,"StudyData", "Close("&$D$12&") when LocalYear("&$D$12&")="&$D$9&" and localMonth("&$D$12&") ="&$E$9&" and LocalDay("&$D$12&")="&$F$9&" and Barix("&$D$12&",reference:=StartOfSession)="&A76&"", "Bar", "", "Close","5","0","PrimaryOnly",,,"False","T","EveryTick") -> 193.46 | Y76: 0.0007759557188 | Z76: =RTD("cqg.rtd",,"StudyData", "Close("&$D$12&") when LocalYear("&$D$12&")="&$D$10&" and localMonth("&$D$12&") ="&$E$10&" and LocalDay("&$D$12&")="&$F$10&" and Barix("&$D$12&",reference:=StartOfSession)="&A76&"", "Bar", "", "Close","5","0","PrimaryOnly",,,"False","T","EveryTick") -> 193.56 | AA76: 0.00901840171
A77: 76 | B77: 14:50:00 | C77: -1 | D77: =RTD("cqg.rtd",,"StudyData", $D$12, "Tick", "FlatTicks=0", "Tick","D",C77,"PrimaryOnly") -> 187.92 | H77: =RTD("cqg.rtd",,"StudyData", "Close("&$D$12&") when LocalYear("&$D$12&")="&$D$1&" and localMonth("&$D$12&") ="&$E$1&" and LocalDay("&$D$12&")="&$F$1&" and Barix("&$D$12&",reference:=StartOfSession)="&A77&"", "Bar", "", "Close","5","0","PrimaryOnly",,,"False","T","EveryTick") ->  | J77: =RTD("cqg.rtd",,"StudyData", "Close("&$D$12&") when LocalYear("&$D$12&")="&$D$2&" and localMonth("&$D$12&") ="&$E$2&" and LocalDay("&$D$12&")="&$F$2&" and Barix("&$D$12&",reference:=StartOfSession)="&A77&"", "Bar", "", "Close","5","0","PrimaryOnly",,,"False","T","EveryTick") -> 188.64 | K77: -0.01132075472 | L77: =RTD("cqg.rtd",,"StudyData", "Close("&$D$12&") when LocalYear("&$D$12&")="&$D$3&" and localMonth("&$D$12&") ="&$E$3&" and LocalDay("&$D$12&")="&$F$3&" and Barix("&$D$12&",reference:=StartOfSession)="&A77&"", "Bar", "", "Close","5","0","PrimaryOnly",,,"False","T","EveryTick") -> 190.56 | M77: -0.0007341373886 | N77: =RTD("cqg.rtd",,"StudyData", "Close("&$D$12&") when LocalYear("&$D$12&")="&$D$4&" and localMonth("&$D$12&") ="&$E$4&" and LocalDay("&$D$12&")="&$F$4&" and Barix("&$D$12&",reference:=StartOfSession)="&A77&"", "Bar", "", "Close","5","0","PrimaryOnly",,,"False","T","EveryTick") -> 190.57 | O77: -0.008893280632 | P77: =RTD("cqg.rtd",,"StudyData", "Close("&$D$12&") when LocalYear("&$D$12&")="&$D$5&" and localMonth("&$D$12&") ="&$E$5&" and LocalDay("&$D$12&")="&$F$5&" and Barix("&$D$12&",reference:=StartOfSession)="&A77&"", "Bar", "", "Close","5","0","PrimaryOnly",,,"False","T","EveryTick") -> 192.03 | Q77: 0.00418344402 | R77: =RTD("cqg.rtd",,"StudyData", "Close("&$D$12&") when LocalYear("&$D$12&")="&$D$6&" and localMonth("&$D$12&") ="&$E$6&" and LocalDay("&$D$12&")="&$F$6&" and Barix("&$D$12&",reference:=StartOfSession)="&A77&"", "Bar", "", "Close","5","0","PrimaryOnly",,,"False","T","EveryTick") -> 191.15 | S77: -0.002869066249 | T77: =RTD("cqg.rtd",,"StudyData", "Close("&$D$12&") when LocalYear("&$D$12&")="&$D$7&" and localMonth("&$D$12&") ="&$E$7&" and LocalDay("&$D$12&")="&$F$7&" and Barix("&$D$12&",reference:=StartOfSession)="&A77&"", "Bar", "", "Close","5","0","PrimaryOnly",,,"False","T","EveryTick") -> 191.93 | U77: -0.007908611599 | V77: =RTD("cqg.rtd",,"StudyData", "Close("&$D$12&") when LocalYear("&$D$12&")="&$D$8&" and localMonth("&$D$12&") ="&$E$8&" and LocalDay("&$D$12&")="&$F$8&" and Barix("&$D$12&",reference:=StartOfSession)="&A77&"", "Bar", "", "Close","5","0","PrimaryOnly",,,"False","T","EveryTick") -> 193.53 | W77: -0.002319826786 | X77: =RTD("cqg.rtd",,"StudyData", "Close("&$D$12&") when LocalYear("&$D$12&")="&$D$9&" and localMonth("&$D$12&") ="&$E$9&" and LocalDay("&$D$12&")="&$F$9&" and Barix("&$D$12&",reference:=StartOfSession)="&A77&"", "Bar", "", "Close","5","0","PrimaryOnly",,,"False","T","EveryTick") -> 193.91 | Y77: 0.003103822875 | Z77: =RTD("cqg.rtd",,"StudyData", "Close("&$D$12&") when LocalYear("&$D$12&")="&$D$10&" and localMonth("&$D$12&") ="&$E$10&" and LocalDay("&$D$12&")="&$F$10&" and Barix("&$D$12&",reference:=StartOfSession)="&A77&"", "Bar", "", "Close","5","0","PrimaryOnly",,,"False","T","EveryTick") -> 193.39 | AA77: 0.008132200386
A78: 77 | B78: 14:55:00 | C78: =C77+1 -> 0 | D78: =RTD("cqg.rtd",,"StudyData", $D$12, "Tick", "FlatTicks=0", "Tick","D",C78,"PrimaryOnly") -> 187.93 | H78: =RTD("cqg.rtd",,"StudyData", "Close("&$D$12&") when LocalYear("&$D$12&")="&$D$1&" and localMonth("&$D$12&") ="&$E$1&" and LocalDay("&$D$12&")="&$F$1&" and Barix("&$D$12&",reference:=StartOfSession)="&A78&"", "Bar", "", "Close","5","0","PrimaryOnly",,,"False","T","EveryTick") ->  | J78: =RTD("cqg.rtd",,"StudyData", "Close("&$D$12&") when LocalYear("&$D$12&")="&$D$2&" and localMonth("&$D$12&") ="&$E$2&" and LocalDay("&$D$12&")="&$F$2&" and Barix("&$D$12&",reference:=StartOfSession)="&A78&"", "Bar", "", "Close","5","0","PrimaryOnly",,,"False","T","EveryTick") -> 188.84 | K78: -0.01027253669 | L78: =RTD("cqg.rtd",,"StudyData", "Close("&$D$12&") when LocalYear("&$D$12&")="&$D$3&" and localMonth("&$D$12&") ="&$E$3&" and LocalDay("&$D$12&")="&$F$3&" and Barix("&$D$12&",reference:=StartOfSession)="&A78&"", "Bar", "", "Close","5","0","PrimaryOnly",,,"False","T","EveryTick") -> 190.8 | M78: 0.000524383849 | N78: =RTD("cqg.rtd",,"StudyData", "Close("&$D$12&") when LocalYear("&$D$12&")="&$D$4&" and localMonth("&$D$12&") ="&$E$4&" and LocalDay("&$D$12&")="&$F$4&" and Barix("&$D$12&",reference:=StartOfSession)="&A78&"", "Bar", "", "Close","5","0","PrimaryOnly",,,"False","T","EveryTick") -> 190.7 | O78: -0.008217183274 | P78: =RTD("cqg.rtd",,"StudyData", "Close("&$D$12&") when LocalYear("&$D$12&")="&$D$5&" and localMonth("&$D$12&") ="&$E$5&" and LocalDay("&$D$12&")="&$F$5&" and Barix("&$D$12&",reference:=StartOfSession)="&A78&"", "Bar", "", "Close","5","0","PrimaryOnly",,,"False","T","EveryTick") -> 192.28 | Q78: 0.005490770277 | R78: =RTD("cqg.rtd",,"StudyData", "Close("&$D$12&") when LocalYear("&$D$12&")="&$D$6&" and localMonth("&$D$12&") ="&$E$6&" and LocalDay("&$D$12&")="&$F$6&" and Barix("&$D$12&",reference:=StartOfSession)="&A78&"", "Bar", "", "Close","5","0","PrimaryOnly",,,"False","T","EveryTick") -> 191.23 | S78: -0.002451747522 | T78: =RTD("cqg.rtd",,"StudyData", "Close("&$D$12&") when LocalYear("&$D$12&")="&$D$7&" and localMonth("&$D$12&") ="&$E$7&" and LocalDay("&$D$12&")="&$F$7&" and Barix("&$D$12&",reference:=StartOfSession)="&A78&"", "Bar", "", "Close","5","0","PrimaryOnly",,,"False","T","EveryTick") -> 191.7 | U78: -0.009097487853 | V78: =RTD("cqg.rtd",,"StudyData", "Close("&$D$12&") when LocalYear("&$D$12&")="&$D$8&" and localMonth("&$D$12&") ="&$E$8&" and LocalDay("&$D$12&")="&$F$8&" and Barix("&$D$12&",reference:=StartOfSession)="&A78&"", "Bar", "", "Close","5","0","PrimaryOnly",,,"False","T","EveryTick") -> 193.46 | W78: -0.002680688731 | X78: =RTD("cqg.rtd",,"StudyData", "Close("&$D$12&") when LocalYear("&$D$12&")="&$D$9&" and localMonth("&$D$12&") ="&$E$9&" and LocalDay("&$D$12&")="&$F$9&" and Barix("&$D$12&",reference:=StartOfSession)="&A78&"", "Bar", "", "Close","5","0","PrimaryOnly",,,"False","T","EveryTick") -> 193.98 | Y78: 0.003465935544 | Z78: =RTD("cqg.rtd",,"StudyData", "Close("&$D$12&") when LocalYear("&$D$12&")="&$D$10&" and localMonth("&$D$12&") ="&$E$10&" and LocalDay("&$D$12&")="&$F$10&" and Barix("&$D$12&",reference:=StartOfSession)="&A78&"", "Bar", "", "Close","5","0","PrimaryOnly",,,"False","T","EveryTick") -> 193.31 | AA78: 0.007715164469
A79: 78 | B79: 15:00:00 | H79: =RTD("cqg.rtd",,"StudyData", "Close("&$D$12&") when LocalYear("&$D$12&")="&$D$1&" and localMonth("&$D$12&") ="&$E$1&" and LocalDay("&$D$12&")="&$F$1&" and Barix("&$D$12&",reference:=StartOfSession)="&A79&"", "Bar", "", "Close","5","0","PrimaryOnly",,,"False","T","EveryTick") ->  | J79: =RTD("cqg.rtd",,"StudyData", "Close("&$D$12&") when LocalYear("&$D$12&")="&$D$2&" and localMonth("&$D$12&") ="&$E$2&" and LocalDay("&$D$12&")="&$F$2&" and Barix("&$D$12&",reference:=StartOfSession)="&A79&"", "Bar", "", "Close","5","0","PrimaryOnly",,,"False","T","EveryTick") ->  | L79: =RTD("cqg.rtd",,"StudyData", "Close("&$D$12&") when LocalYear("&$D$12&")="&$D$3&" and localMonth("&$D$12&") ="&$E$3&" and LocalDay("&$D$12&")="&$F$3&" and Barix("&$D$12&",reference:=StartOfSession)="&A79&"", "Bar", "", "Close","5","0","PrimaryOnly",,,"False","T","EveryTick") ->  | N79: =RTD("cqg.rtd",,"StudyData", "Close("&$D$12&") when LocalYear("&$D$12&")="&$D$4&" and localMonth("&$D$12&") ="&$E$4&" and LocalDay("&$D$12&")="&$F$4&" and Barix("&$D$12&",reference:=StartOfSession)="&A79&"", "Bar", "", "Close","5","0","PrimaryOnly",,,"False","T","EveryTick") ->  | P79: =RTD("cqg.rtd",,"StudyData", "Close("&$D$12&") when LocalYear("&$D$12&")="&$D$5&" and localMonth("&$D$12&") ="&$E$5&" and LocalDay("&$D$12&")="&$F$5&" and Barix("&$D$12&",reference:=StartOfSession)="&A79&"", "Bar", "", "Close","5","0","PrimaryOnly",,,"False","T","EveryTick") ->  | R79: =RTD("cqg.rtd",,"StudyData", "Close("&$D$12&") when LocalYear("&$D$12&")="&$D$6&" and localMonth("&$D$12&") ="&$E$6&" and LocalDay("&$D$12&")="&$F$6&" and Barix("&$D$12&",reference:=StartOfSession)="&A79&"", "Bar", "", "Close","5","0","PrimaryOnly",,,"False","T","EveryTick") ->  | T79: =RTD("cqg.rtd",,"StudyData", "Close("&$D$12&") when LocalYear("&$D$12&")="&$D$7&" and localMonth("&$D$12&") ="&$E$7&" and LocalDay("&$D$12&")="&$F$7&" and Barix("&$D$12&",reference:=StartOfSession)="&A79&"", "Bar", "", "Close","5","0","PrimaryOnly",,,"False","T","EveryTick") ->  | V79: =RTD("cqg.rtd",,"StudyData", "Close("&$D$12&") when LocalYear("&$D$12&")="&$D$8&" and localMonth("&$D$12&") ="&$E$8&" and LocalDay("&$D$12&")="&$F$8&" and Barix("&$D$12&",reference:=StartOfSession)="&A79&"", "Bar", "", "Close","5","0","PrimaryOnly",,,"False","T","EveryTick") ->  | X79: =RTD("cqg.rtd",,"StudyData", "Close("&$D$12&") when LocalYear("&$D$12&")="&$D$9&" and localMonth("&$D$12&") ="&$E$9&" and LocalDay("&$D$12&")="&$F$9&" and Barix("&$D$12&",reference:=StartOfSession)="&A79&"", "Bar", "", "Close","5","0","PrimaryOnly",,,"False","T","EveryTick") ->  | Z79: =RTD("cqg.rtd",,"StudyData", "Close("&$D$12&") when LocalYear("&$D$12&")="&$D$10&" and localMonth("&$D$12&") ="&$E$10&" and LocalDay("&$D$12&")="&$F$10&" and Barix("&$D$12&",reference:=StartOfSession)="&A79&"", "Bar", "", "Close","5","0","PrimaryOnly",,,"False","T","EveryTick") -> 
A80: 79 | B80: 15:05:00 | H80: =RTD("cqg.rtd",,"StudyData", "Close("&$D$12&") when LocalYear("&$D$12&")="&$D$1&" and localMonth("&$D$12&") ="&$E$1&" and LocalDay("&$D$12&")="&$F$1&" and Barix("&$D$12&",reference:=StartOfSession)="&A80&"", "Bar", "", "Close","5","0","PrimaryOnly",,,"False","T","EveryTick") ->  | J80: =RTD("cqg.rtd",,"StudyData", "Close("&$D$12&") when LocalYear("&$D$12&")="&$D$2&" and localMonth("&$D$12&") ="&$E$2&" and LocalDay("&$D$12&")="&$F$2&" and Barix("&$D$12&",reference:=StartOfSession)="&A80&"", "Bar", "", "Close","5","0","PrimaryOnly",,,"False","T","EveryTick") ->  | L80: =RTD("cqg.rtd",,"StudyData", "Close("&$D$12&") when LocalYear("&$D$12&")="&$D$3&" and localMonth("&$D$12&") ="&$E$3&" and LocalDay("&$D$12&")="&$F$3&" and Barix("&$D$12&",reference:=StartOfSession)="&A80&"", "Bar", "", "Close","5","0","PrimaryOnly",,,"False","T","EveryTick") ->  | N80: =RTD("cqg.rtd",,"StudyData", "Close("&$D$12&") when LocalYear("&$D$12&")="&$D$4&" and localMonth("&$D$12&") ="&$E$4&" and LocalDay("&$D$12&")="&$F$4&" and Barix("&$D$12&",reference:=StartOfSession)="&A80&"", "Bar", "", "Close","5","0","PrimaryOnly",,,"False","T","EveryTick") ->  | P80: =RTD("cqg.rtd",,"StudyData", "Close("&$D$12&") when LocalYear("&$D$12&")="&$D$5&" and localMonth("&$D$12&") ="&$E$5&" and LocalDay("&$D$12&")="&$F$5&" and Barix("&$D$12&",reference:=StartOfSession)="&A80&"", "Bar", "", "Close","5","0","PrimaryOnly",,,"False","T","EveryTick") ->  | R80: =RTD("cqg.rtd",,"StudyData", "Close("&$D$12&") when LocalYear("&$D$12&")="&$D$6&" and localMonth("&$D$12&") ="&$E$6&" and LocalDay("&$D$12&")="&$F$6&" and Barix("&$D$12&",reference:=StartOfSession)="&A80&"", "Bar", "", "Close","5","0","PrimaryOnly",,,"False","T","EveryTick") ->  | T80: =RTD("cqg.rtd",,"StudyData", "Close("&$D$12&") when LocalYear("&$D$12&")="&$D$7&" and localMonth("&$D$12&") ="&$E$7&" and LocalDay("&$D$12&")="&$F$7&" and Barix("&$D$12&",reference:=StartOfSession)="&A80&"", "Bar", "", "Close","5","0","PrimaryOnly",,,"False","T","EveryTick") ->  | V80: =RTD("cqg.rtd",,"StudyData", "Close("&$D$12&") when LocalYear("&$D$12&")="&$D$8&" and localMonth("&$D$12&") ="&$E$8&" and LocalDay("&$D$12&")="&$F$8&" and Barix("&$D$12&",reference:=StartOfSession)="&A80&"", "Bar", "", "Close","5","0","PrimaryOnly",,,"False","T","EveryTick") ->  | X80: =RTD("cqg.rtd",,"StudyData", "Close("&$D$12&") when LocalYear("&$D$12&")="&$D$9&" and localMonth("&$D$12&") ="&$E$9&" and LocalDay("&$D$12&")="&$F$9&" and Barix("&$D$12&",reference:=StartOfSession)="&A80&"", "Bar", "", "Close","5","0","PrimaryOnly",,,"False","T","EveryTick") ->  | Z80: =RTD("cqg.rtd",,"StudyData", "Close("&$D$12&") when LocalYear("&$D$12&")="&$D$10&" and localMonth("&$D$12&") ="&$E$10&" and LocalDay("&$D$12&")="&$F$10&" and Barix("&$D$12&",reference:=StartOfSession)="&A80&"", "Bar", "", "Close","5","0","PrimaryOnly",,,"False","T","EveryTick") -> 
A81: 80 | B81: 15:10:00 | H81: =RTD("cqg.rtd",,"StudyData", "Close("&$D$12&") when LocalYear("&$D$12&")="&$D$1&" and localMonth("&$D$12&") ="&$E$1&" and LocalDay("&$D$12&")="&$F$1&" and Barix("&$D$12&",reference:=StartOfSession)="&A81&"", "Bar", "", "Close","5","0","PrimaryOnly",,,"False","T","EveryTick") ->  | J81: =RTD("cqg.rtd",,"StudyData", "Close("&$D$12&") when LocalYear("&$D$12&")="&$D$2&" and localMonth("&$D$12&") ="&$E$2&" and LocalDay("&$D$12&")="&$F$2&" and Barix("&$D$12&",reference:=StartOfSession)="&A81&"", "Bar", "", "Close","5","0","PrimaryOnly",,,"False","T","EveryTick") ->  | L81: =RTD("cqg.rtd",,"StudyData", "Close("&$D$12&") when LocalYear("&$D$12&")="&$D$3&" and localMonth("&$D$12&") ="&$E$3&" and LocalDay("&$D$12&")="&$F$3&" and Barix("&$D$12&",reference:=StartOfSession)="&A81&"", "Bar", "", "Close","5","0","PrimaryOnly",,,"False","T","EveryTick") ->  | N81: =RTD("cqg.rtd",,"StudyData", "Close("&$D$12&") when LocalYear("&$D$12&")="&$D$4&" and localMonth("&$D$12&") ="&$E$4&" and LocalDay("&$D$12&")="&$F$4&" and Barix("&$D$12&",reference:=StartOfSession)="&A81&"", "Bar", "", "Close","5","0","PrimaryOnly",,,"False","T","EveryTick") ->  | P81: =RTD("cqg.rtd",,"StudyData", "Close("&$D$12&") when LocalYear("&$D$12&")="&$D$5&" and localMonth("&$D$12&") ="&$E$5&" and LocalDay("&$D$12&")="&$F$5&" and Barix("&$D$12&",reference:=StartOfSession)="&A81&"", "Bar", "", "Close","5","0","PrimaryOnly",,,"False","T","EveryTick") ->  | R81: =RTD("cqg.rtd",,"StudyData", "Close("&$D$12&") when LocalYear("&$D$12&")="&$D$6&" and localMonth("&$D$12&") ="&$E$6&" and LocalDay("&$D$12&")="&$F$6&" and Barix("&$D$12&",reference:=StartOfSession)="&A81&"", "Bar", "", "Close","5","0","PrimaryOnly",,,"False","T","EveryTick") ->  | T81: =RTD("cqg.rtd",,"StudyData", "Close("&$D$12&") when LocalYear("&$D$12&")="&$D$7&" and localMonth("&$D$12&") ="&$E$7&" and LocalDay("&$D$12&")="&$F$7&" and Barix("&$D$12&",reference:=StartOfSession)="&A81&"", "Bar", "", "Close","5","0","PrimaryOnly",,,"False","T","EveryTick") ->  | V81: =RTD("cqg.rtd",,"StudyData", "Close("&$D$12&") when LocalYear("&$D$12&")="&$D$8&" and localMonth("&$D$12&") ="&$E$8&" and LocalDay("&$D$12&")="&$F$8&" and Barix("&$D$12&",reference:=StartOfSession)="&A81&"", "Bar", "", "Close","5","0","PrimaryOnly",,,"False","T","EveryTick") ->  | X81: =RTD("cqg.rtd",,"StudyData", "Close("&$D$12&") when LocalYear("&$D$12&")="&$D$9&" and localMonth("&$D$12&") ="&$E$9&" and LocalDay("&$D$12&")="&$F$9&" and Barix("&$D$12&",reference:=StartOfSession)="&A81&"", "Bar", "", "Close","5","0","PrimaryOnly",,,"False","T","EveryTick") ->  | Z81: =RTD("cqg.rtd",,"StudyData", "Close("&$D$12&") when LocalYear("&$D$12&")="&$D$10&" and localMonth("&$D$12&") ="&$E$10&" and LocalDay("&$D$12&")="&$F$10&" and Barix("&$D$12&",reference:=StartOfSession)="&A81&"", "Bar", "", "Close","5","0","PrimaryOnly",,,"False","T","EveryTick") -> 

Sheet Sheet4
B1: =Sheet3!I1 -> -0.006354585893 | C1: =Sheet3!K1 -> -0.005241090147 | E1: =Sheet3!M1 -> 0.002045097011 | G1: =Sheet3!O1 -> 5.200748908e-05 | I1: =Sheet3!Q1 -> 0.001777963709 | K1: =Sheet3!S1 -> 0.0007824726135 | M1: =Sheet3!U1 -> -0.0158172232 | O1: =Sheet3!W1 -> -0.002319826786 | Q1: =Sheet3!Y1 -> 0.0016553722 | S1: =Sheet3!AA1 -> 0.006828963144
B2: =Sheet3!I2 -> -0.005719127304 | C2: =Sheet3!K2 -> -0.005974842767 | D2: =CORREL($B$1:B2,$C$1:C2) -> -1 | E2: =Sheet3!M2 -> 0.001625589932 | F2: =CORREL($B$1:B2,$E$1:E2) -> -1 | G2: =Sheet3!O2 -> 0.0001040149782 | H2: =CORREL($B$1:B2,$G$1:G2) -> 1 | I2: =Sheet3!Q2 -> 0.001150447106 | J2: =CORREL($B$1:B2,$I$1:I2) -> -1 | K2: =Sheet3!S2 -> -0.0001564945227 | L2: =CORREL($B$1:B2,$K$1:K2) -> -1 | M2: =Sheet3!U2 -> -0.0161790551 | N2: =CORREL($B$1:B2,$M$1:M2) -> -1 | O2: =Sheet3!W2 -> -0.002113619961 | P2: =CORREL($B$1:B2,$O$1:O2) -> 1 | Q2: =Sheet3!Y2 -> 0.001189798769 | R2: =CORREL($B$1:B2,$Q$1:Q2) -> -1 | S2: =Sheet3!AA2 -> 0.006359797738 | T2: =CORREL($B$1:B2,$S$1:S2) -> -1
B3: =Sheet3!I3 -> -0.004818894302 | C3: =Sheet3!K3 -> -0.008542976939 | D3: =CORREL($B$1:B3,$C$1:C3) -> -0.9777869844 | E3: =Sheet3!M3 -> -0.0008390141584 | F3: =CORREL($B$1:B3,$E$1:E3) -> -0.9584261533 | G3: =Sheet3!O3 -> -0.001560224672 | H3: =CORREL($B$1:B3,$G$1:G3) -> -0.8996328343 | I3: =Sheet3!Q3 -> 0.001568791508 | J3: =CORREL($B$1:B3,$I$1:I3) -> -0.2321202138 | K3: =Sheet3!S3 -> -0.0006259780908 | L3: =CORREL($B$1:B3,$K$1:K3) -> -0.9584318507 | M3: =Sheet3!U3 -> -0.01772976326 | N3: =CORREL($B$1:B3,$M$1:M3) -> -0.9700501117 | O3: =Sheet3!W3 -> -0.001598102897 | P3: =CORREL($B$1:B3,$O$1:O3) -> 0.9897433186 | Q3: =Sheet3!Y3 -> 5.173038125e-05 | R3: =CORREL($B$1:B3,$Q$1:Q3) -> -0.990448042 | S3: =Sheet3!AA3 -> 0.005056560496 | T3: =CORREL($B$1:B3,$S$1:S3) -> -0.9862413826
B4: =Sheet3!I4 ->  | C4: =Sheet3!K4 -> -0.006761006289 | D4: =CORREL($B$1:B4,$C$1:C4) ->  | E4: =Sheet3!M4 -> -0.002097535396 | F4: =CORREL($B$1:B4,$E$1:E4) ->  | G4: =Sheet3!O4 -> -0.0007801123362 | H4: =CORREL($B$1:B4,$G$1:G4) ->  | I4: =Sheet3!Q4 -> 0.001098154055 | J4: =CORREL($B$1:B4,$I$1:I4) ->  | K4: =Sheet3!S4 -> -0.001564945227 | L4: =CORREL($B$1:B4,$K$1:K4) ->  | M4: =Sheet3!U4 -> -0.01597229401 | N4: =CORREL($B$1:B4,$M$1:M4) ->  | O4: =Sheet3!W4 -> -0.001598102897 | P4: =CORREL($B$1:B4,$O$1:O4) ->  | Q4: =Sheet3!Y4 -> 0.0005690341938 | R4: =CORREL($B$1:B4,$Q$1:Q4) ->  | S4: =Sheet3!AA4 -> 0.003701193765 | T4: =CORREL($B$1:B4,$S$1:S4) -> 
B5: =Sheet3!I5 ->  | C5: =Sheet3!K5 -> -0.007547169811 | D5: =CORREL($B$1:B5,$C$1:C5) ->  | E5: =Sheet3!M5 -> -0.001678028317 | F5: =CORREL($B$1:B5,$E$1:E5) ->  | G5: =Sheet3!O5 -> -0.0005200748908 | H5: =CORREL($B$1:B5,$G$1:G5) ->  | I5: =Sheet3!Q5 -> 0.0002614652513 | J5: =CORREL($B$1:B5,$I$1:I5) ->  | K5: =Sheet3!S5 -> -0.002451747522 | L5: =CORREL($B$1:B5,$K$1:K5) ->  | M5: =Sheet3!U5 -> -0.0141631345 | N5: =CORREL($B$1:B5,$M$1:M5) ->  | O5: =Sheet3!W5 -> 0 | P5: =CORREL($B$1:B5,$O$1:O5) ->  | Q5: =Sheet3!Y5 -> 0.001293259531 | R5: =CORREL($B$1:B5,$Q$1:Q5) ->  | S5: =Sheet3!AA5 -> 0.006151279779 | T5: =CORREL($B$1:B5,$S$1:S5) -> 
B6: =Sheet3!I6 ->  | C6: =Sheet3!K6 -> -0.008071278826 | D6: =CORREL($B$1:B6,$C$1:C6) ->  | E6: =Sheet3!M6 -> -0.0003670686943 | F6: =CORREL($B$1:B6,$E$1:E6) ->  | G6: =Sheet3!O6 -> 0.0003640524235 | H6: =CORREL($B$1:B6,$G$1:G6) ->  | I6: =Sheet3!Q6 -> 0 | J6: =CORREL($B$1:B6,$I$1:I6) ->  | K6: =Sheet3!S6 -> -0.003025560772 | L6: =CORREL($B$1:B6,$K$1:K6) ->  | M6: =Sheet3!U6 -> -0.01374961232 | N6: =CORREL($B$1:B6,$M$1:M6) ->  | O6: =Sheet3!W6 -> -0.0009279307145 | P6: =CORREL($B$1:B6,$O$1:O6) ->  | Q6: =Sheet3!Y6 -> -0.001603641819 | R6: =CORREL($B$1:B6,$Q$1:Q6) ->  | S6: =Sheet3!AA6 -> 0.006099150289 | T6: =CORREL($B$1:B6,$S$1:S6) -> 
B7: =Sheet3!I7 ->  | C7: =Sheet3!K7 -> -0.007232704403 | D7: =CORREL($B$1:B7,$C$1:C7) ->  | E7: =Sheet3!M7 -> 0.001835343471 | F7: =CORREL($B$1:B7,$E$1:E7) ->  | G7: =Sheet3!O7 -> -0.0005200748908 | H7: =CORREL($B$1:B7,$G$1:G7) ->  | I7: =Sheet3!Q7 -> 0.001098154055 | J7: =CORREL($B$1:B7,$I$1:I7) ->  | K7: =Sheet3!S7 -> -0.003703703704 | L7: =CORREL($B$1:B7,$K$1:K7) ->  | M7: =Sheet3!U7 -> -0.01638581619 | N7: =CORREL($B$1:B7,$M$1:M7) ->  | O7: =Sheet3!W7 -> -0.001752758016 | P7: =CORREL($B$1:B7,$O$1:O7) ->  | Q7: =Sheet3!Y7 -> -0.003672857069 | R7: =CORREL($B$1:B7,$Q$1:Q7) ->  | S7: =Sheet3!AA7 -> 0.007663034979 | T7: =CORREL($B$1:B7,$S$1:S7) -> 
B8: =Sheet3!I8 ->  | C8: =Sheet3!K8 -> -0.007651991614 | D8: =CORREL($B$1:B8,$C$1:C8) ->  | E8: =Sheet3!M8 -> 0.003146303094 | F8: =CORREL($B$1:B8,$E$1:E8) ->  | G8: =Sheet3!O8 -> -0.0007801123362 | H8: =CORREL($B$1:B8,$G$1:G8) ->  | I8: =Sheet3!Q8 -> 0.001725670658 | J8: =CORREL($B$1:B8,$I$1:I8) ->  | K8: =Sheet3!S8 -> -0.004590505999 | L8: =CORREL($B$1:B8,$K$1:K8) ->  | M8: =Sheet3!U8 -> -0.01524863021 | N8: =CORREL($B$1:B8,$M$1:M8) ->  | O8: =Sheet3!W8 -> -0.003660171152 | P8: =CORREL($B$1:B8,$O$1:O8) ->  | Q8: =Sheet3!Y8 -> -0.002638249444 | R8: =CORREL($B$1:B8,$Q$1:Q8) ->  | S8: =Sheet3!AA8 -> 0.008288588855 | T8: =CORREL($B$1:B8,$S$1:S8) -> 
B9: =Sheet3!I9 ->  | C9: =Sheet3!K9 -> -0.007809224319 | D9: =CORREL($B$1:B9,$C$1:C9) ->  | E9: =Sheet3!M9 -> 0.002202412166 | F9: =CORREL($B$1:B9,$E$1:E9) ->  | G9: =Sheet3!O9 -> 0.0003120449345 | H9: =CORREL($B$1:B9,$G$1:G9) ->  | I9: =Sheet3!Q9 -> 0.002771531663 | J9: =CORREL($B$1:B9,$I$1:I9) ->  | K9: =Sheet3!S9 -> -0.004955659885 | L9: =CORREL($B$1:B9,$K$1:K9) ->  | M9: =Sheet3!U9 -> -0.0158172232 | N9: =CORREL($B$1:B9,$M$1:M9) ->  | O9: =Sheet3!W9 -> -0.003144654088 | P9: =CORREL($B$1:B9,$O$1:O9) ->  | Q9: =Sheet3!Y9 -> -0.003776317831 | R9: =CORREL($B$1:B9,$Q$1:Q9) ->  | S9: =Sheet3!AA9 -> 0.009643955586 | T9: =CORREL($B$1:B9,$S$1:S9) -> 
B10: =Sheet3!I10 ->  | C10: =Sheet3!K10 -> -0.008280922432 | D10: =CORREL($B$1:B10,$C$1:C10) ->  | E10: =Sheet3!M10 -> 0.003251179864 | F10: =CORREL($B$1:B10,$E$1:E10) ->  | G10: =Sheet3!O10 -> 0.0009881422925 | H10: =CORREL($B$1:B10,$G$1:G10) ->  | I10: =Sheet3!Q10 -> 0.00209172201 | J10: =CORREL($B$1:B10,$I$1:I10) ->  | K10: =Sheet3!S10 -> -0.005268648931 | L10: =CORREL($B$1:B10,$K$1:K10) ->  | M10: =Sheet3!U10 -> -0.0141631345 | N10: =CORREL($B$1:B10,$M$1:M10) ->  | O10: =Sheet3!W10 -> -0.003763274564 | P10: =CORREL($B$1:B10,$O$1:O10) ->  | Q10: =Sheet3!Y10 -> -0.004655734313 | R10: =CORREL($B$1:B10,$Q$1:Q10) ->  | S10: =Sheet3!AA10 -> 0.01026950946 | T10: =CORREL($B$1:B10,$S$1:S10) -> 
B11: =Sheet3!I11 ->  | C11: =Sheet3!K11 -> -0.009329140461 | D11: =CORREL($B$1:B11,$C$1:C11) ->  | E11: =Sheet3!M11 -> 0.003146303094 | F11: =CORREL($B$1:B11,$E$1:E11) ->  | G11: =Sheet3!O11 -> 0.0003120449345 | H11: =CORREL($B$1:B11,$G$1:G11) ->  | I11: =Sheet3!Q11 -> 0.001882549809 | J11: =CORREL($B$1:B11,$I$1:I11) ->  | K11: =Sheet3!S11 -> -0.004747000522 | L11: =CORREL($B$1:B11,$K$1:K11) ->  | M11: =Sheet3!U11 -> -0.0154553913 | N11: =CORREL($B$1:B11,$M$1:M11) ->  | O11: =Sheet3!W11 -> -0.00396948139 | P11: =CORREL($B$1:B11,$O$1:O11) ->  | Q11: =Sheet3!Y11 -> -0.002689979825 | R11: =CORREL($B$1:B11,$Q$1:Q11) ->  | S11: =Sheet3!AA11 -> 0.01011312099 | T11: =CORREL($B$1:B11,$S$1:S11) -> 
B12: =Sheet3!I12 ->  | C12: =Sheet3!K12 -> -0.01011530398 | D12: =CORREL($B$1:B12,$C$1:C12) ->  | E12: =Sheet3!M12 -> 0.003303618249 | F12: =CORREL($B$1:B12,$E$1:E12) ->  | G12: =Sheet3!O12 -> 0.0006240898689 | H12: =CORREL($B$1:B12,$G$1:G12) ->  | I12: =Sheet3!Q12 -> 0.001464205407 | J12: =CORREL($B$1:B12,$I$1:I12) ->  | K12: =Sheet3!S12 -> -0.005581637976 | L12: =CORREL($B$1:B12,$K$1:K12) ->  | M12: =Sheet3!U12 -> -0.01592060374 | N12: =CORREL($B$1:B12,$M$1:M12) ->  | O12: =Sheet3!W12 -> -0.004381895041 | P12: =CORREL($B$1:B12,$O$1:O12) ->  | Q12: =Sheet3!Y12 -> -0.0033107444 | R12: =CORREL($B$1:B12,$Q$1:Q12) ->  | S12: =Sheet3!AA12 -> 0.009383308137 | T12: =CORREL($B$1:B12,$S$1:S12) -> 
B13: =Sheet3!I13 ->  | C13: =Sheet3!K13 -> -0.0107442348 | D13: =CORREL($B$1:B13,$C$1:C13) ->  | E13: =Sheet3!M13 -> 0.001887781856 | F13: =CORREL($B$1:B13,$E$1:E13) ->  | G13: =Sheet3!O13 -> 0.00114416476 | H13: =CORREL($B$1:B13,$G$1:G13) ->  | I13: =Sheet3!Q13 -> 0.00198713591 | J13: =CORREL($B$1:B13,$I$1:I13) ->  | K13: =Sheet3!S13 -> -0.005320813772 | L13: =CORREL($B$1:B13,$K$1:K13) ->  | M13: =Sheet3!U13 -> -0.01690271891 | N13: =CORREL($B$1:B13,$M$1:M13) ->  | O13: =Sheet3!W13 -> -0.006701721827 | P13: =CORREL($B$1:B13,$O$1:O13) ->  | Q13: =Sheet3!Y13 -> -0.0033107444 | R13: =CORREL($B$1:B13,$Q$1:Q13) ->  | S13: =Sheet3!AA13 -> 0.00901840171 | T13: =CORREL($B$1:B13,$S$1:S13) -> 
B14: =Sheet3!I14 ->  | C14: =Sheet3!K14 -> -0.01263102725 | D14: =CORREL($B$1:B14,$C$1:C14) ->  | E14: =Sheet3!M14 -> 0.001940220241 | F14: =CORREL($B$1:B14,$E$1:E14) ->  | G14: =Sheet3!O14 -> -0.0005720823799 | H14: =CORREL($B$1:B14,$G$1:G14) ->  | I14: =Sheet3!Q14 -> 0.001045861005 | J14: =CORREL($B$1:B14,$I$1:I14) ->  | K14: =Sheet3!S14 -> -0.006259780908 | L14: =CORREL($B$1:B14,$K$1:K14) ->  | M14: =Sheet3!U14 -> -0.0178331438 | N14: =CORREL($B$1:B14,$M$1:M14) ->  | O14: =Sheet3!W14 -> -0.006495515002 | P14: =CORREL($B$1:B14,$O$1:O14) ->  | Q14: =Sheet3!Y14 -> -0.003879778594 | R14: =CORREL($B$1:B14,$Q$1:Q14) ->  | S14: =Sheet3!AA14 -> 0.008132200386 | T14: =CORREL($B$1:B14,$S$1:S14) -> 
B15: =Sheet3!I15 ->  | C15: =Sheet3!K15 -> -0.01016771488 | D15: =CORREL($B$1:B15,$C$1:C15) ->  | E15: =Sheet3!M15 -> 0.002412165705 | F15: =CORREL($B$1:B15,$E$1:E15) ->  | G15: =Sheet3!O15 -> -0.0007281048471 | H15: =CORREL($B$1:B15,$G$1:G15) ->  | I15: =Sheet3!Q15 -> 0.001673377608 | J15: =CORREL($B$1:B15,$I$1:I15) ->  | K15: =Sheet3!S15 -> -0.006885758998 | L15: =CORREL($B$1:B15,$K$1:K15) ->  | M15: =Sheet3!U15 -> -0.01690271891 | N15: =CORREL($B$1:B15,$M$1:M15) ->  | O15: =Sheet3!W15 -> -0.006650170121 | P15: =CORREL($B$1:B15,$O$1:O15) ->  | Q15: =Sheet3!Y15 -> -0.004707464694 | R15: =CORREL($B$1:B15,$Q$1:Q15) ->  | S15: =Sheet3!AA15 -> 0.008444977324 | T15: =CORREL($B$1:B15,$S$1:S15) -> 
B16: =Sheet3!I16 ->  | C16: =Sheet3!K16 -> -0.009486373166 | D16: =CORREL($B$1:B16,$C$1:C16) ->  | E16: =Sheet3!M16 -> 0.001153644468 | F16: =CORREL($B$1:B16,$E$1:E16) ->  | G16: =Sheet3!O16 -> -5.200748908e-05 | H16: =CORREL($B$1:B16,$G$1:G16) ->  | I16: =Sheet3!Q16 -> 0.00198713591 | J16: =CORREL($B$1:B16,$I$1:I16) ->  | K16: =Sheet3!S16 -> -0.007303077726 | L16: =CORREL($B$1:B16,$K$1:K16) ->  | M16: =Sheet3!U16 -> -0.01612736483 | N16: =CORREL($B$1:B16,$M$1:M16) ->  | O16: =Sheet3!W16 -> -0.006598618414 | P16: =CORREL($B$1:B16,$O$1:O16) ->  | Q16: =Sheet3!Y16 -> -0.006724949563 | R16: =CORREL($B$1:B16,$Q$1:Q16) ->  | S16: =Sheet3!AA16 -> 0.008184329875 | T16: =CORREL($B$1:B16,$S$1:S16) -> 
B17: =Sheet3!I17 ->  | C17: =Sheet3!K17 -> -0.01027253669 | D17: =CORREL($B$1:B17,$C$1:C17) ->  | E17: =Sheet3!M17 -> 0.0008914525433 | F17: =CORREL($B$1:B17,$E$1:E17) ->  | G17: =Sheet3!O17 -> 0.0006240898689 | H17: =CORREL($B$1:B17,$G$1:G17) ->  | I17: =Sheet3!Q17 -> 0.001464205407 | J17: =CORREL($B$1:B17,$I$1:I17) ->  | K17: =Sheet3!S17 -> -0.00699008868 | L17: =CORREL($B$1:B17,$K$1:K17) ->  | M17: =Sheet3!U17 -> -0.01478341776 | N17: =CORREL($B$1:B17,$M$1:M17) ->  | O17: =Sheet3!W17 -> -0.005258274049 | P17: =CORREL($B$1:B17,$O$1:O17) ->  | Q17: =Sheet3!Y17 -> -0.005276498888 | R17: =CORREL($B$1:B17,$Q$1:Q17) ->  | S17: =Sheet3!AA17 -> 0.009487567117 | T17: =CORREL($B$1:B17,$S$1:S17) -> 
B18: =Sheet3!I18 ->  | C18: =Sheet3!K18 -> -0.0108490566 | D18: =CORREL($B$1:B18,$C$1:C18) ->  | E18: =Sheet3!M18 -> -0.0008914525433 | F18: =CORREL($B$1:B18,$E$1:E18) ->  | G18: =Sheet3!O18 -> 0.00114416476 | H18: =CORREL($B$1:B18,$G$1:G18) ->  | I18: =Sheet3!Q18 -> 0.001307326256 | J18: =CORREL($B$1:B18,$I$1:I18) ->  | K18: =Sheet3!S18 -> -0.006155451226 | L18: =CORREL($B$1:B18,$K$1:K18) ->  | M18: =Sheet3!U18 -> -0.01555877184 | N18: =CORREL($B$1:B18,$M$1:M18) ->  | O18: =Sheet3!W18 -> -0.003608619445 | P18: =CORREL($B$1:B18,$O$1:O18) ->  | Q18: =Sheet3!Y18 -> -0.00455227355 | R18: =CORREL($B$1:B18,$Q$1:Q18) ->  | S18: =Sheet3!AA18 -> 0.009696085075 | T18: =CORREL($B$1:B18,$S$1:S18) -> 
B19: =Sheet3!I19 ->  | C19: =Sheet3!K19 -> -0.01242138365 | D19: =CORREL($B$1:B19,$C$1:C19) ->  | E19: =Sheet3!M19 -> 0.0002621919245 | F19: =CORREL($B$1:B19,$E$1:E19) ->  | G19: =Sheet3!O19 -> 0.002652381943 | H19: =CORREL($B$1:B19,$G$1:G19) ->  | I19: =Sheet3!Q19 -> 0.0009412749046 | J19: =CORREL($B$1:B19,$I$1:I19) ->  | K19: =Sheet3!S19 -> -0.005372978612 | L19: =CORREL($B$1:B19,$K$1:K19) ->  | M19: =Sheet3!U19 -> -0.01643750646 | N19: =CORREL($B$1:B19,$M$1:M19) ->  | O19: =Sheet3!W19 -> -0.004021033096 | P19: =CORREL($B$1:B19,$O$1:O19) ->  | Q19: =Sheet3!Y19 -> -0.003672857069 | R19: =CORREL($B$1:B19,$Q$1:Q19) ->  | S19: =Sheet3!AA19 -> 0.008914142731 | T19: =CORREL($B$1:B19,$S$1:S19) -> 
B20: =Sheet3!I20 ->  | C20: =Sheet3!K20 -> -0.01268343816 | D20: =CORREL($B$1:B20,$C$1:C20) ->  | E20: =Sheet3!M20 -> 0.0008390141584 | F20: =CORREL($B$1:B20,$E$1:E20) ->  | G20: =Sheet3!O20 -> 0.002184314541 | H20: =CORREL($B$1:B20,$G$1:G20) ->  | I20: =Sheet3!Q20 -> 0.0008366888041 | J20: =CORREL($B$1:B20,$I$1:I20) ->  | K20: =Sheet3!S20 -> -0.004955659885 | L20: =CORREL($B$1:B20,$K$1:K20) ->  | M20: =Sheet3!U20 -> -0.0158172232 | N20: =CORREL($B$1:B20,$M$1:M20) ->  | O20: =Sheet3!W20 -> -0.004845860398 | P20: =CORREL($B$1:B20,$O$1:O20) ->  | Q20: =Sheet3!Y20 -> -0.0033107444 | R20: =CORREL($B$1:B20,$Q$1:Q20) ->  | S20: =Sheet3!AA20 -> 0.006464056717 | T20: =CORREL($B$1:B20,$S$1:S20) -> 
